Workbook

Sheet 更新用 (hidden)
G2: ↓更新ボタン用パスワードを入力（ファイルを閉じると消える） | H2: ↓更新処理をする日を入力する（鉄鋼は10日、ガス平均は7日の以前か以後かで更新月が変わる） | R2: ※シート名の変更をするとマクロは機能しません。ファイル名は変更してもＯＫです。行・列・セルの追加や削除は影響する場合があるので注意してください。
H3: 2024-04-20 | I3: ↓橙色は要更新確認。「処理する月における各指標の更新月」と相違。 | R3: ※マクロを修正した場合、必ず修正に関わるところはシート保護・ブック保護・シート非表示など開示と同じ状況にしてから動作を確認すること
A4: ↑↑ボタンによる変更はもとに戻せないので注意 | C4: 指標 | D4: 種類 | E4: 出典 | F4: URL | G4: 更新方法 | H4: N月:処理する月における各指標の更新月 | I4: 最終更新月 （資源合算シート） | J4: 最終更新月 （CSVシート） | K4: 更新タイミング | L4: N月データの掲載タイミング N＝M+3月とする。 | M4: CSVシート名 | N4: 指標番号 | O4: 会社 | P4: 地域 | R4: 保存場所 | S4: マクロ名・内容 | T4: 指標追加時にいじる必要 | U4: 更新の時にいじる必要 | V4: その他
C5: 01_【原材料】鉄鋼 | D5: 01.01_熱延鋼板（1.6mm）（千円/t）※高炉系 | E5: 日刊産業新聞 | F5: https://www.japanmetal.com/memberwel/marketprice/soba_netsuusu | G5: 更新月を追加・CSVと資源合算更新 | H5: =IF(DAY($H$3)<11,DATE(YEAR($H$3),MONTH($H$3)-2,1),DATE(YEAR($H$3),MONTH($H$3)-1,1)) -> 2024-03-01 | I5: =INDEX(指標合算テーブル[],MATCH(LARGE((指標合算テーブル[種類]=D5)*1/ROW(指標合算テーブル[種類]),COUNTIF(指標合算テーブル[種類],D5)),1/ROW(指標合算テーブル[種類]),0),3) -> 2024-03-01 | J5: =INDIRECT(ADDRESS(MAX((INDIRECT(M5&"!C1:C1000")<>"")*ROW(INDIRECT(M5&"!C1:C1000"))),2,1,1,M5)) -> 2024-03-01 | K5: N＋1月15日 | L5: N＋1月の第2週金曜 | M5: 1鉄鋼 | N5: =MID(D5,4,2)*1 -> 1 | R5: モジュール１ | S5: グラフ出典PDF化 | T5: 無し | U5: 無し（ピボットテーブルシートの37-47行目の表を隠すマクロがある為、ピボットテーブルシートの行の移動に関わる追加削除は禁止）
C6: 01_【原材料】鉄鋼 | D6: 01.02_冷延鋼板（1.0mm）（千円/t）※高炉系 | E6: 日刊産業新聞 | F6: https://www.japanmetal.com/memberwel/marketprice/soba_reiusu | G6: 更新月を追加・CSVと資源合算更新 | H6: =IF(DAY($H$3)<11,DATE(YEAR($H$3),MONTH($H$3)-2,1),DATE(YEAR($H$3),MONTH($H$3)-1,1)) -> 2024-03-01 | I6: =INDEX(指標合算テーブル[],MATCH(LARGE((指標合算テーブル[種類]=D6)*1/ROW(指標合算テーブル[種類]),COUNTIF(指標合算テーブル[種類],D6)),1/ROW(指標合算テーブル[種類]),0),3) -> 2024-03-01 | J6: =INDIRECT(ADDRESS(MAX((INDIRECT(M6&"!D1:D1000")<>"")*ROW(INDIRECT(M6&"!D1:D1000"))),2,1,1,M6)) -> 2024-03-01 | K6: N＋1月15日 | L6: N＋1月の第2週金曜 | M6: 1鉄鋼 | N6: 2 | R6: モジュール２ | S6: 全シート一括保護 | T6: 無し | U6: 無し | V6: 保護パスワード変更時修正要
C7: 01_【原材料】鉄鋼 | D7: 01.03_酸洗コイル（1.5≦ｔ＜1.7×900～1,600）（千円/t）※電炉系 | E7: 東京製鐵価格表 | F7: https://www.tokyosteel.co.jp/salesprice/ | G7: 更新月を追加・CSVと資源合算更新 | H7: =IF(DAY($H$3)<11,DATE(YEAR($H$3),MONTH($H$3),1),DATE(YEAR($H$3),MONTH($H$3)+1,1)) -> 2024-05-01 | I7: =INDEX(指標合算テーブル[],MATCH(LARGE((指標合算テーブル[種類]=D7)*1/ROW(指標合算テーブル[種類]),COUNTIF(指標合算テーブル[種類],D7)),1/ROW(指標合算テーブル[種類]),0),3) -> 2024-05-01 | J7: =INDIRECT(ADDRESS(MAX((INDIRECT(M7&"!E1:E1000")<>"")*ROW(INDIRECT(M7&"!E1:E1000"))),2,1,1,M7)) -> 2024-05-01 | K7: N-1月30日 | L7: N-1月の20日頃 | M7: 1鉄鋼 | N7: 3 | R7: モジュール２ | S7: 全シート一括保護解除 | T7: 無し | U7: 無し | V7: 保護パスワード変更時修正要
C8: 02_【原材料】銅・黄銅 | D8: 02.01_銅（円/kg） | E8: JX金属 | F8: https://www.jx-nmm.com/cuprice/ | G8: 更新月を追加・CSVと資源合算更新 | H8: =DATE(YEAR($H$3), MONTH($H$3) - 1, 1) -> 2024-03-01 | I8: =INDEX(指標合算テーブル[],MATCH(LARGE((指標合算テーブル[種類]=D8)*1/ROW(指標合算テーブル[種類]),COUNTIF(指標合算テーブル[種類],D8)),1/ROW(指標合算テーブル[種類]),0),3) -> 2024-03-01 | J8: =INDIRECT(ADDRESS(MAX((INDIRECT(M8&"!C1:C1000")<>"")*ROW(INDIRECT(M8&"!C1:C1000"))),2,1,1,M8)) -> 2024-03-01 | K8: N＋1月5～15日 | L8: N＋1月の第1営業日 | M8: 2銅黄銅 | N8: 1 | R8: モジュール２ | S8: データ更新 | T8: 無し | U8: 無し | V8: 保護パスワード変更時修正要
C9: 02_【原材料】銅・黄銅 | D9: 02.02_亜鉛（円/kg） | E9: 三井金属鉱業 | F9: https://www.mitsui-kinzoku.com/aen/?TabModule819=0 | G9: 更新月を追加・CSVと資源合算更新 | H9: 2024-03-01 | I9: =INDEX(指標合算テーブル[],MATCH(LARGE((指標合算テーブル[種類]=D9)*1/ROW(指標合算テーブル[種類]),COUNTIF(指標合算テーブル[種類],D9)),1/ROW(指標合算テーブル[種類]),0),3) -> 2024-03-01 | J9: =INDIRECT(ADDRESS(MAX((INDIRECT(M9&"!D1:D1000")<>"")*ROW(INDIRECT(M9&"!D1:D1000"))),2,1,1,M9)) -> 2024-03-01 | K9: N＋1月5～15日 | L9: N＋1月の第1営業日。N月のうちに掲載されているが改定の頻度が高く、早め更新せずN+1月の更新とする。 | M9: 2銅黄銅 | N9: 2 | R9: モジュール２ | S9: アクティブシート保護 | T9: 無し | U9: 無し | V9: 保護パスワード変更時修正要
C10: 02_【原材料】銅・黄銅 | D10: 02.03_黄銅1種（銅70％・亜鉛30％）（円/kg) | E10: JX金属・三井金属鉱業のデータを基に作成 | F10: https://www.jx-nmm.com/cuprice/ https://www.mitsui-kinzoku.com/aen/?TabModule819=0 | G10: 更新月を追加・CSVは計算式をのばす | H10: 2024-03-01 | I10: =INDEX(指標合算テーブル[],MATCH(LARGE((指標合算テーブル[種類]=D10)*1/ROW(指標合算テーブル[種類]),COUNTIF(指標合算テーブル[種類],D10)),1/ROW(指標合算テーブル[種類]),0),3) -> 2024-03-01 | J10: =INDIRECT(ADDRESS(MAX((INDIRECT(M10&"!E1:E1000")<>"")*ROW(INDIRECT(M10&"!E1:E1000"))),2,1,1,M10)) -> 2024-03-01 | K10: N＋1月5～15日 | L10: N＋1月の第1営業日 | M10: 2銅黄銅 | N10: 3 | R10: モジュール２ | S10: アクティブシート保護解除 | T10: 無し | U10: 無し | V10: 保護パスワード変更時修正要
C11: 02_【原材料】銅・黄銅 | D11: 02.04_黄銅2種（銅65％・亜鉛35％）（円/kg) | F11: https://www.jx-nmm.com/cuprice/ https://www.mitsui-kinzoku.com/aen/?TabModule819=1 | G11: 更新月を追加・CSVは計算式をのばす | H11: 2024-03-01 | I11: =INDEX(指標合算テーブル[],MATCH(LARGE((指標合算テーブル[種類]=D11)*1/ROW(指標合算テーブル[種類]),COUNTIF(指標合算テーブル[種類],D11)),1/ROW(指標合算テーブル[種類]),0),3) -> 2024-03-01 | J11: =INDIRECT(ADDRESS(MAX((INDIRECT(M11&"!F1:F1000")<>"")*ROW(INDIRECT(M11&"!F1:F1000"))),2,1,1,M11)) -> 2024-03-01 | K11: N＋1月5～15日 | L11: N＋1月の第1営業日 | M11: 2銅黄銅 | N11: 4 | R11: モジュール２ | S11: 手動計算（更新用シートを再計算） | T11: 無し | U11: 無し
C12: 02_【原材料】銅・黄銅 | D12: 02.05_黄銅3種（銅60％・亜鉛40％）（円/kg） | F12: https://www.jx-nmm.com/cuprice/ https://www.mitsui-kinzoku.com/aen/?TabModule819=2 | G12: 更新月を追加・CSVは計算式をのばす | H12: 2024-03-01 | I12: =INDEX(指標合算テーブル[],MATCH(LARGE((指標合算テーブル[種類]=D12)*1/ROW(指標合算テーブル[種類]),COUNTIF(指標合算テーブル[種類],D12)),1/ROW(指標合算テーブル[種類]),0),3) -> 2024-03-01 | J12: =INDIRECT(ADDRESS(MAX((INDIRECT(M12&"!G1:G1000")<>"")*ROW(INDIRECT(M12&"!G1:G1000"))),2,1,1,M12)) -> 2024-03-01 | K12: N＋1月5～15日 | L12: N＋1月の第1営業日 | M12: 2銅黄銅 | N12: 5 | R12: CSV化選択フォーム | S12: チェックボックスiをチェックしてボタンをクリックするとCSV化iが実行される | T12: あり | U12: 無し
C13: 03_【原材料】アルミ | D13: 03.01_新地金（円/kg） | E13: 日本経済新聞の記事及び日経NEEDS | F13: ？持丸さんにデータをいただく | G13: 更新月を追加・CSVと資源合算更新 | H13: 2024-03-01 | I13: =INDEX(指標合算テーブル[],MATCH(LARGE((指標合算テーブル[種類]=D13)*1/ROW(指標合算テーブル[種類]),COUNTIF(指標合算テーブル[種類],D13)),1/ROW(指標合算テーブル[種類]),0),3) -> 2024-03-01 | J13: =INDIRECT(ADDRESS(MAX((INDIRECT(M13&"!C1:C1000")<>"")*ROW(INDIRECT(M13&"!C1:C1000"))),2,1,1,M13)) -> 2024-03-01 | K13: N＋1月10～15日 | L13: N＋1月の第1木曜日 | M13: 3アルミ | N13: 1 | R13: ウレタンフォーム | S13: 未使用（配合比率指定のちがうバージョン） | T13: 無し | U13: 無し
C14: 03_【原材料】アルミ | D14: 03.02_再生塊（円/kg） | E14: 日刊産業新聞 | F14: ？持丸さんにデータをいただく | G14: 更新月を追加・CSVと資源合算更新 | H14: 2024-03-01 | I14: =INDEX(指標合算テーブル[],MATCH(LARGE((指標合算テーブル[種類]=D14)*1/ROW(指標合算テーブル[種類]),COUNTIF(指標合算テーブル[種類],D14)),1/ROW(指標合算テーブル[種類]),0),3) -> 2024-03-01 | J14: =INDIRECT(ADDRESS(MAX((INDIRECT(M14&"!D1:D1000")<>"")*ROW(INDIRECT(M14&"!D1:D1000"))),2,1,1,M14)) -> 2024-03-01 | K14: N＋1月5～15日 | L14: N＋1月の第3営業日 | M14: 3アルミ | N14: 2 | R14: ウレタン配合比率指定フォーム | S14: 配合比率指定ボタンを押すとコンボボックスの数値がセルに反映される コンボボックスを変更するとラベルの表示が計算される フォームを開くと前回の値（表の値）が表示される | T14: 無し | U14: 無し
C15: 04_【原材料】ウレタン | D15: 04.01_ウレタンA（円/kg） | E15: 日本経済新聞の記事及び日経NEEDS/財務省統計 | F15: 貿易統計 :統計品別推移表 :条件入力 :財務省貿易統計 Trade Statistics of Japan (customs.go.jp) | G15: 過去分から上書き（石炭）、他は更新月追加・資源合算シートは計算式あり、枠外にも入力要・CSVのウレタンは参照を確認して計算式をのばす | H15: =DATE(YEAR($H$3), MONTH($H$3) - 2, 1) -> 2024-02-01 | I15: =INDEX(指標合算テーブル[],MATCH(LARGE((指標合算テーブル[種類]=D15)*1/ROW(指標合算テーブル[種類]),COUNTIF(指標合算テーブル[種類],D15)),1/ROW(指標合算テーブル[種類]),0),3) -> 2024-02-01 | J15: =INDIRECT(ADDRESS(MAX((INDIRECT(M15&"!H100:H1000")<>"")*ROW(INDIRECT(M15&"!H100:H1000"))),2,1,1,M15)) -> 2024-02-01 | K15: N＋2月5～15日 | L15: N＋1月の第4週 ﾌﾟﾛﾋﾟﾚﾝ：木曜 ｴﾁﾚﾝ：土曜 ﾄﾙｴﾝ/ﾍﾞﾝｾﾞﾝ：火曜 石炭：最終稼働日 ウレタンは石炭の更新に合わせて算出・更新 | M15: 4ウレタン | N15: 1 | R15: 電気ガスの料金構成フォーム | S15: 電気ガスの料金構成 | T15: 無し | U15: 無し
C16: 04_【原材料】ウレタン | D16: 04.02_ウレタンB（円/kg） | F16: 石炭は上記財務省から。 品目コード：270112099 | G16: 同上 | H16: 2024-02-01 | I16: =INDEX(指標合算テーブル[],MATCH(LARGE((指標合算テーブル[種類]=D16)*1/ROW(指標合算テーブル[種類]),COUNTIF(指標合算テーブル[種類],D16)),1/ROW(指標合算テーブル[種類]),0),3) -> 2024-02-01 | J16: =INDIRECT(ADDRESS(MAX((INDIRECT(M16&"!I100:I1000")<>"")*ROW(INDIRECT(M16&"!I100:I1000"))),2,1,1,M16)) -> 2024-02-01 | K16: N＋2月5～15日 | L16: 同上 | M16: 4ウレタン | N16: 2 | R16: ポリアミド6フォーム | S16: 未使用（配合比率指定のちがうバージョン） | T16: 無し | U16: 無し
C17: 04_【原材料】ウレタン | D17: 04.03_ウレタンC（円/kg） | F17: プロピレン/エチレン/ポリプロピレンは持丸さんから | G17: 同上 | H17: 2024-02-01 | I17: =INDEX(指標合算テーブル[],MATCH(LARGE((指標合算テーブル[種類]=D17)*1/ROW(指標合算テーブル[種類]),COUNTIF(指標合算テーブル[種類],D17)),1/ROW(指標合算テーブル[種類]),0),3) -> 2024-02-01 | J17: =INDIRECT(ADDRESS(MAX((INDIRECT(M17&"!J100:J1000")<>"")*ROW(INDIRECT(M17&"!J100:J1000"))),2,1,1,M17)) -> 2024-02-01 | K17: N＋2月5～15日 | L17: 同上 | M17: 4ウレタン | N17: 3 | R17: ポリアミド6配合比率指定フォーム | S17: 配合比率指定ボタンを押すとコンボボックスの数値がセルに反映される コンボボックスを変更するとラベルの表示が計算される フォームを開くと前回の値（表の値）が表示される | T17: 無し | U17: 無し
C18: 04_【原材料】ウレタン | D18: 04.04_ウレタンD（円/kg） | G18: 同上 | H18: 2024-02-01 | I18: =INDEX(指標合算テーブル[],MATCH(LARGE((指標合算テーブル[種類]=D18)*1/ROW(指標合算テーブル[種類]),COUNTIF(指標合算テーブル[種類],D18)),1/ROW(指標合算テーブル[種類]),0),3) -> 2024-02-01 | J18: =INDIRECT(ADDRESS(MAX((INDIRECT(M18&"!K100:K1000")<>"")*ROW(INDIRECT(M18&"!K100:K1000"))),2,1,1,M18)) -> 2024-02-01 | K18: N＋2月5～15日 | L18: 同上 | M18: 4ウレタン | N18: 4 | R18: 国内トラック便フォーム | S18: 各ボタンをクリックするとコンボボックスの数値がセルに反映される | T18: 無し | U18: 無し
D19: プロピレンオキサイド | E19: 日本経済新聞の記事及び日経NEEDS | H19: 2024-02-01 | J19: =INDIRECT(ADDRESS(MAX((INDIRECT(M19&"!C1:C1000")<>"")*ROW(INDIRECT(M19&"!C1:C1000"))),2,1,1,M19)) -> 2024-02-01 | K19: N+1月30日 | L19: N＋1月の第4週木曜 | M19: 4ウレタン | R19: 国内物流価格の決まり方フォーム | S19: 国内物流価格の決まり方 | T19: 無し | U19: 無し
D20: エチレンオキサイド | E20: 同上 | H20: 2024-02-01 | J20: =INDIRECT(ADDRESS(MAX((INDIRECT(M20&"!D1:D1000")<>"")*ROW(INDIRECT(M20&"!D1:D1000"))),2,1,1,M20)) -> 2024-02-01 | K20: N+1月30日 | L20: N＋1月の第4週土曜 | M20: 4ウレタン | R20: 鉄鋼材料の種類フォーム | S20: 鉄鋼材料の種類 | T20: 文言修正が必要な場合はあり | U20: 無し
D21: トルエン | E21: 同上 | H21: 2024-02-01 | J21: =INDIRECT(ADDRESS(MAX((INDIRECT(M21&"!E1:E1000")<>"")*ROW(INDIRECT(M21&"!E1:E1000"))),2,1,1,M21)) -> 2024-02-01 | K21: N+1月30日 | L21: N＋1月の第4週火曜 | M21: 4ウレタン | R21: 労務費の種類注記フォーム | S21: 労務費の種類注記 | T21: 無し | U21: 無し
D22: ベンゼン | E22: 同上 | H22: 2024-02-01 | J22: =INDIRECT(ADDRESS(MAX((INDIRECT(M22&"!F1:F1000")<>"")*ROW(INDIRECT(M22&"!F1:F1000"))),2,1,1,M22)) -> 2024-02-01 | K22: N+1月30日 | L22: N＋1月の第4週火曜 | M22: 4ウレタン | R22: 非金属材料の価格構成フォーム | S22: 非金属材料の価格構成 | T22: 文言修正が必要な場合はあり | U22: 無し
D23: 石炭 | E23: 同上 | H23: =DATE(YEAR($H$3), MONTH($H$3) - 2, 1) -> 2024-02-01 | J23: =INDIRECT(ADDRESS(MAX((INDIRECT(M23&"!G1:G1000")<>"")*ROW(INDIRECT(M23&"!G1:G1000"))),2,1,1,M23)) -> 2024-02-01 | K23: N＋2月5～15日 | L23: 最終稼働日 | M23: 4ウレタン | R23: 非鉄金属材料の価格構成フォーム | S23: 非鉄金属材料の価格構成 | T23: 文言修正が必要な場合はあり | U23: 無し
C24: 05_【原材料】ポリアミド6 | D24: 05.01_ポリアミド6A（円/kg） | E24: 日本経済新聞の記事及び日経NEEDS/財務省統計 | F24: 貿易統計 :統計品別推移表 :条件入力 :財務省貿易統計 Trade Statistics of Japan (customs.go.jp) | G24: 過去分から上書き（ガラス）、他更新月追加・資源合算シートは計算式あり、枠外にも入力要・CSVのポリアミドは参照を確認して計算式をのばす | H24: 2024-02-01 | I24: =INDEX(指標合算テーブル[],MATCH(LARGE((指標合算テーブル[種類]=D24)*1/ROW(指標合算テーブル[種類]),COUNTIF(指標合算テーブル[種類],D24)),1/ROW(指標合算テーブル[種類]),0),3) -> 2024-02-01 | J24: =INDIRECT(ADDRESS(MAX((INDIRECT(M24&"!E1:E1000")<>"")*ROW(INDIRECT(M24&"!E1:E1000"))),2,1,1,M24)) -> 2024-02-01 | K24: N＋2月5～15日 | L24: ポリアミド：N＋1月の第4週木曜 ｶﾞﾗｽ：最終稼働日 ポリアミド6はガラスの更新タイミングに合わせて算出・更新 | M24: 5ポリアミド6 | N24: 1 | R24: 免責事項フォーム | S24: 免責事項 | T24: 無し | U24: 無し
C25: 05_【原材料】ポリアミド6 | D25: 05.02_ポリアミド6B（円/kg） | F25: ガラスは上記財務省から。 品目コード：701911000 | G25: 同上 | H25: 2024-02-01 | I25: =INDEX(指標合算テーブル[],MATCH(LARGE((指標合算テーブル[種類]=D25)*1/ROW(指標合算テーブル[種類]),COUNTIF(指標合算テーブル[種類],D25)),1/ROW(指標合算テーブル[種類]),0),3) -> 2024-02-01 | J25: =INDIRECT(ADDRESS(MAX((INDIRECT(M25&"!F1:F1000")<>"")*ROW(INDIRECT(M25&"!F1:F1000"))),2,1,1,M25)) -> 2024-02-01 | K25: N＋2月5～15日 | L25: 同上 | M25: 5ポリアミド6 | N25: 2 | R25: this workbook | S25: ブックを開いたときに、免責事項フォームshow ブックを開いた時に、更新用シートの計算をできなくする ブックを閉じる時に更新用シートG3の内容をクリアする ブックを閉じる時に開示処理（シート保護、更新用・管理用シート非表示、ブック保護） | T25: 無し | U25: 無し
C26: 05_【原材料】ポリアミド6 | D26: 05.03_ポリアミド6C（円/kg） | F26: ポリアミドは持丸さんから | G26: 同上 | H26: 2024-02-01 | I26: =INDEX(指標合算テーブル[],MATCH(LARGE((指標合算テーブル[種類]=D26)*1/ROW(指標合算テーブル[種類]),COUNTIF(指標合算テーブル[種類],D26)),1/ROW(指標合算テーブル[種類]),0),3) -> 2024-02-01 | J26: =INDIRECT(ADDRESS(MAX((INDIRECT(M26&"!G1:G1000")<>"")*ROW(INDIRECT(M26&"!G1:G1000"))),2,1,1,M26)) -> 2024-02-01 | K26: N＋2月5～15日 | L26: 同上 | M26: 5ポリアミド6 | N26: 3 | R26: 更新用（sheet55) | S26: 全シート一括保護ボタン 全シート一括保護解除ボタン 手動計算ボタン 更新ボタン チェックボックス 全てのチェックを外すボタン チェックボックスを連動させるチェック | T26: 無し | U26: 無し
C27: 05_【原材料】ポリアミド6 | D27: 05.04_ポリアミド6D（円/kg） | G27: 同上 | H27: 2024-02-01 | I27: =INDEX(指標合算テーブル[],MATCH(LARGE((指標合算テーブル[種類]=D27)*1/ROW(指標合算テーブル[種類]),COUNTIF(指標合算テーブル[種類],D27)),1/ROW(指標合算テーブル[種類]),0),3) -> 2024-02-01 | J27: =INDIRECT(ADDRESS(MAX((INDIRECT(M27&"!H1:H1000")<>"")*ROW(INDIRECT(M27&"!H1:H1000"))),2,1,1,M27)) -> 2024-02-01 | K27: N＋2月5～15日 | L27: 同上 | M27: 5ポリアミド6 | N27: 4 | R27: ピボットテーブルシート | S27: 各ボタン | T27: 無し | U27: 無し
D28: ポリアミド | E28: 日本経済新聞の記事及び日経NEEDS | H28: =DATE(YEAR($H$3), MONTH($H$3) - 2, 1) -> 2024-02-01 | J28: =INDIRECT(ADDRESS(MAX((INDIRECT(M28&"!C1:C1000")<>"")*ROW(INDIRECT(M28&"!C1:C1000"))),2,1,1,M28)) -> 2024-02-01 | K28: N+1月30日 | L28: N＋1月の第4週木曜 | M28: 5ポリアミド6 | R28: モジュール3 | S28: CSVシート名取得 ＣＳＶシート変更
C29: 05_【原材料】ポリアミド6 | D29: ガラス | E29: 財務省貿易統計 | F29: ガラスは上記財務省から。 品目コード：701911000 | G29: 過去分から上書き・CSVと資源合算更新 | H29: 2024-02-01 | J29: =INDIRECT(ADDRESS(MAX((INDIRECT(M29&"!D1:D1000")<>"")*ROW(INDIRECT(M29&"!D1:D1000"))),2,1,1,M29)) -> 2024-02-01 | K29: N＋2月5～15日 | L29: N＋1月の最終稼働日 | M29: 5ポリアミド6
C30: 06_【原材料】ポリプロピレン | D30: 06.01_ポリプロピレン（円/kg） | E30: 日本経済新聞の記事及び日経NEEDS | F30: ？持丸さんにデータをいただく | G30: 更新月を追加・CSVと資源合算更新 | H30: 2024-02-01 | I30: =INDEX(指標合算テーブル[],MATCH(LARGE((指標合算テーブル[種類]=D30)*1/ROW(指標合算テーブル[種類]),COUNTIF(指標合算テーブル[種類],D30)),1/ROW(指標合算テーブル[種類]),0),3) -> 2024-02-01 | J30: =INDIRECT(ADDRESS(MAX((INDIRECT(M30&"!C1:C1000")<>"")*ROW(INDIRECT(M30&"!C1:C1000"))),2,1,1,M30)) -> 2024-02-01 | L30: 指定がないが更新月はとりあえずABSとあわせている。 | M30: 6ポリプロピレン | N30: 1
C31: 07_【原材料】ABS樹脂 | D31: 07.01_ABS樹脂（円/kg） | E31: 日本経済新聞の記事及び日経NEEDS | F31: ？持丸さんにデータをいただく | G31: 更新月を追加・CSVと資源合算更新 | H31: 2024-02-01 | I31: =INDEX(指標合算テーブル[],MATCH(LARGE((指標合算テーブル[種類]=D31)*1/ROW(指標合算テーブル[種類]),COUNTIF(指標合算テーブル[種類],D31)),1/ROW(指標合算テーブル[種類]),0),3) -> 2024-02-01 | J31: =INDIRECT(ADDRESS(MAX((INDIRECT(M31&"!C1:C1000")<>"")*ROW(INDIRECT(M31&"!C1:C1000"))),2,1,1,M31)) -> 2024-02-01 | K31: N+1月30日 | L31: N＋1月の第4週木曜日 | M31: 7ABS樹脂 | N31: 1
C32: 08_【原材料】合成ゴム | D32: 08.01_EPDM（円/kg） | E32: 日本経済新聞の記事及び日経NEEDS | F32: ？持丸さんにデータをいただく | G32: 更新月を追加・CSVと資源合算更新 | H32: =DATE(YEAR($H$3), MONTH($H$3) - 2, 1) -> 2024-02-01 | I32: =INDEX(指標合算テーブル[],MATCH(LARGE((指標合算テーブル[種類]=D32)*1/ROW(指標合算テーブル[種類]),COUNTIF(指標合算テーブル[種類],D32)),1/ROW(指標合算テーブル[種類]),0),3) -> 2024-02-01 | J32: =INDIRECT(ADDRESS(MAX((INDIRECT(M32&"!C1:C1000")<>"")*ROW(INDIRECT(M32&"!C1:C1000"))),2,1,1,M32)) -> 2024-02-01 | K32: N＋1月10～15日 | L32: N＋1月の第1木曜日 | M32: 8合成ゴム | N32: 1
C33: 08_【原材料】合成ゴム | D33: 08.02_カーボンブラック（円/kg） | E33: 財務省貿易統計 | F33: 貿易統計 :統計品別推移表 :条件入力 :財務省貿易統計 Trade Statistics of Japan (customs.go.jp) 品目コード：28030000 | G33: 過去分から上書き・CSVと資源合算更新 | H33: =DATE(YEAR($H$3), MONTH($H$3) - 2, 1) -> 2024-02-01 | I33: =INDEX(指標合算テーブル[],MATCH(LARGE((指標合算テーブル[種類]=D33)*1/ROW(指標合算テーブル[種類]),COUNTIF(指標合算テーブル[種類],D33)),1/ROW(指標合算テーブル[種類]),0),3) -> 2024-02-01 | J33: =INDIRECT(ADDRESS(MAX((INDIRECT(M33&"!D1:D1000")<>"")*ROW(INDIRECT(M33&"!D1:D1000"))),2,1,1,M33)) -> 2024-02-01 | K33: N＋2月5～15日 | L33: N＋1月の最終稼働日 | M33: 8合成ゴム | N33: 2
C34: 08_【原材料】合成ゴム | D34: 08.03_プロセスオイル（円/kg） | E34: 財務省貿易統計 | F34: 貿易統計 :統計品別推移表 :条件入力 :財務省貿易統計 Trade Statistics of Japan (customs.go.jp) | G34: 過去分から上書き・CSVと資源合算更新 | H34: =DATE(YEAR($H$3), MONTH($H$3) - 2, 1) -> 2024-02-01 | I34: =INDEX(指標合算テーブル[],MATCH(LARGE((指標合算テーブル[種類]=D34)*1/ROW(指標合算テーブル[種類]),COUNTIF(指標合算テーブル[種類],D34)),1/ROW(指標合算テーブル[種類]),0),3) -> 2024-02-01 | J34: =INDIRECT(ADDRESS(MAX((INDIRECT(M34&"!E1:E1000")<>"")*ROW(INDIRECT(M34&"!E1:E1000"))),2,1,1,M34)) -> 2024-02-01 | K34: N＋2月5～15日 | L34: N＋1月の最終稼働日 | M34: 8合成ゴム | N34: 3
C35: 08_【原材料】合成ゴム | D35: 08.04_プロセスオイル（円/l） | F35: 品目コード：2709.00-900 | G35: 過去分から上書き・CSVと資源合算更新 | H35: =DATE(YEAR($H$3), MONTH($H$3) - 2, 1) -> 2024-02-01 | I35: =INDEX(指標合算テーブル[],MATCH(LARGE((指標合算テーブル[種類]=D35)*1/ROW(指標合算テーブル[種類]),COUNTIF(指標合算テーブル[種類],D35)),1/ROW(指標合算テーブル[種類]),0),3) -> 2024-02-01 | J35: =INDIRECT(ADDRESS(MAX((INDIRECT(M35&"!F1:F1000")<>"")*ROW(INDIRECT(M35&"!F1:F1000"))),2,1,1,M35)) -> 2024-02-01 | K35: N＋2月5～15日 | L35: N＋1月の最終稼働日 | M35: 8合成ゴム | N35: 4
C36: 09_【エネルギー】電気 | D36: 09.01_燃料費調整単価＋再エネ賦課金（北海道電力）(円/kWh) | E36: 新電力ネット/各電力会社HP | F36: https://pps-net.org/ | G36: 過去分から上書き/全国CSVは「電気ガス価格推移」ファイルからコピペ→CSVから資源合算シートにコピペ・個別CSVは全国CSVのデータが反映。個別シートグループ化し行の追加・数式反映 | H36: =DATE(YEAR($H$3), MONTH($H$3) +1, 1) -> 2024-05-01 | I36: =INDEX(指標合算テーブル[],MATCH(LARGE((指標合算テーブル[種類]=D36)*1/ROW(指標合算テーブル[種類]),COUNTIF(指標合算テーブル[種類],D36)),1/ROW(指標合算テーブル[種類]),0),3) -> 2024-05-01 | J36: =INDIRECT(ADDRESS(MAX((INDIRECT(M36&"!G1:G1000")<>"")*ROW(INDIRECT(M36&"!G1:G1000"))),4,1,1,M36)) -> 2024-05-01 | K36: N-1月5～15日 | L36: M＋2月の第1営業日 M+2月に更新 M月の財務省データをもとにM+3月（＝N）の燃料調整費が決まる。 | M36: 17北海道電力 | N36: 1 | O36: 北海道電力
C37: 09_【エネルギー】電気 | D37: 09.02_燃料費調整単価＋再エネ賦課金（東北電力）(円/kWh) | E37: 新電力ネット/各電力会社HP | G37: 同上 | H37: 2024-05-01 | I37: =INDEX(指標合算テーブル[],MATCH(LARGE((指標合算テーブル[種類]=D37)*1/ROW(指標合算テーブル[種類]),COUNTIF(指標合算テーブル[種類],D37)),1/ROW(指標合算テーブル[種類]),0),3) -> 2024-05-01 | J37: =INDIRECT(ADDRESS(MAX((INDIRECT(M37&"!G1:G1000")<>"")*ROW(INDIRECT(M37&"!G1:G1000"))),4,1,1,M37)) -> 2024-05-01 | K37: N-1月5～15日 | L37: 同上 | M37: 18東北電力 | N37: 2 | O37: 東北電力
C38: 09_【エネルギー】電気 | D38: 09.03_燃料費調整単価＋再エネ賦課金（東京電力）(円/kWh) | E38: 新電力ネット/各電力会社HP | G38: 同上 | H38: =DATE(YEAR($H$3), MONTH($H$3) +1, 1) -> 2024-05-01 | I38: =INDEX(指標合算テーブル[],MATCH(LARGE((指標合算テーブル[種類]=D38)*1/ROW(指標合算テーブル[種類]),COUNTIF(指標合算テーブル[種類],D38)),1/ROW(指標合算テーブル[種類]),0),3) -> 2024-05-01 | J38: =INDIRECT(ADDRESS(MAX((INDIRECT(M38&"!G1:G1000")<>"")*ROW(INDIRECT(M38&"!G1:G1000"))),4,1,1,M38)) -> 2024-05-01 | K38: N-1月5～15日 | L38: 同上 | M38: 19東京電力 | N38: 3 | O38: 東京電力
C39: 09_【エネルギー】電気 | D39: 09.04_燃料費調整単価＋再エネ賦課金（中部電力）(円/kWh) | E39: 新電力ネット/各電力会社HP | G39: 同上 | H39: 2024-05-01 | I39: =INDEX(指標合算テーブル[],MATCH(LARGE((指標合算テーブル[種類]=D39)*1/ROW(指標合算テーブル[種類]),COUNTIF(指標合算テーブル[種類],D39)),1/ROW(指標合算テーブル[種類]),0),3) -> 2024-05-01 | J39: =INDIRECT(ADDRESS(MAX((INDIRECT(M39&"!G1:G1000")<>"")*ROW(INDIRECT(M39&"!G1:G1000"))),4,1,1,M39)) -> 2024-05-01 | K39: N-1月5～15日 | L39: 同上 | M39: 20中部電力 | N39: 4 | O39: 中部電力
C40: 09_【エネルギー】電気 | D40: 09.05_燃料費調整単価＋再エネ賦課金（北陸電力）(円/kWh) | E40: 新電力ネット/各電力会社HP | G40: 同上 | H40: 2024-05-01 | I40: =INDEX(指標合算テーブル[],MATCH(LARGE((指標合算テーブル[種類]=D40)*1/ROW(指標合算テーブル[種類]),COUNTIF(指標合算テーブル[種類],D40)),1/ROW(指標合算テーブル[種類]),0),3) -> 2024-05-01 | J40: =INDIRECT(ADDRESS(MAX((INDIRECT(M40&"!G1:G1000")<>"")*ROW(INDIRECT(M40&"!G1:G1000"))),4,1,1,M40)) -> 2024-05-01 | K40: N-1月5～15日 | L40: 同上 | M40: 21北陸電力 | N40: 5 | O40: 北陸電力
C41: 09_【エネルギー】電気 | D41: 09.06_燃料費調整単価＋再エネ賦課金（関西電力）(円/kWh) | E41: 新電力ネット/各電力会社HP | G41: 同上 | H41: 2024-05-01 | I41: =INDEX(指標合算テーブル[],MATCH(LARGE((指標合算テーブル[種類]=D41)*1/ROW(指標合算テーブル[種類]),COUNTIF(指標合算テーブル[種類],D41)),1/ROW(指標合算テーブル[種類]),0),3) -> 2024-05-01 | J41: =INDIRECT(ADDRESS(MAX((INDIRECT(M41&"!G1:G1000")<>"")*ROW(INDIRECT(M41&"!G1:G1000"))),4,1,1,M41)) -> 2024-05-01 | K41: N-1月5～15日 | L41: 同上 | M41: 22関西電力 | N41: 6 | O41: 関西電力
C42: 09_【エネルギー】電気 | D42: 09.07_燃料費調整単価＋再エネ賦課金（中国電力）(円/kWh) | E42: 新電力ネット/各電力会社HP | G42: 同上 | H42: 2024-05-01 | I42: =INDEX(指標合算テーブル[],MATCH(LARGE((指標合算テーブル[種類]=D42)*1/ROW(指標合算テーブル[種類]),COUNTIF(指標合算テーブル[種類],D42)),1/ROW(指標合算テーブル[種類]),0),3) -> 2024-05-01 | J42: =INDIRECT(ADDRESS(MAX((INDIRECT(M42&"!G1:G1000")<>"")*ROW(INDIRECT(M42&"!G1:G1000"))),4,1,1,M42)) -> 2024-05-01 | K42: N-1月5～15日 | L42: 同上 | M42: 23中国電力 | N42: 7 | O42: 中国電力
C43: 09_【エネルギー】電気 | D43: 09.08_燃料費調整単価＋再エネ賦課金（四国電力）(円/kWh) | E43: 新電力ネット/各電力会社HP | G43: E | H43: 2024-05-01 | I43: =INDEX(指標合算テーブル[],MATCH(LARGE((指標合算テーブル[種類]=D43)*1/ROW(指標合算テーブル[種類]),COUNTIF(指標合算テーブル[種類],D43)),1/ROW(指標合算テーブル[種類]),0),3) -> 2024-05-01 | J43: =INDIRECT(ADDRESS(MAX((INDIRECT(M43&"!G1:G1000")<>"")*ROW(INDIRECT(M43&"!G1:G1000"))),4,1,1,M43)) -> 2024-05-01 | K43: N-1月5～15日 | L43: 同上 | M43: 24四国電力 | N43: 8 | O43: 四国電力
C44: 09_【エネルギー】電気 | D44: 09.09_燃料費調整単価＋再エネ賦課金（九州電力）(円/kWh) | E44: 新電力ネット/各電力会社HP | G44: 同上 | H44: 2024-05-01 | I44: =INDEX(指標合算テーブル[],MATCH(LARGE((指標合算テーブル[種類]=D44)*1/ROW(指標合算テーブル[種類]),COUNTIF(指標合算テーブル[種類],D44)),1/ROW(指標合算テーブル[種類]),0),3) -> 2024-05-01 | J44: =INDIRECT(ADDRESS(MAX((INDIRECT(M44&"!G1:G1000")<>"")*ROW(INDIRECT(M44&"!G1:G1000"))),4,1,1,M44)) -> 2024-05-01 | K44: N-1月5～15日 | L44: 同上 | M44: 25九州電力 | N44: 9 | O44: 九州電力
C45: 09_【エネルギー】電気 | D45: 09.10_燃料費調整単価＋再エネ賦課金（沖縄電力）(円/kWh) | E45: 新電力ネット/各電力会社HP | G45: 同上 | H45: 2024-05-01 | I45: =INDEX(指標合算テーブル[],MATCH(LARGE((指標合算テーブル[種類]=D45)*1/ROW(指標合算テーブル[種類]),COUNTIF(指標合算テーブル[種類],D45)),1/ROW(指標合算テーブル[種類]),0),3) -> 2024-05-01 | J45: =INDIRECT(ADDRESS(MAX((INDIRECT(M45&"!G1:G1000")<>"")*ROW(INDIRECT(M45&"!G1:G1000"))),4,1,1,M45)) -> 2024-05-01 | K45: N-1月5～15日 | L45: 同上 | M45: 26沖縄電力 | N45: 10 | O45: 沖縄電力
C46: 09_【エネルギー】電気 | D46: 09.11_平均販売単価・特別高圧（北海道）（円/kWh） | E46: 新電力ネット | G46: 同上 | H46: =DATE(YEAR($H$3), MONTH($H$3) -4, 1) -> 2023-12-01 | I46: =INDEX(指標合算テーブル[],MATCH(LARGE((指標合算テーブル[種類]=D46)*1/ROW(指標合算テーブル[種類]),COUNTIF(指標合算テーブル[種類],D46)),1/ROW(指標合算テーブル[種類]),0),3) -> 2024-01-01 | J46: =INDIRECT(ADDRESS(MAX((INDIRECT(M46&"!H1:H1000")<>"")*ROW(INDIRECT(M46&"!H1:H1000"))),4,1,1,M46)) -> 2024-01-01 | K46: N＋3月30日 | L46: N＋3月の26日頃 | M46: 27北海道電気平均 | N46: 11 | P46: 北海道
C47: 09_【エネルギー】電気 | D47: 09.12_平均販売単価・特別高圧（東北）（円/kWh） | E47: 新電力ネット | G47: 同上 | H47: =DATE(YEAR($H$3), MONTH($H$3) -4, 1) -> 2023-12-01 | I47: =INDEX(指標合算テーブル[],MATCH(LARGE((指標合算テーブル[種類]=D47)*1/ROW(指標合算テーブル[種類]),COUNTIF(指標合算テーブル[種類],D47)),1/ROW(指標合算テーブル[種類]),0),3) -> 2024-01-01 | J47: =INDIRECT(ADDRESS(MAX((INDIRECT(M47&"!H1:H1000")<>"")*ROW(INDIRECT(M47&"!H1:H1000"))),4,1,1,M47)) -> 2024-01-01 | K47: N＋3月30日 | L47: N＋3月の26日頃 | M47: 28東北電気平均 | N47: 12 | P47: 東北
C48: 09_【エネルギー】電気 | D48: 09.13_平均販売単価・特別高圧（東京）（円/kWh） | E48: 新電力ネット | G48: 同上 | H48: 2023-12-01 | I48: =INDEX(指標合算テーブル[],MATCH(LARGE((指標合算テーブル[種類]=D48)*1/ROW(指標合算テーブル[種類]),COUNTIF(指標合算テーブル[種類],D48)),1/ROW(指標合算テーブル[種類]),0),3) -> 2024-01-01 | J48: =INDIRECT(ADDRESS(MAX((INDIRECT(M48&"!H1:H1000")<>"")*ROW(INDIRECT(M48&"!H1:H1000"))),4,1,1,M48)) -> 2024-01-01 | K48: N＋3月30日 | L48: N＋3月の26日頃 | M48: 29東京電気平均 | N48: 13 | P48: 東京
C49: 09_【エネルギー】電気 | D49: 09.14_平均販売単価・特別高圧（中部）（円/kWh） | E49: 新電力ネット | G49: 同上 | H49: 2023-12-01 | I49: =INDEX(指標合算テーブル[],MATCH(LARGE((指標合算テーブル[種類]=D49)*1/ROW(指標合算テーブル[種類]),COUNTIF(指標合算テーブル[種類],D49)),1/ROW(指標合算テーブル[種類]),0),3) -> 2024-01-01 | J49: =INDIRECT(ADDRESS(MAX((INDIRECT(M49&"!H1:H1000")<>"")*ROW(INDIRECT(M49&"!H1:H1000"))),4,1,1,M49)) -> 2024-01-01 | K49: N＋3月30日 | L49: N＋3月の26日頃 | M49: 30中部電気平均 | N49: 14 | P49: 中部
C50: 09_【エネルギー】電気 | D50: 09.15_平均販売単価・特別高圧（北陸）（円/kWh） | E50: 新電力ネット | G50: 同上 | H50: 2023-12-01 | I50: =INDEX(指標合算テーブル[],MATCH(LARGE((指標合算テーブル[種類]=D50)*1/ROW(指標合算テーブル[種類]),COUNTIF(指標合算テーブル[種類],D50)),1/ROW(指標合算テーブル[種類]),0),3) -> 2024-01-01 | J50: =INDIRECT(ADDRESS(MAX((INDIRECT(M50&"!H1:H1000")<>"")*ROW(INDIRECT(M50&"!H1:H1000"))),4,1,1,M50)) -> 2024-01-01 | K50: N＋3月30日 | L50: N＋3月の26日頃 | M50: 31北陸電気平均 | N50: 15 | P50: 北陸
C51: 09_【エネルギー】電気 | D51: 09.16_平均販売単価・特別高圧（関西）（円/kWh） | E51: 新電力ネット | G51: 同上 | H51: 2023-12-01 | I51: =INDEX(指標合算テーブル[],MATCH(LARGE((指標合算テーブル[種類]=D51)*1/ROW(指標合算テーブル[種類]),COUNTIF(指標合算テーブル[種類],D51)),1/ROW(指標合算テーブル[種類]),0),3) -> 2024-01-01 | J51: =INDIRECT(ADDRESS(MAX((INDIRECT(M51&"!H1:H1000")<>"")*ROW(INDIRECT(M51&"!H1:H1000"))),4,1,1,M51)) -> 2024-01-01 | K51: N＋3月30日 | L51: N＋3月の26日頃 | M51: 32関西電気平均 | N51: 16 | P51: 関西
C52: 09_【エネルギー】電気 | D52: 09.17_平均販売単価・特別高圧（中国）（円/kWh） | E52: 新電力ネット | G52: 同上 | H52: 2023-12-01 | I52: =INDEX(指標合算テーブル[],MATCH(LARGE((指標合算テーブル[種類]=D52)*1/ROW(指標合算テーブル[種類]),COUNTIF(指標合算テーブル[種類],D52)),1/ROW(指標合算テーブル[種類]),0),3) -> 2024-01-01 | J52: =INDIRECT(ADDRESS(MAX((INDIRECT(M52&"!H1:H1000")<>"")*ROW(INDIRECT(M52&"!H1:H1000"))),4,1,1,M52)) -> 2024-01-01 | K52: N＋3月30日 | L52: N＋3月の26日頃 | M52: 33中国電気平均 | N52: 17 | P52: 中国
C53: 09_【エネルギー】電気 | D53: 09.18_平均販売単価・特別高圧（四国）（円/kWh） | E53: 新電力ネット | G53: 同上 | H53: 2023-12-01 | I53: =INDEX(指標合算テーブル[],MATCH(LARGE((指標合算テーブル[種類]=D53)*1/ROW(指標合算テーブル[種類]),COUNTIF(指標合算テーブル[種類],D53)),1/ROW(指標合算テーブル[種類]),0),3) -> 2024-01-01 | J53: =INDIRECT(ADDRESS(MAX((INDIRECT(M53&"!H1:H1000")<>"")*ROW(INDIRECT(M53&"!H1:H1000"))),4,1,1,M53)) -> 2024-01-01 | K53: N＋3月30日 | L53: N＋3月の26日頃 | M53: 34四国電気平均 | N53: 18 | P53: 四国
C54: 09_【エネルギー】電気 | D54: 09.19_平均販売単価・特別高圧（九州）（円/kWh） | E54: 新電力ネット | G54: 同上 | H54: 2023-12-01 | I54: =INDEX(指標合算テーブル[],MATCH(LARGE((指標合算テーブル[種類]=D54)*1/ROW(指標合算テーブル[種類]),COUNTIF(指標合算テーブル[種類],D54)),1/ROW(指標合算テーブル[種類]),0),3) -> 2024-01-01 | J54: =INDIRECT(ADDRESS(MAX((INDIRECT(M54&"!H1:H1000")<>"")*ROW(INDIRECT(M54&"!H1:H1000"))),4,1,1,M54)) -> 2024-01-01 | K54: N＋3月30日 | L54: N＋3月の26日頃 | M54: 35九州電気平均 | N54: 19 | P54: 九州
C55: 09_【エネルギー】電気 | D55: 09.20_平均販売単価・特別高圧（沖縄）（円/kWh） | E55: 新電力ネット | G55: 同上 | H55: 2023-12-01 | I55: =INDEX(指標合算テーブル[],MATCH(LARGE((指標合算テーブル[種類]=D55)*1/ROW(指標合算テーブル[種類]),COUNTIF(指標合算テーブル[種類],D55)),1/ROW(指標合算テーブル[種類]),0),3) -> 2024-01-01 | J55: =INDIRECT(ADDRESS(MAX((INDIRECT(M55&"!H1:H1000")<>"")*ROW(INDIRECT(M55&"!H1:H1000"))),4,1,1,M55)) -> 2024-01-01 | K55: N＋3月30日 | L55: N＋3月の26日頃 | M55: 36沖縄電気平均 | N55: 20 | P55: 沖縄
C56: 10_【エネルギー】ガス | D56: 10.01_原料調整費（北海道ガス）（円/m3） | E56: 財務省貿易/各ガス会社HP https://www.customs.go.jp/toukei/srch/index.htm?M=77&P=0 | F56: https://www.hokkaido-gas.co.jp/news/list/news | G56: 過去分から上書き/全国CSVは「電気ガス価格推移」ファイルからコピペ→CSVから資源合算シートにコピペ・個別CSVは全国CSVのデータが反映。個別シートグループ化し行の追加・数式反映 | H56: =DATE(YEAR($H$3), MONTH($H$3) +1, 1) -> 2024-05-01 | I56: =INDEX(指標合算テーブル[],MATCH(LARGE((指標合算テーブル[種類]=D56)*1/ROW(指標合算テーブル[種類]),COUNTIF(指標合算テーブル[種類],D56)),1/ROW(指標合算テーブル[種類]),0),3) -> 2024-05-01 | J56: =INDIRECT(ADDRESS(MAX((INDIRECT(M56&"!H1:H1000")<>"")*ROW(INDIRECT(M56&"!H1:H1000"))),4,1,1,M56)) -> 2024-05-01 | K56: N-1月5～15日 | L56: M＋1月の最終稼働日 M+2月に更新 M月の財務省データをもとにM+3月（＝N）の原料調整費が決まる。 | M56: 37北海道ガス | N56: 1 | O56: 北海道ガス
C57: 10_【エネルギー】ガス | D57: 10.02_原料調整費（京葉ガス）（円/m3） | E57: 財務省貿易/各ガス会社HP | F57: https://www.keiyogas.co.jp/press/ | G57: 同上 | H57: 2024-05-01 | I57: =INDEX(指標合算テーブル[],MATCH(LARGE((指標合算テーブル[種類]=D57)*1/ROW(指標合算テーブル[種類]),COUNTIF(指標合算テーブル[種類],D57)),1/ROW(指標合算テーブル[種類]),0),3) -> 2024-05-01 | J57: =INDIRECT(ADDRESS(MAX((INDIRECT(M57&"!H1:H1000")<>"")*ROW(INDIRECT(M57&"!H1:H1000"))),4,1,1,M57)) -> 2024-05-01 | K57: N-1月5～15日 | L57: 同上 | M57: 38京葉ガス | N57: 2 | O57: 京葉ガス
C58: 10_【エネルギー】ガス | D58: 10.03_原料調整費（東京ガス東京地区）（円/m3） | E58: 財務省貿易/各ガス会社HP | F58: https://www.tokyo-gas.co.jp/news/index.html | G58: 同上だが、複数地区あるので個別CSVの行追加はグループ化して作業できない | H58: 2024-05-01 | I58: =INDEX(指標合算テーブル[],MATCH(LARGE((指標合算テーブル[種類]=D58)*1/ROW(指標合算テーブル[種類]),COUNTIF(指標合算テーブル[種類],D58)),1/ROW(指標合算テーブル[種類]),0),3) -> 2024-05-01 | J58: =INDEX(INDIRECT(M58&"!C1:D1000"),MATCH(LARGE((INDIRECT(M58&"!C1:C1000")=P58)*1/ROW(INDIRECT(M58&"!C1:C1000")),COUNTIF(INDIRECT(M58&"!C1:C1000"),P58)),1/ROW(INDIRECT(M58&"!C1:C1000")),0),2) -> 2024-05-01 | K58: N-1月5～15日 | L58: 同上 | M58: 39東京ガス | N58: 3 | O58: 東京ガス | P58: 東京地区
C59: 10_【エネルギー】ガス | D59: 10.04_原料調整費（東京ガス群馬地区）（円/m3） | E59: 財務省貿易/各ガス会社HP | G59: 同上 | H59: 2024-05-01 | I59: =INDEX(指標合算テーブル[],MATCH(LARGE((指標合算テーブル[種類]=D59)*1/ROW(指標合算テーブル[種類]),COUNTIF(指標合算テーブル[種類],D59)),1/ROW(指標合算テーブル[種類]),0),3) -> 2024-05-01 | J59: =INDEX(INDIRECT(M59&"!C1:D1000"),MATCH(LARGE((INDIRECT(M59&"!C1:C1000")=P59)*1/ROW(INDIRECT(M59&"!C1:C1000")),COUNTIF(INDIRECT(M59&"!C1:C1000"),P59)),1/ROW(INDIRECT(M59&"!C1:C1000")),0),2) -> 2024-05-01 | K59: N-1月5～15日 | L59: 同上 | M59: 39東京ガス | N59: 4 | O59: 東京ガス | P59: 群馬地区
C60: 10_【エネルギー】ガス | D60: 10.05_原料調整費（東京ガス群馬南地区）（円/m3） | E60: 財務省貿易/各ガス会社HP | G60: 同上（地区統合により2023/5以降更新無し） | H60: 2023-04-01 | I60: =INDEX(指標合算テーブル[],MATCH(LARGE((指標合算テーブル[種類]=D60)*1/ROW(指標合算テーブル[種類]),COUNTIF(指標合算テーブル[種類],D60)),1/ROW(指標合算テーブル[種類]),0),3) -> 2023-04-01 | J60: =INDEX(INDIRECT(M60&"!C1:D1000"),MATCH(LARGE((INDIRECT(M60&"!C1:C1000")=P60)*1/ROW(INDIRECT(M60&"!C1:C1000")),COUNTIF(INDIRECT(M60&"!C1:C1000"),P60)),1/ROW(INDIRECT(M60&"!C1:C1000")),0),2) -> 2023-04-01 | K60: N-1月5～15日 | L60: 更新しない | M60: 39東京ガス | N60: 5 | O60: 東京ガス | P60: 群馬南地区
C61: 10_【エネルギー】ガス | D61: 10.06_原料調整費（北陸ガス新潟地区）（円/m3） | E61: 財務省貿易/各ガス会社HP | F61: http://www.hokurikugas.co.jp/company/press/index.html | G61: 同上 | H61: 2024-05-01 | I61: =INDEX(指標合算テーブル[],MATCH(LARGE((指標合算テーブル[種類]=D61)*1/ROW(指標合算テーブル[種類]),COUNTIF(指標合算テーブル[種類],D61)),1/ROW(指標合算テーブル[種類]),0),3) -> 2024-05-01 | J61: =INDEX(INDIRECT(M61&"!C1:D1000"),MATCH(LARGE((INDIRECT(M61&"!C1:C1000")=P61)*1/ROW(INDIRECT(M61&"!C1:C1000")),COUNTIF(INDIRECT(M61&"!C1:C1000"),P61)),1/ROW(INDIRECT(M61&"!C1:C1000")),0),2) -> 2024-05-01 | K61: N-1月5～15日 | L61: 同上 | M61: 40北陸ガス | N61: 6 | O61: 北陸ガス | P61: 新潟地区
C62: 10_【エネルギー】ガス | D62: 10.07_原料調整費（北陸ガス長岡、越路、三島・与板、栃尾、三条地区）（円/m3） | E62: 財務省貿易/各ガス会社HP | G62: 同上 | H62: 2024-05-01 | I62: =INDEX(指標合算テーブル[],MATCH(LARGE((指標合算テーブル[種類]=D62)*1/ROW(指標合算テーブル[種類]),COUNTIF(指標合算テーブル[種類],D62)),1/ROW(指標合算テーブル[種類]),0),3) -> 2024-05-01 | J62: =INDEX(INDIRECT(M62&"!C1:D1000"),MATCH(LARGE((INDIRECT(M62&"!C1:C1000")=P62)*1/ROW(INDIRECT(M62&"!C1:C1000")),COUNTIF(INDIRECT(M62&"!C1:C1000"),P62)),1/ROW(INDIRECT(M62&"!C1:C1000")),0),2) -> 2024-05-01 | K62: N-1月5～15日 | L62: 同上 | M62: 40北陸ガス | N62: 7 | O62: 北陸ガス | P62: 長岡、越路、三島・与板、栃尾、三条地区
C63: 10_【エネルギー】ガス | D63: 10.08_原料調整費（北陸ガス川口地区）（円/m3） | E63: 財務省貿易/各ガス会社HP | G63: 同上 | H63: 2024-05-01 | I63: =INDEX(指標合算テーブル[],MATCH(LARGE((指標合算テーブル[種類]=D63)*1/ROW(指標合算テーブル[種類]),COUNTIF(指標合算テーブル[種類],D63)),1/ROW(指標合算テーブル[種類]),0),3) -> 2024-05-01 | J63: =INDEX(INDIRECT(M63&"!C1:D1000"),MATCH(LARGE((INDIRECT(M63&"!C1:C1000")=P63)*1/ROW(INDIRECT(M63&"!C1:C1000")),COUNTIF(INDIRECT(M63&"!C1:C1000"),P63)),1/ROW(INDIRECT(M63&"!C1:C1000")),0),2) -> 2024-05-01 | K63: N-1月5～15日 | L63: 同上 | M63: 40北陸ガス | N63: 8 | O63: 北陸ガス | P63: 川口地区
C64: 10_【エネルギー】ガス | D64: 10.09_原料調整費（北陸ガス見附地区）（円/m3） | E64: 財務省貿易/各ガス会社HP | G64: 同上 | H64: 2024-05-01 | I64: =INDEX(指標合算テーブル[],MATCH(LARGE((指標合算テーブル[種類]=D64)*1/ROW(指標合算テーブル[種類]),COUNTIF(指標合算テーブル[種類],D64)),1/ROW(指標合算テーブル[種類]),0),3) -> 2024-05-01 | J64: =INDEX(INDIRECT(M64&"!C1:D1000"),MATCH(LARGE((INDIRECT(M64&"!C1:C1000")=P64)*1/ROW(INDIRECT(M64&"!C1:C1000")),COUNTIF(INDIRECT(M64&"!C1:C1000"),P64)),1/ROW(INDIRECT(M64&"!C1:C1000")),0),2) -> 2024-05-01 | K64: N-1月5～15日 | L64: 同上 | M64: 40北陸ガス | N64: 9 | O64: 北陸ガス | P64: 見附地区
C65: 10_【エネルギー】ガス | D65: 10.10_原料調整費（北陸ガス柏崎地区）（円/m3） | E65: 財務省貿易/各ガス会社HP | G65: 同上 | H65: 2024-05-01 | I65: =INDEX(指標合算テーブル[],MATCH(LARGE((指標合算テーブル[種類]=D65)*1/ROW(指標合算テーブル[種類]),COUNTIF(指標合算テーブル[種類],D65)),1/ROW(指標合算テーブル[種類]),0),3) -> 2024-05-01 | J65: =INDEX(INDIRECT(M65&"!C1:D1000"),MATCH(LARGE((INDIRECT(M65&"!C1:C1000")=P65)*1/ROW(INDIRECT(M65&"!C1:C1000")),COUNTIF(INDIRECT(M65&"!C1:C1000"),P65)),1/ROW(INDIRECT(M65&"!C1:C1000")),0),2) -> 2024-05-01 | K65: N-1月5～15日 | L65: 同上 | M65: 40北陸ガス | N65: 10 | O65: 北陸ガス | P65: 柏崎地区
C66: 10_【エネルギー】ガス | D66: 10.11_原料調整費（静岡ガス）（円/m3） | E66: 財務省貿易/各ガス会社HP | F66: https://www.shizuokagas.co.jp/news/index.html/ | G66: 過去分から上書き/全国CSVは「電気ガス価格推移」ファイルからコピペ→CSVから資源合算シートにコピペ・個別CSVは全国CSVのデータが反映。個別シートグループ化し行の追加・数式反映 | H66: 2024-05-01 | I66: =INDEX(指標合算テーブル[],MATCH(LARGE((指標合算テーブル[種類]=D66)*1/ROW(指標合算テーブル[種類]),COUNTIF(指標合算テーブル[種類],D66)),1/ROW(指標合算テーブル[種類]),0),3) -> 2024-05-01 | J66: =INDIRECT(ADDRESS(MAX((INDIRECT(M66&"!H1:H1000")<>"")*ROW(INDIRECT(M66&"!H1:H1000"))),4,1,1,M66)) -> 2024-05-01 | K66: N-1月5～15日 | L66: 同上 | M66: 41静岡ガス | N66: 11 | O66: 静岡ガス
C67: 10_【エネルギー】ガス | D67: 10.12_原料調整費（東邦ガス）（円/m3） | E67: 財務省貿易/各ガス会社HP | F67: https://www.tohogas.co.jp/corporate-n/press/year/index.html | G67: 同上 | H67: 2024-05-01 | I67: =INDEX(指標合算テーブル[],MATCH(LARGE((指標合算テーブル[種類]=D67)*1/ROW(指標合算テーブル[種類]),COUNTIF(指標合算テーブル[種類],D67)),1/ROW(指標合算テーブル[種類]),0),3) -> 2024-05-01 | J67: =INDIRECT(ADDRESS(MAX((INDIRECT(M67&"!H1:H1000")<>"")*ROW(INDIRECT(M67&"!H1:H1000"))),4,1,1,M67)) -> 2024-05-01 | K67: N-1月5～15日 | L67: 同上 | M67: 42東邦ガス | N67: 12 | O67: 東邦ガス
C68: 10_【エネルギー】ガス | D68: 10.13_原料調整費（大阪ガス）（円/m3） | E68: 財務省貿易/各ガス会社HP | F68: https://www.osakagas.co.jp/company/press/index.html | G68: 同上 | H68: 2024-05-01 | I68: =INDEX(指標合算テーブル[],MATCH(LARGE((指標合算テーブル[種類]=D68)*1/ROW(指標合算テーブル[種類]),COUNTIF(指標合算テーブル[種類],D68)),1/ROW(指標合算テーブル[種類]),0),3) -> 2024-05-01 | J68: =INDIRECT(ADDRESS(MAX((INDIRECT(M68&"!H1:H1000")<>"")*ROW(INDIRECT(M68&"!H1:H1000"))),4,1,1,M68)) -> 2024-05-01 | K68: N-1月5～15日 | L68: 同上 | M68: 43大阪ガス | N68: 13 | O68: 大阪ガス
C69: 10_【エネルギー】ガス | D69: 10.14_原料調整費（広島ガス45MJ地区）（円/m3） | E69: 財務省貿易/各ガス会社HP | F69: https://www.hiroshima-gas.co.jp/com/w_new/index.htm | G69: 同上だが、複数地区あるので個別CSVの行追加はグループ化して作業できない | H69: 2024-05-01 | I69: =INDEX(指標合算テーブル[],MATCH(LARGE((指標合算テーブル[種類]=D69)*1/ROW(指標合算テーブル[種類]),COUNTIF(指標合算テーブル[種類],D69)),1/ROW(指標合算テーブル[種類]),0),3) -> 2024-05-01 | J69: =INDEX(INDIRECT(M69&"!C1:D1000"),MATCH(LARGE((INDIRECT(M69&"!C1:C1000")=P69)*1/ROW(INDIRECT(M69&"!C1:C1000")),COUNTIF(INDIRECT(M69&"!C1:C1000"),P69)),1/ROW(INDIRECT(M69&"!C1:C1000")),0),2) -> 2024-05-01 | K69: N-1月5～15日 | L69: 同上 | M69: 44広島ガス | N69: =MID(D69,4,2)*1 -> 14 | O69: 広島ガス | P69: 45MJ地区
C70: 10_【エネルギー】ガス | D70: 10.15_原料調整費（広島ガス100.4652MJ地区）（円/m3） | E70: 財務省貿易/各ガス会社HP | G70: 同上 | H70: 2024-05-01 | I70: =INDEX(指標合算テーブル[],MATCH(LARGE((指標合算テーブル[種類]=D70)*1/ROW(指標合算テーブル[種類]),COUNTIF(指標合算テーブル[種類],D70)),1/ROW(指標合算テーブル[種類]),0),3) -> 2024-05-01 | J70: =INDEX(INDIRECT(M70&"!C1:D1000"),MATCH(LARGE((INDIRECT(M70&"!C1:C1000")=P70)*1/ROW(INDIRECT(M70&"!C1:C1000")),COUNTIF(INDIRECT(M70&"!C1:C1000"),P70)),1/ROW(INDIRECT(M70&"!C1:C1000")),0),2) -> 2024-05-01 | K70: N-1月5～15日 | L70: 同上 | M70: 44広島ガス | N70: 15 | O70: 広島ガス | P70: 100.4652MJ地区
C71: 10_【エネルギー】ガス | D71: 10.16_原料調整費（西部ガス45MJ）（円/m3） | E71: 財務省貿易/各ガス会社HP | F71: https://hd.saibugas.co.jp/news_release/ | G71: 同上 | H71: 2024-05-01 | I71: =INDEX(指標合算テーブル[],MATCH(LARGE((指標合算テーブル[種類]=D71)*1/ROW(指標合算テーブル[種類]),COUNTIF(指標合算テーブル[種類],D71)),1/ROW(指標合算テーブル[種類]),0),3) -> 2024-05-01 | J71: =INDEX(INDIRECT(M71&"!C1:D1000"),MATCH(LARGE((INDIRECT(M71&"!C1:C1000")=P71)*1/ROW(INDIRECT(M71&"!C1:C1000")),COUNTIF(INDIRECT(M71&"!C1:C1000"),P71)),1/ROW(INDIRECT(M71&"!C1:C1000")),0),2) -> 2024-05-01 | K71: N-1月5～15日 | L71: 同上 | M71: 45西部ガス | N71: 16 | O71: 西部ガス | P71: 45MJ
C72: 10_【エネルギー】ガス | D72: 10.17_原料調整費（西部ガス熊本・長崎・佐世保（46MJ））（円/m3） | E72: 財務省貿易/各ガス会社HP | G72: 同上 | H72: 2024-05-01 | I72: =INDEX(指標合算テーブル[],MATCH(LARGE((指標合算テーブル[種類]=D72)*1/ROW(指標合算テーブル[種類]),COUNTIF(指標合算テーブル[種類],D72)),1/ROW(指標合算テーブル[種類]),0),3) -> 2024-05-01 | J72: =INDEX(INDIRECT(M72&"!C1:D1000"),MATCH(LARGE((INDIRECT(M72&"!C1:C1000")=P72)*1/ROW(INDIRECT(M72&"!C1:C1000")),COUNTIF(INDIRECT(M72&"!C1:C1000"),P72)),1/ROW(INDIRECT(M72&"!C1:C1000")),0),2) -> 2024-05-01 | K72: N-1月5～15日 | L72: 同上 | M72: 45西部ガス | N72: 17 | O72: 西部ガス | P72: 熊本・長崎・佐世保（46MJ）
C73: 10_【エネルギー】ガス | D73: 10.18_平均販売単価・工業用（北海道）（円/m3） | E73: 新電力ネット | F73: https://pps-net.org/ | G73: 過去分から上書き/全国CSVは「電気ガス価格推移」ファイルからコピペ→CSVから資源合算シートにコピペ・個別CSVは全国CSVのデータが反映。個別シートグループ化し行の追加・数式反映 | H73: =IF(DAY($H$3)<7,DATE(YEAR($H$3),MONTH($H$3)-5,1),DATE(YEAR($H$3),MONTH($H$3)-4,1)) -> 2023-12-01 | I73: =INDEX(指標合算テーブル[],MATCH(LARGE((指標合算テーブル[種類]=D73)*1/ROW(指標合算テーブル[種類]),COUNTIF(指標合算テーブル[種類],D73)),1/ROW(指標合算テーブル[種類]),0),3) -> 2023-12-01 | J73: =INDIRECT(ADDRESS(MAX((INDIRECT(M73&"!K1:K1000")<>"")*ROW(INDIRECT(M73&"!K1:K1000"))),4,1,1,M73)) -> 2023-12-01 | K73: N＋4月7～15日 | L73: N＋3月26日頃→掲載されず。N+４月7日に掲載確認・15日まで更新とし、7日に掲載されていなければ30日まで更新 | M73: 46北海道ガス平均 | N73: 18 | P73: 北海道
C74: 10_【エネルギー】ガス | D74: 10.19_平均販売単価・工業用（東北）（円/m3） | E74: 新電力ネット | G74: 同上 | H74: =IF(DAY($H$3)<7,DATE(YEAR($H$3),MONTH($H$3)-5,1),DATE(YEAR($H$3),MONTH($H$3)-4,1)) -> 2023-12-01 | I74: =INDEX(指標合算テーブル[],MATCH(LARGE((指標合算テーブル[種類]=D74)*1/ROW(指標合算テーブル[種類]),COUNTIF(指標合算テーブル[種類],D74)),1/ROW(指標合算テーブル[種類]),0),3) -> 2023-12-01 | J74: =INDIRECT(ADDRESS(MAX((INDIRECT(M74&"!K1:K1000")<>"")*ROW(INDIRECT(M74&"!K1:K1000"))),4,1,1,M74)) -> 2023-12-01 | K74: N＋4月7～15日 | L74: 同上 | M74: 47東北ガス平均 | N74: 19 | P74: 東北
C75: 10_【エネルギー】ガス | D75: 10.20_平均販売単価・工業用（関東）（円/m3） | E75: 新電力ネット | G75: 同上 | H75: 2023-12-01 | I75: =INDEX(指標合算テーブル[],MATCH(LARGE((指標合算テーブル[種類]=D75)*1/ROW(指標合算テーブル[種類]),COUNTIF(指標合算テーブル[種類],D75)),1/ROW(指標合算テーブル[種類]),0),3) -> 2023-12-01 | J75: =INDIRECT(ADDRESS(MAX((INDIRECT(M75&"!K1:K1000")<>"")*ROW(INDIRECT(M75&"!K1:K1000"))),4,1,1,M75)) -> 2023-12-01 | K75: N＋4月7～15日 | L75: 同上 | M75: 48関東ガス平均 | N75: 20 | P75: 関東
C76: 10_【エネルギー】ガス | D76: 10.21_平均販売単価・工業用（中部・北陸）（円/m3） | E76: 新電力ネット | G76: 同上 | H76: 2023-12-01 | I76: =INDEX(指標合算テーブル[],MATCH(LARGE((指標合算テーブル[種類]=D76)*1/ROW(指標合算テーブル[種類]),COUNTIF(指標合算テーブル[種類],D76)),1/ROW(指標合算テーブル[種類]),0),3) -> 2023-12-01 | J76: =INDIRECT(ADDRESS(MAX((INDIRECT(M76&"!K1:K1000")<>"")*ROW(INDIRECT(M76&"!K1:K1000"))),4,1,1,M76)) -> 2023-12-01 | K76: N＋4月7～15日 | L76: 同上 | M76: 49中部北陸ガス平均 | N76: 21 | P76: 中部・北陸
C77: 10_【エネルギー】ガス | D77: 10.22_平均販売単価・工業用（近畿）（円/m3） | E77: 新電力ネット | G77: 同上 | H77: 2023-12-01 | I77: =INDEX(指標合算テーブル[],MATCH(LARGE((指標合算テーブル[種類]=D77)*1/ROW(指標合算テーブル[種類]),COUNTIF(指標合算テーブル[種類],D77)),1/ROW(指標合算テーブル[種類]),0),3) -> 2023-12-01 | J77: =INDIRECT(ADDRESS(MAX((INDIRECT(M77&"!K1:K1000")<>"")*ROW(INDIRECT(M77&"!K1:K1000"))),4,1,1,M77)) -> 2023-12-01 | K77: N＋4月7～15日 | L77: 同上 | M77: 50近畿ガス平均 | N77: 22 | P77: 近畿
C78: 10_【エネルギー】ガス | D78: 10.23_平均販売単価・工業用（中国・四国）（円/m3） | E78: 新電力ネット | G78: 同上 | H78: 2023-12-01 | I78: =INDEX(指標合算テーブル[],MATCH(LARGE((指標合算テーブル[種類]=D78)*1/ROW(指標合算テーブル[種類]),COUNTIF(指標合算テーブル[種類],D78)),1/ROW(指標合算テーブル[種類]),0),3) -> 2023-12-01 | J78: =INDIRECT(ADDRESS(MAX((INDIRECT(M78&"!K1:K1000")<>"")*ROW(INDIRECT(M78&"!K1:K1000"))),4,1,1,M78)) -> 2023-12-01 | K78: N＋4月7～15日 | L78: 同上 | M78: 51中国四国ガス平均 | N78: 23 | P78: 中国・四国
C79: 10_【エネルギー】ガス | D79: 10.24_平均販売単価・工業用（九州・沖縄）（円/m3） | E79: 新電力ネット | G79: 同上 | H79: 2023-12-01 | I79: =INDEX(指標合算テーブル[],MATCH(LARGE((指標合算テーブル[種類]=D79)*1/ROW(指標合算テーブル[種類]),COUNTIF(指標合算テーブル[種類],D79)),1/ROW(指標合算テーブル[種類]),0),3) -> 2023-12-01 | J79: =INDIRECT(ADDRESS(MAX((INDIRECT(M79&"!K1:K1000")<>"")*ROW(INDIRECT(M79&"!K1:K1000"))),4,1,1,M79)) -> 2023-12-01 | K79: N＋4月7～15日 | L79: 同上 | M79: 52九州沖縄ガス平均 | N79: 24 | P79: 九州・沖縄
C80: 10_【エネルギー】ガス | D80: 10.25_平均販売単価・工業用（その他）（円/m3） | E80: 新電力ネット | G80: 同上 | H80: 2023-12-01 | I80: =INDEX(指標合算テーブル[],MATCH(LARGE((指標合算テーブル[種類]=D80)*1/ROW(指標合算テーブル[種類]),COUNTIF(指標合算テーブル[種類],D80)),1/ROW(指標合算テーブル[種類]),0),3) -> 2023-12-01 | J80: =INDIRECT(ADDRESS(MAX((INDIRECT(M80&"!K1:K1000")<>"")*ROW(INDIRECT(M80&"!K1:K1000"))),4,1,1,M80)) -> 2023-12-01 | K80: N＋4月7～15日 | L80: 同上 | M80: 53その他ガス平均 | N80: 25 | P80: その他
C81: 11_【物流】国内トラック便 | D81: 11.01_トラックサーチャージ 全国（円/車） | E81: 資源エネルギー庁 | F81: 調査の結果｜石油製品価格調査｜資源エネルギー庁 (meti.go.jp) | G81: 更新月を追加・資源合算シートは計算式あり、枠外にも入力要・CSVのトラックサーチャージは参照を確認して計算式をのばす（元データは税抜きに計算要） | H81: =DATE(YEAR($H$3), MONTH($H$3)-1, 1) -> 2024-03-01 | I81: =INDEX(指標合算テーブル[],MATCH(LARGE((指標合算テーブル[種類]=D81)*1/ROW(指標合算テーブル[種類]),COUNTIF(指標合算テーブル[種類],D81)),1/ROW(指標合算テーブル[種類]),0),3) -> 2024-03-01 | J81: =INDIRECT(ADDRESS(MAX((INDIRECT(M81&"!D1:D1000")<>"")*ROW(INDIRECT(M81&"!D1:D1000"))),2,1,1,M81)) -> 2024-03-01 | K81: N＋1月5～15日 | L81: N＋1月の第1営業日 | M81: 11国内トラック便 | N81: 1
C82: 11_【物流】国内トラック便 | D82: 11.02_トラックサーチャージ 北海道地方（円/車） | E82: 資源エネルギー庁 | G82: 同上 | H82: =DATE(YEAR($H$3), MONTH($H$3)-1, 1) -> 2024-03-01 | I82: =INDEX(指標合算テーブル[],MATCH(LARGE((指標合算テーブル[種類]=D82)*1/ROW(指標合算テーブル[種類]),COUNTIF(指標合算テーブル[種類],D82)),1/ROW(指標合算テーブル[種類]),0),3) -> 2024-03-01 | J82: =INDIRECT(ADDRESS(MAX((INDIRECT(M82&"!F1:F1000")<>"")*ROW(INDIRECT(M82&"!F1:F1000"))),2,1,1,M82)) -> 2024-03-01 | K82: N＋1月5～15日 | L82: N＋1月の第1営業日 | M82: 11国内トラック便 | N82: 2
C83: 11_【物流】国内トラック便 | D83: 11.03_トラックサーチャージ 東北地方（円/車） | E83: 資源エネルギー庁 | G83: 同上 | H83: 2024-03-01 | I83: =INDEX(指標合算テーブル[],MATCH(LARGE((指標合算テーブル[種類]=D83)*1/ROW(指標合算テーブル[種類]),COUNTIF(指標合算テーブル[種類],D83)),1/ROW(指標合算テーブル[種類]),0),3) -> 2024-03-01 | J83: =INDIRECT(ADDRESS(MAX((INDIRECT(M83&"!H1:H1000")<>"")*ROW(INDIRECT(M83&"!H1:H1000"))),2,1,1,M83)) -> 2024-03-01 | K83: N＋1月5～15日 | L83: N＋1月の第1営業日 | M83: 11国内トラック便 | N83: 3
C84: 11_【物流】国内トラック便 | D84: 11.04_トラックサーチャージ 関東地方（円/車） | E84: 資源エネルギー庁 | G84: 同上 | H84: 2024-03-01 | I84: =INDEX(指標合算テーブル[],MATCH(LARGE((指標合算テーブル[種類]=D84)*1/ROW(指標合算テーブル[種類]),COUNTIF(指標合算テーブル[種類],D84)),1/ROW(指標合算テーブル[種類]),0),3) -> 2024-03-01 | J84: =INDIRECT(ADDRESS(MAX((INDIRECT(M84&"!J1:J1000")<>"")*ROW(INDIRECT(M84&"!J1:J1000"))),2,1,1,M84)) -> 2024-03-01 | K84: N＋1月5～15日 | L84: N＋1月の第1営業日 | M84: 11国内トラック便 | N84: 4
C85: 11_【物流】国内トラック便 | D85: 11.05_トラックサーチャージ 中部地方（円/車） | E85: 資源エネルギー庁 | G85: 同上 | H85: 2024-03-01 | I85: =INDEX(指標合算テーブル[],MATCH(LARGE((指標合算テーブル[種類]=D85)*1/ROW(指標合算テーブル[種類]),COUNTIF(指標合算テーブル[種類],D85)),1/ROW(指標合算テーブル[種類]),0),3) -> 2024-03-01 | J85: =INDIRECT(ADDRESS(MAX((INDIRECT(M85&"!L1:L1000")<>"")*ROW(INDIRECT(M85&"!L1:L1000"))),2,1,1,M85)) -> 2024-03-01 | K85: N＋1月5～15日 | L85: N＋1月の第1営業日 | M85: 11国内トラック便 | N85: 5
C86: 11_【物流】国内トラック便 | D86: 11.06_トラックサーチャージ 近畿地方（円/車） | E86: 資源エネルギー庁 | G86: 同上 | H86: 2024-03-01 | I86: =INDEX(指標合算テーブル[],MATCH(LARGE((指標合算テーブル[種類]=D86)*1/ROW(指標合算テーブル[種類]),COUNTIF(指標合算テーブル[種類],D86)),1/ROW(指標合算テーブル[種類]),0),3) -> 2024-03-01 | J86: =INDIRECT(ADDRESS(MAX((INDIRECT(M86&"!N1:N1000")<>"")*ROW(INDIRECT(M86&"!N1:N1000"))),2,1,1,M86)) -> 2024-03-01 | K86: N＋1月5～15日 | L86: N＋1月の第1営業日 | M86: 11国内トラック便 | N86: 6
C87: 11_【物流】国内トラック便 | D87: 11.07_トラックサーチャージ 中国地方（円/車） | E87: 資源エネルギー庁 | G87: 同上 | H87: 2024-03-01 | I87: =INDEX(指標合算テーブル[],MATCH(LARGE((指標合算テーブル[種類]=D87)*1/ROW(指標合算テーブル[種類]),COUNTIF(指標合算テーブル[種類],D87)),1/ROW(指標合算テーブル[種類]),0),3) -> 2024-03-01 | J87: =INDIRECT(ADDRESS(MAX((INDIRECT(M87&"!P1:P1000")<>"")*ROW(INDIRECT(M87&"!P1:P1000"))),2,1,1,M87)) -> 2024-03-01 | K87: N＋1月5～15日 | L87: N＋1月の第1営業日 | M87: 11国内トラック便 | N87: 7
C88: 11_【物流】国内トラック便 | D88: 11.08_トラックサーチャージ 四国地方（円/車） | E88: 資源エネルギー庁 | G88: 同上 | H88: 2024-03-01 | I88: =INDEX(指標合算テーブル[],MATCH(LARGE((指標合算テーブル[種類]=D88)*1/ROW(指標合算テーブル[種類]),COUNTIF(指標合算テーブル[種類],D88)),1/ROW(指標合算テーブル[種類]),0),3) -> 2024-03-01 | J88: =INDIRECT(ADDRESS(MAX((INDIRECT(M88&"!R1:R1000")<>"")*ROW(INDIRECT(M88&"!R1:R1000"))),2,1,1,M88)) -> 2024-03-01 | K88: N＋1月5～15日 | L88: N＋1月の第1営業日 | M88: 11国内トラック便 | N88: 8
C89: 11_【物流】国内トラック便 | D89: 11.09_トラックサーチャージ 九州地方（円/車） | E89: 資源エネルギー庁 | G89: 同上 | H89: 2024-03-01 | I89: =INDEX(指標合算テーブル[],MATCH(LARGE((指標合算テーブル[種類]=D89)*1/ROW(指標合算テーブル[種類]),COUNTIF(指標合算テーブル[種類],D89)),1/ROW(指標合算テーブル[種類]),0),3) -> 2024-03-01 | J89: =INDIRECT(ADDRESS(MAX((INDIRECT(M89&"!T1:T1000")<>"")*ROW(INDIRECT(M89&"!T1:T1000"))),2,1,1,M89)) -> 2024-03-01 | K89: N＋1月5～15日 | L89: N＋1月の第1営業日 | M89: 11国内トラック便 | N89: 9
C90: 11_【物流】国内トラック便 | D90: 11.10_トラックサーチャージ 沖縄地方（円/車） | E90: 資源エネルギー庁 | G90: 同上 | H90: 2024-03-01 | I90: =INDEX(指標合算テーブル[],MATCH(LARGE((指標合算テーブル[種類]=D90)*1/ROW(指標合算テーブル[種類]),COUNTIF(指標合算テーブル[種類],D90)),1/ROW(指標合算テーブル[種類]),0),3) -> 2024-03-01 | J90: =INDIRECT(ADDRESS(MAX((INDIRECT(M90&"!V1:V1000")<>"")*ROW(INDIRECT(M90&"!V1:V1000"))),2,1,1,M90)) -> 2024-03-01 | K90: N＋1月5～15日 | L90: N＋1月の第1営業日 | M90: 11国内トラック便 | N90: 10
D91: 軽油（全国） | E91: 日本経済新聞の記事及び日経NEEDS | H91: 2024-03-01 | J91: =INDIRECT(ADDRESS(MAX((INDIRECT(M91&"!C1:C1000")<>"")*ROW(INDIRECT(M91&"!C1:C1000"))),2,1,1,M91)) -> 2024-03-01 | K91: N＋1月5～15日 | L91: N＋1月の第1営業日 | M91: 11国内トラック便
D92: 軽油（ 北海道地方） | E92: 同上 | H92: 2024-03-01 | J92: =INDIRECT(ADDRESS(MAX((INDIRECT(M92&"!E1:E1000")<>"")*ROW(INDIRECT(M92&"!E1:E1000"))),2,1,1,M92)) -> 2024-03-01 | K92: N＋1月5～15日 | L92: N＋1月の第1営業日 | M92: 11国内トラック便
D93: 軽油（東北地方） | E93: 同上 | H93: 2024-03-01 | J93: =INDIRECT(ADDRESS(MAX((INDIRECT(M93&"!G1:G1000")<>"")*ROW(INDIRECT(M93&"!G1:G1000"))),2,1,1,M93)) -> 2024-03-01 | K93: N＋1月5～15日 | L93: N＋1月の第1営業日 | M93: 11国内トラック便
D94: 軽油（関東地方） | E94: 同上 | H94: 2024-03-01 | J94: =INDIRECT(ADDRESS(MAX((INDIRECT(M94&"!I1:I1000")<>"")*ROW(INDIRECT(M94&"!I1:I1000"))),2,1,1,M94)) -> 2024-03-01 | K94: N＋1月5～15日 | L94: N＋1月の第1営業日 | M94: 11国内トラック便
D95: 軽油（中部地方） | E95: 同上 | H95: 2024-03-01 | J95: =INDIRECT(ADDRESS(MAX((INDIRECT(M95&"!K1:K1000")<>"")*ROW(INDIRECT(M95&"!K1:K1000"))),2,1,1,M95)) -> 2024-03-01 | K95: N＋1月5～15日 | L95: N＋1月の第1営業日 | M95: 11国内トラック便
D96: 軽油（近畿地方） | E96: 同上 | H96: 2024-03-01 | J96: =INDIRECT(ADDRESS(MAX((INDIRECT(M96&"!m1:m1000")<>"")*ROW(INDIRECT(M96&"!m1:m1000"))),2,1,1,M96)) -> 2024-03-01 | K96: N＋1月5～15日 | L96: N＋1月の第1営業日 | M96: 11国内トラック便
D97: 軽油（中国地方） | E97: 日本経済新聞の記事及び日経NEEDS | H97: 2024-03-01 | J97: =INDIRECT(ADDRESS(MAX((INDIRECT(M97&"!o1:o1000")<>"")*ROW(INDIRECT(M97&"!o1:o1000"))),2,1,1,M97)) -> 2024-03-01 | K97: N＋1月5～15日 | L97: N＋1月の第1営業日 | M97: 11国内トラック便
D98: 軽油（ 四国地方） | E98: 同上 | H98: 2024-03-01 | J98: =INDIRECT(ADDRESS(MAX((INDIRECT(M98&"!Q1:Q1000")<>"")*ROW(INDIRECT(M98&"!Q1:Q1000"))),2,1,1,M98)) -> 2024-03-01 | K98: N＋1月5～15日 | L98: N＋1月の第1営業日 | M98: 11国内トラック便
D99: 軽油（九州地方） | E99: 同上 | H99: 2024-03-01 | J99: =INDIRECT(ADDRESS(MAX((INDIRECT(M99&"!S1:S1000")<>"")*ROW(INDIRECT(M99&"!S1:S1000"))),2,1,1,M99)) -> 2024-03-01 | K99: N＋1月5～15日 | L99: N＋1月の第1営業日 | M99: 11国内トラック便
D100: 軽油（沖縄地方） | E100: 同上 | H100: 2024-03-01 | J100: =INDIRECT(ADDRESS(MAX((INDIRECT(M100&"!U1:U1000")<>"")*ROW(INDIRECT(M100&"!U1:U1000"))),2,1,1,M100)) -> 2024-03-01 | K100: N＋1月5～15日 | L100: N＋1月の第1営業日 | M100: 11国内トラック便
C101: 12_【物流】海外輸出便 | D101: 12.01_横浜発ーUSA ロス着（US＄/20ft） | E101: 公益財団法人日本海事センター | F101: コンテナ運賃動向 海上荷動きの動向 公益財団法人日本海事センター (jpmac.or.jp) | G101: 更新月を追加・CSVと資源合算更新 | H101: =DATE(YEAR($H$3), MONTH($H$3) - 2, 1) -> 2024-02-01 | I101: =INDEX(指標合算テーブル[],MATCH(LARGE((指標合算テーブル[種類]=D101)*1/ROW(指標合算テーブル[種類]),COUNTIF(指標合算テーブル[種類],D101)),1/ROW(指標合算テーブル[種類]),0),3) -> 2024-02-01 | J101: =INDIRECT(ADDRESS(MAX((INDIRECT(M101&"!C1:C1000")<>"")*ROW(INDIRECT(M101&"!C1:C1000"))),2,1,1,M101)) -> 2024-02-01 | K101: N＋2月5～15日 | L101: N＋1月の最終稼働日 | M101: 12海外輸出便 | N101: 1
C102: 12_【物流】海外輸出便 | D102: 12.02_横浜発ーUSA ロス着（US＄/40ft） | E102: 公益財団法人日本海事センター | G102: 同上 | H102: 2024-02-01 | I102: =INDEX(指標合算テーブル[],MATCH(LARGE((指標合算テーブル[種類]=D102)*1/ROW(指標合算テーブル[種類]),COUNTIF(指標合算テーブル[種類],D102)),1/ROW(指標合算テーブル[種類]),0),3) -> 2024-02-01 | J102: =INDIRECT(ADDRESS(MAX((INDIRECT(M102&"!D1:D1000")<>"")*ROW(INDIRECT(M102&"!D1:D1000"))),2,1,1,M102)) -> 2024-02-01 | K102: N＋2月5～15日 | L102: N＋1月の最終稼働日 | M102: 12海外輸出便 | N102: 2
C103: 12_【物流】海外輸出便 | D103: 12.03_横浜発ーオランダ ロッテルダム着（US＄/20ft） | E103: 公益財団法人日本海事センター | G103: 同上 | H103: 2024-02-01 | I103: =INDEX(指標合算テーブル[],MATCH(LARGE((指標合算テーブル[種類]=D103)*1/ROW(指標合算テーブル[種類]),COUNTIF(指標合算テーブル[種類],D103)),1/ROW(指標合算テーブル[種類]),0),3) -> 2024-02-01 | J103: =INDIRECT(ADDRESS(MAX((INDIRECT(M103&"!E1:E1000")<>"")*ROW(INDIRECT(M103&"!E1:E1000"))),2,1,1,M103)) -> 2024-02-01 | K103: N＋2月5～15日 | L103: N＋1月の最終稼働日 | M103: 12海外輸出便 | N103: 3
C104: 12_【物流】海外輸出便 | D104: 12.04_横浜発ーオランダ ロッテルダム着（US＄/40ft） | E104: 公益財団法人日本海事センター | G104: 同上 | H104: 2024-02-01 | I104: =INDEX(指標合算テーブル[],MATCH(LARGE((指標合算テーブル[種類]=D104)*1/ROW(指標合算テーブル[種類]),COUNTIF(指標合算テーブル[種類],D104)),1/ROW(指標合算テーブル[種類]),0),3) -> 2024-02-01 | J104: =INDIRECT(ADDRESS(MAX((INDIRECT(M104&"!F1:F1000")<>"")*ROW(INDIRECT(M104&"!F1:F1000"))),2,1,1,M104)) -> 2024-02-01 | K104: N＋2月5～15日 | L104: N＋1月の最終稼働日 | M104: 12海外輸出便 | N104: 4
C105: 12_【物流】海外輸出便 | D105: 12.05_横浜発ーイタリア ジェノア着（US＄/20ft） | E105: 公益財団法人日本海事センター | G105: 同上 | H105: 2024-02-01 | I105: =INDEX(指標合算テーブル[],MATCH(LARGE((指標合算テーブル[種類]=D105)*1/ROW(指標合算テーブル[種類]),COUNTIF(指標合算テーブル[種類],D105)),1/ROW(指標合算テーブル[種類]),0),3) -> 2024-02-01 | J105: =INDIRECT(ADDRESS(MAX((INDIRECT(M105&"!G1:G1000")<>"")*ROW(INDIRECT(M105&"!G1:G1000"))),2,1,1,M105)) -> 2024-02-01 | K105: N＋2月5～15日 | L105: N＋1月の最終稼働日 | M105: 12海外輸出便 | N105: 5
C106: 12_【物流】海外輸出便 | D106: 12.06_横浜発ーイタリア ジェノア着（US＄/40ft） | E106: 公益財団法人日本海事センター | G106: 同上 | H106: 2024-02-01 | I106: =INDEX(指標合算テーブル[],MATCH(LARGE((指標合算テーブル[種類]=D106)*1/ROW(指標合算テーブル[種類]),COUNTIF(指標合算テーブル[種類],D106)),1/ROW(指標合算テーブル[種類]),0),3) -> 2024-02-01 | J106: =INDIRECT(ADDRESS(MAX((INDIRECT(M106&"!H1:H1000")<>"")*ROW(INDIRECT(M106&"!H1:H1000"))),2,1,1,M106)) -> 2024-02-01 | K106: N＋2月5～15日 | L106: N＋1月の最終稼働日 | M106: 12海外輸出便 | N106: 6
C107: 12_【物流】海外輸出便 | D107: 12.07_横浜発-中国 香港着（US＄/20ft） | E107: 公益財団法人日本海事センター | G107: 同上 | H107: 2024-02-01 | I107: =INDEX(指標合算テーブル[],MATCH(LARGE((指標合算テーブル[種類]=D107)*1/ROW(指標合算テーブル[種類]),COUNTIF(指標合算テーブル[種類],D107)),1/ROW(指標合算テーブル[種類]),0),3) -> 2024-02-01 | J107: =INDIRECT(ADDRESS(MAX((INDIRECT(M107&"!I1:I1000")<>"")*ROW(INDIRECT(M107&"!I1:I1000"))),2,1,1,M107)) -> 2024-02-01 | K107: N＋2月5～15日 | L107: N＋1月の最終稼働日 | M107: 12海外輸出便 | N107: 7
C108: 12_【物流】海外輸出便 | D108: 12.08_横浜発-中国 香港着（US＄/40ft） | E108: 公益財団法人日本海事センター | G108: 同上 | H108: 2024-02-01 | I108: =INDEX(指標合算テーブル[],MATCH(LARGE((指標合算テーブル[種類]=D108)*1/ROW(指標合算テーブル[種類]),COUNTIF(指標合算テーブル[種類],D108)),1/ROW(指標合算テーブル[種類]),0),3) -> 2024-02-01 | J108: =INDIRECT(ADDRESS(MAX((INDIRECT(M108&"!J1:J1000")<>"")*ROW(INDIRECT(M108&"!J1:J1000"))),2,1,1,M108)) -> 2024-02-01 | K108: N＋2月5～15日 | L108: N＋1月の最終稼働日 | M108: 12海外輸出便 | N108: 8
C109: 12_【物流】海外輸出便 | D109: 12.09_横浜発-タイ レムチャパン着（US＄/20ft） | E109: 公益財団法人日本海事センター | G109: 同上 | H109: 2024-02-01 | I109: =INDEX(指標合算テーブル[],MATCH(LARGE((指標合算テーブル[種類]=D109)*1/ROW(指標合算テーブル[種類]),COUNTIF(指標合算テーブル[種類],D109)),1/ROW(指標合算テーブル[種類]),0),3) -> 2024-02-01 | J109: =INDIRECT(ADDRESS(MAX((INDIRECT(M109&"!K1:K1000")<>"")*ROW(INDIRECT(M109&"!K1:K1000"))),2,1,1,M109)) -> 2024-02-01 | K109: N＋2月5～15日 | L109: N＋1月の最終稼働日 | M109: 12海外輸出便 | N109: 9
C110: 12_【物流】海外輸出便 | D110: 12.10_横浜発-タイ レムチャパン着（US＄/40ft） | E110: 公益財団法人日本海事センター | G110: 同上 | H110: 2024-02-01 | I110: =INDEX(指標合算テーブル[],MATCH(LARGE((指標合算テーブル[種類]=D110)*1/ROW(指標合算テーブル[種類]),COUNTIF(指標合算テーブル[種類],D110)),1/ROW(指標合算テーブル[種類]),0),3) -> 2024-02-01 | J110: =INDIRECT(ADDRESS(MAX((INDIRECT(M110&"!L1:L1000")<>"")*ROW(INDIRECT(M110&"!L1:L1000"))),2,1,1,M110)) -> 2024-02-01 | K110: N＋2月5～15日 | L110: N＋1月の最終稼働日 | M110: 12海外輸出便 | N110: 10
C111: 13_【物流】海外輸入便 | D111: 13.01_USA ロス発ー横浜着（US＄/20ft） | E111: 公益財団法人日本海事センター | G111: 同上 | H111: 2024-02-01 | I111: =INDEX(指標合算テーブル[],MATCH(LARGE((指標合算テーブル[種類]=D111)*1/ROW(指標合算テーブル[種類]),COUNTIF(指標合算テーブル[種類],D111)),1/ROW(指標合算テーブル[種類]),0),3) -> 2024-02-01 | J111: =INDIRECT(ADDRESS(MAX((INDIRECT(M111&"!C1:C1000")<>"")*ROW(INDIRECT(M111&"!C1:C1000"))),2,1,1,M111)) -> 2024-02-01 | K111: N＋2月5～15日 | L111: N＋1月の最終稼働日 | M111: 13海外輸入便 | N111: 1
C112: 13_【物流】海外輸入便 | D112: 13.02_USA ロス発ー横浜着（US＄/40ft） | E112: 公益財団法人日本海事センター | G112: 同上 | H112: 2024-02-01 | I112: =INDEX(指標合算テーブル[],MATCH(LARGE((指標合算テーブル[種類]=D112)*1/ROW(指標合算テーブル[種類]),COUNTIF(指標合算テーブル[種類],D112)),1/ROW(指標合算テーブル[種類]),0),3) -> 2024-02-01 | J112: =INDIRECT(ADDRESS(MAX((INDIRECT(M112&"!D1:D1000")<>"")*ROW(INDIRECT(M112&"!D1:D1000"))),2,1,1,M112)) -> 2024-02-01 | K112: N＋2月5～15日 | L112: N＋1月の最終稼働日 | M112: 13海外輸入便 | N112: 2
C113: 13_【物流】海外輸入便 | D113: 13.03_オランダ ロッテルダム発ー横浜着（US＄/20ft） | E113: 公益財団法人日本海事センター | G113: 同上 | H113: 2024-02-01 | I113: =INDEX(指標合算テーブル[],MATCH(LARGE((指標合算テーブル[種類]=D113)*1/ROW(指標合算テーブル[種類]),COUNTIF(指標合算テーブル[種類],D113)),1/ROW(指標合算テーブル[種類]),0),3) -> 2024-02-01 | J113: =INDIRECT(ADDRESS(MAX((INDIRECT(M113&"!E1:E1000")<>"")*ROW(INDIRECT(M113&"!E1:E1000"))),2,1,1,M113)) -> 2024-02-01 | K113: N＋2月5～15日 | L113: N＋1月の最終稼働日 | M113: 13海外輸入便 | N113: 3
C114: 13_【物流】海外輸入便 | D114: 13.04_オランダ ロッテルダム発ー横浜着（US＄/40ft） | E114: 公益財団法人日本海事センター | G114: 同上 | H114: 2024-02-01 | I114: =INDEX(指標合算テーブル[],MATCH(LARGE((指標合算テーブル[種類]=D114)*1/ROW(指標合算テーブル[種類]),COUNTIF(指標合算テーブル[種類],D114)),1/ROW(指標合算テーブル[種類]),0),3) -> 2024-02-01 | J114: =INDIRECT(ADDRESS(MAX((INDIRECT(M114&"!F1:F1000")<>"")*ROW(INDIRECT(M114&"!F1:F1000"))),2,1,1,M114)) -> 2024-02-01 | K114: N＋2月5～15日 | L114: N＋1月の最終稼働日 | M114: 13海外輸入便 | N114: 4
C115: 13_【物流】海外輸入便 | D115: 13.05_イタリア ジェノア発ー横浜着（US＄/20ft） | E115: 公益財団法人日本海事センター | G115: 同上 | H115: 2024-02-01 | I115: =INDEX(指標合算テーブル[],MATCH(LARGE((指標合算テーブル[種類]=D115)*1/ROW(指標合算テーブル[種類]),COUNTIF(指標合算テーブル[種類],D115)),1/ROW(指標合算テーブル[種類]),0),3) -> 2024-02-01 | J115: =INDIRECT(ADDRESS(MAX((INDIRECT(M115&"!G1:G1000")<>"")*ROW(INDIRECT(M115&"!G1:G1000"))),2,1,1,M115)) -> 2024-02-01 | K115: N＋2月5～15日 | L115: N＋1月の最終稼働日 | M115: 13海外輸入便 | N115: 5
C116: 13_【物流】海外輸入便 | D116: 13.06_イタリア ジェノア発ー横浜着（US＄/40ft） | E116: 公益財団法人日本海事センター | G116: 同上 | H116: 2024-02-01 | I116: =INDEX(指標合算テーブル[],MATCH(LARGE((指標合算テーブル[種類]=D116)*1/ROW(指標合算テーブル[種類]),COUNTIF(指標合算テーブル[種類],D116)),1/ROW(指標合算テーブル[種類]),0),3) -> 2024-02-01 | J116: =INDIRECT(ADDRESS(MAX((INDIRECT(M116&"!H1:H1000")<>"")*ROW(INDIRECT(M116&"!H1:H1000"))),2,1,1,M116)) -> 2024-02-01 | K116: N＋2月5～15日 | L116: N＋1月の最終稼働日 | M116: 13海外輸入便 | N116: 6
C117: 13_【物流】海外輸入便 | D117: 13.07_中国 香港発-横浜着（US＄/20ft） | E117: 公益財団法人日本海事センター | G117: 同上 | H117: 2024-02-01 | I117: =INDEX(指標合算テーブル[],MATCH(LARGE((指標合算テーブル[種類]=D117)*1/ROW(指標合算テーブル[種類]),COUNTIF(指標合算テーブル[種類],D117)),1/ROW(指標合算テーブル[種類]),0),3) -> 2024-02-01 | J117: =INDIRECT(ADDRESS(MAX((INDIRECT(M117&"!I1:I1000")<>"")*ROW(INDIRECT(M117&"!I1:I1000"))),2,1,1,M117)) -> 2024-02-01 | K117: N＋2月5～15日 | L117: N＋1月の最終稼働日 | M117: 13海外輸入便 | N117: 7
C118: 13_【物流】海外輸入便 | D118: 13.08_中国 香港発-横浜着（US＄/40ft） | E118: 公益財団法人日本海事センター | G118: 同上 | H118: 2024-02-01 | I118: =INDEX(指標合算テーブル[],MATCH(LARGE((指標合算テーブル[種類]=D118)*1/ROW(指標合算テーブル[種類]),COUNTIF(指標合算テーブル[種類],D118)),1/ROW(指標合算テーブル[種類]),0),3) -> 2024-02-01 | J118: =INDIRECT(ADDRESS(MAX((INDIRECT(M118&"!J1:J1000")<>"")*ROW(INDIRECT(M118&"!J1:J1000"))),2,1,1,M118)) -> 2024-02-01 | K118: N＋2月5～15日 | L118: N＋1月の最終稼働日 | M118: 13海外輸入便 | N118: 8
C119: 13_【物流】海外輸入便 | D119: 13.09_タイ レムチャパン発-横浜着（US＄/20ft） | E119: 公益財団法人日本海事センター | G119: 同上 | H119: 2024-02-01 | I119: =INDEX(指標合算テーブル[],MATCH(LARGE((指標合算テーブル[種類]=D119)*1/ROW(指標合算テーブル[種類]),COUNTIF(指標合算テーブル[種類],D119)),1/ROW(指標合算テーブル[種類]),0),3) -> 2024-02-01 | J119: =INDIRECT(ADDRESS(MAX((INDIRECT(M119&"!K1:K1000")<>"")*ROW(INDIRECT(M119&"!K1:K1000"))),2,1,1,M119)) -> 2024-02-01 | K119: N＋2月5～15日 | L119: N＋1月の最終稼働日 | M119: 13海外輸入便 | N119: 9
C120: 13_【物流】海外輸入便 | D120: 13.10_タイ レムチャパン発-横浜着（US＄/40ft） | E120: 公益財団法人日本海事センター | G120: 同上 | H120: 2024-02-01 | I120: =INDEX(指標合算テーブル[],MATCH(LARGE((指標合算テーブル[種類]=D120)*1/ROW(指標合算テーブル[種類]),COUNTIF(指標合算テーブル[種類],D120)),1/ROW(指標合算テーブル[種類]),0),3) -> 2024-02-01 | J120: =INDIRECT(ADDRESS(MAX((INDIRECT(M120&"!L1:L1000")<>"")*ROW(INDIRECT(M120&"!L1:L1000"))),2,1,1,M120)) -> 2024-02-01 | K120: N＋2月5～15日 | L120: N＋1月の最終稼働日 | M120: 13海外輸入便 | N120: 10
C121: 14_【労務費】消費者物価指数・最賃・賃上げ率 | D121: 14_01_消費者物価指数（前年比） | E121: 財務省統計局 | F121: https://www.stat.go.jp/data/cpi/sokuhou/nen/pdf/zen-n.pdf#page=4 | G121: 同上 | I121: =INDEX(指標合算テーブル[],MATCH(LARGE((指標合算テーブル[種類]=D121)*1/ROW(指標合算テーブル[種類]),COUNTIF(指標合算テーブル[種類],D121)),1/ROW(指標合算テーブル[種類]),0),3) -> 2024-01-01 | J121: =INDIRECT(ADDRESS(MAX((INDIRECT(M121&"!L1:L1000")<>"")*ROW(INDIRECT(M121&"!L1:L1000"))),2,1,1,M121)) ->  | K121: N＋2月5～15日 | L121: N＋1月の最終稼働日 | M121: 14消費者物価指数 | N121: 1
C122: 15_【労務費】消費者物価指数・最賃・賃上げ率 | D122: 14_02_自動車総連＆JAM 総額賃上げ率（年率） | I122: =INDEX(指標合算テーブル[],MATCH(LARGE((指標合算テーブル[種類]=D122)*1/ROW(指標合算テーブル[種類]),COUNTIF(指標合算テーブル[種類],D122)),1/ROW(指標合算テーブル[種類]),0),3) -> 2023-01-01 | J122: =INDIRECT(ADDRESS(MAX((INDIRECT(M122&"!C1:C1000")<>"")*ROW(INDIRECT(M122&"!C1:C1000"))),2,1,1,M122)) -> 2023-01-01 | M122: 15賃上げ率 | N122: 1
C123: 16_【労務費】消費者物価指数・最賃・賃上げ率 | D123: 14_03_JAM 総額賃上げ率（年率） | I123: =INDEX(指標合算テーブル[],MATCH(LARGE((指標合算テーブル[種類]=D123)*1/ROW(指標合算テーブル[種類]),COUNTIF(指標合算テーブル[種類],D123)),1/ROW(指標合算テーブル[種類]),0),3) -> 2023-01-01 | J123: =INDIRECT(ADDRESS(MAX((INDIRECT(M123&"!D1:D1000")<>"")*ROW(INDIRECT(M123&"!D1:D1000"))),2,1,1,M123)) -> 2023-01-01 | M123: 15賃上げ率 | N123: 2
C124: 17_【労務費】消費者物価指数・最賃・賃上げ率 | D124: 14_04_自動車総連 総額賃上げ率（年率） | I124: =INDEX(指標合算テーブル[],MATCH(LARGE((指標合算テーブル[種類]=D124)*1/ROW(指標合算テーブル[種類]),COUNTIF(指標合算テーブル[種類],D124)),1/ROW(指標合算テーブル[種類]),0),3) -> 2023-01-01 | J124: =INDIRECT(ADDRESS(MAX((INDIRECT(M124&"!E1:E1000")<>"")*ROW(INDIRECT(M124&"!E1:E1000"))),2,1,1,M124)) -> 2023-01-01 | M124: 15賃上げ率 | N124: 3
C125: 18_【労務費】消費者物価指数・最賃・賃上げ率 | D125: 14_05_自動車総連 総額賃上げ率 OEM（年率） | I125: =INDEX(指標合算テーブル[],MATCH(LARGE((指標合算テーブル[種類]=D125)*1/ROW(指標合算テーブル[種類]),COUNTIF(指標合算テーブル[種類],D125)),1/ROW(指標合算テーブル[種類]),0),3) -> 2023-01-01 | J125: =INDIRECT(ADDRESS(MAX((INDIRECT(M125&"!F1:F1000")<>"")*ROW(INDIRECT(M125&"!F1:F1000"))),2,1,1,M125)) -> 2023-01-01 | M125: 15賃上げ率 | N125: 4
C126: 19_【労務費】消費者物価指数・最賃・賃上げ率 | D126: 14_06_自動車総連 総額賃上げ率 車体・部品（年率） | I126: =INDEX(指標合算テーブル[],MATCH(LARGE((指標合算テーブル[種類]=D126)*1/ROW(指標合算テーブル[種類]),COUNTIF(指標合算テーブル[種類],D126)),1/ROW(指標合算テーブル[種類]),0),3) -> 2023-01-01 | J126: =INDIRECT(ADDRESS(MAX((INDIRECT(M126&"!G1:G1000")<>"")*ROW(INDIRECT(M126&"!G1:G1000"))),2,1,1,M126)) -> 2023-01-01 | M126: 15賃上げ率 | N126: 5
C127: 20_【労務費】消費者物価指数・最賃・賃上げ率 | D127: 14_07_最低賃金 全国加重平均（円） | E127: 厚生労働省HP | F127: https://www.mhlw.go.jp/content/11200000/000979366.pdf | I127: =INDEX(指標合算テーブル[],MATCH(LARGE((指標合算テーブル[種類]=D127)*1/ROW(指標合算テーブル[種類]),COUNTIF(指標合算テーブル[種類],D127)),1/ROW(指標合算テーブル[種類]),0),3) -> 2023-04-01 | J127: =INDIRECT(ADDRESS(MAX((INDIRECT(M127&"!C1:C1000")<>"")*ROW(INDIRECT(M127&"!C1:C1000"))),2,1,1,M127)) -> 2023-04-01 | M127: 16最低賃金 | N127: 1
C128: 21_【労務費】消費者物価指数・最賃・賃上げ率 | D128: 14_08_最低賃金 全国加重平均（北海道）（円） | I128: =INDEX(指標合算テーブル[],MATCH(LARGE((指標合算テーブル[種類]=D128)*1/ROW(指標合算テーブル[種類]),COUNTIF(指標合算テーブル[種類],D128)),1/ROW(指標合算テーブル[種類]),0),3) -> 2023-04-01 | J128: =INDIRECT(ADDRESS(MAX((INDIRECT(M128&"!D1:D1000")<>"")*ROW(INDIRECT(M128&"!D1:D1000"))),2,1,1,M128)) -> 2023-04-01 | M128: 16最低賃金 | N128: 2
C129: 22_【労務費】消費者物価指数・最賃・賃上げ率 | D129: 14_09_最低賃金 全国加重平均（青森県）（円） | I129: =INDEX(指標合算テーブル[],MATCH(LARGE((指標合算テーブル[種類]=D129)*1/ROW(指標合算テーブル[種類]),COUNTIF(指標合算テーブル[種類],D129)),1/ROW(指標合算テーブル[種類]),0),3) -> 2023-04-01 | J129: =INDIRECT(ADDRESS(MAX((INDIRECT(M129&"!E1:E1000")<>"")*ROW(INDIRECT(M129&"!E1:E1000"))),2,1,1,M129)) -> 2023-04-01 | M129: 16最低賃金 | N129: 3
C130: 23_【労務費】消費者物価指数・最賃・賃上げ率 | D130: 14_10_最低賃金 全国加重平均（岩手県）（円） | I130: =INDEX(指標合算テーブル[],MATCH(LARGE((指標合算テーブル[種類]=D130)*1/ROW(指標合算テーブル[種類]),COUNTIF(指標合算テーブル[種類],D130)),1/ROW(指標合算テーブル[種類]),0),3) -> 2023-04-01 | J130: =INDIRECT(ADDRESS(MAX((INDIRECT(M130&"!F1:F1000")<>"")*ROW(INDIRECT(M130&"!F1:F1000"))),2,1,1,M130)) -> 2023-04-01 | M130: 16最低賃金 | N130: 4
C131: 24_【労務費】消費者物価指数・最賃・賃上げ率 | D131: 14_11_最低賃金 全国加重平均（宮城県）（円） | I131: =INDEX(指標合算テーブル[],MATCH(LARGE((指標合算テーブル[種類]=D131)*1/ROW(指標合算テーブル[種類]),COUNTIF(指標合算テーブル[種類],D131)),1/ROW(指標合算テーブル[種類]),0),3) -> 2023-04-01 | J131: =INDIRECT(ADDRESS(MAX((INDIRECT(M131&"!G1:G1000")<>"")*ROW(INDIRECT(M131&"!G1:G1000"))),2,1,1,M131)) -> 2023-04-01 | M131: 16最低賃金 | N131: 5
C132: 25_【労務費】消費者物価指数・最賃・賃上げ率 | D132: 14_12_最低賃金 全国加重平均（秋田県）（円） | I132: =INDEX(指標合算テーブル[],MATCH(LARGE((指標合算テーブル[種類]=D132)*1/ROW(指標合算テーブル[種類]),COUNTIF(指標合算テーブル[種類],D132)),1/ROW(指標合算テーブル[種類]),0),3) -> 2023-04-01 | J132: =INDIRECT(ADDRESS(MAX((INDIRECT(M132&"!H1:H1000")<>"")*ROW(INDIRECT(M132&"!H1:H1000"))),2,1,1,M132)) -> 2023-04-01 | M132: 16最低賃金 | N132: 6
C133: 26_【労務費】消費者物価指数・最賃・賃上げ率 | D133: 14_14_最低賃金 全国加重平均（山形県）（円） | I133: =INDEX(指標合算テーブル[],MATCH(LARGE((指標合算テーブル[種類]=D133)*1/ROW(指標合算テーブル[種類]),COUNTIF(指標合算テーブル[種類],D133)),1/ROW(指標合算テーブル[種類]),0),3) -> 2023-04-01 | J133: =INDIRECT(ADDRESS(MAX((INDIRECT(M133&"!I1:I1000")<>"")*ROW(INDIRECT(M133&"!I1:I1000"))),2,1,1,M133)) -> 2023-04-01 | M133: 16最低賃金 | N133: 7
C134: 27_【労務費】消費者物価指数・最賃・賃上げ率 | D134: 14_14_最低賃金 全国加重平均（福島県）（円） | I134: =INDEX(指標合算テーブル[],MATCH(LARGE((指標合算テーブル[種類]=D134)*1/ROW(指標合算テーブル[種類]),COUNTIF(指標合算テーブル[種類],D134)),1/ROW(指標合算テーブル[種類]),0),3) -> 2023-04-01 | J134: =INDIRECT(ADDRESS(MAX((INDIRECT(M134&"!J1:J1000")<>"")*ROW(INDIRECT(M134&"!J1:J1000"))),2,1,1,M134)) -> 2023-04-01 | M134: 16最低賃金 | N134: 8
C135: 28_【労務費】消費者物価指数・最賃・賃上げ率 | D135: 14_15_最低賃金 全国加重平均（茨城県）（円） | I135: =INDEX(指標合算テーブル[],MATCH(LARGE((指標合算テーブル[種類]=D135)*1/ROW(指標合算テーブル[種類]),COUNTIF(指標合算テーブル[種類],D135)),1/ROW(指標合算テーブル[種類]),0),3) -> 2023-04-01 | J135: =INDIRECT(ADDRESS(MAX((INDIRECT(M135&"!K1:K1000")<>"")*ROW(INDIRECT(M135&"!K1:K1000"))),2,1,1,M135)) -> 2023-04-01 | M135: 16最低賃金 | N135: 9
C136: 29_【労務費】消費者物価指数・最賃・賃上げ率 | D136: 14_16_最低賃金 全国加重平均（栃木県）（円） | I136: =INDEX(指標合算テーブル[],MATCH(LARGE((指標合算テーブル[種類]=D136)*1/ROW(指標合算テーブル[種類]),COUNTIF(指標合算テーブル[種類],D136)),1/ROW(指標合算テーブル[種類]),0),3) -> 2023-04-01 | J136: =INDIRECT(ADDRESS(MAX((INDIRECT($M136&"!L1:L1000")<>"")*ROW(INDIRECT($M136&"!L1:L1000"))),2,1,1,$M136)) -> 2023-04-01 | M136: 16最低賃金 | N136: 10
C137: 30_【労務費】消費者物価指数・最賃・賃上げ率 | D137: 14_17_最低賃金 全国加重平均（群馬県）（円） | I137: =INDEX(指標合算テーブル[],MATCH(LARGE((指標合算テーブル[種類]=D137)*1/ROW(指標合算テーブル[種類]),COUNTIF(指標合算テーブル[種類],D137)),1/ROW(指標合算テーブル[種類]),0),3) -> 2023-04-01 | J137: =INDIRECT(ADDRESS(MAX((INDIRECT(M137&"!M1:M1000")<>"")*ROW(INDIRECT(M137&"!M1:M1000"))),2,1,1,M137)) -> 2023-04-01 | M137: 16最低賃金 | N137: 11
C138: 31_【労務費】消費者物価指数・最賃・賃上げ率 | D138: 14_18_最低賃金 全国加重平均（埼玉県）（円） | I138: =INDEX(指標合算テーブル[],MATCH(LARGE((指標合算テーブル[種類]=D138)*1/ROW(指標合算テーブル[種類]),COUNTIF(指標合算テーブル[種類],D138)),1/ROW(指標合算テーブル[種類]),0),3) -> 2023-04-01 | J138: =INDIRECT(ADDRESS(MAX((INDIRECT(M138&"!N1:N1000")<>"")*ROW(INDIRECT(M138&"!N1:N1000"))),2,1,1,M138)) -> 2023-04-01 | M138: 16最低賃金 | N138: 12
C139: 32_【労務費】消費者物価指数・最賃・賃上げ率 | D139: 14_19_最低賃金 全国加重平均（千葉県）（円） | I139: =INDEX(指標合算テーブル[],MATCH(LARGE((指標合算テーブル[種類]=D139)*1/ROW(指標合算テーブル[種類]),COUNTIF(指標合算テーブル[種類],D139)),1/ROW(指標合算テーブル[種類]),0),3) -> 2023-04-01 | J139: =INDIRECT(ADDRESS(MAX((INDIRECT(M139&"!O1:O1000")<>"")*ROW(INDIRECT(M139&"!O1:O1000"))),2,1,1,M139)) -> 2023-04-01 | M139: 16最低賃金 | N139: 13
C140: 33_【労務費】消費者物価指数・最賃・賃上げ率 | D140: 14_20_最低賃金 全国加重平均（東京都）（円） | I140: =INDEX(指標合算テーブル[],MATCH(LARGE((指標合算テーブル[種類]=D140)*1/ROW(指標合算テーブル[種類]),COUNTIF(指標合算テーブル[種類],D140)),1/ROW(指標合算テーブル[種類]),0),3) -> 2023-04-01 | J140: =INDIRECT(ADDRESS(MAX((INDIRECT(M140&"!P1:P1000")<>"")*ROW(INDIRECT(M140&"!P1:P1000"))),2,1,1,M140)) -> 2023-04-01 | M140: 16最低賃金 | N140: 14
C141: 34_【労務費】消費者物価指数・最賃・賃上げ率 | D141: 14_21_最低賃金 全国加重平均（神奈川県）（円） | I141: =INDEX(指標合算テーブル[],MATCH(LARGE((指標合算テーブル[種類]=D141)*1/ROW(指標合算テーブル[種類]),COUNTIF(指標合算テーブル[種類],D141)),1/ROW(指標合算テーブル[種類]),0),3) -> 2023-04-01 | J141: =INDIRECT(ADDRESS(MAX((INDIRECT(M141&"!Q1:Q1000")<>"")*ROW(INDIRECT(M141&"!Q1:Q1000"))),2,1,1,M141)) -> 2023-04-01 | M141: 16最低賃金 | N141: 15
C142: 35_【労務費】消費者物価指数・最賃・賃上げ率 | D142: 14_22_最低賃金 全国加重平均（新潟県）（円） | I142: =INDEX(指標合算テーブル[],MATCH(LARGE((指標合算テーブル[種類]=D142)*1/ROW(指標合算テーブル[種類]),COUNTIF(指標合算テーブル[種類],D142)),1/ROW(指標合算テーブル[種類]),0),3) -> 2023-04-01 | J142: =INDIRECT(ADDRESS(MAX((INDIRECT(M142&"!R1:R1000")<>"")*ROW(INDIRECT(M142&"!R1:R1000"))),2,1,1,M142)) -> 2023-04-01 | M142: 16最低賃金 | N142: 16
C143: 36_【労務費】消費者物価指数・最賃・賃上げ率 | D143: 14_23_最低賃金 全国加重平均（富山県）（円） | I143: =INDEX(指標合算テーブル[],MATCH(LARGE((指標合算テーブル[種類]=D143)*1/ROW(指標合算テーブル[種類]),COUNTIF(指標合算テーブル[種類],D143)),1/ROW(指標合算テーブル[種類]),0),3) -> 2023-04-01 | J143: =INDIRECT(ADDRESS(MAX((INDIRECT(M143&"!S1:S1000")<>"")*ROW(INDIRECT(M143&"!S1:S1000"))),2,1,1,M143)) -> 2023-04-01 | M143: 16最低賃金 | N143: 17
C144: 37_【労務費】消費者物価指数・最賃・賃上げ率 | D144: 14_24_最低賃金 全国加重平均（石川県）（円） | I144: =INDEX(指標合算テーブル[],MATCH(LARGE((指標合算テーブル[種類]=D144)*1/ROW(指標合算テーブル[種類]),COUNTIF(指標合算テーブル[種類],D144)),1/ROW(指標合算テーブル[種類]),0),3) -> 2023-04-01 | J144: =INDIRECT(ADDRESS(MAX((INDIRECT(M144&"!T1:T1000")<>"")*ROW(INDIRECT(M144&"!T1:T1000"))),2,1,1,M144)) -> 2023-04-01 | M144: 16最低賃金 | N144: 18
C145: 38_【労務費】消費者物価指数・最賃・賃上げ率 | D145: 14_25_最低賃金 全国加重平均（福井県）（円） | I145: =INDEX(指標合算テーブル[],MATCH(LARGE((指標合算テーブル[種類]=D145)*1/ROW(指標合算テーブル[種類]),COUNTIF(指標合算テーブル[種類],D145)),1/ROW(指標合算テーブル[種類]),0),3) -> 2023-04-01 | J145: =INDIRECT(ADDRESS(MAX((INDIRECT(M145&"!U1:U1000")<>"")*ROW(INDIRECT(M145&"!U1:U1000"))),2,1,1,M145)) -> 2023-04-01 | M145: 16最低賃金 | N145: 19
C146: 39_【労務費】消費者物価指数・最賃・賃上げ率 | D146: 14_26_最低賃金 全国加重平均（山梨県）（円） | I146: =INDEX(指標合算テーブル[],MATCH(LARGE((指標合算テーブル[種類]=D146)*1/ROW(指標合算テーブル[種類]),COUNTIF(指標合算テーブル[種類],D146)),1/ROW(指標合算テーブル[種類]),0),3) -> 2023-04-01 | J146: =INDIRECT(ADDRESS(MAX((INDIRECT(M146&"!V1:V1000")<>"")*ROW(INDIRECT(M146&"!V1:V1000"))),2,1,1,M146)) -> 2023-04-01 | M146: 16最低賃金 | N146: 20
C147: 40_【労務費】消費者物価指数・最賃・賃上げ率 | D147: 14_27_最低賃金 全国加重平均（長野県）（円） | I147: =INDEX(指標合算テーブル[],MATCH(LARGE((指標合算テーブル[種類]=D147)*1/ROW(指標合算テーブル[種類]),COUNTIF(指標合算テーブル[種類],D147)),1/ROW(指標合算テーブル[種類]),0),3) -> 2023-04-01 | J147: =INDIRECT(ADDRESS(MAX((INDIRECT(M147&"!W1:W1000")<>"")*ROW(INDIRECT(M147&"!W1:W1000"))),2,1,1,M147)) -> 2023-04-01 | M147: 16最低賃金 | N147: 21
C148: 41_【労務費】消費者物価指数・最賃・賃上げ率 | D148: 14_28_最低賃金 全国加重平均（岐阜県）（円） | I148: =INDEX(指標合算テーブル[],MATCH(LARGE((指標合算テーブル[種類]=D148)*1/ROW(指標合算テーブル[種類]),COUNTIF(指標合算テーブル[種類],D148)),1/ROW(指標合算テーブル[種類]),0),3) -> 2023-04-01 | J148: =INDIRECT(ADDRESS(MAX((INDIRECT(M148&"!X1:X1000")<>"")*ROW(INDIRECT(M148&"!X1:X1000"))),2,1,1,M148)) -> 2023-04-01 | M148: 16最低賃金 | N148: 22
C149: 42_【労務費】消費者物価指数・最賃・賃上げ率 | D149: 14_29_最低賃金 全国加重平均（静岡県）（円） | I149: =INDEX(指標合算テーブル[],MATCH(LARGE((指標合算テーブル[種類]=D149)*1/ROW(指標合算テーブル[種類]),COUNTIF(指標合算テーブル[種類],D149)),1/ROW(指標合算テーブル[種類]),0),3) -> 2023-04-01 | J149: =INDIRECT(ADDRESS(MAX((INDIRECT(M149&"!Y1:Y1000")<>"")*ROW(INDIRECT(M149&"!Y1:Y1000"))),2,1,1,M149)) -> 2023-04-01 | M149: 16最低賃金 | N149: 23
C150: 43_【労務費】消費者物価指数・最賃・賃上げ率 | D150: 14_30_最低賃金 全国加重平均（愛知県）（円） | I150: =INDEX(指標合算テーブル[],MATCH(LARGE((指標合算テーブル[種類]=D150)*1/ROW(指標合算テーブル[種類]),COUNTIF(指標合算テーブル[種類],D150)),1/ROW(指標合算テーブル[種類]),0),3) -> 2023-04-01 | J150: =INDIRECT(ADDRESS(MAX((INDIRECT(M150&"!Z1:Z1000")<>"")*ROW(INDIRECT(M150&"!Z1:Z1000"))),2,1,1,M150)) -> 2023-04-01 | M150: 16最低賃金 | N150: 24
C151: 44_【労務費】消費者物価指数・最賃・賃上げ率 | D151: 14_31_最低賃金 全国加重平均（三重県）（円） | I151: =INDEX(指標合算テーブル[],MATCH(LARGE((指標合算テーブル[種類]=D151)*1/ROW(指標合算テーブル[種類]),COUNTIF(指標合算テーブル[種類],D151)),1/ROW(指標合算テーブル[種類]),0),3) -> 2023-04-01 | J151: =INDIRECT(ADDRESS(MAX((INDIRECT(M151&"!AA1:AA1000")<>"")*ROW(INDIRECT(M151&"!AA1:AA1000"))),2,1,1,M151)) -> 2023-04-01 | M151: 16最低賃金 | N151: 25
C152: 45_【労務費】消費者物価指数・最賃・賃上げ率 | D152: 14_32_最低賃金 全国加重平均（滋賀県）（円） | I152: =INDEX(指標合算テーブル[],MATCH(LARGE((指標合算テーブル[種類]=D152)*1/ROW(指標合算テーブル[種類]),COUNTIF(指標合算テーブル[種類],D152)),1/ROW(指標合算テーブル[種類]),0),3) -> 2023-04-01 | J152: =INDIRECT(ADDRESS(MAX((INDIRECT(M152&"!AB1:AB1000")<>"")*ROW(INDIRECT(M152&"!AB1:AB1000"))),2,1,1,M152)) -> 2023-04-01 | M152: 16最低賃金 | N152: 26
C153: 46_【労務費】消費者物価指数・最賃・賃上げ率 | D153: 14_33_最低賃金 全国加重平均（京都府）（円） | I153: =INDEX(指標合算テーブル[],MATCH(LARGE((指標合算テーブル[種類]=D153)*1/ROW(指標合算テーブル[種類]),COUNTIF(指標合算テーブル[種類],D153)),1/ROW(指標合算テーブル[種類]),0),3) -> 2023-04-01 | J153: =INDIRECT(ADDRESS(MAX((INDIRECT(M153&"!AC1:AC1000")<>"")*ROW(INDIRECT(M153&"!AC1:AC1000"))),2,1,1,M153)) -> 2023-04-01 | M153: 16最低賃金 | N153: 27
C154: 47_【労務費】消費者物価指数・最賃・賃上げ率 | D154: 14_34_最低賃金 全国加重平均（大阪府）（円） | I154: =INDEX(指標合算テーブル[],MATCH(LARGE((指標合算テーブル[種類]=D154)*1/ROW(指標合算テーブル[種類]),COUNTIF(指標合算テーブル[種類],D154)),1/ROW(指標合算テーブル[種類]),0),3) -> 2023-04-01 | J154: =INDIRECT(ADDRESS(MAX((INDIRECT(M154&"!AD1:AD1000")<>"")*ROW(INDIRECT(M154&"!AD1:AD1000"))),2,1,1,M154)) -> 2023-04-01 | M154: 16最低賃金 | N154: 28
C155: 48_【労務費】消費者物価指数・最賃・賃上げ率 | D155: 14_35_最低賃金 全国加重平均（兵庫県）（円） | I155: =INDEX(指標合算テーブル[],MATCH(LARGE((指標合算テーブル[種類]=D155)*1/ROW(指標合算テーブル[種類]),COUNTIF(指標合算テーブル[種類],D155)),1/ROW(指標合算テーブル[種類]),0),3) -> 2023-04-01 | J155: =INDIRECT(ADDRESS(MAX((INDIRECT(M155&"!AE1:AE1000")<>"")*ROW(INDIRECT(M155&"!AE1:AE1000"))),2,1,1,M155)) -> 2023-04-01 | M155: 16最低賃金 | N155: 29
C156: 49_【労務費】消費者物価指数・最賃・賃上げ率 | D156: 14_36_最低賃金 全国加重平均（奈良県）（円） | I156: =INDEX(指標合算テーブル[],MATCH(LARGE((指標合算テーブル[種類]=D156)*1/ROW(指標合算テーブル[種類]),COUNTIF(指標合算テーブル[種類],D156)),1/ROW(指標合算テーブル[種類]),0),3) -> 2023-04-01 | J156: =INDIRECT(ADDRESS(MAX((INDIRECT(M156&"!AF1:AF1000")<>"")*ROW(INDIRECT(M156&"!AF1:AF1000"))),2,1,1,M156)) -> 2023-04-01 | M156: 16最低賃金 | N156: 30
C157: 50_【労務費】消費者物価指数・最賃・賃上げ率 | D157: 14_37_最低賃金 全国加重平均（和歌山県）（円） | I157: =INDEX(指標合算テーブル[],MATCH(LARGE((指標合算テーブル[種類]=D157)*1/ROW(指標合算テーブル[種類]),COUNTIF(指標合算テーブル[種類],D157)),1/ROW(指標合算テーブル[種類]),0),3) -> 2023-04-01 | J157: =INDIRECT(ADDRESS(MAX((INDIRECT(M157&"!AG1:AG1000")<>"")*ROW(INDIRECT(M157&"!AG1:AG1000"))),2,1,1,M157)) -> 2023-04-01 | M157: 16最低賃金 | N157: 31
C158: 51_【労務費】消費者物価指数・最賃・賃上げ率 | D158: 14_38_最低賃金 全国加重平均（鳥取県）（円） | I158: =INDEX(指標合算テーブル[],MATCH(LARGE((指標合算テーブル[種類]=D158)*1/ROW(指標合算テーブル[種類]),COUNTIF(指標合算テーブル[種類],D158)),1/ROW(指標合算テーブル[種類]),0),3) -> 2023-04-01 | J158: =INDIRECT(ADDRESS(MAX((INDIRECT(M158&"!AH1:AH1000")<>"")*ROW(INDIRECT(M158&"!AH1:AH1000"))),2,1,1,M158)) -> 2023-04-01 | M158: 16最低賃金 | N158: 32
C159: 52_【労務費】消費者物価指数・最賃・賃上げ率 | D159: 14_39_最低賃金 全国加重平均（島根県）（円） | I159: =INDEX(指標合算テーブル[],MATCH(LARGE((指標合算テーブル[種類]=D159)*1/ROW(指標合算テーブル[種類]),COUNTIF(指標合算テーブル[種類],D159)),1/ROW(指標合算テーブル[種類]),0),3) -> 2023-04-01 | J159: =INDIRECT(ADDRESS(MAX((INDIRECT(M159&"!AI1:AI1000")<>"")*ROW(INDIRECT(M159&"!AI1:AI1000"))),2,1,1,M159)) -> 2023-04-01 | M159: 16最低賃金 | N159: 33
C160: 53_【労務費】消費者物価指数・最賃・賃上げ率 | D160: 14_40_最低賃金 全国加重平均（岡山県）（円） | I160: =INDEX(指標合算テーブル[],MATCH(LARGE((指標合算テーブル[種類]=D160)*1/ROW(指標合算テーブル[種類]),COUNTIF(指標合算テーブル[種類],D160)),1/ROW(指標合算テーブル[種類]),0),3) -> 2023-04-01 | J160: =INDIRECT(ADDRESS(MAX((INDIRECT(M160&"!AJ1:AJ1000")<>"")*ROW(INDIRECT(M160&"!AJ1:AJ1000"))),2,1,1,M160)) -> 2023-04-01 | M160: 16最低賃金 | N160: 34
C161: 54_【労務費】消費者物価指数・最賃・賃上げ率 | D161: 14_41_最低賃金 全国加重平均（広島県）（円） | I161: =INDEX(指標合算テーブル[],MATCH(LARGE((指標合算テーブル[種類]=D161)*1/ROW(指標合算テーブル[種類]),COUNTIF(指標合算テーブル[種類],D161)),1/ROW(指標合算テーブル[種類]),0),3) -> 2023-04-01 | J161: =INDIRECT(ADDRESS(MAX((INDIRECT(M161&"!AK1:AK1000")<>"")*ROW(INDIRECT(M161&"!AK1:AK1000"))),2,1,1,M161)) -> 2023-04-01 | M161: 16最低賃金 | N161: 35
C162: 55_【労務費】消費者物価指数・最賃・賃上げ率 | D162: 14_42_最低賃金 全国加重平均（山口県）（円） | I162: =INDEX(指標合算テーブル[],MATCH(LARGE((指標合算テーブル[種類]=D162)*1/ROW(指標合算テーブル[種類]),COUNTIF(指標合算テーブル[種類],D162)),1/ROW(指標合算テーブル[種類]),0),3) -> 2023-04-01 | J162: =INDIRECT(ADDRESS(MAX((INDIRECT(M162&"!AL1:AL1000")<>"")*ROW(INDIRECT(M162&"!AL1:AL1000"))),2,1,1,M162)) -> 2023-04-01 | M162: 16最低賃金 | N162: 36
C163: 56_【労務費】消費者物価指数・最賃・賃上げ率 | D163: 14_43_最低賃金 全国加重平均（徳島県）（円） | I163: =INDEX(指標合算テーブル[],MATCH(LARGE((指標合算テーブル[種類]=D163)*1/ROW(指標合算テーブル[種類]),COUNTIF(指標合算テーブル[種類],D163)),1/ROW(指標合算テーブル[種類]),0),3) -> 2023-04-01 | J163: =INDIRECT(ADDRESS(MAX((INDIRECT(M163&"!AM1:AM1000")<>"")*ROW(INDIRECT(M163&"!AM1:AM1000"))),2,1,1,M163)) -> 2023-04-01 | M163: 16最低賃金 | N163: 37
C164: 57_【労務費】消費者物価指数・最賃・賃上げ率 | D164: 14_44_最低賃金 全国加重平均（香川県）（円） | I164: =INDEX(指標合算テーブル[],MATCH(LARGE((指標合算テーブル[種類]=D164)*1/ROW(指標合算テーブル[種類]),COUNTIF(指標合算テーブル[種類],D164)),1/ROW(指標合算テーブル[種類]),0),3) -> 2023-04-01 | J164: =INDIRECT(ADDRESS(MAX((INDIRECT(M164&"!AN1:AN1000")<>"")*ROW(INDIRECT(M164&"!AN1:AN1000"))),2,1,1,M164)) -> 2023-04-01 | M164: 16最低賃金 | N164: 38
C165: 58_【労務費】消費者物価指数・最賃・賃上げ率 | D165: 14_45_最低賃金 全国加重平均（愛媛県）（円） | I165: =INDEX(指標合算テーブル[],MATCH(LARGE((指標合算テーブル[種類]=D165)*1/ROW(指標合算テーブル[種類]),COUNTIF(指標合算テーブル[種類],D165)),1/ROW(指標合算テーブル[種類]),0),3) -> 2023-04-01 | J165: =INDIRECT(ADDRESS(MAX((INDIRECT(M165&"!AO1:AO1000")<>"")*ROW(INDIRECT(M165&"!AO1:AO1000"))),2,1,1,M165)) -> 2023-04-01 | M165: 16最低賃金 | N165: 39
C166: 59_【労務費】消費者物価指数・最賃・賃上げ率 | D166: 14_46_最低賃金 全国加重平均（高知県）（円） | I166: =INDEX(指標合算テーブル[],MATCH(LARGE((指標合算テーブル[種類]=D166)*1/ROW(指標合算テーブル[種類]),COUNTIF(指標合算テーブル[種類],D166)),1/ROW(指標合算テーブル[種類]),0),3) -> 2023-04-01 | J166: =INDIRECT(ADDRESS(MAX((INDIRECT(M166&"!AP1:AP1000")<>"")*ROW(INDIRECT(M166&"!AP1:AP1000"))),2,1,1,M166)) -> 2023-04-01 | M166: 16最低賃金 | N166: 40
C167: 60_【労務費】消費者物価指数・最賃・賃上げ率 | D167: 14_47_最低賃金 全国加重平均（福岡県）（円） | I167: =INDEX(指標合算テーブル[],MATCH(LARGE((指標合算テーブル[種類]=D167)*1/ROW(指標合算テーブル[種類]),COUNTIF(指標合算テーブル[種類],D167)),1/ROW(指標合算テーブル[種類]),0),3) -> 2023-04-01 | J167: =INDIRECT(ADDRESS(MAX((INDIRECT(M167&"!AQ1:AQ1000")<>"")*ROW(INDIRECT(M167&"!AQ1:AQ1000"))),2,1,1,M167)) -> 2023-04-01 | M167: 16最低賃金 | N167: 41
C168: 61_【労務費】消費者物価指数・最賃・賃上げ率 | D168: 14_48_最低賃金 全国加重平均（佐賀県）（円） | I168: =INDEX(指標合算テーブル[],MATCH(LARGE((指標合算テーブル[種類]=D168)*1/ROW(指標合算テーブル[種類]),COUNTIF(指標合算テーブル[種類],D168)),1/ROW(指標合算テーブル[種類]),0),3) -> 2023-04-01 | J168: =INDIRECT(ADDRESS(MAX((INDIRECT(M168&"!AR1:AR1000")<>"")*ROW(INDIRECT(M168&"!AR1:AR1000"))),2,1,1,M168)) -> 2023-04-01 | M168: 16最低賃金 | N168: 42
C169: 62_【労務費】消費者物価指数・最賃・賃上げ率 | D169: 14_49_最低賃金 全国加重平均（長崎県）（円） | I169: =INDEX(指標合算テーブル[],MATCH(LARGE((指標合算テーブル[種類]=D169)*1/ROW(指標合算テーブル[種類]),COUNTIF(指標合算テーブル[種類],D169)),1/ROW(指標合算テーブル[種類]),0),3) -> 2023-04-01 | J169: =INDIRECT(ADDRESS(MAX((INDIRECT(M169&"!AS1:AS1000")<>"")*ROW(INDIRECT(M169&"!AS1:AS1000"))),2,1,1,M169)) -> 2023-04-01 | M169: 16最低賃金 | N169: 43
C170: 63_【労務費】消費者物価指数・最賃・賃上げ率 | D170: 14_50_最低賃金 全国加重平均（熊本県）（円） | I170: =INDEX(指標合算テーブル[],MATCH(LARGE((指標合算テーブル[種類]=D170)*1/ROW(指標合算テーブル[種類]),COUNTIF(指標合算テーブル[種類],D170)),1/ROW(指標合算テーブル[種類]),0),3) -> 2023-04-01 | J170: =INDIRECT(ADDRESS(MAX((INDIRECT(M170&"!AT1:AT1000")<>"")*ROW(INDIRECT(M170&"!AT1:AT1000"))),2,1,1,M170)) -> 2023-04-01 | M170: 16最低賃金 | N170: 44
C171: 64_【労務費】消費者物価指数・最賃・賃上げ率 | D171: 14_51_最低賃金 全国加重平均（大分県）（円） | I171: =INDEX(指標合算テーブル[],MATCH(LARGE((指標合算テーブル[種類]=D171)*1/ROW(指標合算テーブル[種類]),COUNTIF(指標合算テーブル[種類],D171)),1/ROW(指標合算テーブル[種類]),0),3) -> 2023-04-01 | J171: =INDIRECT(ADDRESS(MAX((INDIRECT(M171&"!AU1:AU1000")<>"")*ROW(INDIRECT(M171&"!AU1:AU1000"))),2,1,1,M171)) -> 2023-04-01 | M171: 16最低賃金 | N171: 45
C172: 65_【労務費】消費者物価指数・最賃・賃上げ率 | D172: 14_52_最低賃金 全国加重平均（宮崎県）（円） | I172: =INDEX(指標合算テーブル[],MATCH(LARGE((指標合算テーブル[種類]=D172)*1/ROW(指標合算テーブル[種類]),COUNTIF(指標合算テーブル[種類],D172)),1/ROW(指標合算テーブル[種類]),0),3) -> 2023-04-01 | J172: =INDIRECT(ADDRESS(MAX((INDIRECT(M172&"!AV1:AV1000")<>"")*ROW(INDIRECT(M172&"!AV1:AV1000"))),2,1,1,M172)) -> 2023-04-01 | M172: 16最低賃金 | N172: 46
C173: 66_【労務費】消費者物価指数・最賃・賃上げ率 | D173: 14_53_最低賃金 全国加重平均（鹿児島県）（円） | I173: =INDEX(指標合算テーブル[],MATCH(LARGE((指標合算テーブル[種類]=D173)*1/ROW(指標合算テーブル[種類]),COUNTIF(指標合算テーブル[種類],D173)),1/ROW(指標合算テーブル[種類]),0),3) -> 2023-04-01 | J173: =INDIRECT(ADDRESS(MAX((INDIRECT(M173&"!AW1:AW1000")<>"")*ROW(INDIRECT(M173&"!AW1:AW1000"))),2,1,1,M173)) -> 2023-04-01 | M173: 16最低賃金 | N173: 47
C174: 67_【労務費】消費者物価指数・最賃・賃上げ率 | D174: 14_54_最低賃金 全国加重平均（沖縄県）（円） | I174: =INDEX(指標合算テーブル[],MATCH(LARGE((指標合算テーブル[種類]=D174)*1/ROW(指標合算テーブル[種類]),COUNTIF(指標合算テーブル[種類],D174)),1/ROW(指標合算テーブル[種類]),0),3) -> 2023-04-01 | J174: =INDIRECT(ADDRESS(MAX((INDIRECT(M174&"!AX1:AX1000")<>"")*ROW(INDIRECT(M174&"!AX1:AX1000"))),2,1,1,M174)) -> 2023-04-01 | M174: 16最低賃金 | N174: 48

Sheet 管理用 (hidden)
AF1: フォーム名：ウレタン配合比率指定フォーム・ポリアミド6配合比率指定フォーム・国内トラック便フォーム※入力方法を国内トラック便と合わせる（ウレタンフォーム、ポリアミド6フォームを採用する）場合は不要となる | AS1: ※シート名を一括変更したい場合に使うマクロ | AX1: ※CSV化するマクロで参照している表。チェックボックス番号とリンクしてＣＳＶシートとファイル名が指定される
B2: 大分類-指標 | E2: 中分類-種類 | L2: ※グラフ下出典表示のためvlookup参照元としている表 | V2: コンボボックス入力用リスト（マクロで使用しているため、セルが移動すると機能しなくなる） | AF2: コンボボックス初期表示用リスト（マクロで使用しているため、セルが移動すると機能しなくなる。初期表示を今登録されている値にするためのリスト番号の表） | AX2: =COLUMN() -> 50 | AY2: =COLUMN() -> 51 | AZ2: =COLUMN() -> 52
B3: 指標順序 | D3: 指標 | E3: 種類（単位あり）順序 | L3: 指標 | M3: 種類 | N3: 種類（短縮） | O3: 出典 | V3: 配合比率 | W3: 石炭kg | X3: 走行距離 | Y3: 燃費 | Z3: 基準額 | AA3: リスト番号 | AG3: プロピレンオキサイド | AH3: エチレンオキサイド | AI3: トルエン | AJ3: ベンゼン | AK3: 石炭 | AL3: ポリオール | AM3: イソシアネート | AN3: 配合比率 | AO3: ポリアミド6 | AP3: ガラス | AS3: シート番号 | AT3: 現在のCSVシート名 | AU3: 変更後のシート名 | AX3: チェックボックス番号 | AY3: CSVシート名 | AZ3: CSVファイル名
B4: 【原材料】鉄鋼 | D4: 【原材料】鉄鋼 | E4: 熱延鋼板（1.6mm）（千円/t）※高炉系 | L4: 01_【原材料】鉄鋼 | M4: 01.01_熱延鋼板（1.6mm）（千円/t）※高炉系 | N4: 熱延鋼板※高炉系 | O4: 日刊産業新聞 | V4: 0 | W4: 0 | X4: 10 | Y4: 1 | Z4: 5 | AA4: 0 | AE4: =IF(AD4<>0,1,"") ->  | AF4: ウレタンA | AG4: =IFERROR(VLOOKUP(ピボットテーブルシート!C39,管理用!$V:$AA,6,FALSE),"") -> 0 | AH4: =IFERROR(VLOOKUP(ピボットテーブルシート!D39,管理用!$V:$AA,6,FALSE),"") -> 100 | AI4: =IFERROR(VLOOKUP(ピボットテーブルシート!E39,管理用!$V:$AA,6,FALSE),"") -> 0 | AJ4: =IFERROR(VLOOKUP(ピボットテーブルシート!F39,管理用!$V:$AA,6,FALSE),"") -> 100 | AK4: =IFERROR(VLOOKUP(ピボットテーブルシート!G39,管理用!$W:$AA,5,FALSE),"") -> 0 | AL4: =IFERROR(VLOOKUP(ピボットテーブルシート!H39,管理用!$V:$AA,6,FALSE),"") -> 0 | AM4: =IFERROR(VLOOKUP(ピボットテーブルシート!I39,管理用!$V:$AA,6,FALSE),"") -> 100 | AN4: ポリアミド6A | AO4: =IFERROR(VLOOKUP(ピボットテーブルシート!K39,管理用!$V:$AA,6,FALSE),"") -> 100 | AP4: =IFERROR(VLOOKUP(ピボットテーブルシート!L39,管理用!$V:$AA,6,FALSE),"") -> 0 | AS4: 6 | AT4: 1鉄鋼 | AU4: 1鉄鋼 | AX4: 1 | AY4: 1鉄鋼 | AZ4: tekkoukakakusuii.csv
B5: 【原材料】銅・黄銅 | D5: 【原材料】鉄鋼 | E5: 冷延鋼板（1.0mm）（千円/t）※高炉系 | L5: 01_【原材料】鉄鋼 | M5: 01.02_冷延鋼板（1.0mm）（千円/t）※高炉系 | N5: 冷延鋼板※高炉系 | O5: 日刊産業新聞 | V5: 1 | W5: 0.5 | X5: 20 | Y5: 1.1 | Z5: 10 | AA5: 1 | AE5: =IF(AD5<>0,1,"") ->  | AF5: ウレタンB | AG5: =IFERROR(VLOOKUP(ピボットテーブルシート!C40,管理用!$V:$AA,6,FALSE),"") -> 20 | AH5: =IFERROR(VLOOKUP(ピボットテーブルシート!D40,管理用!$V:$AA,6,FALSE),"") -> 80 | AI5: =IFERROR(VLOOKUP(ピボットテーブルシート!E40,管理用!$V:$AA,6,FALSE),"") -> 20 | AJ5: =IFERROR(VLOOKUP(ピボットテーブルシート!F40,管理用!$V:$AA,6,FALSE),"") -> 80 | AK5: =IFERROR(VLOOKUP(ピボットテーブルシート!G40,管理用!$W:$AA,5,FALSE),"") -> 4 | AL5: =IFERROR(VLOOKUP(ピボットテーブルシート!H40,管理用!$V:$AA,6,FALSE),"") -> 20 | AM5: =IFERROR(VLOOKUP(ピボットテーブルシート!I40,管理用!$V:$AA,6,FALSE),"") -> 80 | AN5: ポリアミド6B | AO5: =IFERROR(VLOOKUP(ピボットテーブルシート!K40,管理用!$V:$AA,6,FALSE),"") -> 20 | AP5: =IFERROR(VLOOKUP(ピボットテーブルシート!L40,管理用!$V:$AA,6,FALSE),"") -> 80 | AS5: 7 | AT5: 2銅黄銅 | AU5: 2銅黄銅 | AX5: 2 | AY5: 2銅黄銅 | AZ5: dououdoukakakusuii.csv
B6: 【原材料】アルミ | D6: 【原材料】鉄鋼 | E6: 酸洗コイル（1.5≦ｔ＜1.7×900～1,600）（千円/t）※電炉系 | L6: 01_【原材料】鉄鋼 | M6: 01.03_酸洗コイル（1.5≦ｔ＜1.7×900～1,600）（千円/t）※電炉系 | N6: 酸洗コイル※電炉系 | O6: 東京製鐵価格表 | V6: 2 | W6: 1 | X6: 30 | Y6: 1.2 | Z6: 15 | AA6: 2 | AF6: ウレタンC | AG6: =IFERROR(VLOOKUP(ピボットテーブルシート!C41,管理用!$V:$AA,6,FALSE),"") -> 60 | AH6: =IFERROR(VLOOKUP(ピボットテーブルシート!D41,管理用!$V:$AA,6,FALSE),"") -> 40 | AI6: =IFERROR(VLOOKUP(ピボットテーブルシート!E41,管理用!$V:$AA,6,FALSE),"") -> 60 | AJ6: =IFERROR(VLOOKUP(ピボットテーブルシート!F41,管理用!$V:$AA,6,FALSE),"") -> 40 | AK6: =IFERROR(VLOOKUP(ピボットテーブルシート!G41,管理用!$W:$AA,5,FALSE),"") -> 6 | AL6: =IFERROR(VLOOKUP(ピボットテーブルシート!H41,管理用!$V:$AA,6,FALSE),"") -> 60 | AM6: =IFERROR(VLOOKUP(ピボットテーブルシート!I41,管理用!$V:$AA,6,FALSE),"") -> 40 | AN6: ポリアミド6C | AO6: =IFERROR(VLOOKUP(ピボットテーブルシート!K41,管理用!$V:$AA,6,FALSE),"") -> 50 | AP6: =IFERROR(VLOOKUP(ピボットテーブルシート!L41,管理用!$V:$AA,6,FALSE),"") -> 50 | AS6: 8 | AT6: 3アルミ | AU6: 3アルミ | AX6: 3 | AY6: 3アルミ | AZ6: arumikakakusuii.csv
B7: 【原材料】ウレタン | D7: 【原材料】銅・黄銅 | E7: 銅（円/kg） | L7: 02_【原材料】銅・黄銅 | M7: 02.01_銅（円/kg） | N7: 銅 | O7: JX金属 | V7: 3 | W7: 1.5 | X7: 40 | Y7: 1.3 | Z7: 20 | AA7: 3 | AF7: ウレタンD | AG7: =IFERROR(VLOOKUP(ピボットテーブルシート!C42,管理用!$V:$AA,6,FALSE),"") -> 100 | AH7: =IFERROR(VLOOKUP(ピボットテーブルシート!D42,管理用!$V:$AA,6,FALSE),"") -> 0 | AI7: =IFERROR(VLOOKUP(ピボットテーブルシート!E42,管理用!$V:$AA,6,FALSE),"") -> 100 | AJ7: =IFERROR(VLOOKUP(ピボットテーブルシート!F42,管理用!$V:$AA,6,FALSE),"") -> 0 | AK7: =IFERROR(VLOOKUP(ピボットテーブルシート!G42,管理用!$W:$AA,5,FALSE),"") -> 6 | AL7: =IFERROR(VLOOKUP(ピボットテーブルシート!H42,管理用!$V:$AA,6,FALSE),"") -> 100 | AM7: =IFERROR(VLOOKUP(ピボットテーブルシート!I42,管理用!$V:$AA,6,FALSE),"") -> 0 | AN7: ポリアミド6D | AO7: =IFERROR(VLOOKUP(ピボットテーブルシート!K42,管理用!$V:$AA,6,FALSE),"") -> 10 | AP7: =IFERROR(VLOOKUP(ピボットテーブルシート!L42,管理用!$V:$AA,6,FALSE),"") -> 90 | AS7: 9 | AT7: 4ウレタン | AU7: 4ウレタン | AX7: 4 | AY7: 4ウレタン | AZ7: uretankakakusuii.csv
B8: 【原材料】ポリアミド6 | D8: 【原材料】銅・黄銅 | E8: 亜鉛（円/kg） | L8: 02_【原材料】銅・黄銅 | M8: 02.02_亜鉛（円/kg） | N8: 亜鉛 | O8: 三井金属工業 | V8: 4 | W8: 2 | X8: 50 | Y8: 1.4 | Z8: 25 | AA8: 4 | AS8: 10 | AT8: 5ポリアミド6 | AU8: 5ポリアミド6 | AX8: 5 | AY8: 5ポリアミド6 | AZ8: poriamido6kakakusuii.csv
B9: 【原材料】ABS樹脂 | D9: 【原材料】銅・黄銅 | E9: 黄銅1種（銅70％・亜鉛30％）（円/kg) | L9: 02_【原材料】銅・黄銅 | M9: 02.03_黄銅1種（銅70％・亜鉛30％）（円/kg) | N9: 黄銅1種 | O9: JX金属・三井金属工業のデータを基に作成 | V9: 5 | W9: 2.5 | X9: 60 | Y9: 1.5 | Z9: 30 | AA9: 5 | AS9: 11 | AT9: 6ポリプロピレン | AU9: 6ポリプロピレン | AX9: 6 | AY9: 6ポリプロピレン | AZ9: poripuropirennkakakusuii.csv
B10: 【原材料】合成ゴム | D10: 【原材料】銅・黄銅 | E10: 黄銅2種（銅65％・亜鉛35％）（円/kg) | L10: 02_【原材料】銅・黄銅 | M10: 02.04_黄銅2種（銅65％・亜鉛35％）（円/kg) | N10: 黄銅2種 | O10: JX金属・三井金属工業のデータを基に作成 | V10: 6 | W10: 3 | X10: 70 | Y10: 1.6 | Z10: 35 | AA10: 6 | AG10: （マクロで使用しているため、セルが移動すると機能しなくなる。） | AS10: 12 | AT10: 7ABS樹脂 | AU10: 7ABS樹脂 | AX10: 7 | AY10: 7ABS樹脂 | AZ10: absjushikakakusuii.csv
B11: 【エネルギー】電気 | D11: 【原材料】銅・黄銅 | E11: 黄銅3種（銅60％・亜鉛40％）（円/kg） | L11: 02_【原材料】銅・黄銅 | M11: 02.05_黄銅3種（銅60％・亜鉛40％）（円/kg） | N11: 黄銅3種 | O11: JX金属・三井金属工業のデータを基に作成 | V11: 7 | X11: 80 | Y11: 1.7 | Z11: 40 | AA11: 7 | AG11: ↓グラフのPDF化の際、国内トラック便・ウレタン・ポリアミドのどれかか、それ以外かの振り分けをするための数式 | AS11: 13 | AT11: 8合成ゴム | AU11: 8合成ゴム | AX11: 8 | AY11: 8合成ゴム | AZ11: gouseigomukakakusuii.csv
B12: 【エネルギー】ガス | D12: 【原材料】アルミ | E12: 新地金（円/kg） | L12: 03_【原材料】アルミ | M12: 03.01_新地金（円/kg） | N12: 新地金 | O12: 日本経済新聞の記事及び日経NEEDS | V12: 8 | X12: 90 | Y12: 1.8 | Z12: 45 | AA12: 8 | AG12: =IF(COUNTIF(ピボットテーブルシート!$C$52:$DP$52,"*ポリアミド*")>0,"指定の種類",IF(COUNTIF(ピボットテーブルシート!$C$52:$DP$52,"*ウレタン*")>0,"指定の種類",IF(COUNTIF(ピボットテーブルシート!$C$52:$DP$52,"*トラック*")>0,"指定の種類",""))) ->  | AS12: 14 | AT12: 9電気 | AU12: 9電気 | AX12: 9 | AY12: 9電気 | AZ12: dennkikakakusuii.csv
B13: 【物流】国内トラック便 | D13: 【原材料】アルミ | E13: 再生塊（円/kg） | L13: 03_【原材料】アルミ | M13: 03.02_再生塊（円/kg） | N13: 再生塊 | O13: 日刊産業新聞 | V13: 9 | X13: 100 | Y13: 1.9 | Z13: 50 | AA13: 9 | AS13: 15 | AT13: 10ガス | AU13: 10ガス | AX13: 10 | AY13: 10ガス | AZ13: gasukakakusuii.csv
B14: 【物流】海外輸出便 | D14: 【原材料】ウレタン | E14: ウレタンA（円/kg） | L14: 04_【原材料】ウレタン | M14: 04.01_ウレタンA（円/kg） | N14: ウレタン | O14: 日本経済新聞の記事及び日経NEEDS/財務省統計 | V14: 10 | X14: 110 | Y14: 2 | Z14: 55 | AA14: 10 | AS14: 16 | AT14: 11国内トラック便 | AU14: 11国内トラック便 | AX14: 11 | AY14: 11国内トラック便 | AZ14: kokunaitorakkubinnkakakusuii.csv
B15: 【物流】海外輸入便 | D15: 【原材料】ウレタン | E15: ウレタンB（円/kg） | L15: 04_【原材料】ウレタン | M15: 04.02_ウレタンB（円/kg） | N15: ウレタン | O15: 日本経済新聞の記事及び日経NEEDS/財務省統計 | V15: 11 | X15: 120 | Y15: 2.1 | Z15: 60 | AA15: 11 | AS15: 17 | AT15: 12海外輸出便 | AU15: 12海外輸出便 | AX15: 12 | AY15: 12海外輸出便 | AZ15: kaigaiyusyutsubinnkakakusuii.csv
D16: 【原材料】ウレタン | E16: ウレタンC（円/kg） | L16: 04_【原材料】ウレタン | M16: 04.03_ウレタンC（円/kg） | N16: ウレタン | O16: 日本経済新聞の記事及び日経NEEDS/財務省統計 | V16: 12 | X16: 130 | Y16: 2.2 | Z16: 65 | AA16: 12 | AS16: 18 | AT16: 13海外輸入便 | AU16: 13海外輸入便 | AX16: 13 | AY16: 13海外輸入便 | AZ16: kaigaiyunyubinnkakakusuii.csv
D17: 【原材料】ウレタン | E17: ウレタンD（円/kg） | L17: 04_【原材料】ウレタン | M17: 04.04_ウレタンD（円/kg） | N17: ウレタン | O17: 日本経済新聞の記事及び日経NEEDS/財務省統計 | V17: 13 | X17: 140 | Y17: 2.3 | Z17: 70 | AA17: 13 | AS17: 19 | AT17: 14消費者物価指数 | AU17: 14消費者物価指数 | AX17: 14 | AY17: 17北海道電力 | AZ17: hokkaidodennryoku.csv
D18: 【原材料】ポリアミド6 | E18: ポリアミド6A（円/kg） | L18: 05_【原材料】ポリアミド6 | M18: 05.01_ポリアミド6A（円/kg） | N18: ポリアミド6 | O18: 日本経済新聞の記事及び日経NEEDS/財務省統計 | V18: 14 | X18: 150 | Y18: 2.4 | Z18: 75 | AA18: 14 | AG18: ↓グラフ内テキストボックスに絶対参照しているため移動注意 | AS18: 20 | AT18: 15賃上げ率 | AU18: 15賃上げ率 | AX18: 15 | AY18: 18東北電力 | AZ18: tohokudennryoku.csv
D19: 【原材料】ポリアミド6 | E19: ポリアミド6B（円/kg） | L19: 05_【原材料】ポリアミド6 | M19: 05.02_ポリアミド6B（円/kg） | N19: ポリアミド6 | O19: 日本経済新聞の記事及び日経NEEDS/財務省統計 | V19: 15 | X19: 160 | Y19: 2.5 | Z19: 80 | AA19: 15 | AG19: =IF(COUNTIF(ピボットテーブルシート!$C$52:$DP$52,"*トラック*")>0,"※トラックサーチャージ指定に相違がないかご確認ください","") ->  | AS19: 21 | AT19: 16最低賃金 | AU19: 16最低賃金 | AX19: 16 | AY19: 19東京電力 | AZ19: tokyodennryoku.csv
D20: 【原材料】ポリアミド6 | E20: ポリアミド6C（円/kg） | L20: 05_【原材料】ポリアミド6 | M20: 05.03_ポリアミド6C（円/kg） | N20: ポリアミド6 | O20: 日本経済新聞の記事及び日経NEEDS/財務省統計 | V20: 16 | X20: 170 | Y20: 2.6 | Z20: 85 | AA20: 16 | AG20: =IF(COUNTIF(ピボットテーブルシート!$C$52:$DP$52,"*ポリアミド*")>0,"※配合比率指定に相違がないかご確認ください",IF(COUNTIF(ピボットテーブルシート!$C$52:$DP$52,"*ウレタン*")>0,"※配合比率指定に相違がないかご確認ください","")) ->  | AS20: 22 | AT20: 17北海道電力 | AU20: 17北海道電力 | AX20: 17 | AY20: 20中部電力 | AZ20: chubudennryoku.csv
D21: 【原材料】ポリアミド6 | E21: ポリアミド6D（円/kg） | L21: 05_【原材料】ポリアミド6 | M21: 05.04_ポリアミド6D（円/kg） | N21: ポリアミド6 | O21: 日本経済新聞の記事及び日経NEEDS/財務省統計 | V21: 17 | X21: 180 | Y21: 2.7 | Z21: 90 | AA21: 17 | AS21: 23 | AT21: 18東北電力 | AU21: 18東北電力 | AX21: 18 | AY21: 21北陸電力 | AZ21: hokurikudennryoku.csv
D22: 【原材料】ポリアミド6 | E22: ガラス（円/kg） | L22: 05_【原材料】ポリアミド6 | M22: 05.05_ガラス（円/kg） | N22: ガラス | O22: 財務省貿易統計 | V22: 18 | X22: 190 | Y22: 2.8 | Z22: 95 | AA22: 18 | AS22: 24 | AT22: 19東京電力 | AU22: 19東京電力 | AX22: 19 | AY22: 22関西電力 | AZ22: kannsaidennryoku.csv
D23: 【原材料】ABS樹脂 | E23: ABS樹脂（円/kg） | L23: 06_【原材料】ポリプロピレン | M23: 06.01_ポリプロピレン（円/kg） | N23: ポリプロピレン | O23: 日本経済新聞の記事及び日経NEEDS | V23: 19 | X23: 200 | Y23: 2.9 | Z23: 100 | AA23: 19 | AS23: 25 | AT23: 20中部電力 | AU23: 20中部電力 | AX23: 20 | AY23: 23中国電力 | AZ23: chugokudennryoku.csv
D24: 【原材料】合成ゴム | E24: EPDM（円/kg） | L24: 07_【原材料】ABS樹脂 | M24: 07.01_ABS樹脂（円/kg） | N24: ABS樹脂 | O24: 日本経済新聞の記事及び日経NEEDS | V24: 20 | X24: 210 | Y24: 3 | Z24: 105 | AA24: 20 | AS24: 26 | AT24: 21北陸電力 | AU24: 21北陸電力 | AX24: 21 | AY24: 24四国電力 | AZ24: shikokudennryoku.csv
D25: 【原材料】合成ゴム | E25: カーボンブラック（円/kg） | L25: 08_【原材料】合成ゴム | M25: 08.01_EPDM（円/kg） | N25: EPDM | O25: 日本経済新聞の記事及び日経NEEDS | V25: 21 | X25: 220 | Y25: 3.1 | Z25: 110 | AA25: 21 | AS25: 27 | AT25: 22関西電力 | AU25: 22関西電力 | AX25: 22 | AY25: 25九州電力 | AZ25: kyushudennryoku.csv
D26: 【原材料】合成ゴム | E26: プロセスオイル（円/kg） | L26: 08_【原材料】合成ゴム | M26: 08.02_カーボンブラック（円/kg） | N26: カーボンブラック | O26: 財務省貿易統計 | V26: 22 | X26: 230 | Y26: 3.2 | Z26: 115 | AA26: 22 | AS26: 28 | AT26: 23中国電力 | AU26: 23中国電力 | AX26: 23 | AY26: 26沖縄電力 | AZ26: okinawadennryoku.csv
D27: 【原材料】合成ゴム | E27: プロセスオイル（円/l） | L27: 08_【原材料】合成ゴム | M27: 08.03_プロセスオイル（円/kg） | N27: プロセスオイル | O27: 財務省貿易統計 | V27: 23 | X27: 240 | Y27: 3.3 | Z27: 120 | AA27: 23 | AS27: 29 | AT27: 24四国電力 | AU27: 24四国電力 | AX27: 24 | AY27: 27北海道電気平均 | AZ27: hokkaidodennkiheikinn.csv
D28: 【エネルギー】電気 | E28: 燃料費調整単価＋再エネ賦課金（北海道電力）(円/kWh) | L28: 08_【原材料】合成ゴム | M28: 08.04_プロセスオイル（円/l） | N28: プロセスオイル | O28: 財務省貿易統計 | V28: 24 | X28: 250 | Y28: 3.4 | Z28: 125 | AA28: 24 | AS28: 30 | AT28: 25九州電力 | AU28: 25九州電力 | AX28: 25 | AY28: 28東北電気平均 | AZ28: touhokudennkiheikinn.csv
D29: 【エネルギー】電気 | E29: 燃料費調整単価＋再エネ賦課金（東北電力）(円/kWh) | L29: 09_【エネルギー】電気 | M29: 09.01_燃料費調整単価＋再エネ賦課金（北海道電力）(円/kWh) | N29: 燃料費調整単価＋再エネ賦課金 | O29: 新電力ネット/各電力会社HP | V29: 25 | X29: 260 | Y29: 3.5 | Z29: 130 | AA29: 25 | AS29: 31 | AT29: 26沖縄電力 | AU29: 26沖縄電力 | AX29: 26 | AY29: 29東京電気平均 | AZ29: tokyodennkiheikinn.csv
D30: 【エネルギー】電気 | E30: 燃料費調整単価＋再エネ賦課金（東京電力）(円/kWh) | L30: 09_【エネルギー】電気 | M30: 09.02_燃料費調整単価＋再エネ賦課金（東北電力）(円/kWh) | N30: 燃料費調整単価＋再エネ賦課金 | O30: 新電力ネット/各電力会社HP | V30: 26 | X30: 270 | Y30: 3.6 | Z30: 135 | AA30: 26 | AS30: 32 | AT30: 27北海道電気平均 | AU30: 27北海道電気平均 | AX30: 27 | AY30: 30中部電気平均 | AZ30: chubudennkiheikinn.csv
D31: 【エネルギー】電気 | E31: 燃料費調整単価＋再エネ賦課金（中部電力）(円/kWh) | L31: 09_【エネルギー】電気 | M31: 09.03_燃料費調整単価＋再エネ賦課金（東京電力）(円/kWh) | N31: 燃料費調整単価＋再エネ賦課金 | O31: 新電力ネット/各電力会社HP | V31: 27 | X31: 280 | Y31: 3.7 | Z31: 140 | AA31: 27 | AS31: 33 | AT31: 28東北電気平均 | AU31: 28東北電気平均 | AX31: 28 | AY31: 31北陸電気平均 | AZ31: hokurikudennkiheikinn.csv
D32: 【エネルギー】電気 | E32: 燃料費調整単価＋再エネ賦課金（北陸電力）(円/kWh) | L32: 09_【エネルギー】電気 | M32: 09.04_燃料費調整単価＋再エネ賦課金（中部電力）(円/kWh) | N32: 燃料費調整単価＋再エネ賦課金 | O32: 新電力ネット/各電力会社HP | V32: 28 | X32: 290 | Y32: 3.8 | Z32: 145 | AA32: 28 | AS32: 34 | AT32: 29東京電気平均 | AU32: 29東京電気平均 | AX32: 29 | AY32: 32関西電気平均 | AZ32: kannsaidennkiheikinn.csv
D33: 【エネルギー】電気 | E33: 燃料費調整単価＋再エネ賦課金（関西電力）(円/kWh) | L33: 09_【エネルギー】電気 | M33: 09.05_燃料費調整単価＋再エネ賦課金（北陸電力）(円/kWh) | N33: 燃料費調整単価＋再エネ賦課金 | O33: 新電力ネット/各電力会社HP | V33: 29 | X33: 300 | Y33: 3.9 | Z33: 150 | AA33: 29 | AS33: 35 | AT33: 30中部電気平均 | AU33: 30中部電気平均 | AX33: 30 | AY33: 33中国電気平均 | AZ33: chugokudennkiheikinn.csv
D34: 【エネルギー】電気 | E34: 燃料費調整単価＋再エネ賦課金（中国電力）(円/kWh) | L34: 09_【エネルギー】電気 | M34: 09.06_燃料費調整単価＋再エネ賦課金（関西電力）(円/kWh) | N34: 燃料費調整単価＋再エネ賦課金 | O34: 新電力ネット/各電力会社HP | V34: 30 | X34: 310 | Y34: 4 | Z34: 155 | AA34: 30 | AS34: 36 | AT34: 31北陸電気平均 | AU34: 31北陸電気平均 | AX34: 31 | AY34: 34四国電気平均 | AZ34: shikokudennkiheikinn.csv
D35: 【エネルギー】電気 | E35: 燃料費調整単価＋再エネ賦課金（四国電力）(円/kWh) | L35: 09_【エネルギー】電気 | M35: 09.07_燃料費調整単価＋再エネ賦課金（中国電力）(円/kWh) | N35: 燃料費調整単価＋再エネ賦課金 | O35: 新電力ネット/各電力会社HP | V35: 31 | X35: 320 | Y35: 4.1 | Z35: 160 | AA35: 31 | AS35: 37 | AT35: 32関西電気平均 | AU35: 32関西電気平均 | AX35: 32 | AY35: 35九州電気平均 | AZ35: kyushudennkiheikinn.csv
D36: 【エネルギー】電気 | E36: 燃料費調整単価＋再エネ賦課金（九州電力）(円/kWh) | L36: 09_【エネルギー】電気 | M36: 09.08_燃料費調整単価＋再エネ賦課金（四国電力）(円/kWh) | N36: 燃料費調整単価＋再エネ賦課金 | O36: 新電力ネット/各電力会社HP | V36: 32 | X36: 330 | Y36: 4.2 | Z36: 165 | AA36: 32 | AS36: 38 | AT36: 33中国電気平均 | AU36: 33中国電気平均 | AX36: 33 | AY36: 36沖縄電気平均 | AZ36: okinawadennkiheikinn.csv
D37: 【エネルギー】電気 | E37: 燃料費調整単価＋再エネ賦課金（沖縄電力）(円/kWh) | L37: 09_【エネルギー】電気 | M37: 09.09_燃料費調整単価＋再エネ賦課金（九州電力）(円/kWh) | N37: 燃料費調整単価＋再エネ賦課金 | O37: 新電力ネット/各電力会社HP | V37: 33 | X37: 340 | Y37: 4.3 | Z37: 170 | AA37: 33 | AS37: 39 | AT37: 34四国電気平均 | AU37: 34四国電気平均 | AX37: 34 | AY37: 37北海道ガス | AZ37: hokkaidogasu.csv
D38: 【エネルギー】電気 | E38: 平均販売単価・特別高圧（北海道）（円/kWh） | L38: 09_【エネルギー】電気 | M38: 09.10_燃料費調整単価＋再エネ賦課金（沖縄電力）(円/kWh) | N38: 燃料費調整単価＋再エネ賦課金 | O38: 新電力ネット/各電力会社HP | V38: 34 | X38: 350 | Y38: 4.4 | Z38: 175 | AA38: 34 | AS38: 40 | AT38: 35九州電気平均 | AU38: 35九州電気平均 | AX38: 35 | AY38: 38京葉ガス | AZ38: keiyogasu.csv
D39: 【エネルギー】電気 | E39: 平均販売単価・特別高圧（東北）（円/kWh） | L39: 09_【エネルギー】電気 | M39: 09.11_平均販売単価・特別高圧（北海道）（円/kWh） | N39: 平均販売単価・特別高圧 | O39: 新電力ネット | V39: 35 | X39: 360 | Y39: 4.5 | Z39: 180 | AA39: 35 | AS39: 41 | AT39: 36沖縄電気平均 | AU39: 36沖縄電気平均 | AX39: 36 | AY39: 39東京ガス | AZ39: tokyogasu.csv
D40: 【エネルギー】電気 | E40: 平均販売単価・特別高圧（東京）（円/kWh） | L40: 09_【エネルギー】電気 | M40: 09.12_平均販売単価・特別高圧（東北）（円/kWh） | N40: 平均販売単価・特別高圧 | O40: 新電力ネット | V40: 36 | X40: 370 | Y40: 4.6 | Z40: 185 | AA40: 36 | AS40: 42 | AT40: 37北海道ガス | AU40: 37北海道ガス | AX40: 37 | AY40: 40北陸ガス | AZ40: hokurikugasu.csv
D41: 【エネルギー】電気 | E41: 平均販売単価・特別高圧（中部）（円/kWh） | L41: 09_【エネルギー】電気 | M41: 09.13_平均販売単価・特別高圧（東京）（円/kWh） | N41: 平均販売単価・特別高圧 | O41: 新電力ネット | V41: 37 | X41: 380 | Y41: 4.7 | Z41: 190 | AA41: 37 | AS41: 43 | AT41: 38京葉ガス | AU41: 38京葉ガス | AX41: 38 | AY41: 41静岡ガス | AZ41: shizuokagasu.csv
D42: 【エネルギー】電気 | E42: 平均販売単価・特別高圧（北陸）（円/kWh） | L42: 09_【エネルギー】電気 | M42: 09.14_平均販売単価・特別高圧（中部）（円/kWh） | N42: 平均販売単価・特別高圧 | O42: 新電力ネット | V42: 38 | X42: 390 | Y42: 4.8 | Z42: 195 | AA42: 38 | AS42: 44 | AT42: 39東京ガス | AU42: 39東京ガス | AX42: 39 | AY42: 42東邦ガス | AZ42: touhougasu.csv
D43: 【エネルギー】電気 | E43: 平均販売単価・特別高圧（関西）（円/kWh） | L43: 09_【エネルギー】電気 | M43: 09.15_平均販売単価・特別高圧（北陸）（円/kWh） | N43: 平均販売単価・特別高圧 | O43: 新電力ネット | V43: 39 | X43: 400 | Y43: 4.9 | Z43: 200 | AA43: 39 | AS43: 45 | AT43: 40北陸ガス | AU43: 40北陸ガス | AX43: 40 | AY43: 43大阪ガス | AZ43: osakagasu.csv
D44: 【エネルギー】電気 | E44: 平均販売単価・特別高圧（中国）（円/kWh） | L44: 09_【エネルギー】電気 | M44: 09.16_平均販売単価・特別高圧（関西）（円/kWh） | N44: 平均販売単価・特別高圧 | O44: 新電力ネット | V44: 40 | X44: 410 | Y44: 5 | AA44: 40 | AS44: 46 | AT44: 41静岡ガス | AU44: 41静岡ガス | AX44: 41 | AY44: 44広島ガス | AZ44: hiroshimagasu.csv
D45: 【エネルギー】電気 | E45: 平均販売単価・特別高圧（四国）（円/kWh） | L45: 09_【エネルギー】電気 | M45: 09.17_平均販売単価・特別高圧（中国）（円/kWh） | N45: 平均販売単価・特別高圧 | O45: 新電力ネット | V45: 41 | X45: 420 | Y45: 5.1 | AA45: 41 | AS45: 47 | AT45: 42東邦ガス | AU45: 42東邦ガス | AX45: 42 | AY45: 45西部ガス | AZ45: saibugasu.csv
D46: 【エネルギー】電気 | E46: 平均販売単価・特別高圧（九州）（円/kWh） | L46: 09_【エネルギー】電気 | M46: 09.18_平均販売単価・特別高圧（四国）（円/kWh） | N46: 平均販売単価・特別高圧 | O46: 新電力ネット | V46: 42 | X46: 430 | Y46: 5.2 | AA46: 42 | AS46: 48 | AT46: 43大阪ガス | AU46: 43大阪ガス | AX46: 43 | AY46: 46北海道ガス平均 | AZ46: hokkaidogasuheikinn.csv
D47: 【エネルギー】電気 | E47: 平均販売単価・特別高圧（沖縄）（円/kWh） | L47: 09_【エネルギー】電気 | M47: 09.19_平均販売単価・特別高圧（九州）（円/kWh） | N47: 平均販売単価・特別高圧 | O47: 新電力ネット | V47: 43 | X47: 440 | Y47: 5.3 | AA47: 43 | AS47: 49 | AT47: 44広島ガス | AU47: 44広島ガス | AX47: 44 | AY47: 47東北ガス平均 | AZ47: touhokugasuheikinn.csv
D48: 【エネルギー】ガス | E48: 原料調整費（北海道ガス）（円/m3） | L48: 09_【エネルギー】電気 | M48: 09.20_平均販売単価・特別高圧（沖縄）（円/kWh） | N48: 平均販売単価・特別高圧 | O48: 新電力ネット | V48: 44 | X48: 450 | Y48: 5.4 | AA48: 44 | AS48: 50 | AT48: 45西部ガス | AU48: 45西部ガス | AX48: 45 | AY48: 48関東ガス平均 | AZ48: kantougasuheikinn.csv
D49: 【エネルギー】ガス | E49: 原料調整費（京葉ガス）（円/m3） | L49: 10_【エネルギー】ガス | M49: 10.01_原料調整費（北海道ガス）（円/m3） | N49: 原料調整費 | O49: 財務省貿易/各ガス会社HP | V49: 45 | X49: 460 | Y49: 5.5 | AA49: 45 | AS49: 51 | AT49: 46北海道ガス平均 | AU49: 46北海道ガス平均 | AX49: 46 | AY49: 49中部北陸ガス平均 | AZ49: chubuhokurikugasuheikinn.csv
D50: 【エネルギー】ガス | E50: 原料調整費（東京ガス東京地区）（円/m3） | L50: 10_【エネルギー】ガス | M50: 10.02_原料調整費（京葉ガス）（円/m3） | N50: 原料調整費 | O50: 財務省貿易/各ガス会社HP | V50: 46 | X50: 470 | Y50: 5.6 | AA50: 46 | AS50: 52 | AT50: 47東北ガス平均 | AU50: 47東北ガス平均 | AX50: 47 | AY50: 50近畿ガス平均 | AZ50: kinnkigasuheikinn.csv
D51: 【エネルギー】ガス | E51: 原料調整費（東京ガス群馬地区）（円/m3） | L51: 10_【エネルギー】ガス | M51: 10.03_原料調整費（東京ガス東京地区）（円/m3） | N51: 原料調整費 | O51: 財務省貿易/各ガス会社HP | V51: 47 | X51: 480 | Y51: 5.7 | AA51: 47 | AS51: 53 | AT51: 48関東ガス平均 | AU51: 48関東ガス平均 | AX51: 48 | AY51: 51中国四国ガス平均 | AZ51: chugokushikokugasuheikinn.csv
D52: 【エネルギー】ガス | E52: 原料調整費（東京ガス群馬南地区）（円/m3） | L52: 10_【エネルギー】ガス | M52: 10.04_原料調整費（東京ガス群馬地区）（円/m3） | N52: 原料調整費 | O52: 財務省貿易/各ガス会社HP | V52: 48 | X52: 490 | Y52: 5.8 | AA52: 48 | AS52: 54 | AT52: 49中部北陸ガス平均 | AU52: 49中部北陸ガス平均 | AX52: 49 | AY52: 52九州沖縄ガス平均 | AZ52: kyushuokinawagasuheikinn.csv
D53: 【エネルギー】ガス | E53: 原料調整費（北陸ガス新潟地区）（円/m3） | L53: 10_【エネルギー】ガス | M53: 10.05_原料調整費（東京ガス群馬南地区）（円/m3） | N53: 原料調整費 | O53: 財務省貿易/各ガス会社HP | V53: 49 | X53: 500 | Y53: 5.9 | AA53: 49 | AS53: 55 | AT53: 50近畿ガス平均 | AU53: 50近畿ガス平均 | AX53: 50 | AY53: 53その他ガス平均 | AZ53: sonotagasuheikinn.csv
D54: 【エネルギー】ガス | E54: 原料調整費（北陸ガス長岡、越路、三島・与板、栃尾、三条地区）（円/m3） | L54: 10_【エネルギー】ガス | M54: 10.06_原料調整費（北陸ガス新潟地区）（円/m3） | N54: 原料調整費 | O54: 財務省貿易/各ガス会社HP | V54: 50 | X54: 510 | Y54: 6 | AA54: 50 | AS54: 56 | AT54: 51中国四国ガス平均 | AU54: 51中国四国ガス平均 | AX54: 51 | AY54: 14消費者物価指数 | AZ54: shouhishabukkashisuu.csv
D55: 【エネルギー】ガス | E55: 原料調整費（北陸ガス川口地区）（円/m3） | L55: 10_【エネルギー】ガス | M55: 10.07_原料調整費（北陸ガス長岡、越路、三島・与板、栃尾、三条地区）（円/m3） | N55: 原料調整費 | O55: 財務省貿易/各ガス会社HP | V55: 51 | X55: 520 | Y55: 6.1 | AA55: 51 | AS55: 57 | AT55: 52九州沖縄ガス平均 | AU55: 52九州沖縄ガス平均 | AX55: 52 | AY55: 15賃上げ率 | AZ55: chinnageritsu.csv
D56: 【エネルギー】ガス | E56: 原料調整費（北陸ガス見附地区）（円/m3） | L56: 10_【エネルギー】ガス | M56: 10.08_原料調整費（北陸ガス川口地区）（円/m3） | N56: 原料調整費 | O56: 財務省貿易/各ガス会社HP | V56: 52 | X56: 530 | Y56: 6.2 | AA56: 52 | AS56: 58 | AT56: 53その他ガス平均 | AU56: 53その他ガス平均 | AX56: 53 | AY56: 16最低賃金 | AZ56: saiteichinnginn.csv
D57: 【エネルギー】ガス | E57: 原料調整費（北陸ガス柏崎地区）（円/m3） | L57: 10_【エネルギー】ガス | M57: 10.09_原料調整費（北陸ガス見附地区）（円/m3） | N57: 原料調整費 | O57: 財務省貿易/各ガス会社HP | V57: 53 | X57: 540 | Y57: 6.3 | AA57: 53
D58: 【エネルギー】ガス | E58: 原料調整費（静岡ガス）（円/m3） | L58: 10_【エネルギー】ガス | M58: 10.10_原料調整費（北陸ガス柏崎地区）（円/m3） | N58: 原料調整費 | O58: 財務省貿易/各ガス会社HP | V58: 54 | X58: 550 | Y58: 6.4 | AA58: 54
D59: 【エネルギー】ガス | E59: 原料調整費（東邦ガス）（円/m3） | L59: 10_【エネルギー】ガス | M59: 10.11_原料調整費（静岡ガス）（円/m3） | N59: 原料調整費 | O59: 財務省貿易/各ガス会社HP | V59: 55 | X59: 560 | Y59: 6.5 | AA59: 55
D60: 【エネルギー】ガス | E60: 原料調整費（大阪ガス）（円/m3） | L60: 10_【エネルギー】ガス | M60: 10.12_原料調整費（東邦ガス）（円/m3） | N60: 原料調整費 | O60: 財務省貿易/各ガス会社HP | V60: 56 | X60: 570 | Y60: 6.6 | AA60: 56
D61: 【エネルギー】ガス | E61: 原料調整費（広島ガス45MJ地区）（円/m3） | L61: 10_【エネルギー】ガス | M61: 10.13_原料調整費（大阪ガス）（円/m3） | N61: 原料調整費 | O61: 財務省貿易/各ガス会社HP | V61: 57 | X61: 580 | Y61: 6.7 | AA61: 57
D62: 【エネルギー】ガス | E62: 原料調整費（広島ガス100.4652MJ地区）（円/m3） | L62: 10_【エネルギー】ガス | M62: 10.14_原料調整費（広島ガス45MJ地区）（円/m3） | N62: 原料調整費 | O62: 財務省貿易/各ガス会社HP | V62: 58 | X62: 590 | Y62: 6.8 | AA62: 58
D63: 【エネルギー】ガス | E63: 原料調整費（西部ガス45MJ）（円/m3） | L63: 10_【エネルギー】ガス | M63: 10.15_原料調整費（広島ガス100.4652MJ地区）（円/m3） | N63: 原料調整費 | O63: 財務省貿易/各ガス会社HP | V63: 59 | X63: 600 | Y63: 6.9 | AA63: 59
D64: 【エネルギー】ガス | E64: 原料調整費（西部ガス熊本・長崎・佐世保（46MJ））（円/m3） | L64: 10_【エネルギー】ガス | M64: 10.16_原料調整費（西部ガス45MJ）（円/m3） | N64: 原料調整費 | O64: 財務省貿易/各ガス会社HP | V64: 60 | X64: 610 | Y64: 7 | AA64: 60
D65: 【エネルギー】ガス | E65: 平均販売単価・工業用（北海道）（円/m3） | L65: 10_【エネルギー】ガス | M65: 10.17_原料調整費（西部ガス熊本・長崎・佐世保（46MJ））（円/m3） | N65: 原料調整費 | O65: 財務省貿易/各ガス会社HP | V65: 61 | X65: 620 | Y65: 7.1 | AA65: 61
D66: 【エネルギー】ガス | E66: 平均販売単価・工業用（東北）（円/m3） | L66: 10_【エネルギー】ガス | M66: 10.18_平均販売単価・工業用（北海道）（円/m3） | N66: 平均販売単価・工業用 | O66: 新電力ネット | V66: 62 | X66: 630 | Y66: 7.2 | AA66: 62
D67: 【エネルギー】ガス | E67: 平均販売単価・工業用（関東）（円/m3） | L67: 10_【エネルギー】ガス | M67: 10.19_平均販売単価・工業用（東北）（円/m3） | N67: 平均販売単価・工業用 | O67: 新電力ネット | V67: 63 | X67: 640 | Y67: 7.3 | AA67: 63
D68: 【エネルギー】ガス | E68: 平均販売単価・工業用（中部・北陸）（円/m3） | L68: 10_【エネルギー】ガス | M68: 10.20_平均販売単価・工業用（関東）（円/m3） | N68: 平均販売単価・工業用 | O68: 新電力ネット | V68: 64 | X68: 650 | Y68: 7.4 | AA68: 64
D69: 【エネルギー】ガス | E69: 平均販売単価・工業用（近畿）（円/m3） | L69: 10_【エネルギー】ガス | M69: 10.21_平均販売単価・工業用（中部・北陸）（円/m3） | N69: 平均販売単価・工業用 | O69: 新電力ネット | V69: 65 | X69: 660 | Y69: 7.5 | AA69: 65 | AE69: =IF(AD69<>0,1,"") -> 
D70: 【エネルギー】ガス | E70: 平均販売単価・工業用（中国・四国）（円/m3） | L70: 10_【エネルギー】ガス | M70: 10.22_平均販売単価・工業用（近畿）（円/m3） | N70: 平均販売単価・工業用 | O70: 新電力ネット | V70: 66 | X70: 670 | Y70: 7.6 | AA70: 66
D71: 【エネルギー】ガス | E71: 平均販売単価・工業用（九州・沖縄）（円/m3） | L71: 10_【エネルギー】ガス | M71: 10.23_平均販売単価・工業用（中国・四国）（円/m3） | N71: 平均販売単価・工業用 | O71: 新電力ネット | V71: 67 | X71: 680 | Y71: 7.7 | AA71: 67
D72: 【エネルギー】ガス | E72: 平均販売単価・工業用（その他）（円/m3） | L72: 10_【エネルギー】ガス | M72: 10.24_平均販売単価・工業用（九州・沖縄）（円/m3） | N72: 平均販売単価・工業用 | O72: 新電力ネット | V72: 68 | X72: 690 | Y72: 7.8 | AA72: 68
D73: 【物流】国内トラック便 | E73: トラックサーチャージ 全国（円/車） | L73: 10_【エネルギー】ガス | M73: 10.25_平均販売単価・工業用（その他）（円/m3） | N73: 平均販売単価・工業用 | O73: 新電力ネット | V73: 69 | X73: 700 | Y73: 7.9 | AA73: 69
D74: 【物流】国内トラック便 | E74: トラックサーチャージ 北海道地方（円/車） | L74: 11_【物流】国内トラック便 | M74: 11.01_トラックサーチャージ 全国（円/車） | N74: 国内トラック便 | O74: 資源エネルギー庁 | V74: 70 | X74: 710 | Y74: 8 | AA74: 70
D75: 【物流】国内トラック便 | E75: トラックサーチャージ 東北地方（円/車） | L75: 11_【物流】国内トラック便 | M75: 11.02_トラックサーチャージ 北海道地方（円/車） | N75: 国内トラック便 | O75: 資源エネルギー庁 | V75: 71 | X75: 720 | Y75: 8.1 | AA75: 71
D76: 【物流】国内トラック便 | E76: トラックサーチャージ 関東地方（円/車） | L76: 11_【物流】国内トラック便 | M76: 11.03_トラックサーチャージ 東北地方（円/車） | N76: 国内トラック便 | O76: 資源エネルギー庁 | V76: 72 | X76: 730 | Y76: 8.2 | AA76: 72
D77: 【物流】国内トラック便 | E77: トラックサーチャージ 中部地方（円/車） | L77: 11_【物流】国内トラック便 | M77: 11.04_トラックサーチャージ 関東地方（円/車） | N77: 国内トラック便 | O77: 資源エネルギー庁 | V77: 73 | X77: 740 | Y77: 8.3 | AA77: 73
D78: 【物流】国内トラック便 | E78: トラックサーチャージ 近畿地方（円/車） | L78: 11_【物流】国内トラック便 | M78: 11.05_トラックサーチャージ 中部地方（円/車） | N78: 国内トラック便 | O78: 資源エネルギー庁 | V78: 74 | X78: 750 | Y78: 8.4 | AA78: 74
D79: 【物流】国内トラック便 | E79: トラックサーチャージ 中国地方（円/車） | L79: 11_【物流】国内トラック便 | M79: 11.06_トラックサーチャージ 近畿地方（円/車） | N79: 国内トラック便 | O79: 資源エネルギー庁 | V79: 75 | X79: 760 | Y79: 8.5 | AA79: 75
D80: 【物流】国内トラック便 | E80: トラックサーチャージ 四国地方（円/車） | L80: 11_【物流】国内トラック便 | M80: 11.07_トラックサーチャージ 中国地方（円/車） | N80: 国内トラック便 | O80: 資源エネルギー庁 | V80: 76 | X80: 770 | Y80: 8.6 | AA80: 76
D81: 【物流】国内トラック便 | E81: トラックサーチャージ 九州地方（円/車） | L81: 11_【物流】国内トラック便 | M81: 11.08_トラックサーチャージ 四国地方（円/車） | N81: 国内トラック便 | O81: 資源エネルギー庁 | V81: 77 | X81: 780 | Y81: 8.7 | AA81: 77
D82: 【物流】国内トラック便 | E82: トラックサーチャージ 沖縄地方（円/車） | L82: 11_【物流】国内トラック便 | M82: 11.09_トラックサーチャージ 九州地方（円/車） | N82: 国内トラック便 | O82: 資源エネルギー庁 | V82: 78 | X82: 790 | Y82: 8.8 | AA82: 78
D83: 【物流】海外輸出便 | E83: 横浜発ーUSA ロス着（US＄/20ft） | L83: 11_【物流】国内トラック便 | M83: 11.11_トラックサーチャージ 沖縄地方（円/車） | N83: 国内トラック便 | O83: 資源エネルギー庁 | V83: 79 | X83: 800 | Y83: 8.9 | AA83: 79
A84: w | B84: w | C84: w | D84: w | E84: w | F84: w | G84: w | H84: w | I84: w | J84: w | L84: 12_【物流】海外輸出便 | M84: 12.01_横浜発ーUSA ロス着（US＄/20ft） | N84: 海外輸出便 | O84: 公益財団法人日本海事センター | V84: 80 | X84: 810 | Y84: 9 | AA84: 80
A85: w | B85: w | C85: w | D85: w | E85: w | F85: w | G85: w | H85: w | I85: w | J85: w | L85: 12_【物流】海外輸出便 | M85: 12.02_横浜発ーUSA ロス着（US＄/40ft） | N85: 海外輸出便 | O85: 公益財団法人日本海事センター | V85: 81 | X85: 820 | Y85: 9.1 | AA85: 81
A86: w | B86: w | C86: w | D86: w | E86: w | F86: w | G86: w | H86: w | I86: w | J86: w | L86: 12_【物流】海外輸出便 | M86: 12.03_横浜発ーオランダ ロッテルダム着（US＄/20ft） | N86: 海外輸出便 | O86: 公益財団法人日本海事センター | V86: 82 | X86: 830 | Y86: 9.2 | AA86: 82
A87: w | B87: w | C87: w | D87: w | E87: w | F87: w | G87: w | H87: w | I87: w | J87: w | L87: 12_【物流】海外輸出便 | M87: 12.04_横浜発ーオランダ ロッテルダム着（US＄/40ft） | N87: 海外輸出便 | O87: 公益財団法人日本海事センター | V87: 83 | X87: 840 | Y87: 9.3 | AA87: 83
A88: w | B88: w | C88: w | D88: w | E88: w | F88: w | G88: w | H88: w | I88: w | J88: w | L88: 12_【物流】海外輸出便 | M88: 12.05_横浜発ーイタリア ジェノア着（US＄/20ft） | N88: 海外輸出便 | O88: 公益財団法人日本海事センター | V88: 84 | X88: 850 | Y88: 9.4 | AA88: 84
A89: w | B89: w | C89: w | D89: w | E89: w | F89: w | G89: w | H89: w | I89: w | J89: w | L89: 12_【物流】海外輸出便 | M89: 12.06_横浜発ーイタリア ジェノア着（US＄/40ft） | N89: 海外輸出便 | O89: 公益財団法人日本海事センター | V89: 85 | X89: 860 | Y89: 9.5 | AA89: 85
A90: w | B90: w | C90: w | D90: w | E90: w | F90: w | G90: w | H90: w | I90: w | J90: w | L90: 12_【物流】海外輸出便 | M90: 12.07_横浜発-中国 香港着（US＄/20ft） | N90: 海外輸出便 | O90: 公益財団法人日本海事センター | V90: 86 | X90: 870 | Y90: 9.6 | AA90: 86
A91: w | B91: w | C91: w | D91: w | E91: w | F91: w | G91: w | H91: w | I91: w | J91: w | L91: 12_【物流】海外輸出便 | M91: 12.08_横浜発-中国 香港着（US＄/40ft） | N91: 海外輸出便 | O91: 公益財団法人日本海事センター | V91: 87 | X91: 880 | Y91: 9.7 | AA91: 87
A92: w | B92: w | C92: w | D92: w | E92: w | F92: w | G92: w | H92: w | I92: w | J92: w | L92: 12_【物流】海外輸出便 | M92: 12.09_横浜発-タイ レムチャパン着（US＄/20ft） | N92: 海外輸出便 | O92: 公益財団法人日本海事センター | V92: 88 | X92: 890 | Y92: 9.8 | AA92: 88
A93: w | B93: w | C93: w | D93: w | E93: w | F93: w | G93: w | H93: w | I93: w | J93: w | L93: 12_【物流】海外輸出便 | M93: 12.10_横浜発-タイ レムチャパン着（US＄/40ft） | N93: 海外輸出便 | O93: 公益財団法人日本海事センター | V93: 89 | X93: 900 | Y93: 9.9 | AA93: 89
A94: w | B94: w | C94: w | D94: w | E94: w | F94: w | G94: w | H94: w | I94: w | J94: w | L94: 13_【物流】海外輸入便 | M94: 13.01_USA ロス発ー横浜着（US＄/20ft） | N94: 海外輸入便 | O94: 公益財団法人日本海事センター | V94: 90 | X94: 910 | Y94: 10 | AA94: 90
A95: w | B95: w | C95: w | D95: w | E95: w | F95: w | G95: w | H95: w | I95: w | J95: w | L95: 13_【物流】海外輸入便 | M95: 13.02_USA ロス発ー横浜着（US＄/40ft） | N95: 海外輸入便 | O95: 公益財団法人日本海事センター | V95: 91 | X95: 920 | Y95: 10.1 | AA95: 91
A96: w | B96: w | C96: w | D96: w | E96: w | F96: w | G96: w | H96: w | I96: w | J96: w | L96: 13_【物流】海外輸入便 | M96: 13.03_オランダ ロッテルダム発ー横浜着（US＄/20ft） | N96: 海外輸入便 | O96: 公益財団法人日本海事センター | V96: 92 | X96: 930 | Y96: 10.2 | AA96: 92
A97: w | B97: w | C97: w | D97: w | E97: w | F97: w | G97: w | H97: w | I97: w | J97: w | L97: 13_【物流】海外輸入便 | M97: 13.04_オランダ ロッテルダム発ー横浜着（US＄/40ft） | N97: 海外輸入便 | O97: 公益財団法人日本海事センター | V97: 93 | X97: 940 | Y97: 10.3 | AA97: 93
A98: w | B98: w | C98: w | D98: w | E98: w | F98: w | G98: w | H98: w | I98: w | J98: w | L98: 13_【物流】海外輸入便 | M98: 13.05_イタリア ジェノア発ー横浜着（US＄/20ft） | N98: 海外輸入便 | O98: 公益財団法人日本海事センター | V98: 94 | X98: 950 | Y98: 10.4 | AA98: 94
A99: w | B99: w | C99: w | D99: w | E99: w | F99: w | G99: w | H99: w | I99: w | J99: w | L99: 13_【物流】海外輸入便 | M99: 13.06_イタリア ジェノア発ー横浜着（US＄/40ft） | N99: 海外輸入便 | O99: 公益財団法人日本海事センター | V99: 95 | X99: 960 | Y99: 10.5 | AA99: 95
A100: w | B100: w | C100: w | D100: w | E100: w | F100: w | G100: w | H100: w | I100: w | J100: w | L100: 13_【物流】海外輸入便 | M100: 13.07_中国 香港発-横浜着（US＄/20ft） | N100: 海外輸入便 | O100: 公益財団法人日本海事センター | V100: 96 | X100: 970 | Y100: 10.6 | AA100: 96
A101: w | B101: w | C101: w | D101: w | E101: w | F101: w | G101: w | H101: w | I101: w | J101: w | L101: 13_【物流】海外輸入便 | M101: 13.08_中国 香港発-横浜着（US＄/40ft） | N101: 海外輸入便 | O101: 公益財団法人日本海事センター | V101: 97 | X101: 980 | Y101: 10.7 | AA101: 97
A102: w | B102: w | C102: w | D102: w | E102: w | F102: w | G102: w | H102: w | I102: w | J102: w | L102: 13_【物流】海外輸入便 | M102: 13.09_タイ レムチャパン発-横浜着（US＄/20ft） | N102: 海外輸入便 | O102: 公益財団法人日本海事センター | V102: 98 | X102: 990 | Y102: 10.8 | AA102: 98
L103: 13_【物流】海外輸入便 | M103: 13.10_タイ レムチャパン発-横浜着（US＄/40ft） | N103: 海外輸入便 | O103: 公益財団法人日本海事センター | V103: 99 | X103: 1000 | Y103: 10.9 | AA103: 99
L104: 14_【労務費】消費者物価指数・最賃・賃上げ率 | M104: 14_01_消費者物価指数（前年比） | N104: 消費者物価指数 | O104: 財務省統計局 | V104: 100 | Y104: 11 | AA104: 100
L105: 14_【労務費】消費者物価指数・最賃・賃上げ率 | M105: 14_02_自動車総連＆JAM 総額賃上げ率（年率） | N105: 自動車総連＆JAM 総額賃上げ率 | O105: 自動車総連（12労連のメーカー部会、車体・部品部会）・JAM（自動車部会56単組） | Y105: 11.1 | AA105: 101
L106: 14_【労務費】消費者物価指数・最賃・賃上げ率 | M106: 14_03_JAM 総額賃上げ率（年率） | N106: JAM 総額賃上げ率 | O106: 自動車総連（12労連のメーカー部会、車体・部品部会）・JAM（自動車部会56単組） | Y106: 11.2 | AA106: 102
L107: 14_【労務費】消費者物価指数・最賃・賃上げ率 | M107: 14_04_自動車総連 総額賃上げ率（年率） | N107: 自動車総連 総額賃上げ率 | O107: 自動車総連（12労連のメーカー部会、車体・部品部会）・JAM（自動車部会56単組） | Y107: 11.3 | AA107: 103
L108: 14_【労務費】消費者物価指数・最賃・賃上げ率 | M108: 14_05_自動車総連 総額賃上げ率 OEM（年率） | N108: 自動車総連 総額賃上げ率 OEM | O108: 自動車総連（12労連のメーカー部会、車体・部品部会）・JAM（自動車部会56単組） | Y108: 11.4 | AA108: 104
L109: 14_【労務費】消費者物価指数・最賃・賃上げ率 | M109: 14_06_自動車総連 総額賃上げ率 車体・部品（年率） | N109: 自動車総連 総額賃上げ率 車体・部品 | O109: 自動車総連（12労連のメーカー部会、車体・部品部会）・JAM（自動車部会56単組） | Y109: 11.5 | AA109: 105
D110: 指標 | E110: 種類（単位無し）順序 | L110: 14_【労務費】消費者物価指数・最賃・賃上げ率 | M110: 14_07_最低賃金 全国加重平均（円） | N110: 最低賃金 全国加重平均 | O110: 厚生労働省HP | Y110: 11.6 | AA110: 106
D111: 【原材料】鉄鋼 | E111: 熱延鋼板※高炉系 | L111: 14_【労務費】消費者物価指数・最賃・賃上げ率 | M111: 14_08_最低賃金 全国加重平均（北海道）（円） | N111: 最低賃金 全国加重平均 | O111: 厚生労働省HP | Y111: 11.7 | AA111: 107
D112: 【原材料】鉄鋼 | E112: 冷延鋼板※高炉系 | L112: 14_【労務費】消費者物価指数・最賃・賃上げ率 | M112: 14_09_最低賃金 全国加重平均（青森県）（円） | N112: 最低賃金 全国加重平均 | O112: 厚生労働省HP | Y112: 11.8 | AA112: 108
D113: 【原材料】鉄鋼 | E113: 酸洗コイル※電炉系 | L113: 14_【労務費】消費者物価指数・最賃・賃上げ率 | M113: 14_10_最低賃金 全国加重平均（岩手県）（円） | N113: 最低賃金 全国加重平均 | O113: 厚生労働省HP | Y113: 11.9 | AA113: 109
D114: 【原材料】銅・黄銅 | E114: 銅 | L114: 14_【労務費】消費者物価指数・最賃・賃上げ率 | M114: 14_11_最低賃金 全国加重平均（宮城県）（円） | N114: 最低賃金 全国加重平均 | O114: 厚生労働省HP | Y114: 12 | AA114: 110
D115: 【原材料】銅・黄銅 | E115: 亜鉛 | L115: 14_【労務費】消費者物価指数・最賃・賃上げ率 | M115: 14_12_最低賃金 全国加重平均（秋田県）（円） | N115: 最低賃金 全国加重平均 | O115: 厚生労働省HP | Y115: 12.1 | AA115: 111
D116: 【原材料】銅・黄銅 | E116: 黄銅1種（銅70％・亜鉛30％） | L116: 14_【労務費】消費者物価指数・最賃・賃上げ率 | M116: 14_14_最低賃金 全国加重平均（山形県）（円） | N116: 最低賃金 全国加重平均 | O116: 厚生労働省HP | Y116: 12.2 | AA116: 112
D117: 【原材料】銅・黄銅 | E117: 黄銅2種（銅65％・亜鉛35％） | L117: 14_【労務費】消費者物価指数・最賃・賃上げ率 | M117: 14_14_最低賃金 全国加重平均（福島県）（円） | N117: 最低賃金 全国加重平均 | O117: 厚生労働省HP | Y117: 12.3 | AA117: 113
D118: 【原材料】銅・黄銅 | E118: 黄銅3種（銅60％・亜鉛40％） | L118: 14_【労務費】消費者物価指数・最賃・賃上げ率 | M118: 14_15_最低賃金 全国加重平均（茨城県）（円） | N118: 最低賃金 全国加重平均 | O118: 厚生労働省HP | Y118: 12.4 | AA118: 114
D119: 【原材料】アルミ | E119: 新地金 | L119: 14_【労務費】消費者物価指数・最賃・賃上げ率 | M119: 14_16_最低賃金 全国加重平均（栃木県）（円） | N119: 最低賃金 全国加重平均 | O119: 厚生労働省HP | Y119: 12.5 | AA119: 115
D120: 【原材料】アルミ | E120: 再生塊 | L120: 14_【労務費】消費者物価指数・最賃・賃上げ率 | M120: 14_17_最低賃金 全国加重平均（群馬県）（円） | N120: 最低賃金 全国加重平均 | O120: 厚生労働省HP | Y120: 12.6 | AA120: 116
D121: 【原材料】ウレタン | E121: ウレタンA | L121: 14_【労務費】消費者物価指数・最賃・賃上げ率 | M121: 14_18_最低賃金 全国加重平均（埼玉県）（円） | N121: 最低賃金 全国加重平均 | O121: 厚生労働省HP | Y121: 12.7 | AA121: 117
D122: 【原材料】ウレタン | E122: ウレタンB | L122: 14_【労務費】消費者物価指数・最賃・賃上げ率 | M122: 14_19_最低賃金 全国加重平均（千葉県）（円） | N122: 最低賃金 全国加重平均 | O122: 厚生労働省HP | Y122: 12.8 | AA122: 118
D123: 【原材料】ウレタン | E123: ウレタンC | L123: 14_【労務費】消費者物価指数・最賃・賃上げ率 | M123: 14_20_最低賃金 全国加重平均（東京都）（円） | N123: 最低賃金 全国加重平均 | O123: 厚生労働省HP | Y123: 12.9 | AA123: 119
D124: 【原材料】ウレタン | E124: ウレタンD | L124: 14_【労務費】消費者物価指数・最賃・賃上げ率 | M124: 14_21_最低賃金 全国加重平均（神奈川県）（円） | N124: 最低賃金 全国加重平均 | O124: 厚生労働省HP | Y124: 13 | AA124: 120
D125: 【原材料】ポリアミド6 | E125: ポリアミド6A | L125: 14_【労務費】消費者物価指数・最賃・賃上げ率 | M125: 14_22_最低賃金 全国加重平均（新潟県）（円） | N125: 最低賃金 全国加重平均 | O125: 厚生労働省HP | Y125: 13.1 | AA125: 121
D126: 【原材料】ポリアミド6 | E126: ポリアミド6B | L126: 14_【労務費】消費者物価指数・最賃・賃上げ率 | M126: 14_23_最低賃金 全国加重平均（富山県）（円） | N126: 最低賃金 全国加重平均 | O126: 厚生労働省HP | Y126: 13.2 | AA126: 122
D127: 【原材料】ポリアミド6 | E127: ポリアミド6C | L127: 14_【労務費】消費者物価指数・最賃・賃上げ率 | M127: 14_24_最低賃金 全国加重平均（石川県）（円） | N127: 最低賃金 全国加重平均 | O127: 厚生労働省HP | Y127: 13.3 | AA127: 123
D128: 【原材料】ポリアミド6 | E128: ポリアミド6D | L128: 14_【労務費】消費者物価指数・最賃・賃上げ率 | M128: 14_25_最低賃金 全国加重平均（福井県）（円） | N128: 最低賃金 全国加重平均 | O128: 厚生労働省HP | Y128: 13.4 | AA128: 124
D129: 【原材料】ポリアミド6 | E129: ガラス | L129: 14_【労務費】消費者物価指数・最賃・賃上げ率 | M129: 14_26_最低賃金 全国加重平均（山梨県）（円） | N129: 最低賃金 全国加重平均 | O129: 厚生労働省HP | Y129: 13.5 | AA129: 125
D130: 【原材料】ABS樹脂 | E130: ABS樹脂 | L130: 14_【労務費】消費者物価指数・最賃・賃上げ率 | M130: 14_27_最低賃金 全国加重平均（長野県）（円） | N130: 最低賃金 全国加重平均 | O130: 厚生労働省HP | Y130: 13.6 | AA130: 126
D131: 【原材料】合成ゴム | E131: EPDM | L131: 14_【労務費】消費者物価指数・最賃・賃上げ率 | M131: 14_28_最低賃金 全国加重平均（岐阜県）（円） | N131: 最低賃金 全国加重平均 | O131: 厚生労働省HP | Y131: 13.7 | AA131: 127
D132: 【原材料】合成ゴム | E132: カーボンブラック | L132: 14_【労務費】消費者物価指数・最賃・賃上げ率 | M132: 14_29_最低賃金 全国加重平均（静岡県）（円） | N132: 最低賃金 全国加重平均 | O132: 厚生労働省HP | Y132: 13.8 | AA132: 128
D133: 【原材料】合成ゴム | E133: プロセスオイル | L133: 14_【労務費】消費者物価指数・最賃・賃上げ率 | M133: 14_30_最低賃金 全国加重平均（愛知県）（円） | N133: 最低賃金 全国加重平均 | O133: 厚生労働省HP | Y133: 13.9 | AA133: 129 | AE133: =IF(AD133<>0,1,"") -> 
D134: 【原材料】合成ゴム | E134: プロセスオイル | L134: 14_【労務費】消費者物価指数・最賃・賃上げ率 | M134: 14_31_最低賃金 全国加重平均（三重県）（円） | N134: 最低賃金 全国加重平均 | O134: 厚生労働省HP | Y134: 14 | AA134: 130
D135: 【エネルギー】電気 | E135: 燃料費調整単価＋再エネ賦課金（北海道電力） | L135: 14_【労務費】消費者物価指数・最賃・賃上げ率 | M135: 14_32_最低賃金 全国加重平均（滋賀県）（円） | N135: 最低賃金 全国加重平均 | O135: 厚生労働省HP | Y135: 14.1 | AA135: 131
D136: 【エネルギー】電気 | E136: 燃料費調整単価＋再エネ賦課金（東北電力） | L136: 14_【労務費】消費者物価指数・最賃・賃上げ率 | M136: 14_33_最低賃金 全国加重平均（京都府）（円） | N136: 最低賃金 全国加重平均 | O136: 厚生労働省HP | Y136: 14.2 | AA136: 132
D137: 【エネルギー】電気 | E137: 燃料費調整単価＋再エネ賦課金（東京電力） | L137: 14_【労務費】消費者物価指数・最賃・賃上げ率 | M137: 14_34_最低賃金 全国加重平均（大阪府）（円） | N137: 最低賃金 全国加重平均 | O137: 厚生労働省HP | Y137: 14.3 | AA137: 133
D138: 【エネルギー】電気 | E138: 燃料費調整単価＋再エネ賦課金（中部電力） | L138: 14_【労務費】消費者物価指数・最賃・賃上げ率 | M138: 14_35_最低賃金 全国加重平均（兵庫県）（円） | N138: 最低賃金 全国加重平均 | O138: 厚生労働省HP | Y138: 14.4 | AA138: 134
D139: 【エネルギー】電気 | E139: 燃料費調整単価＋再エネ賦課金（北陸電力） | L139: 14_【労務費】消費者物価指数・最賃・賃上げ率 | M139: 14_36_最低賃金 全国加重平均（奈良県）（円） | N139: 最低賃金 全国加重平均 | O139: 厚生労働省HP | Y139: 14.5 | AA139: 135
D140: 【エネルギー】電気 | E140: 燃料費調整単価＋再エネ賦課金（関西電力） | L140: 14_【労務費】消費者物価指数・最賃・賃上げ率 | M140: 14_37_最低賃金 全国加重平均（和歌山県）（円） | N140: 最低賃金 全国加重平均 | O140: 厚生労働省HP | Y140: 14.6 | AA140: 136
D141: 【エネルギー】電気 | E141: 燃料費調整単価＋再エネ賦課金（中国電力） | L141: 14_【労務費】消費者物価指数・最賃・賃上げ率 | M141: 14_38_最低賃金 全国加重平均（鳥取県）（円） | N141: 最低賃金 全国加重平均 | O141: 厚生労働省HP | Y141: 14.7 | AA141: 137
D142: 【エネルギー】電気 | E142: 燃料費調整単価＋再エネ賦課金（四国電力） | L142: 14_【労務費】消費者物価指数・最賃・賃上げ率 | M142: 14_39_最低賃金 全国加重平均（島根県）（円） | N142: 最低賃金 全国加重平均 | O142: 厚生労働省HP | Y142: 14.8 | AA142: 138
D143: 【エネルギー】電気 | E143: 燃料費調整単価＋再エネ賦課金（九州電力） | L143: 14_【労務費】消費者物価指数・最賃・賃上げ率 | M143: 14_40_最低賃金 全国加重平均（岡山県）（円） | N143: 最低賃金 全国加重平均 | O143: 厚生労働省HP | Y143: 14.9 | AA143: 139
D144: 【エネルギー】電気 | E144: 燃料費調整単価＋再エネ賦課金（沖縄電力） | L144: 14_【労務費】消費者物価指数・最賃・賃上げ率 | M144: 14_41_最低賃金 全国加重平均（広島県）（円） | N144: 最低賃金 全国加重平均 | O144: 厚生労働省HP | Y144: 15 | AA144: 140
D145: 【エネルギー】電気 | E145: 平均販売単価・特別高圧（北海道） | L145: 14_【労務費】消費者物価指数・最賃・賃上げ率 | M145: 14_42_最低賃金 全国加重平均（山口県）（円） | N145: 最低賃金 全国加重平均 | O145: 厚生労働省HP | Y145: 15.1 | AA145: 141
D146: 【エネルギー】電気 | E146: 平均販売単価・特別高圧（東北） | L146: 14_【労務費】消費者物価指数・最賃・賃上げ率 | M146: 14_43_最低賃金 全国加重平均（徳島県）（円） | N146: 最低賃金 全国加重平均 | O146: 厚生労働省HP | Y146: 15.2 | AA146: 142
D147: 【エネルギー】電気 | E147: 平均販売単価・特別高圧（東京） | L147: 14_【労務費】消費者物価指数・最賃・賃上げ率 | M147: 14_44_最低賃金 全国加重平均（香川県）（円） | N147: 最低賃金 全国加重平均 | O147: 厚生労働省HP | Y147: 15.3 | AA147: 143
D148: 【エネルギー】電気 | E148: 平均販売単価・特別高圧（中部） | L148: 14_【労務費】消費者物価指数・最賃・賃上げ率 | M148: 14_45_最低賃金 全国加重平均（愛媛県）（円） | N148: 最低賃金 全国加重平均 | O148: 厚生労働省HP | Y148: 15.4 | AA148: 144
D149: 【エネルギー】電気 | E149: 平均販売単価・特別高圧（北陸） | L149: 14_【労務費】消費者物価指数・最賃・賃上げ率 | M149: 14_46_最低賃金 全国加重平均（高知県）（円） | N149: 最低賃金 全国加重平均 | O149: 厚生労働省HP | Y149: 15.5 | AA149: 145
D150: 【エネルギー】電気 | E150: 平均販売単価・特別高圧（関西） | L150: 14_【労務費】消費者物価指数・最賃・賃上げ率 | M150: 14_47_最低賃金 全国加重平均（福岡県）（円） | N150: 最低賃金 全国加重平均 | O150: 厚生労働省HP | Y150: 15.6 | AA150: 146
D151: 【エネルギー】電気 | E151: 平均販売単価・特別高圧（中国） | L151: 14_【労務費】消費者物価指数・最賃・賃上げ率 | M151: 14_48_最低賃金 全国加重平均（佐賀県）（円） | N151: 最低賃金 全国加重平均 | O151: 厚生労働省HP | Y151: 15.7 | AA151: 147
D152: 【エネルギー】電気 | E152: 平均販売単価・特別高圧（四国） | L152: 14_【労務費】消費者物価指数・最賃・賃上げ率 | M152: 14_49_最低賃金 全国加重平均（長崎県）（円） | N152: 最低賃金 全国加重平均 | O152: 厚生労働省HP | Y152: 15.8 | AA152: 148
D153: 【エネルギー】電気 | E153: 平均販売単価・特別高圧（九州） | L153: 14_【労務費】消費者物価指数・最賃・賃上げ率 | M153: 14_50_最低賃金 全国加重平均（熊本県）（円） | N153: 最低賃金 全国加重平均 | O153: 厚生労働省HP | Y153: 15.9 | AA153: 149
D154: 【エネルギー】電気 | E154: 平均販売単価・特別高圧（沖縄） | L154: 14_【労務費】消費者物価指数・最賃・賃上げ率 | M154: 14_51_最低賃金 全国加重平均（大分県）（円） | N154: 最低賃金 全国加重平均 | O154: 厚生労働省HP | Y154: 16 | AA154: 150
D155: 【エネルギー】ガス | E155: 原料調整費（北海道ガス） | L155: 14_【労務費】消費者物価指数・最賃・賃上げ率 | M155: 14_52_最低賃金 全国加重平均（宮崎県）（円） | N155: 最低賃金 全国加重平均 | O155: 厚生労働省HP | Y155: 16.1 | AA155: 151
D156: 【エネルギー】ガス | E156: 原料調整費（京葉ガス） | L156: 14_【労務費】消費者物価指数・最賃・賃上げ率 | M156: 14_53_最低賃金 全国加重平均（鹿児島県）（円） | N156: 最低賃金 全国加重平均 | O156: 厚生労働省HP | Y156: 16.2 | AA156: 152
D157: 【エネルギー】ガス | E157: 原料調整費（東京ガス東京地区） | L157: 14_【労務費】消費者物価指数・最賃・賃上げ率 | M157: 14_54_最低賃金 全国加重平均（沖縄県）（円） | N157: 最低賃金 全国加重平均 | O157: 厚生労働省HP | Y157: 16.3 | AA157: 153
D158: 【エネルギー】ガス | E158: 原料調整費（東京ガス群馬地区） | Y158: 16.4 | AA158: 154
D159: 【エネルギー】ガス | E159: 原料調整費（東京ガス群馬南地区） | Y159: 16.5 | AA159: 155
D160: 【エネルギー】ガス | E160: 原料調整費（北陸ガス新潟地区） | Y160: 16.6 | AA160: 156
D161: 【エネルギー】ガス | E161: 原料調整費（北陸ガス長岡、越路、三島・与板、栃尾、三条地区） | Y161: 16.7 | AA161: 157
D162: 【エネルギー】ガス | E162: 原料調整費（北陸ガス川口地区） | Y162: 16.8 | AA162: 158
D163: 【エネルギー】ガス | E163: 原料調整費（北陸ガス見附地区） | Y163: 16.9 | AA163: 159
D164: 【エネルギー】ガス | E164: 原料調整費（北陸ガス柏崎地区） | Y164: 17 | AA164: 160
D165: 【エネルギー】ガス | E165: 原料調整費（静岡ガス） | Y165: 17.1 | AA165: 161
D166: 【エネルギー】ガス | E166: 原料調整費（東邦ガス） | Y166: 17.2 | AA166: 162
D167: 【エネルギー】ガス | E167: 原料調整費（大阪ガス） | Y167: 17.3 | AA167: 163
D168: 【エネルギー】ガス | E168: 原料調整費（広島ガス45MJ地区） | Y168: 17.4 | AA168: 164
D169: 【エネルギー】ガス | E169: 原料調整費（広島ガス100.4652MJ地区） | Y169: 17.5 | AA169: 165
D170: 【エネルギー】ガス | E170: 原料調整費（西部ガス45MJ） | Y170: 17.6 | AA170: 166
D171: 【エネルギー】ガス | E171: 原料調整費（西部ガス熊本・長崎・佐世保（46MJ）） | Y171: 17.7 | AA171: 167
D172: 【エネルギー】ガス | E172: 平均販売単価・工業用（北海道） | Y172: 17.8 | AA172: 168
D173: 【エネルギー】ガス | E173: 平均販売単価・工業用（東北） | Y173: 17.9 | AA173: 169
D174: 【エネルギー】ガス | E174: 平均販売単価・工業用（関東） | Y174: 18 | AA174: 170
D175: 【エネルギー】ガス | E175: 平均販売単価・工業用（中部・北陸） | Y175: 18.1 | AA175: 171
D176: 【エネルギー】ガス | E176: 平均販売単価・工業用（近畿） | Y176: 18.2 | AA176: 172
D177: 【エネルギー】ガス | E177: 平均販売単価・工業用（中国・四国） | Y177: 18.3 | AA177: 173
D178: 【エネルギー】ガス | E178: 平均販売単価・工業用（九州・沖縄） | Y178: 18.4 | AA178: 174
D179: 【エネルギー】ガス | E179: 平均販売単価・工業用（その他） | Y179: 18.5 | AA179: 175
D180: 【物流】国内トラック便 | E180: トラックサーチャージ 全国 | Y180: 18.6 | AA180: 176
D181: 【物流】国内トラック便 | E181: トラックサーチャージ 北海道地方 | Y181: 18.7 | AA181: 177
D182: 【物流】国内トラック便 | E182: トラックサーチャージ 東北地方 | Y182: 18.8 | AA182: 178
D183: 【物流】国内トラック便 | E183: トラックサーチャージ 関東地方 | Y183: 18.9 | AA183: 179
D184: 【物流】国内トラック便 | E184: トラックサーチャージ 中部地方 | Y184: 19 | AA184: 180
D185: 【物流】国内トラック便 | E185: トラックサーチャージ 近畿地方 | Y185: 19.1 | AA185: 181
D186: 【物流】国内トラック便 | E186: トラックサーチャージ 中国地方 | Y186: 19.2 | AA186: 182
D187: 【物流】国内トラック便 | E187: トラックサーチャージ 四国地方 | Y187: 19.3 | AA187: 183
D188: 【物流】国内トラック便 | E188: トラックサーチャージ 九州地方 | Y188: 19.4 | AA188: 184
D189: 【物流】国内トラック便 | E189: トラックサーチャージ 沖縄地方 | Y189: 19.5 | AA189: 185
D190: 【物流】海外輸出便 | E190: 横浜発ーUSA ロス着 | Y190: 19.6 | AA190: 186
D191: 【物流】海外輸出便 | E191: 横浜発ーUSA ロス着 | Y191: 19.7 | AA191: 187
D192: 【物流】海外輸出便 | E192: 横浜発ーオランダ ロッテルダム着 | Y192: 19.8 | AA192: 188
D193: 【物流】海外輸出便 | E193: 横浜発ーオランダ ロッテルダム着 | Y193: 19.9 | AA193: 189
D194: 【物流】海外輸出便 | E194: 横浜発ーイタリア ジェノア着 | Y194: 20 | AA194: 190
D195: 【物流】海外輸出便 | E195: 横浜発ーイタリア ジェノア着 | Y195: 20.1 | AA195: 191
D196: 【物流】海外輸出便 | E196: 横浜発-中国 香港着 | Y196: 20.2 | AA196: 192
D197: 【物流】海外輸出便 | E197: 横浜発-中国 香港着 | Y197: 20.3 | AA197: 193 | AE197: =IF(AD197<>0,1,"") -> 
D198: 【物流】海外輸出便 | E198: 横浜発-タイ レムチャパン着 | Y198: 20.4 | AA198: 194
D199: 【物流】海外輸出便 | E199: 横浜発-タイ レムチャパン着 | Y199: 20.5 | AA199: 195
D200: 【物流】海外輸入便 | E200: USA ロス発ー横浜着 | Y200: 20.6 | AA200: 196
... 94 more rows

Sheet ピボットテーブルシート
F27: =IFERROR(" （出典） "&VLOOKUP($C$52,出典テーブル[[種類]:[出典]],2,FALSE)&"："&VLOOKUP($C$52,出典テーブル[[種類]:[出典]],3,FALSE),"") -> （出典） 熱延鋼板※高炉系：日刊産業新聞
C37: ポリオール（配合①） | E37: イソシアネート（配合①） | H37: ウレタン（配合② ）
B38: 配合比率 | C38: プロピレンオキサイド | D38: エチレンオキサイド | E38: トルエン | F38: ベンゼン | G38: 石炭 | H38: ポリオール | I38: イソシアネート | J38: 配合比率 | K38: ポリアミド6 | L38: ガラス
B39: ウレタンA | C39: 0 | D39: 100 | E39: 0 | F39: 100 | G39: 0 | H39: 0 | I39: 100 | J39: ポリアミド6A | K39: 100 | L39: 0
B40: ウレタンB | C40: 20 | D40: 80 | E40: 20 | F40: 80 | G40: 2 | H40: 20 | I40: 80 | J40: ポリアミド6B | K40: 20 | L40: 80
B41: ウレタンC | C41: 60 | D41: 40 | E41: 60 | F41: 40 | G41: 3 | H41: 60 | I41: 40 | J41: ポリアミド6C | K41: 50 | L41: 50
B42: ウレタンD | C42: 100 | D42: 0 | E42: 100 | F42: 0 | G42: 3 | H42: 100 | I42: 0 | J42: ポリアミド6D | K42: 10 | L42: 90 | M42: ※数値指定はボタンから行ってください。
B44: 国内トラック便 | C44: 全国 | D44: 北海道地方 | E44: 東北地方 | F44: 関東地方 | G44: 中部地方 | H44: 近畿地方 | I44: 中国地方 | J44: 四国地方 | K44: 九州地方 | L44: 沖縄地方
B45: 走行距離(km) | C45: 1000 | D45: 1000 | E45: 1000 | F45: 1000 | G45: 1000 | H45: 1000 | I45: 1000 | J45: 1000 | K45: 1000 | L45: 1000
B46: 燃費(km/l) | C46: 4.7 | D46: 4.7 | E46: 4.7 | F46: 4.7 | G46: 4.7 | H46: 4.7 | I46: 4.7 | J46: 4.7 | K46: 4.7 | L46: 4.7
B47: 基準額(円/l) | C47: 100 | D47: 100 | E47: 100 | F47: 100 | G47: 100 | H47: 100 | I47: 100 | J47: 100 | K47: 100 | L47: 100 | M47: ※数値指定はボタンから行ってください。
B49: 指標 | C49: 01_【原材料】鉄鋼
B51: 合計 / 価格推移 | C51: 列ラベル
B52: 行ラベル | C52: 01.01_熱延鋼板（1.6mm）（千円/t）※高炉系
B53: 2023-01-01 | C53: 134
B54: 2023-02-01 | C54: 134
B55: 2023-03-01 | C55: 134
B56: 2023-04-01 | C56: 129
B57: 2023-05-01 | C57: 129
B58: 2023-06-01 | C58: 129
B59: 2023-07-01 | C59: 129
B60: 2023-08-01 | C60: 119
B61: 2023-09-01 | C61: 116
B62: 2023-10-01 | C62: 116
B63: 2023-11-01 | C63: 116
B64: 2023-12-01 | C64: 116
B65: 2024-01-01 | C65: 116
B66: 2024-02-01 | C66: 116
B67: 2024-03-01 | C67: 116

Sheet 指標合算
I1: ※ピボットテーブルシートで指定した値の表→CSVシートと資源合算データテーブルに反映→ピボットテーブル・グラフに反映
J2: プロピレンオキサイド(%) | K2: エチレンオキサイド (%) | L2: トルエン(%) | M2: ベンゼン(%) | N2: 石炭 | O2: ポリオール(%) | P2: イソシアネート(%) | R2: ポリアミド(%) | S2: ガラス(%)
I3: ウレタンA | J3: =ピボットテーブルシート!C39 -> 0 | K3: =ピボットテーブルシート!D39 -> 100 | L3: =ピボットテーブルシート!E39 -> 0 | M3: =ピボットテーブルシート!F39 -> 100 | N3: =ピボットテーブルシート!G39 -> 0 | O3: =ピボットテーブルシート!H39 -> 0 | P3: =ピボットテーブルシート!I39 -> 100 | Q3: ポリアミド6A | R3: =ピボットテーブルシート!K39 -> 100 | S3: =ピボットテーブルシート!L39 -> 0
I4: ウレタンB | J4: =ピボットテーブルシート!C40 -> 20 | K4: =ピボットテーブルシート!D40 -> 80 | L4: =ピボットテーブルシート!E40 -> 20 | M4: =ピボットテーブルシート!F40 -> 80 | N4: =ピボットテーブルシート!G40 -> 2 | O4: =ピボットテーブルシート!H40 -> 20 | P4: =ピボットテーブルシート!I40 -> 80 | Q4: ポリアミド6B | R4: =ピボットテーブルシート!K40 -> 20 | S4: =ピボットテーブルシート!L40 -> 80
I5: ウレタンC | J5: =ピボットテーブルシート!C41 -> 60 | K5: =ピボットテーブルシート!D41 -> 40 | L5: =ピボットテーブルシート!E41 -> 60 | M5: =ピボットテーブルシート!F41 -> 40 | N5: =ピボットテーブルシート!G41 -> 3 | O5: =ピボットテーブルシート!H41 -> 60 | P5: =ピボットテーブルシート!I41 -> 40 | Q5: ポリアミド6C | R5: =ピボットテーブルシート!K41 -> 50 | S5: =ピボットテーブルシート!L41 -> 50
I6: ウレタンD | J6: =ピボットテーブルシート!C42 -> 100 | K6: =ピボットテーブルシート!D42 -> 0 | L6: =ピボットテーブルシート!E42 -> 100 | M6: =ピボットテーブルシート!F42 -> 0 | N6: =ピボットテーブルシート!G42 -> 3 | O6: =ピボットテーブルシート!H42 -> 100 | P6: =ピボットテーブルシート!I42 -> 0 | Q6: ポリアミド6D | R6: =ピボットテーブルシート!K42 -> 10 | S6: =ピボットテーブルシート!L42 -> 90
I7: 国内トラック便 | J7: 全国 | K7: 北海道地方 | L7: 東北地方 | M7: 関東地方 | N7: 中部地方 | O7: 近畿地方 | P7: 中国地方 | Q7: 四国地方 | R7: 九州地方 | S7: 沖縄地方
I8: 走行距離(km) | J8: =ピボットテーブルシート!C45 -> 1000 | K8: =ピボットテーブルシート!D45 -> 1000 | L8: =ピボットテーブルシート!E45 -> 1000 | M8: =ピボットテーブルシート!F45 -> 1000 | N8: =ピボットテーブルシート!G45 -> 1000 | O8: =ピボットテーブルシート!H45 -> 1000 | P8: =ピボットテーブルシート!I45 -> 1000 | Q8: =ピボットテーブルシート!J45 -> 1000 | R8: =ピボットテーブルシート!K45 -> 1000 | S8: =ピボットテーブルシート!L45 -> 1000
I9: 燃費(km/l) | J9: =ピボットテーブルシート!C46 -> 4.7 | K9: =ピボットテーブルシート!D46 -> 4.7 | L9: =ピボットテーブルシート!E46 -> 4.7 | M9: =ピボットテーブルシート!F46 -> 4.7 | N9: =ピボットテーブルシート!G46 -> 4.7 | O9: =ピボットテーブルシート!H46 -> 4.7 | P9: =ピボットテーブルシート!I46 -> 4.7 | Q9: =ピボットテーブルシート!J46 -> 4.7 | R9: =ピボットテーブルシート!K46 -> 4.7 | S9: =ピボットテーブルシート!L46 -> 4.7
C10: 指標合算データ | I10: 基準額(円/l) | J10: =ピボットテーブルシート!C47 -> 100 | K10: =ピボットテーブルシート!D47 -> 100 | L10: =ピボットテーブルシート!E47 -> 100 | M10: =ピボットテーブルシート!F47 -> 100 | N10: =ピボットテーブルシート!G47 -> 100 | O10: =ピボットテーブルシート!H47 -> 100 | P10: =ピボットテーブルシート!I47 -> 100 | Q10: =ピボットテーブルシート!J47 -> 100 | R10: =ピボットテーブルシート!K47 -> 100 | S10: =ピボットテーブルシート!L47 -> 100
A11: 更新行 | C11: 指標 | D11: 種類 | E11: 期間 | F11: 価格推移 | H11: 超過額（円/l） | I11: 軽油価格（円/l） | J11: プロピレンオキサイド | K11: エチレンオキサイド | L11: トルエン | M11: ベンゼン | N11: 石炭 | O11: ポリアミド | P11: ガラス
B12: =指標合算テーブル[[#This Row],[種類]]&指標合算テーブル[[#This Row],[期間]] -> 11.01_トラックサーチャージ 全国（円/車）33086 | C12: 11_【物流】国内トラック便 | D12: 11.01_トラックサーチャージ 全国（円/車） | E12: 1990-08-01 | F12: =ROUND($J$8/$J$9*H12,2) -> 0 | H12: =IF(I12>=$J$10,I12-$J$10,0) -> 0 | I12: 72
B13: =指標合算テーブル[[#This Row],[種類]]&指標合算テーブル[[#This Row],[期間]] -> 11.01_トラックサーチャージ 全国（円/車）33117 | C13: 11_【物流】国内トラック便 | D13: 11.01_トラックサーチャージ 全国（円/車） | E13: 1990-09-01 | F13: =ROUND($J$8/$J$9*H13,2) -> 0 | H13: =IF(I13>=$J$10,I13-$J$10,0) -> 0 | I13: 83
B14: =指標合算テーブル[[#This Row],[種類]]&指標合算テーブル[[#This Row],[期間]] -> 11.01_トラックサーチャージ 全国（円/車）33147 | C14: 11_【物流】国内トラック便 | D14: 11.01_トラックサーチャージ 全国（円/車） | E14: 1990-10-01 | F14: 0 | H14: =IF(I14>=$J$10,I14-$J$10,0) -> 0 | I14: 88
B15: =指標合算テーブル[[#This Row],[種類]]&指標合算テーブル[[#This Row],[期間]] -> 11.01_トラックサーチャージ 全国（円/車）33178 | C15: 11_【物流】国内トラック便 | D15: 11.01_トラックサーチャージ 全国（円/車） | E15: 1990-11-01 | F15: 0 | H15: 0 | I15: 88
B16: =指標合算テーブル[[#This Row],[種類]]&指標合算テーブル[[#This Row],[期間]] -> 11.01_トラックサーチャージ 全国（円/車）33208 | C16: 11_【物流】国内トラック便 | D16: 11.01_トラックサーチャージ 全国（円/車） | E16: 1990-12-01 | F16: 0 | H16: 0 | I16: 85
B17: =指標合算テーブル[[#This Row],[種類]]&指標合算テーブル[[#This Row],[期間]] -> 11.01_トラックサーチャージ 全国（円/車）33239 | C17: 11_【物流】国内トラック便 | D17: 11.01_トラックサーチャージ 全国（円/車） | E17: 1991-01-01 | F17: 0 | H17: 0 | I17: 82
B18: =指標合算テーブル[[#This Row],[種類]]&指標合算テーブル[[#This Row],[期間]] -> 11.01_トラックサーチャージ 全国（円/車）33270 | C18: 11_【物流】国内トラック便 | D18: 11.01_トラックサーチャージ 全国（円/車） | E18: 1991-02-01 | F18: 0 | H18: 0 | I18: 79
B19: =指標合算テーブル[[#This Row],[種類]]&指標合算テーブル[[#This Row],[期間]] -> 11.01_トラックサーチャージ 全国（円/車）33298 | C19: 11_【物流】国内トラック便 | D19: 11.01_トラックサーチャージ 全国（円/車） | E19: 1991-03-01 | F19: 0 | H19: 0 | I19: 77
B20: =指標合算テーブル[[#This Row],[種類]]&指標合算テーブル[[#This Row],[期間]] -> 11.01_トラックサーチャージ 全国（円/車）33329 | C20: 11_【物流】国内トラック便 | D20: 11.01_トラックサーチャージ 全国（円/車） | E20: 1991-04-01 | F20: 0 | H20: 0 | I20: 77
B21: =指標合算テーブル[[#This Row],[種類]]&指標合算テーブル[[#This Row],[期間]] -> 11.01_トラックサーチャージ 全国（円/車）33359 | C21: 11_【物流】国内トラック便 | D21: 11.01_トラックサーチャージ 全国（円/車） | E21: 1991-05-01 | F21: 0 | H21: 0 | I21: 77
B22: =指標合算テーブル[[#This Row],[種類]]&指標合算テーブル[[#This Row],[期間]] -> 11.01_トラックサーチャージ 全国（円/車）33390 | C22: 11_【物流】国内トラック便 | D22: 11.01_トラックサーチャージ 全国（円/車） | E22: 1991-06-01 | F22: 0 | H22: 0 | I22: 77
B23: =指標合算テーブル[[#This Row],[種類]]&指標合算テーブル[[#This Row],[期間]] -> 11.01_トラックサーチャージ 全国（円/車）33420 | C23: 11_【物流】国内トラック便 | D23: 11.01_トラックサーチャージ 全国（円/車） | E23: 1991-07-01 | F23: 0 | H23: 0 | I23: 77
B24: =指標合算テーブル[[#This Row],[種類]]&指標合算テーブル[[#This Row],[期間]] -> 11.01_トラックサーチャージ 全国（円/車）33451 | C24: 11_【物流】国内トラック便 | D24: 11.01_トラックサーチャージ 全国（円/車） | E24: 1991-08-01 | F24: 0 | H24: 0 | I24: 77
B25: =指標合算テーブル[[#This Row],[種類]]&指標合算テーブル[[#This Row],[期間]] -> 11.01_トラックサーチャージ 全国（円/車）33482 | C25: 11_【物流】国内トラック便 | D25: 11.01_トラックサーチャージ 全国（円/車） | E25: 1991-09-01 | F25: 0 | H25: 0 | I25: 77
B26: =指標合算テーブル[[#This Row],[種類]]&指標合算テーブル[[#This Row],[期間]] -> 11.01_トラックサーチャージ 全国（円/車）33512 | C26: 11_【物流】国内トラック便 | D26: 11.01_トラックサーチャージ 全国（円/車） | E26: 1991-10-01 | F26: 0 | H26: 0 | I26: 77
B27: =指標合算テーブル[[#This Row],[種類]]&指標合算テーブル[[#This Row],[期間]] -> 11.01_トラックサーチャージ 全国（円/車）33543 | C27: 11_【物流】国内トラック便 | D27: 11.01_トラックサーチャージ 全国（円/車） | E27: 1991-11-01 | F27: 0 | H27: 0 | I27: 78
B28: =指標合算テーブル[[#This Row],[種類]]&指標合算テーブル[[#This Row],[期間]] -> 11.01_トラックサーチャージ 全国（円/車）33573 | C28: 11_【物流】国内トラック便 | D28: 11.01_トラックサーチャージ 全国（円/車） | E28: 1991-12-01 | F28: 0 | H28: 0 | I28: 78
B29: =指標合算テーブル[[#This Row],[種類]]&指標合算テーブル[[#This Row],[期間]] -> 11.01_トラックサーチャージ 全国（円/車）33604 | C29: 11_【物流】国内トラック便 | D29: 11.01_トラックサーチャージ 全国（円/車） | E29: 1992-01-01 | F29: 0 | H29: 0 | I29: 77
B30: =指標合算テーブル[[#This Row],[種類]]&指標合算テーブル[[#This Row],[期間]] -> 11.01_トラックサーチャージ 全国（円/車）33635 | C30: 11_【物流】国内トラック便 | D30: 11.01_トラックサーチャージ 全国（円/車） | E30: 1992-02-01 | F30: 0 | H30: 0 | I30: 76
B31: =指標合算テーブル[[#This Row],[種類]]&指標合算テーブル[[#This Row],[期間]] -> 11.01_トラックサーチャージ 全国（円/車）33664 | C31: 11_【物流】国内トラック便 | D31: 11.01_トラックサーチャージ 全国（円/車） | E31: 1992-03-01 | F31: 0 | H31: 0 | I31: 76
B32: =指標合算テーブル[[#This Row],[種類]]&指標合算テーブル[[#This Row],[期間]] -> 11.01_トラックサーチャージ 全国（円/車）33695 | C32: 11_【物流】国内トラック便 | D32: 11.01_トラックサーチャージ 全国（円/車） | E32: 1992-04-01 | F32: 0 | H32: 0 | I32: 76
B33: =指標合算テーブル[[#This Row],[種類]]&指標合算テーブル[[#This Row],[期間]] -> 11.01_トラックサーチャージ 全国（円/車）33725 | C33: 11_【物流】国内トラック便 | D33: 11.01_トラックサーチャージ 全国（円/車） | E33: 1992-05-01 | F33: 0 | H33: 0 | I33: 75
B34: =指標合算テーブル[[#This Row],[種類]]&指標合算テーブル[[#This Row],[期間]] -> 11.01_トラックサーチャージ 全国（円/車）33756 | C34: 11_【物流】国内トラック便 | D34: 11.01_トラックサーチャージ 全国（円/車） | E34: 1992-06-01 | F34: 0 | H34: 0 | I34: 75
B35: =指標合算テーブル[[#This Row],[種類]]&指標合算テーブル[[#This Row],[期間]] -> 11.01_トラックサーチャージ 全国（円/車）33786 | C35: 11_【物流】国内トラック便 | D35: 11.01_トラックサーチャージ 全国（円/車） | E35: 1992-07-01 | F35: 0 | H35: 0 | I35: 76
B36: =指標合算テーブル[[#This Row],[種類]]&指標合算テーブル[[#This Row],[期間]] -> 11.01_トラックサーチャージ 全国（円/車）33817 | C36: 11_【物流】国内トラック便 | D36: 11.01_トラックサーチャージ 全国（円/車） | E36: 1992-08-01 | F36: 0 | H36: 0 | I36: 76
B37: =指標合算テーブル[[#This Row],[種類]]&指標合算テーブル[[#This Row],[期間]] -> 11.01_トラックサーチャージ 全国（円/車）33848 | C37: 11_【物流】国内トラック便 | D37: 11.01_トラックサーチャージ 全国（円/車） | E37: 1992-09-01 | F37: 0 | H37: 0 | I37: 77
B38: =指標合算テーブル[[#This Row],[種類]]&指標合算テーブル[[#This Row],[期間]] -> 11.01_トラックサーチャージ 全国（円/車）33878 | C38: 11_【物流】国内トラック便 | D38: 11.01_トラックサーチャージ 全国（円/車） | E38: 1992-10-01 | F38: 0 | H38: 0 | I38: 77
B39: =指標合算テーブル[[#This Row],[種類]]&指標合算テーブル[[#This Row],[期間]] -> 11.01_トラックサーチャージ 全国（円/車）33909 | C39: 11_【物流】国内トラック便 | D39: 11.01_トラックサーチャージ 全国（円/車） | E39: 1992-11-01 | F39: 0 | H39: 0 | I39: 77
B40: =指標合算テーブル[[#This Row],[種類]]&指標合算テーブル[[#This Row],[期間]] -> 11.01_トラックサーチャージ 全国（円/車）33939 | C40: 11_【物流】国内トラック便 | D40: 11.01_トラックサーチャージ 全国（円/車） | E40: 1992-12-01 | F40: 0 | H40: 0 | I40: 77
B41: =指標合算テーブル[[#This Row],[種類]]&指標合算テーブル[[#This Row],[期間]] -> 11.01_トラックサーチャージ 全国（円/車）33970 | C41: 11_【物流】国内トラック便 | D41: 11.01_トラックサーチャージ 全国（円/車） | E41: 1993-01-01 | F41: 0 | H41: 0 | I41: 77
B42: =指標合算テーブル[[#This Row],[種類]]&指標合算テーブル[[#This Row],[期間]] -> 11.01_トラックサーチャージ 全国（円/車）34001 | C42: 11_【物流】国内トラック便 | D42: 11.01_トラックサーチャージ 全国（円/車） | E42: 1993-02-01 | F42: 0 | H42: 0 | I42: 77
B43: =指標合算テーブル[[#This Row],[種類]]&指標合算テーブル[[#This Row],[期間]] -> 11.01_トラックサーチャージ 全国（円/車）34029 | C43: 11_【物流】国内トラック便 | D43: 11.01_トラックサーチャージ 全国（円/車） | E43: 1993-03-01 | F43: 0 | H43: 0 | I43: 77
B44: =指標合算テーブル[[#This Row],[種類]]&指標合算テーブル[[#This Row],[期間]] -> 11.01_トラックサーチャージ 全国（円/車）34060 | C44: 11_【物流】国内トラック便 | D44: 11.01_トラックサーチャージ 全国（円/車） | E44: 1993-04-01 | F44: 0 | H44: 0 | I44: 77
B45: =指標合算テーブル[[#This Row],[種類]]&指標合算テーブル[[#This Row],[期間]] -> 11.01_トラックサーチャージ 全国（円/車）34090 | C45: 11_【物流】国内トラック便 | D45: 11.01_トラックサーチャージ 全国（円/車） | E45: 1993-05-01 | F45: 0 | H45: 0 | I45: 77
B46: =指標合算テーブル[[#This Row],[種類]]&指標合算テーブル[[#This Row],[期間]] -> 11.01_トラックサーチャージ 全国（円/車）34121 | C46: 11_【物流】国内トラック便 | D46: 11.01_トラックサーチャージ 全国（円/車） | E46: 1993-06-01 | F46: 0 | H46: 0 | I46: 77
B47: =指標合算テーブル[[#This Row],[種類]]&指標合算テーブル[[#This Row],[期間]] -> 11.01_トラックサーチャージ 全国（円/車）34151 | C47: 11_【物流】国内トラック便 | D47: 11.01_トラックサーチャージ 全国（円/車） | E47: 1993-07-01 | F47: 0 | H47: 0 | I47: 77
B48: =指標合算テーブル[[#This Row],[種類]]&指標合算テーブル[[#This Row],[期間]] -> 11.01_トラックサーチャージ 全国（円/車）34182 | C48: 11_【物流】国内トラック便 | D48: 11.01_トラックサーチャージ 全国（円/車） | E48: 1993-08-01 | F48: 0 | H48: 0 | I48: 76
B49: =指標合算テーブル[[#This Row],[種類]]&指標合算テーブル[[#This Row],[期間]] -> 11.01_トラックサーチャージ 全国（円/車）34213 | C49: 11_【物流】国内トラック便 | D49: 11.01_トラックサーチャージ 全国（円/車） | E49: 1993-09-01 | F49: 0 | H49: 0 | I49: 76
B50: =指標合算テーブル[[#This Row],[種類]]&指標合算テーブル[[#This Row],[期間]] -> 11.01_トラックサーチャージ 全国（円/車）34243 | C50: 11_【物流】国内トラック便 | D50: 11.01_トラックサーチャージ 全国（円/車） | E50: 1993-10-01 | F50: 0 | H50: 0 | I50: 76
B51: =指標合算テーブル[[#This Row],[種類]]&指標合算テーブル[[#This Row],[期間]] -> 11.01_トラックサーチャージ 全国（円/車）34274 | C51: 11_【物流】国内トラック便 | D51: 11.01_トラックサーチャージ 全国（円/車） | E51: 1993-11-01 | F51: 0 | H51: 0 | I51: 76
B52: =指標合算テーブル[[#This Row],[種類]]&指標合算テーブル[[#This Row],[期間]] -> 11.01_トラックサーチャージ 全国（円/車）34304 | C52: 11_【物流】国内トラック便 | D52: 11.01_トラックサーチャージ 全国（円/車） | E52: 1993-12-01 | F52: 0 | H52: 0 | I52: 84
B53: =指標合算テーブル[[#This Row],[種類]]&指標合算テーブル[[#This Row],[期間]] -> 11.01_トラックサーチャージ 全国（円/車）34335 | C53: 11_【物流】国内トラック便 | D53: 11.01_トラックサーチャージ 全国（円/車） | E53: 1994-01-01 | F53: 0 | H53: 0 | I53: 84
B54: =指標合算テーブル[[#This Row],[種類]]&指標合算テーブル[[#This Row],[期間]] -> 11.01_トラックサーチャージ 全国（円/車）34366 | C54: 11_【物流】国内トラック便 | D54: 11.01_トラックサーチャージ 全国（円/車） | E54: 1994-02-01 | F54: 0 | H54: 0 | I54: 83
B55: =指標合算テーブル[[#This Row],[種類]]&指標合算テーブル[[#This Row],[期間]] -> 11.01_トラックサーチャージ 全国（円/車）34394 | C55: 11_【物流】国内トラック便 | D55: 11.01_トラックサーチャージ 全国（円/車） | E55: 1994-03-01 | F55: 0 | H55: 0 | I55: 83
B56: =指標合算テーブル[[#This Row],[種類]]&指標合算テーブル[[#This Row],[期間]] -> 11.01_トラックサーチャージ 全国（円/車）34425 | C56: 11_【物流】国内トラック便 | D56: 11.01_トラックサーチャージ 全国（円/車） | E56: 1994-04-01 | F56: 0 | H56: 0 | I56: 83
B57: =指標合算テーブル[[#This Row],[種類]]&指標合算テーブル[[#This Row],[期間]] -> 11.01_トラックサーチャージ 全国（円/車）34455 | C57: 11_【物流】国内トラック便 | D57: 11.01_トラックサーチャージ 全国（円/車） | E57: 1994-05-01 | F57: 0 | H57: 0 | I57: 83
B58: =指標合算テーブル[[#This Row],[種類]]&指標合算テーブル[[#This Row],[期間]] -> 11.01_トラックサーチャージ 全国（円/車）34486 | C58: 11_【物流】国内トラック便 | D58: 11.01_トラックサーチャージ 全国（円/車） | E58: 1994-06-01 | F58: 0 | H58: 0 | I58: 83
B59: =指標合算テーブル[[#This Row],[種類]]&指標合算テーブル[[#This Row],[期間]] -> 11.01_トラックサーチャージ 全国（円/車）34516 | C59: 11_【物流】国内トラック便 | D59: 11.01_トラックサーチャージ 全国（円/車） | E59: 1994-07-01 | F59: 0 | H59: 0 | I59: 83
B60: =指標合算テーブル[[#This Row],[種類]]&指標合算テーブル[[#This Row],[期間]] -> 11.01_トラックサーチャージ 全国（円/車）34547 | C60: 11_【物流】国内トラック便 | D60: 11.01_トラックサーチャージ 全国（円/車） | E60: 1994-08-01 | F60: 0 | H60: 0 | I60: 83
B61: =指標合算テーブル[[#This Row],[種類]]&指標合算テーブル[[#This Row],[期間]] -> 11.01_トラックサーチャージ 全国（円/車）34578 | C61: 11_【物流】国内トラック便 | D61: 11.01_トラックサーチャージ 全国（円/車） | E61: 1994-09-01 | F61: 0 | H61: 0 | I61: 83
B62: =指標合算テーブル[[#This Row],[種類]]&指標合算テーブル[[#This Row],[期間]] -> 11.01_トラックサーチャージ 全国（円/車）34608 | C62: 11_【物流】国内トラック便 | D62: 11.01_トラックサーチャージ 全国（円/車） | E62: 1994-10-01 | F62: 0 | H62: 0 | I62: 82
B63: =指標合算テーブル[[#This Row],[種類]]&指標合算テーブル[[#This Row],[期間]] -> 11.01_トラックサーチャージ 全国（円/車）34639 | C63: 11_【物流】国内トラック便 | D63: 11.01_トラックサーチャージ 全国（円/車） | E63: 1994-11-01 | F63: 0 | H63: 0 | I63: 82
B64: =指標合算テーブル[[#This Row],[種類]]&指標合算テーブル[[#This Row],[期間]] -> 11.01_トラックサーチャージ 全国（円/車）34669 | C64: 11_【物流】国内トラック便 | D64: 11.01_トラックサーチャージ 全国（円/車） | E64: 1994-12-01 | F64: 0 | H64: 0 | I64: 82
B65: =指標合算テーブル[[#This Row],[種類]]&指標合算テーブル[[#This Row],[期間]] -> 11.01_トラックサーチャージ 全国（円/車）34700 | C65: 11_【物流】国内トラック便 | D65: 11.01_トラックサーチャージ 全国（円/車） | E65: 1995-01-01 | F65: 0 | H65: 0 | I65: 82
B66: =指標合算テーブル[[#This Row],[種類]]&指標合算テーブル[[#This Row],[期間]] -> 11.01_トラックサーチャージ 全国（円/車）34731 | C66: 11_【物流】国内トラック便 | D66: 11.01_トラックサーチャージ 全国（円/車） | E66: 1995-02-01 | F66: 0 | H66: 0 | I66: 82
B67: =指標合算テーブル[[#This Row],[種類]]&指標合算テーブル[[#This Row],[期間]] -> 11.01_トラックサーチャージ 全国（円/車）34759 | C67: 11_【物流】国内トラック便 | D67: 11.01_トラックサーチャージ 全国（円/車） | E67: 1995-03-01 | F67: 0 | H67: 0 | I67: 81
B68: =指標合算テーブル[[#This Row],[種類]]&指標合算テーブル[[#This Row],[期間]] -> 11.01_トラックサーチャージ 全国（円/車）34790 | C68: 11_【物流】国内トラック便 | D68: 11.01_トラックサーチャージ 全国（円/車） | E68: 1995-04-01 | F68: 0 | H68: 0 | I68: 81
B69: =指標合算テーブル[[#This Row],[種類]]&指標合算テーブル[[#This Row],[期間]] -> 11.01_トラックサーチャージ 全国（円/車）34820 | C69: 11_【物流】国内トラック便 | D69: 11.01_トラックサーチャージ 全国（円/車） | E69: 1995-05-01 | F69: 0 | H69: 0 | I69: 81
B70: =指標合算テーブル[[#This Row],[種類]]&指標合算テーブル[[#This Row],[期間]] -> 11.01_トラックサーチャージ 全国（円/車）34851 | C70: 11_【物流】国内トラック便 | D70: 11.01_トラックサーチャージ 全国（円/車） | E70: 1995-06-01 | F70: 0 | H70: 0 | I70: 80
B71: =指標合算テーブル[[#This Row],[種類]]&指標合算テーブル[[#This Row],[期間]] -> 11.01_トラックサーチャージ 全国（円/車）34881 | C71: 11_【物流】国内トラック便 | D71: 11.01_トラックサーチャージ 全国（円/車） | E71: 1995-07-01 | F71: 0 | H71: 0 | I71: 80
B72: =指標合算テーブル[[#This Row],[種類]]&指標合算テーブル[[#This Row],[期間]] -> 11.01_トラックサーチャージ 全国（円/車）34912 | C72: 11_【物流】国内トラック便 | D72: 11.01_トラックサーチャージ 全国（円/車） | E72: 1995-08-01 | F72: 0 | H72: 0 | I72: 80
B73: =指標合算テーブル[[#This Row],[種類]]&指標合算テーブル[[#This Row],[期間]] -> 11.01_トラックサーチャージ 全国（円/車）34943 | C73: 11_【物流】国内トラック便 | D73: 11.01_トラックサーチャージ 全国（円/車） | E73: 1995-09-01 | F73: 0 | H73: 0 | I73: 79
B74: =指標合算テーブル[[#This Row],[種類]]&指標合算テーブル[[#This Row],[期間]] -> 11.01_トラックサーチャージ 全国（円/車）34973 | C74: 11_【物流】国内トラック便 | D74: 11.01_トラックサーチャージ 全国（円/車） | E74: 1995-10-01 | F74: 0 | H74: 0 | I74: 79
B75: =指標合算テーブル[[#This Row],[種類]]&指標合算テーブル[[#This Row],[期間]] -> 11.01_トラックサーチャージ 全国（円/車）35004 | C75: 11_【物流】国内トラック便 | D75: 11.01_トラックサーチャージ 全国（円/車） | E75: 1995-11-01 | F75: 0 | H75: 0 | I75: 79
B76: =指標合算テーブル[[#This Row],[種類]]&指標合算テーブル[[#This Row],[期間]] -> 11.01_トラックサーチャージ 全国（円/車）35034 | C76: 11_【物流】国内トラック便 | D76: 11.01_トラックサーチャージ 全国（円/車） | E76: 1995-12-01 | F76: 0 | H76: 0 | I76: 79
B77: =指標合算テーブル[[#This Row],[種類]]&指標合算テーブル[[#This Row],[期間]] -> 11.01_トラックサーチャージ 全国（円/車）35065 | C77: 11_【物流】国内トラック便 | D77: 11.01_トラックサーチャージ 全国（円/車） | E77: 1996-01-01 | F77: =ROUND($J$8/$J$9*H77,2) -> 0 | H77: =IF(I77>=$J$10,I77-$J$10,0) -> 0 | I77: 79
B78: =指標合算テーブル[[#This Row],[種類]]&指標合算テーブル[[#This Row],[期間]] -> 11.01_トラックサーチャージ 全国（円/車）35096 | C78: 11_【物流】国内トラック便 | D78: 11.01_トラックサーチャージ 全国（円/車） | E78: 1996-02-01 | F78: 0 | H78: 0 | I78: 79
B79: =指標合算テーブル[[#This Row],[種類]]&指標合算テーブル[[#This Row],[期間]] -> 11.01_トラックサーチャージ 全国（円/車）35125 | C79: 11_【物流】国内トラック便 | D79: 11.01_トラックサーチャージ 全国（円/車） | E79: 1996-03-01 | F79: 0 | H79: 0 | I79: 79
B80: =指標合算テーブル[[#This Row],[種類]]&指標合算テーブル[[#This Row],[期間]] -> 11.01_トラックサーチャージ 全国（円/車）35156 | C80: 11_【物流】国内トラック便 | D80: 11.01_トラックサーチャージ 全国（円/車） | E80: 1996-04-01 | F80: 0 | H80: 0 | I80: 81
B81: =指標合算テーブル[[#This Row],[種類]]&指標合算テーブル[[#This Row],[期間]] -> 11.01_トラックサーチャージ 全国（円/車）35186 | C81: 11_【物流】国内トラック便 | D81: 11.01_トラックサーチャージ 全国（円/車） | E81: 1996-05-01 | F81: 0 | H81: 0 | I81: 81
B82: =指標合算テーブル[[#This Row],[種類]]&指標合算テーブル[[#This Row],[期間]] -> 11.01_トラックサーチャージ 全国（円/車）35217 | C82: 11_【物流】国内トラック便 | D82: 11.01_トラックサーチャージ 全国（円/車） | E82: 1996-06-01 | F82: 0 | H82: 0 | I82: 81
B83: =指標合算テーブル[[#This Row],[種類]]&指標合算テーブル[[#This Row],[期間]] -> 11.01_トラックサーチャージ 全国（円/車）35247 | C83: 11_【物流】国内トラック便 | D83: 11.01_トラックサーチャージ 全国（円/車） | E83: 1996-07-01 | F83: 0 | H83: 0 | I83: 81
B84: =指標合算テーブル[[#This Row],[種類]]&指標合算テーブル[[#This Row],[期間]] -> 11.01_トラックサーチャージ 全国（円/車）35278 | C84: 11_【物流】国内トラック便 | D84: 11.01_トラックサーチャージ 全国（円/車） | E84: 1996-08-01 | F84: 0 | H84: 0 | I84: 81
B85: =指標合算テーブル[[#This Row],[種類]]&指標合算テーブル[[#This Row],[期間]] -> 11.01_トラックサーチャージ 全国（円/車）35309 | C85: 11_【物流】国内トラック便 | D85: 11.01_トラックサーチャージ 全国（円/車） | E85: 1996-09-01 | F85: 0 | H85: 0 | I85: 81
B86: =指標合算テーブル[[#This Row],[種類]]&指標合算テーブル[[#This Row],[期間]] -> 11.01_トラックサーチャージ 全国（円/車）35339 | C86: 11_【物流】国内トラック便 | D86: 11.01_トラックサーチャージ 全国（円/車） | E86: 1996-10-01 | F86: 0 | H86: 0 | I86: 81
B87: =指標合算テーブル[[#This Row],[種類]]&指標合算テーブル[[#This Row],[期間]] -> 11.01_トラックサーチャージ 全国（円/車）35370 | C87: 11_【物流】国内トラック便 | D87: 11.01_トラックサーチャージ 全国（円/車） | E87: 1996-11-01 | F87: 0 | H87: 0 | I87: 82
B88: =指標合算テーブル[[#This Row],[種類]]&指標合算テーブル[[#This Row],[期間]] -> 11.01_トラックサーチャージ 全国（円/車）35400 | C88: 11_【物流】国内トラック便 | D88: 11.01_トラックサーチャージ 全国（円/車） | E88: 1996-12-01 | F88: 0 | H88: 0 | I88: 82
B89: =指標合算テーブル[[#This Row],[種類]]&指標合算テーブル[[#This Row],[期間]] -> 11.01_トラックサーチャージ 全国（円/車）35431 | C89: 11_【物流】国内トラック便 | D89: 11.01_トラックサーチャージ 全国（円/車） | E89: 1997-01-01 | F89: 0 | H89: 0 | I89: 83
B90: =指標合算テーブル[[#This Row],[種類]]&指標合算テーブル[[#This Row],[期間]] -> 11.01_トラックサーチャージ 全国（円/車）35462 | C90: 11_【物流】国内トラック便 | D90: 11.01_トラックサーチャージ 全国（円/車） | E90: 1997-02-01 | F90: 0 | H90: 0 | I90: 83
B91: =指標合算テーブル[[#This Row],[種類]]&指標合算テーブル[[#This Row],[期間]] -> 11.01_トラックサーチャージ 全国（円/車）35490 | C91: 11_【物流】国内トラック便 | D91: 11.01_トラックサーチャージ 全国（円/車） | E91: 1997-03-01 | F91: 0 | H91: 0 | I91: 83
B92: =指標合算テーブル[[#This Row],[種類]]&指標合算テーブル[[#This Row],[期間]] -> 11.01_トラックサーチャージ 全国（円/車）35521 | C92: 11_【物流】国内トラック便 | D92: 11.01_トラックサーチャージ 全国（円/車） | E92: 1997-04-01 | F92: 0 | H92: 0 | I92: 83
B93: =指標合算テーブル[[#This Row],[種類]]&指標合算テーブル[[#This Row],[期間]] -> 11.01_トラックサーチャージ 全国（円/車）35551 | C93: 11_【物流】国内トラック便 | D93: 11.01_トラックサーチャージ 全国（円/車） | E93: 1997-05-01 | F93: 0 | H93: 0 | I93: 83
B94: =指標合算テーブル[[#This Row],[種類]]&指標合算テーブル[[#This Row],[期間]] -> 11.01_トラックサーチャージ 全国（円/車）35582 | C94: 11_【物流】国内トラック便 | D94: 11.01_トラックサーチャージ 全国（円/車） | E94: 1997-06-01 | F94: 0 | H94: 0 | I94: 82
B95: =指標合算テーブル[[#This Row],[種類]]&指標合算テーブル[[#This Row],[期間]] -> 11.01_トラックサーチャージ 全国（円/車）35612 | C95: 11_【物流】国内トラック便 | D95: 11.01_トラックサーチャージ 全国（円/車） | E95: 1997-07-01 | F95: 0 | H95: 0 | I95: 82
B96: =指標合算テーブル[[#This Row],[種類]]&指標合算テーブル[[#This Row],[期間]] -> 11.01_トラックサーチャージ 全国（円/車）35643 | C96: 11_【物流】国内トラック便 | D96: 11.01_トラックサーチャージ 全国（円/車） | E96: 1997-08-01 | F96: 0 | H96: 0 | I96: 82
B97: =指標合算テーブル[[#This Row],[種類]]&指標合算テーブル[[#This Row],[期間]] -> 11.01_トラックサーチャージ 全国（円/車）35674 | C97: 11_【物流】国内トラック便 | D97: 11.01_トラックサーチャージ 全国（円/車） | E97: 1997-09-01 | F97: 0 | H97: 0 | I97: 81
B98: =指標合算テーブル[[#This Row],[種類]]&指標合算テーブル[[#This Row],[期間]] -> 11.01_トラックサーチャージ 全国（円/車）35704 | C98: 11_【物流】国内トラック便 | D98: 11.01_トラックサーチャージ 全国（円/車） | E98: 1997-10-01 | F98: 0 | H98: 0 | I98: 81
B99: =指標合算テーブル[[#This Row],[種類]]&指標合算テーブル[[#This Row],[期間]] -> 11.01_トラックサーチャージ 全国（円/車）35735 | C99: 11_【物流】国内トラック便 | D99: 11.01_トラックサーチャージ 全国（円/車） | E99: 1997-11-01 | F99: 0 | H99: 0 | I99: 81
B100: =指標合算テーブル[[#This Row],[種類]]&指標合算テーブル[[#This Row],[期間]] -> 11.01_トラックサーチャージ 全国（円/車）35765 | C100: 11_【物流】国内トラック便 | D100: 11.01_トラックサーチャージ 全国（円/車） | E100: 1997-12-01 | F100: 0 | H100: 0 | I100: 80
B101: =指標合算テーブル[[#This Row],[種類]]&指標合算テーブル[[#This Row],[期間]] -> 11.01_トラックサーチャージ 全国（円/車）35796 | C101: 11_【物流】国内トラック便 | D101: 11.01_トラックサーチャージ 全国（円/車） | E101: 1998-01-01 | F101: 0 | H101: 0 | I101: 80
B102: =指標合算テーブル[[#This Row],[種類]]&指標合算テーブル[[#This Row],[期間]] -> 11.01_トラックサーチャージ 全国（円/車）35827 | C102: 11_【物流】国内トラック便 | D102: 11.01_トラックサーチャージ 全国（円/車） | E102: 1998-02-01 | F102: 0 | H102: 0 | I102: 80
B103: =指標合算テーブル[[#This Row],[種類]]&指標合算テーブル[[#This Row],[期間]] -> 11.01_トラックサーチャージ 全国（円/車）35855 | C103: 11_【物流】国内トラック便 | D103: 11.01_トラックサーチャージ 全国（円/車） | E103: 1998-03-01 | F103: 0 | H103: 0 | I103: 79
B104: =指標合算テーブル[[#This Row],[種類]]&指標合算テーブル[[#This Row],[期間]] -> 11.01_トラックサーチャージ 全国（円/車）35886 | C104: 11_【物流】国内トラック便 | D104: 11.01_トラックサーチャージ 全国（円/車） | E104: 1998-04-01 | F104: 0 | H104: 0 | I104: 78
B105: =指標合算テーブル[[#This Row],[種類]]&指標合算テーブル[[#This Row],[期間]] -> 11.01_トラックサーチャージ 全国（円/車）35916 | C105: 11_【物流】国内トラック便 | D105: 11.01_トラックサーチャージ 全国（円/車） | E105: 1998-05-01 | F105: 0 | H105: 0 | I105: 77
B106: =指標合算テーブル[[#This Row],[種類]]&指標合算テーブル[[#This Row],[期間]] -> 11.01_トラックサーチャージ 全国（円/車）35947 | C106: 11_【物流】国内トラック便 | D106: 11.01_トラックサーチャージ 全国（円/車） | E106: 1998-06-01 | F106: 0 | H106: 0 | I106: 77
B107: =指標合算テーブル[[#This Row],[種類]]&指標合算テーブル[[#This Row],[期間]] -> 11.01_トラックサーチャージ 全国（円/車）35977 | C107: 11_【物流】国内トラック便 | D107: 11.01_トラックサーチャージ 全国（円/車） | E107: 1998-07-01 | F107: 0 | H107: 0 | I107: 76
B108: =指標合算テーブル[[#This Row],[種類]]&指標合算テーブル[[#This Row],[期間]] -> 11.01_トラックサーチャージ 全国（円/車）36008 | C108: 11_【物流】国内トラック便 | D108: 11.01_トラックサーチャージ 全国（円/車） | E108: 1998-08-01 | F108: 0 | H108: 0 | I108: 76
B109: =指標合算テーブル[[#This Row],[種類]]&指標合算テーブル[[#This Row],[期間]] -> 11.01_トラックサーチャージ 全国（円/車）36039 | C109: 11_【物流】国内トラック便 | D109: 11.01_トラックサーチャージ 全国（円/車） | E109: 1998-09-01 | F109: 0 | H109: 0 | I109: 76
B110: =指標合算テーブル[[#This Row],[種類]]&指標合算テーブル[[#This Row],[期間]] -> 11.01_トラックサーチャージ 全国（円/車）36069 | C110: 11_【物流】国内トラック便 | D110: 11.01_トラックサーチャージ 全国（円/車） | E110: 1998-10-01 | F110: 0 | H110: 0 | I110: 76
B111: =指標合算テーブル[[#This Row],[種類]]&指標合算テーブル[[#This Row],[期間]] -> 11.01_トラックサーチャージ 全国（円/車）36100 | C111: 11_【物流】国内トラック便 | D111: 11.01_トラックサーチャージ 全国（円/車） | E111: 1998-11-01 | F111: 0 | H111: 0 | I111: 76
B112: =指標合算テーブル[[#This Row],[種類]]&指標合算テーブル[[#This Row],[期間]] -> 11.01_トラックサーチャージ 全国（円/車）36130 | C112: 11_【物流】国内トラック便 | D112: 11.01_トラックサーチャージ 全国（円/車） | E112: 1998-12-01 | F112: 0 | H112: 0 | I112: 76
B113: =指標合算テーブル[[#This Row],[種類]]&指標合算テーブル[[#This Row],[期間]] -> 11.01_トラックサーチャージ 全国（円/車）36161 | C113: 11_【物流】国内トラック便 | D113: 11.01_トラックサーチャージ 全国（円/車） | E113: 1999-01-01 | F113: 0 | H113: 0 | I113: 76
B114: =指標合算テーブル[[#This Row],[種類]]&指標合算テーブル[[#This Row],[期間]] -> 11.01_トラックサーチャージ 全国（円/車）36192 | C114: 11_【物流】国内トラック便 | D114: 11.01_トラックサーチャージ 全国（円/車） | E114: 1999-02-01 | F114: 0 | H114: 0 | I114: 76
B115: =指標合算テーブル[[#This Row],[種類]]&指標合算テーブル[[#This Row],[期間]] -> 11.01_トラックサーチャージ 全国（円/車）36220 | C115: 11_【物流】国内トラック便 | D115: 11.01_トラックサーチャージ 全国（円/車） | E115: 1999-03-01 | F115: 0 | H115: 0 | I115: 75
B116: =指標合算テーブル[[#This Row],[種類]]&指標合算テーブル[[#This Row],[期間]] -> 11.01_トラックサーチャージ 全国（円/車）36251 | C116: 11_【物流】国内トラック便 | D116: 11.01_トラックサーチャージ 全国（円/車） | E116: 1999-04-01 | F116: 0 | H116: 0 | I116: 75
B117: =指標合算テーブル[[#This Row],[種類]]&指標合算テーブル[[#This Row],[期間]] -> 11.01_トラックサーチャージ 全国（円/車）36281 | C117: 11_【物流】国内トラック便 | D117: 11.01_トラックサーチャージ 全国（円/車） | E117: 1999-05-01 | F117: 0 | H117: 0 | I117: 75
B118: =指標合算テーブル[[#This Row],[種類]]&指標合算テーブル[[#This Row],[期間]] -> 11.01_トラックサーチャージ 全国（円/車）36312 | C118: 11_【物流】国内トラック便 | D118: 11.01_トラックサーチャージ 全国（円/車） | E118: 1999-06-01 | F118: 0 | H118: 0 | I118: 76
B119: =指標合算テーブル[[#This Row],[種類]]&指標合算テーブル[[#This Row],[期間]] -> 11.01_トラックサーチャージ 全国（円/車）36342 | C119: 11_【物流】国内トラック便 | D119: 11.01_トラックサーチャージ 全国（円/車） | E119: 1999-07-01 | F119: 0 | H119: 0 | I119: 76
B120: =指標合算テーブル[[#This Row],[種類]]&指標合算テーブル[[#This Row],[期間]] -> 11.01_トラックサーチャージ 全国（円/車）36373 | C120: 11_【物流】国内トラック便 | D120: 11.01_トラックサーチャージ 全国（円/車） | E120: 1999-08-01 | F120: 0 | H120: 0 | I120: 77
B121: =指標合算テーブル[[#This Row],[種類]]&指標合算テーブル[[#This Row],[期間]] -> 11.01_トラックサーチャージ 全国（円/車）36404 | C121: 11_【物流】国内トラック便 | D121: 11.01_トラックサーチャージ 全国（円/車） | E121: 1999-09-01 | F121: 0 | H121: 0 | I121: 77
B122: =指標合算テーブル[[#This Row],[種類]]&指標合算テーブル[[#This Row],[期間]] -> 11.01_トラックサーチャージ 全国（円/車）36434 | C122: 11_【物流】国内トラック便 | D122: 11.01_トラックサーチャージ 全国（円/車） | E122: 1999-10-01 | F122: 0 | H122: 0 | I122: 78
B123: =指標合算テーブル[[#This Row],[種類]]&指標合算テーブル[[#This Row],[期間]] -> 11.01_トラックサーチャージ 全国（円/車）36465 | C123: 11_【物流】国内トラック便 | D123: 11.01_トラックサーチャージ 全国（円/車） | E123: 1999-11-01 | F123: 0 | H123: 0 | I123: 79
B124: =指標合算テーブル[[#This Row],[種類]]&指標合算テーブル[[#This Row],[期間]] -> 11.01_トラックサーチャージ 全国（円/車）36495 | C124: 11_【物流】国内トラック便 | D124: 11.01_トラックサーチャージ 全国（円/車） | E124: 1999-12-01 | F124: 0 | H124: 0 | I124: 79
B125: =指標合算テーブル[[#This Row],[種類]]&指標合算テーブル[[#This Row],[期間]] -> 11.01_トラックサーチャージ 全国（円/車）36526 | C125: 11_【物流】国内トラック便 | D125: 11.01_トラックサーチャージ 全国（円/車） | E125: 2000-01-01 | F125: 0 | H125: 0 | I125: 79
B126: =指標合算テーブル[[#This Row],[種類]]&指標合算テーブル[[#This Row],[期間]] -> 11.01_トラックサーチャージ 全国（円/車）36557 | C126: 11_【物流】国内トラック便 | D126: 11.01_トラックサーチャージ 全国（円/車） | E126: 2000-02-01 | F126: 0 | H126: 0 | I126: 79
B127: =指標合算テーブル[[#This Row],[種類]]&指標合算テーブル[[#This Row],[期間]] -> 11.01_トラックサーチャージ 全国（円/車）36586 | C127: 11_【物流】国内トラック便 | D127: 11.01_トラックサーチャージ 全国（円/車） | E127: 2000-03-01 | F127: 0 | H127: 0 | I127: 80
B128: =指標合算テーブル[[#This Row],[種類]]&指標合算テーブル[[#This Row],[期間]] -> 11.01_トラックサーチャージ 全国（円/車）36617 | C128: 11_【物流】国内トラック便 | D128: 11.01_トラックサーチャージ 全国（円/車） | E128: 2000-04-01 | F128: 0 | H128: 0 | I128: 81
B129: =指標合算テーブル[[#This Row],[種類]]&指標合算テーブル[[#This Row],[期間]] -> 11.01_トラックサーチャージ 全国（円/車）36647 | C129: 11_【物流】国内トラック便 | D129: 11.01_トラックサーチャージ 全国（円/車） | E129: 2000-05-01 | F129: 0 | H129: 0 | I129: 81
B130: =指標合算テーブル[[#This Row],[種類]]&指標合算テーブル[[#This Row],[期間]] -> 11.01_トラックサーチャージ 全国（円/車）36678 | C130: 11_【物流】国内トラック便 | D130: 11.01_トラックサーチャージ 全国（円/車） | E130: 2000-06-01 | F130: 0 | H130: 0 | I130: 81
B131: =指標合算テーブル[[#This Row],[種類]]&指標合算テーブル[[#This Row],[期間]] -> 11.01_トラックサーチャージ 全国（円/車）36708 | C131: 11_【物流】国内トラック便 | D131: 11.01_トラックサーチャージ 全国（円/車） | E131: 2000-07-01 | F131: 0 | H131: 0 | I131: 82
B132: =指標合算テーブル[[#This Row],[種類]]&指標合算テーブル[[#This Row],[期間]] -> 11.01_トラックサーチャージ 全国（円/車）36739 | C132: 11_【物流】国内トラック便 | D132: 11.01_トラックサーチャージ 全国（円/車） | E132: 2000-08-01 | F132: 0 | H132: 0 | I132: 82
B133: =指標合算テーブル[[#This Row],[種類]]&指標合算テーブル[[#This Row],[期間]] -> 11.01_トラックサーチャージ 全国（円/車）36770 | C133: 11_【物流】国内トラック便 | D133: 11.01_トラックサーチャージ 全国（円/車） | E133: 2000-09-01 | F133: 0 | H133: 0 | I133: 82
B134: =指標合算テーブル[[#This Row],[種類]]&指標合算テーブル[[#This Row],[期間]] -> 11.01_トラックサーチャージ 全国（円/車）36800 | C134: 11_【物流】国内トラック便 | D134: 11.01_トラックサーチャージ 全国（円/車） | E134: 2000-10-01 | F134: 0 | H134: 0 | I134: 84
B135: =指標合算テーブル[[#This Row],[種類]]&指標合算テーブル[[#This Row],[期間]] -> 11.01_トラックサーチャージ 全国（円/車）36831 | C135: 11_【物流】国内トラック便 | D135: 11.01_トラックサーチャージ 全国（円/車） | E135: 2000-11-01 | F135: 0 | H135: 0 | I135: 85
B136: =指標合算テーブル[[#This Row],[種類]]&指標合算テーブル[[#This Row],[期間]] -> 11.01_トラックサーチャージ 全国（円/車）36861 | C136: 11_【物流】国内トラック便 | D136: 11.01_トラックサーチャージ 全国（円/車） | E136: 2000-12-01 | F136: 0 | H136: 0 | I136: 85
B137: =指標合算テーブル[[#This Row],[種類]]&指標合算テーブル[[#This Row],[期間]] -> 11.01_トラックサーチャージ 全国（円/車）36892 | C137: 11_【物流】国内トラック便 | D137: 11.01_トラックサーチャージ 全国（円/車） | E137: 2001-01-01 | F137: 0 | H137: 0 | I137: 85
B138: =指標合算テーブル[[#This Row],[種類]]&指標合算テーブル[[#This Row],[期間]] -> 11.01_トラックサーチャージ 全国（円/車）36923 | C138: 11_【物流】国内トラック便 | D138: 11.01_トラックサーチャージ 全国（円/車） | E138: 2001-02-01 | F138: 0 | H138: 0 | I138: 84
B139: =指標合算テーブル[[#This Row],[種類]]&指標合算テーブル[[#This Row],[期間]] -> 11.01_トラックサーチャージ 全国（円/車）36951 | C139: 11_【物流】国内トラック便 | D139: 11.01_トラックサーチャージ 全国（円/車） | E139: 2001-03-01 | F139: 0 | H139: 0 | I139: 84
B140: =指標合算テーブル[[#This Row],[種類]]&指標合算テーブル[[#This Row],[期間]] -> 11.01_トラックサーチャージ 全国（円/車）36982 | C140: 11_【物流】国内トラック便 | D140: 11.01_トラックサーチャージ 全国（円/車） | E140: 2001-04-01 | F140: 0 | H140: 0 | I140: 84
B141: =指標合算テーブル[[#This Row],[種類]]&指標合算テーブル[[#This Row],[期間]] -> 11.01_トラックサーチャージ 全国（円/車）37012 | C141: 11_【物流】国内トラック便 | D141: 11.01_トラックサーチャージ 全国（円/車） | E141: 2001-05-01 | F141: =ROUND($J$8/$J$9*H141,2) -> 0 | H141: =IF(I141>=$J$10,I141-$J$10,0) -> 0 | I141: 83
B142: =指標合算テーブル[[#This Row],[種類]]&指標合算テーブル[[#This Row],[期間]] -> 11.01_トラックサーチャージ 全国（円/車）37043 | C142: 11_【物流】国内トラック便 | D142: 11.01_トラックサーチャージ 全国（円/車） | E142: 2001-06-01 | F142: 0 | H142: 0 | I142: 83
B143: =指標合算テーブル[[#This Row],[種類]]&指標合算テーブル[[#This Row],[期間]] -> 11.01_トラックサーチャージ 全国（円/車）37073 | C143: 11_【物流】国内トラック便 | D143: 11.01_トラックサーチャージ 全国（円/車） | E143: 2001-07-01 | F143: 0 | H143: 0 | I143: 83
B144: =指標合算テーブル[[#This Row],[種類]]&指標合算テーブル[[#This Row],[期間]] -> 11.01_トラックサーチャージ 全国（円/車）37104 | C144: 11_【物流】国内トラック便 | D144: 11.01_トラックサーチャージ 全国（円/車） | E144: 2001-08-01 | F144: 0 | H144: 0 | I144: 83
B145: =指標合算テーブル[[#This Row],[種類]]&指標合算テーブル[[#This Row],[期間]] -> 11.01_トラックサーチャージ 全国（円/車）37135 | C145: 11_【物流】国内トラック便 | D145: 11.01_トラックサーチャージ 全国（円/車） | E145: 2001-09-01 | F145: 0 | H145: 0 | I145: 83
B146: =指標合算テーブル[[#This Row],[種類]]&指標合算テーブル[[#This Row],[期間]] -> 11.01_トラックサーチャージ 全国（円/車）37165 | C146: 11_【物流】国内トラック便 | D146: 11.01_トラックサーチャージ 全国（円/車） | E146: 2001-10-01 | F146: 0 | H146: 0 | I146: 82
B147: =指標合算テーブル[[#This Row],[種類]]&指標合算テーブル[[#This Row],[期間]] -> 11.01_トラックサーチャージ 全国（円/車）37196 | C147: 11_【物流】国内トラック便 | D147: 11.01_トラックサーチャージ 全国（円/車） | E147: 2001-11-01 | F147: 0 | H147: 0 | I147: 82
B148: =指標合算テーブル[[#This Row],[種類]]&指標合算テーブル[[#This Row],[期間]] -> 11.01_トラックサーチャージ 全国（円/車）37226 | C148: 11_【物流】国内トラック便 | D148: 11.01_トラックサーチャージ 全国（円/車） | E148: 2001-12-01 | F148: 0 | H148: 0 | I148: 81
B149: =指標合算テーブル[[#This Row],[種類]]&指標合算テーブル[[#This Row],[期間]] -> 11.01_トラックサーチャージ 全国（円/車）37257 | C149: 11_【物流】国内トラック便 | D149: 11.01_トラックサーチャージ 全国（円/車） | E149: 2002-01-01 | F149: 0 | H149: 0 | I149: 80
B150: =指標合算テーブル[[#This Row],[種類]]&指標合算テーブル[[#This Row],[期間]] -> 11.01_トラックサーチャージ 全国（円/車）37288 | C150: 11_【物流】国内トラック便 | D150: 11.01_トラックサーチャージ 全国（円/車） | E150: 2002-02-01 | F150: 0 | H150: 0 | I150: 80
B151: =指標合算テーブル[[#This Row],[種類]]&指標合算テーブル[[#This Row],[期間]] -> 11.01_トラックサーチャージ 全国（円/車）37316 | C151: 11_【物流】国内トラック便 | D151: 11.01_トラックサーチャージ 全国（円/車） | E151: 2002-03-01 | F151: 0 | H151: 0 | I151: 80
B152: =指標合算テーブル[[#This Row],[種類]]&指標合算テーブル[[#This Row],[期間]] -> 11.01_トラックサーチャージ 全国（円/車）37347 | C152: 11_【物流】国内トラック便 | D152: 11.01_トラックサーチャージ 全国（円/車） | E152: 2002-04-01 | F152: 0 | H152: 0 | I152: 80
B153: =指標合算テーブル[[#This Row],[種類]]&指標合算テーブル[[#This Row],[期間]] -> 11.01_トラックサーチャージ 全国（円/車）37377 | C153: 11_【物流】国内トラック便 | D153: 11.01_トラックサーチャージ 全国（円/車） | E153: 2002-05-01 | F153: 0 | H153: 0 | I153: 82
B154: =指標合算テーブル[[#This Row],[種類]]&指標合算テーブル[[#This Row],[期間]] -> 11.01_トラックサーチャージ 全国（円/車）37408 | C154: 11_【物流】国内トラック便 | D154: 11.01_トラックサーチャージ 全国（円/車） | E154: 2002-06-01 | F154: 0 | H154: 0 | I154: 82
B155: =指標合算テーブル[[#This Row],[種類]]&指標合算テーブル[[#This Row],[期間]] -> 11.01_トラックサーチャージ 全国（円/車）37438 | C155: 11_【物流】国内トラック便 | D155: 11.01_トラックサーチャージ 全国（円/車） | E155: 2002-07-01 | F155: 0 | H155: 0 | I155: 81
B156: =指標合算テーブル[[#This Row],[種類]]&指標合算テーブル[[#This Row],[期間]] -> 11.01_トラックサーチャージ 全国（円/車）37469 | C156: 11_【物流】国内トラック便 | D156: 11.01_トラックサーチャージ 全国（円/車） | E156: 2002-08-01 | F156: 0 | H156: 0 | I156: 81
B157: =指標合算テーブル[[#This Row],[種類]]&指標合算テーブル[[#This Row],[期間]] -> 11.01_トラックサーチャージ 全国（円/車）37500 | C157: 11_【物流】国内トラック便 | D157: 11.01_トラックサーチャージ 全国（円/車） | E157: 2002-09-01 | F157: 0 | H157: 0 | I157: 80
B158: =指標合算テーブル[[#This Row],[種類]]&指標合算テーブル[[#This Row],[期間]] -> 11.01_トラックサーチャージ 全国（円/車）37530 | C158: 11_【物流】国内トラック便 | D158: 11.01_トラックサーチャージ 全国（円/車） | E158: 2002-10-01 | F158: 0 | H158: 0 | I158: 81
B159: =指標合算テーブル[[#This Row],[種類]]&指標合算テーブル[[#This Row],[期間]] -> 11.01_トラックサーチャージ 全国（円/車）37561 | C159: 11_【物流】国内トラック便 | D159: 11.01_トラックサーチャージ 全国（円/車） | E159: 2002-11-01 | F159: 0 | H159: 0 | I159: 81
B160: =指標合算テーブル[[#This Row],[種類]]&指標合算テーブル[[#This Row],[期間]] -> 11.01_トラックサーチャージ 全国（円/車）37591 | C160: 11_【物流】国内トラック便 | D160: 11.01_トラックサーチャージ 全国（円/車） | E160: 2002-12-01 | F160: 0 | H160: 0 | I160: 81
B161: =指標合算テーブル[[#This Row],[種類]]&指標合算テーブル[[#This Row],[期間]] -> 11.01_トラックサーチャージ 全国（円/車）37622 | C161: 11_【物流】国内トラック便 | D161: 11.01_トラックサーチャージ 全国（円/車） | E161: 2003-01-01 | F161: 0 | H161: 0 | I161: 81
B162: =指標合算テーブル[[#This Row],[種類]]&指標合算テーブル[[#This Row],[期間]] -> 11.01_トラックサーチャージ 全国（円/車）37653 | C162: 11_【物流】国内トラック便 | D162: 11.01_トラックサーチャージ 全国（円/車） | E162: 2003-02-01 | F162: 0 | H162: 0 | I162: 82
B163: =指標合算テーブル[[#This Row],[種類]]&指標合算テーブル[[#This Row],[期間]] -> 11.01_トラックサーチャージ 全国（円/車）37681 | C163: 11_【物流】国内トラック便 | D163: 11.01_トラックサーチャージ 全国（円/車） | E163: 2003-03-01 | F163: 0 | H163: 0 | I163: 83.5
B164: =指標合算テーブル[[#This Row],[種類]]&指標合算テーブル[[#This Row],[期間]] -> 11.01_トラックサーチャージ 全国（円/車）37712 | C164: 11_【物流】国内トラック便 | D164: 11.01_トラックサーチャージ 全国（円/車） | E164: 2003-04-01 | F164: 0 | H164: 0 | I164: 83.8
B165: =指標合算テーブル[[#This Row],[種類]]&指標合算テーブル[[#This Row],[期間]] -> 11.01_トラックサーチャージ 全国（円/車）37742 | C165: 11_【物流】国内トラック便 | D165: 11.01_トラックサーチャージ 全国（円/車） | E165: 2003-05-01 | F165: 0 | H165: 0 | I165: 83.2
B166: =指標合算テーブル[[#This Row],[種類]]&指標合算テーブル[[#This Row],[期間]] -> 11.01_トラックサーチャージ 全国（円/車）37773 | C166: 11_【物流】国内トラック便 | D166: 11.01_トラックサーチャージ 全国（円/車） | E166: 2003-06-01 | F166: 0 | H166: 0 | I166: 82.2
B167: =指標合算テーブル[[#This Row],[種類]]&指標合算テーブル[[#This Row],[期間]] -> 11.01_トラックサーチャージ 全国（円/車）37803 | C167: 11_【物流】国内トラック便 | D167: 11.01_トラックサーチャージ 全国（円/車） | E167: 2003-07-01 | F167: 0 | H167: 0 | I167: 82
B168: =指標合算テーブル[[#This Row],[種類]]&指標合算テーブル[[#This Row],[期間]] -> 11.01_トラックサーチャージ 全国（円/車）37834 | C168: 11_【物流】国内トラック便 | D168: 11.01_トラックサーチャージ 全国（円/車） | E168: 2003-08-01 | F168: 0 | H168: 0 | I168: 81.9
B169: =指標合算テーブル[[#This Row],[種類]]&指標合算テーブル[[#This Row],[期間]] -> 11.01_トラックサーチャージ 全国（円/車）37865 | C169: 11_【物流】国内トラック便 | D169: 11.01_トラックサーチャージ 全国（円/車） | E169: 2003-09-01 | F169: 0 | H169: 0 | I169: 81.9
B170: =指標合算テーブル[[#This Row],[種類]]&指標合算テーブル[[#This Row],[期間]] -> 11.01_トラックサーチャージ 全国（円/車）37895 | C170: 11_【物流】国内トラック便 | D170: 11.01_トラックサーチャージ 全国（円/車） | E170: 2003-10-01 | F170: 0 | H170: 0 | I170: 81.7
B171: =指標合算テーブル[[#This Row],[種類]]&指標合算テーブル[[#This Row],[期間]] -> 11.01_トラックサーチャージ 全国（円/車）37926 | C171: 11_【物流】国内トラック便 | D171: 11.01_トラックサーチャージ 全国（円/車） | E171: 2003-11-01 | F171: 0 | H171: 0 | I171: 81.4
B172: =指標合算テーブル[[#This Row],[種類]]&指標合算テーブル[[#This Row],[期間]] -> 11.01_トラックサーチャージ 全国（円/車）37956 | C172: 11_【物流】国内トラック便 | D172: 11.01_トラックサーチャージ 全国（円/車） | E172: 2003-12-01 | F172: 0 | H172: 0 | I172: 81.3
B173: =指標合算テーブル[[#This Row],[種類]]&指標合算テーブル[[#This Row],[期間]] -> 11.01_トラックサーチャージ 全国（円/車）37987 | C173: 11_【物流】国内トラック便 | D173: 11.01_トラックサーチャージ 全国（円/車） | E173: 2004-01-01 | F173: 0 | H173: 0 | I173: 81.1
B174: =指標合算テーブル[[#This Row],[種類]]&指標合算テーブル[[#This Row],[期間]] -> 11.01_トラックサーチャージ 全国（円/車）38018 | C174: 11_【物流】国内トラック便 | D174: 11.01_トラックサーチャージ 全国（円/車） | E174: 2004-02-01 | F174: 0 | H174: 0 | I174: 81.1
B175: =指標合算テーブル[[#This Row],[種類]]&指標合算テーブル[[#This Row],[期間]] -> 11.01_トラックサーチャージ 全国（円/車）38047 | C175: 11_【物流】国内トラック便 | D175: 11.01_トラックサーチャージ 全国（円/車） | E175: 2004-03-01 | F175: 0 | H175: 0 | I175: 81.4
B176: =指標合算テーブル[[#This Row],[種類]]&指標合算テーブル[[#This Row],[期間]] -> 11.01_トラックサーチャージ 全国（円/車）38078 | C176: 11_【物流】国内トラック便 | D176: 11.01_トラックサーチャージ 全国（円/車） | E176: 2004-04-01 | F176: 0 | H176: 0 | I176: 84.9
B177: =指標合算テーブル[[#This Row],[種類]]&指標合算テーブル[[#This Row],[期間]] -> 11.01_トラックサーチャージ 全国（円/車）38108 | C177: 11_【物流】国内トラック便 | D177: 11.01_トラックサーチャージ 全国（円/車） | E177: 2004-05-01 | F177: 0 | H177: 0 | I177: 83.05238095
B178: =指標合算テーブル[[#This Row],[種類]]&指標合算テーブル[[#This Row],[期間]] -> 11.01_トラックサーチャージ 全国（円/車）38139 | C178: 11_【物流】国内トラック便 | D178: 11.01_トラックサーチャージ 全国（円/車） | E178: 2004-06-01 | F178: 0 | H178: 0 | I178: 86.57619048
B179: =指標合算テーブル[[#This Row],[種類]]&指標合算テーブル[[#This Row],[期間]] -> 11.01_トラックサーチャージ 全国（円/車）38169 | C179: 11_【物流】国内トラック便 | D179: 11.01_トラックサーチャージ 全国（円/車） | E179: 2004-07-01 | F179: 0 | H179: 0 | I179: 86.86190476
B180: =指標合算テーブル[[#This Row],[種類]]&指標合算テーブル[[#This Row],[期間]] -> 11.01_トラックサーチャージ 全国（円/車）38200 | C180: 11_【物流】国内トラック便 | D180: 11.01_トラックサーチャージ 全国（円/車） | E180: 2004-08-01 | F180: 0 | H180: 0 | I180: 87.05238095
B181: =指標合算テーブル[[#This Row],[種類]]&指標合算テーブル[[#This Row],[期間]] -> 11.01_トラックサーチャージ 全国（円/車）38231 | C181: 11_【物流】国内トラック便 | D181: 11.01_トラックサーチャージ 全国（円/車） | E181: 2004-09-01 | F181: 0 | H181: 0 | I181: 90.86190476
B182: =指標合算テーブル[[#This Row],[種類]]&指標合算テーブル[[#This Row],[期間]] -> 11.01_トラックサーチャージ 全国（円/車）38261 | C182: 11_【物流】国内トラック便 | D182: 11.01_トラックサーチャージ 全国（円/車） | E182: 2004-10-01 | F182: 0 | H182: 0 | I182: 90.86190476
B183: =指標合算テーブル[[#This Row],[種類]]&指標合算テーブル[[#This Row],[期間]] -> 11.01_トラックサーチャージ 全国（円/車）38292 | C183: 11_【物流】国内トラック便 | D183: 11.01_トラックサーチャージ 全国（円/車） | E183: 2004-11-01 | F183: 0 | H183: 0 | I183: 91.62380952
B184: =指標合算テーブル[[#This Row],[種類]]&指標合算テーブル[[#This Row],[期間]] -> 11.01_トラックサーチャージ 全国（円/車）38322 | C184: 11_【物流】国内トラック便 | D184: 11.01_トラックサーチャージ 全国（円/車） | E184: 2004-12-01 | F184: 0 | H184: 0 | I184: 90.86190476
B185: =指標合算テーブル[[#This Row],[種類]]&指標合算テーブル[[#This Row],[期間]] -> 11.01_トラックサーチャージ 全国（円/車）38353 | C185: 11_【物流】国内トラック便 | D185: 11.01_トラックサーチャージ 全国（円/車） | E185: 2005-01-01 | F185: 0 | H185: 0 | I185: 89.90952381
B186: =指標合算テーブル[[#This Row],[種類]]&指標合算テーブル[[#This Row],[期間]] -> 11.01_トラックサーチャージ 全国（円/車）38384 | C186: 11_【物流】国内トラック便 | D186: 11.01_トラックサーチャージ 全国（円/車） | E186: 2005-02-01 | F186: 0 | H186: 0 | I186: 89.71904762
B187: =指標合算テーブル[[#This Row],[種類]]&指標合算テーブル[[#This Row],[期間]] -> 11.01_トラックサーチャージ 全国（円/車）38412 | C187: 11_【物流】国内トラック便 | D187: 11.01_トラックサーチャージ 全国（円/車） | E187: 2005-03-01 | F187: 0 | H187: 0 | I187: 90.57619048
B188: =指標合算テーブル[[#This Row],[種類]]&指標合算テーブル[[#This Row],[期間]] -> 11.01_トラックサーチャージ 全国（円/車）38443 | C188: 11_【物流】国内トラック便 | D188: 11.01_トラックサーチャージ 全国（円/車） | E188: 2005-04-01 | F188: 0 | H188: 0 | I188: 94.95714286
B189: =指標合算テーブル[[#This Row],[種類]]&指標合算テーブル[[#This Row],[期間]] -> 11.01_トラックサーチャージ 全国（円/車）38473 | C189: 11_【物流】国内トラック便 | D189: 11.01_トラックサーチャージ 全国（円/車） | E189: 2005-05-01 | F189: 0 | H189: 0 | I189: 96.86190476
B190: =指標合算テーブル[[#This Row],[種類]]&指標合算テーブル[[#This Row],[期間]] -> 11.01_トラックサーチャージ 全国（円/車）38504 | C190: 11_【物流】国内トラック便 | D190: 11.01_トラックサーチャージ 全国（円/車） | E190: 2005-06-01 | F190: 0 | H190: 0 | I190: 96.1952381
B191: =指標合算テーブル[[#This Row],[種類]]&指標合算テーブル[[#This Row],[期間]] -> 11.01_トラックサーチャージ 全国（円/車）38534 | C191: 11_【物流】国内トラック便 | D191: 11.01_トラックサーチャージ 全国（円/車） | E191: 2005-07-01 | F191: 0 | H191: 0 | I191: 98.29047619
B192: =指標合算テーブル[[#This Row],[種類]]&指標合算テーブル[[#This Row],[期間]] -> 11.01_トラックサーチャージ 全国（円/車）38565 | C192: 11_【物流】国内トラック便 | D192: 11.01_トラックサーチャージ 全国（円/車） | E192: 2005-08-01 | F192: 244.17 | H192: 1.147619048 | I192: 101.147619
B193: =指標合算テーブル[[#This Row],[種類]]&指標合算テーブル[[#This Row],[期間]] -> 11.01_トラックサーチャージ 全国（円/車）38596 | C193: 11_【物流】国内トラック便 | D193: 11.01_トラックサーチャージ 全国（円/車） | E193: 2005-09-01 | F193: 608.92 | H193: 2.861904762 | I193: 102.8619048
B194: =指標合算テーブル[[#This Row],[種類]]&指標合算テーブル[[#This Row],[期間]] -> 11.01_トラックサーチャージ 全国（円/車）38626 | C194: 11_【物流】国内トラック便 | D194: 11.01_トラックサーチャージ 全国（円/車） | E194: 2005-10-01 | F194: 710.23 | H194: 3.338095238 | I194: 103.3380952
B195: =指標合算テーブル[[#This Row],[種類]]&指標合算テーブル[[#This Row],[期間]] -> 11.01_トラックサーチャージ 全国（円/車）38657 | C195: 11_【物流】国内トラック便 | D195: 11.01_トラックサーチャージ 全国（円/車） | E195: 2005-11-01 | F195: 588.65 | H195: 2.766666667 | I195: 102.7666667
B196: =指標合算テーブル[[#This Row],[種類]]&指標合算テーブル[[#This Row],[期間]] -> 11.01_トラックサーチャージ 全国（円/車）38687 | C196: 11_【物流】国内トラック便 | D196: 11.01_トラックサーチャージ 全国（円/車） | E196: 2005-12-01 | F196: 467.07 | H196: 2.195238095 | I196: 102.1952381
B197: =指標合算テーブル[[#This Row],[種類]]&指標合算テーブル[[#This Row],[期間]] -> 11.01_トラックサーチャージ 全国（円/車）38718 | C197: 11_【物流】国内トラック便 | D197: 11.01_トラックサーチャージ 全国（円/車） | E197: 2006-01-01 | F197: 487.34 | H197: 2.29047619 | I197: 102.2904762
B198: =指標合算テーブル[[#This Row],[種類]]&指標合算テーブル[[#This Row],[期間]] -> 11.01_トラックサーチャージ 全国（円/車）38749 | C198: 11_【物流】国内トラック便 | D198: 11.01_トラックサーチャージ 全国（円/車） | E198: 2006-02-01 | F198: 689.97 | H198: 3.242857143 | I198: 103.2428571
B199: =指標合算テーブル[[#This Row],[種類]]&指標合算テーブル[[#This Row],[期間]] -> 11.01_トラックサーチャージ 全国（円/車）38777 | C199: 11_【物流】国内トラック便 | D199: 11.01_トラックサーチャージ 全国（円/車） | E199: 2006-03-01 | F199: 872.34 | H199: 4.1 | I199: 104.1
B200: =指標合算テーブル[[#This Row],[種類]]&指標合算テーブル[[#This Row],[期間]] -> 11.01_トラックサーチャージ 全国（円/車）38808 | C200: 11_【物流】国内トラック便 | D200: 11.01_トラックサーチャージ 全国（円/車） | E200: 2006-04-01 | F200: 933.13 | H200: 4.385714286 | I200: 104.3857143
... 4300 more rows

Sheet 出典・注意事項・免責事項
B2: ＜出典一覧＞
B3: 指標 | C3: 種類 | D3: 出典 | E3: URL | F3: 備考
B4: 鉄鋼 | C4: 熱延鋼板1.6mm※高炉系 | D4: 日刊産業新聞 | E4: https://www.japanmetal.com/memberwel/marketprice/soba_netsuusu
C5: 冷延鋼板1.0mm※高炉系 | D5: 日刊産業新聞 | E5: https://www.japanmetal.com/memberwel/marketprice/soba_reiusu
C6: 酸洗コイル※電炉系 | D6: 東京製鐵価格表 | E6: https://www.tokyosteel.co.jp/salesprice/
B7: 銅・黄銅 | C7: 銅 | D7: JX金属 | E7: https://www.jx-nmm.com/cuprice/
C8: 亜鉛 | D8: 三井金属鉱業 | E8: https://www.mitsui-kinzoku.com/aen/?TabModule819=0
C9: 黄銅1種（銅70％・亜鉛30％） | D9: JX金属・三井金属鉱業のデータを基に作成 | E9: https://www.jx-nmm.com/cuprice/ https://www.mitsui-kinzoku.com/aen/?TabModule819=0
C10: 黄銅2種（銅65％・亜鉛35％） | D10: JX金属・三井金属鉱業のデータを基に作成 | E10: https://www.jx-nmm.com/cuprice/ https://www.mitsui-kinzoku.com/aen/?TabModule819=1
C11: 黄銅3種（銅50％・亜鉛50％） | D11: JX金属・三井金属鉱業のデータを基に作成 | E11: https://www.jx-nmm.com/cuprice/ https://www.mitsui-kinzoku.com/aen/?TabModule819=2
B12: アルミ | C12: 新地金 | D12: 日本経済新聞の記事及び日経NEEDS
C13: 再生塊 | D13: 日刊産業新聞 | E13: https://www.japanmetal.com/nonf-metal-price
B14: ウレタン | C14: プロピレン | D14: 日本経済新聞の記事及び日経NEEDS
C15: エチレン | D15: 日本経済新聞の記事及び日経NEEDS
C16: トルエン | D16: 日本経済新聞の記事及び日経NEEDS
C17: ベンゼン | D17: 日本経済新聞の記事及び日経NEEDS
C18: 石炭 | D18: 財務省貿易統計 | E18: 貿易統計 :統計品別推移表 :条件入力 :財務省貿易統計 Trade Statistics of Japan (customs.go.jp) | F18: 品目コード：270112099
B19: ポリアミド６ | C19: ポリアミド | D19: 日本経済新聞の記事及び日経NEEDS
C20: ガラス | D20: 財務省貿易統計 | E20: 貿易統計 :統計品別推移表 :条件入力 :財務省貿易統計 Trade Statistics of Japan (customs.go.jp) | F20: 品目コード：701911000
B21: ポリプロピレン | C21: ポリプロピレン | D21: 日本経済新聞の記事及び日経NEEDS
B22: ABS樹脂 | C22: ABS樹脂 | D22: 日本経済新聞の記事及び日経NEEDS
B23: 合成ゴム | C23: EPDM | D23: 日本経済新聞の記事及び日経NEEDS
C24: カーボンブラック | D24: 財務省貿易統計 | E24: 貿易統計 :統計品別推移表 :条件入力 :財務省貿易統計 Trade Statistics of Japan (customs.go.jp) | F24: 品目コード：280300000
C25: プロセスオイル | D25: 財務省貿易統計 | E25: 貿易統計 :統計品別推移表 :条件入力 :財務省貿易統計 Trade Statistics of Japan (customs.go.jp) | F25: 品目コード：2709.00-900
B26: 電気 | C26: 燃料費調整単価＋再エネ賦課金 | D26: 新電力ネット | E26: https://pps-net.org/
D27: 北海道電力 | E27: https://www.hepco.co.jp/business/price/system/index.html
D28: 東北電力 | E28: https://www.tohoku-epco.co.jp/dbusiness/adjust/
D29: 東京電力 | E29: https://www.tepco.co.jp/ep/corporate/adjust2/
D30: 中部電力 | E30: https://miraiz.chuden.co.jp/business/electric/contract/fuelcost/high/index.html
D31: 北陸電力 | E31: https://www.rikuden.co.jp/jiyuka/nentyou.html
D32: 関西電力 | E32: https://biz.kepco.jp/elec/seido/nencho/
D33: 中国電力 | E33: https://www.energia.co.jp/elec/seido/nencho/index_d.html
D34: 四国電力 | E34: https://www.yonden.co.jp/customer/price/fuel_adjustments.html
D35: 九州電力 | E35: https://www.kyuden.co.jp/agreement_adj_h26_5.html
D36: 沖縄電力 | E36: https://www.okiden.co.jp/common/adjust2/
C37: 平均販売単価・特別高圧 | D37: 新電力ネット | E37: https://pps-net.org/
B38: ガス | C38: 原料調整費 | D38: 財務省貿易統計 | E38: https://www.customs.go.jp/toukei/srch/index.htm?M=77&P=0 | F38: 品目コード： 271111000 /271112000 /271113020
D39: 北海道ガス | E39: https://www.hokkaido-gas.co.jp/home/ryo-kin/genryo.html
D40: 京葉ガス | E40: https://www.keiyogas.co.jp/sw/hng/gas/menu/chousei.html
D41: 東京ガス | E41: https://home.tokyo-gas.co.jp/gas_power/plan/gas/adjustment.html
D42: 北陸ガス新潟・長岡・三条地区 | E42: https://www.hokurikugas.co.jp/personal/price/adjust.html
B43: ガス | C43: 原料調整費 | D43: 北陸ガス柏崎地区 | E43: https://www.hokurikugas.co.jp/personal/price_kashiwa/adjust.html
D44: 北陸ガス見附地区 | E44: https://www.hokurikugas.co.jp/personal/price_mitsuke/adjust.html
D45: 静岡ガス | E45: https://www.shizuokagas.co.jp/gas/rate/calc/adj.html/#area01
D46: 東邦ガス | E46: https://www.tohogas.co.jp/home/gas/structure/structure-03/
D47: 大阪ガス | E47: https://home.osakagas.co.jp/price/adjustment/index.html
D48: 広島ガス | E48: https://www.hiroshima-gas.co.jp/gas/ryokin/genryo.htm
D49: 西部ガス | E49: https://www.saibugas.co.jp/home/rates/structure/adjustment.htm
C50: 平均販売単価・工業用 | D50: 新電力ネット | E50: https://pps-net.org/
B51: 国内トラック便 | C51: トラックサーチャージ | D51: 資源エネルギー庁 | E51: 調査の結果｜石油製品価格調査｜資源エネルギー庁 (meti.go.jp)
B52: 海外輸出便 | C52: 横浜発ーUSA ロス着 | D52: 公益財団法人日本海事センター | E52: コンテナ運賃動向 海上荷動きの動向 公益財団法人日本海事センター (jpmac.or.jp)
C53: 横浜発ーオランダ ロッテルダム着
C54: 横浜発ーイタリア ジェノア着
C55: 横浜発-中国 香港着
C56: 横浜発-タイ レムチャパン着
B57: 海外輸入便 | C57: USA ロス発ー横浜着 | D57: 公益財団法人日本海事センター | E57: コンテナ運賃動向 海上荷動きの動向 公益財団法人日本海事センター (jpmac.or.jp)
C58: オランダ ロッテルダム発ー横浜着
C59: イタリア ジェノア発ー横浜着
C60: 中国 香港発-横浜着
C61: タイ レムチャパン発-横浜着
B62: 賃上げ率・物昇 | C62: 消費者物価指数 | D62: 財務省統計局 | E62: https://www.stat.go.jp/data/cpi/sokuhou/nen/pdf/zen-n.pdf#page=4
C63: 自動車総連＆JAM 総額賃上げ率 | D63: 自動車総連（12労連のメーカー部会、車体・部品部会）・JAM（自動車部会56単組）
C64: JAM 総額賃上げ率
C65: 自動車総連 総額賃上げ率
C66: 自動車総連 総額賃上げ率 OEM
C67: 自動車総連 総額賃上げ率 車体・部品
C68: 最低賃金 全国加重平均（各都道府県） | D68: 厚生労働省HP | E68: https://www.mhlw.go.jp/stf/seisakunitsuite/bunya/koyou_roudou/roudoukijun/minimumichiran/index.html
B70: ＜注意事項＞
B71: ・「ファイルがうまく開かない」、「うまく表示されない」等の不具合があった場合は、デスクトップ等に保存の上、再度開きなおしてください。また、他のExcelファイルは閉じた上で御利用ください。 ・CSVデータを出力時、デスクトップ等に同じデータが保存されている場合は削除するか、別の場所に移動した上で出力ください。
B73: ＜免責事項＞
B74: ・当該ツールを利用することで発生した紛争や損害に対し、（一社）日本自動車部品工業会は責任を負わないものとします。 ・（一社）日本自動車部品工業会は、当該ツールについて、できる限り正確に保つように努めていますが、ツールの基礎データの正確性・完全性・信頼性・最新性を保証するものではありません。 ・理由の如何に関わらず、当該ツールの変更及び運用の中断・中止によって生じるいかなる損害についても、（一社）日本自動車部品工業会は責任を負わないものとします。 ・当該ツールの著作権者は（一社）日本自動車部品工業会であり、著作権者の許諾を得ないで無断で利用したり、自分が創った著作物だと騙して利用すると著作権侵害となります。また、著作者に無断で著作物の内容や題号を改変するなどし、当該ツールを無断で頒布、もしくは著作物に付された権利者の情報や利用許諾の条件等の権利管理情報を故意に改変する行為なども著作権侵害にあたります。

Sheet 1鉄鋼
A1: 鉄鋼価格推移 | B1: グラフへ戻る | C1: 出典：熱延鋼板、冷延鋼板は日刊産業新聞、酸洗コイルは東京製鐵価格表
A2: 指標 | B2: 期間 | C2: 熱延鋼板（1.6mm）（千円/t）※高炉系 | D2: 冷延鋼板（1.0mm）（千円/t）※高炉系 | E2: 酸洗コイル（1.5≦ｔ＜1.7×900～1,600（千円/t））※電炉系
A3: 鉄鋼 | B3: 1974-01-01 | C3: 110 | D3: 110
A4: 鉄鋼 | B4: 1974-02-01 | C4: 85 | D4: 100
A5: 鉄鋼 | B5: 1974-03-01 | C5: 73 | D5: 84
A6: 鉄鋼 | B6: 1974-04-01 | C6: 73 | D6: 77
A7: 鉄鋼 | B7: 1974-05-01 | C7: 75 | D7: 75
A8: 鉄鋼 | B8: 1974-06-01 | C8: 83 | D8: 75
A9: 鉄鋼 | B9: 1974-07-01 | C9: 80 | D9: 72
A10: 鉄鋼 | B10: 1974-08-01 | C10: 71 | D10: 69
A11: 鉄鋼 | B11: 1974-09-01 | C11: 67 | D11: 68
A12: 鉄鋼 | B12: 1974-10-01 | C12: 64 | D12: 67
A13: 鉄鋼 | B13: 1974-11-01 | C13: 51 | D13: 60
A14: 鉄鋼 | B14: 1974-12-01 | C14: 51 | D14: 60
A15: 鉄鋼 | B15: 1975-01-01 | C15: 51 | D15: 60
A16: 鉄鋼 | B16: 1975-02-01 | C16: 46 | D16: 58
A17: 鉄鋼 | B17: 1975-03-01 | C17: 52 | D17: 57
A18: 鉄鋼 | B18: 1975-04-01 | C18: 53 | D18: 58
A19: 鉄鋼 | B19: 1975-05-01 | C19: 56 | D19: 63
A20: 鉄鋼 | B20: 1975-06-01 | C20: 55 | D20: 63.5
A21: 鉄鋼 | B21: 1975-07-01 | C21: 53 | D21: 63
A22: 鉄鋼 | B22: 1975-08-01 | C22: 55.5 | D22: 65.5
A23: 鉄鋼 | B23: 1975-09-01 | C23: 53 | D23: 66.5
A24: 鉄鋼 | B24: 1975-10-01 | C24: 50.5 | D24: 66
A25: 鉄鋼 | B25: 1975-11-01 | C25: 50 | D25: 64
A26: 鉄鋼 | B26: 1975-12-01 | C26: 51 | D26: 64
A27: 鉄鋼 | B27: 1976-01-01 | C27: 55 | D27: 67
A28: 鉄鋼 | B28: 1976-02-01 | C28: 58 | D28: 70
A29: 鉄鋼 | B29: 1976-03-01 | C29: 63 | D29: 73
A30: 鉄鋼 | B30: 1976-04-01 | C30: 67 | D30: 80
A31: 鉄鋼 | B31: 1976-05-01 | C31: 67.5 | D31: 81
A32: 鉄鋼 | B32: 1976-06-01 | C32: 69 | D32: 81
A33: 鉄鋼 | B33: 1976-07-01 | C33: 70 | D33: 83
A34: 鉄鋼 | B34: 1976-08-01 | C34: 71 | D34: 84
A35: 鉄鋼 | B35: 1976-09-01 | C35: 73 | D35: 88
A36: 鉄鋼 | B36: 1976-10-01 | C36: 71 | D36: 87.5
A37: 鉄鋼 | B37: 1976-11-01 | C37: 69 | D37: 85
A38: 鉄鋼 | B38: 1976-12-01 | C38: 68 | D38: 84
A39: 鉄鋼 | B39: 1977-01-01 | C39: 65 | D39: 81
A40: 鉄鋼 | B40: 1977-02-01 | C40: 65 | D40: 81
A41: 鉄鋼 | B41: 1977-03-01 | C41: 68.5 | D41: 81
A42: 鉄鋼 | B42: 1977-04-01 | C42: 67.5 | D42: 80
A43: 鉄鋼 | B43: 1977-05-01 | C43: 67 | D43: 79.5
A44: 鉄鋼 | B44: 1977-06-01 | C44: 69.5 | D44: 79
A45: 鉄鋼 | B45: 1977-07-01 | C45: 70 | D45: 79
A46: 鉄鋼 | B46: 1977-08-01 | C46: 69 | D46: 79
A47: 鉄鋼 | B47: 1977-09-01 | C47: 68 | D47: 78.5
A48: 鉄鋼 | B48: 1977-10-01 | C48: 69 | D48: 80
A49: 鉄鋼 | B49: 1977-11-01 | C49: 68 | D49: 79.5
A50: 鉄鋼 | B50: 1977-12-01 | C50: 67 | D50: 79.5
A51: 鉄鋼 | B51: 1978-01-01 | C51: 67 | D51: 79.5
A52: 鉄鋼 | B52: 1978-02-01 | C52: 71 | D52: 84
A53: 鉄鋼 | B53: 1978-03-01 | C53: 74.5 | D53: 87
A54: 鉄鋼 | B54: 1978-04-01 | C54: 76.5 | D54: 88
A55: 鉄鋼 | B55: 1978-05-01 | C55: 80 | D55: 90
A56: 鉄鋼 | B56: 1978-06-01 | C56: 85 | D56: 92
A57: 鉄鋼 | B57: 1978-07-01 | C57: 85 | D57: 92
A58: 鉄鋼 | B58: 1978-08-01 | C58: 85 | D58: 92
A59: 鉄鋼 | B59: 1978-09-01 | C59: 85 | D59: 92
A60: 鉄鋼 | B60: 1978-10-01 | C60: 85 | D60: 91
A61: 鉄鋼 | B61: 1978-11-01 | C61: 89 | D61: 95
A62: 鉄鋼 | B62: 1978-12-01 | C62: 93 | D62: 98
A63: 鉄鋼 | B63: 1979-01-01 | C63: 93 | D63: 98
A64: 鉄鋼 | B64: 1979-02-01 | C64: 93 | D64: 99
A65: 鉄鋼 | B65: 1979-03-01 | C65: 92 | D65: 98
A66: 鉄鋼 | B66: 1979-04-01 | C66: 88 | D66: 97
A67: 鉄鋼 | B67: 1979-05-01 | C67: 88 | D67: 97.5
A68: 鉄鋼 | B68: 1979-06-01 | C68: 89 | D68: 99
A69: 鉄鋼 | B69: 1979-07-01 | C69: 88 | D69: 99
A70: 鉄鋼 | B70: 1979-08-01 | C70: 85 | D70: 98
A71: 鉄鋼 | B71: 1979-09-01 | C71: 84 | D71: 97
A72: 鉄鋼 | B72: 1979-10-01 | C72: 84 | D72: 97
A73: 鉄鋼 | B73: 1979-11-01 | C73: 84 | D73: 97
A74: 鉄鋼 | B74: 1979-12-01 | C74: 83 | D74: 97
A75: 鉄鋼 | B75: 1980-01-01 | C75: 84 | D75: 97
A76: 鉄鋼 | B76: 1980-02-01 | C76: 86 | D76: 97
A77: 鉄鋼 | B77: 1980-03-01 | C77: 88 | D77: 98
A78: 鉄鋼 | B78: 1980-04-01 | C78: 88 | D78: 100
A79: 鉄鋼 | B79: 1980-05-01 | C79: 88 | D79: 100
A80: 鉄鋼 | B80: 1980-06-01 | C80: 88 | D80: 100
A81: 鉄鋼 | B81: 1980-07-01 | C81: 87 | D81: 102
A82: 鉄鋼 | B82: 1980-08-01 | C82: 86 | D82: 102
A83: 鉄鋼 | B83: 1980-09-01 | C83: 86 | D83: 101
A84: 鉄鋼 | B84: 1980-10-01 | C84: 85 | D84: 100
A85: 鉄鋼 | B85: 1980-11-01 | C85: 84 | D85: 98
A86: 鉄鋼 | B86: 1980-12-01 | C86: 82 | D86: 96
A87: 鉄鋼 | B87: 1981-01-01 | C87: 83 | D87: 96
A88: 鉄鋼 | B88: 1981-02-01 | C88: 83 | D88: 97
A89: 鉄鋼 | B89: 1981-03-01 | C89: 81 | D89: 97
A90: 鉄鋼 | B90: 1981-04-01 | C90: 79 | D90: 95
A91: 鉄鋼 | B91: 1981-05-01 | C91: 80 | D91: 96
A92: 鉄鋼 | B92: 1981-06-01 | C92: 80 | D92: 96
A93: 鉄鋼 | B93: 1981-07-01 | C93: 80 | D93: 96
A94: 鉄鋼 | B94: 1981-08-01 | C94: 80 | D94: 96
A95: 鉄鋼 | B95: 1981-09-01 | C95: 80 | D95: 96
A96: 鉄鋼 | B96: 1981-10-01 | C96: 79 | D96: 97
A97: 鉄鋼 | B97: 1981-11-01 | C97: 79 | D97: 97
A98: 鉄鋼 | B98: 1981-12-01 | C98: 79 | D98: 97
A99: 鉄鋼 | B99: 1982-01-01 | C99: 79 | D99: 97
A100: 鉄鋼 | B100: 1982-02-01 | C100: 78 | D100: 97
A101: 鉄鋼 | B101: 1982-03-01 | C101: 80 | D101: 97
A102: 鉄鋼 | B102: 1982-04-01 | C102: 80 | D102: 95
A103: 鉄鋼 | B103: 1982-05-01 | C103: 82 | D103: 95
A104: 鉄鋼 | B104: 1982-06-01 | C104: 82 | D104: 95
A105: 鉄鋼 | B105: 1982-07-01 | C105: 80 | D105: 94
A106: 鉄鋼 | B106: 1982-08-01 | C106: 80 | D106: 94
A107: 鉄鋼 | B107: 1982-09-01 | C107: 79 | D107: 94
A108: 鉄鋼 | B108: 1982-10-01 | C108: 78 | D108: 95
A109: 鉄鋼 | B109: 1982-11-01 | C109: 78 | D109: 94
A110: 鉄鋼 | B110: 1982-12-01 | C110: 76 | D110: 93
A111: 鉄鋼 | B111: 1983-01-01 | C111: 75 | D111: 93
A112: 鉄鋼 | B112: 1983-02-01 | C112: 75 | D112: 95
A113: 鉄鋼 | B113: 1983-03-01 | C113: 77 | D113: 97
A114: 鉄鋼 | B114: 1983-04-01 | C114: 77 | D114: 97
A115: 鉄鋼 | B115: 1983-05-01 | C115: 77 | D115: 97.5
A116: 鉄鋼 | B116: 1983-06-01 | C116: 78 | D116: 99
A117: 鉄鋼 | B117: 1983-07-01 | C117: 78 | D117: 99.5
A118: 鉄鋼 | B118: 1983-08-01 | C118: 78 | D118: 99
A119: 鉄鋼 | B119: 1983-09-01 | C119: 77 | D119: 98.5
A120: 鉄鋼 | B120: 1983-10-01 | C120: 77 | D120: 98.5
A121: 鉄鋼 | B121: 1983-11-01 | C121: 78 | D121: 98
A122: 鉄鋼 | B122: 1983-12-01 | C122: 80 | D122: 100
A123: 鉄鋼 | B123: 1984-01-01 | C123: 80 | D123: 100
A124: 鉄鋼 | B124: 1984-02-01 | C124: 80 | D124: 99
A125: 鉄鋼 | B125: 1984-03-01 | C125: 80 | D125: 97.5
A126: 鉄鋼 | B126: 1984-04-01 | C126: 79 | D126: 97
A127: 鉄鋼 | B127: 1984-05-01 | C127: 79 | D127: 96
A128: 鉄鋼 | B128: 1984-06-01 | C128: 79 | D128: 96
A129: 鉄鋼 | B129: 1984-07-01 | C129: 79 | D129: 96
A130: 鉄鋼 | B130: 1984-08-01 | C130: 79 | D130: 96
A131: 鉄鋼 | B131: 1984-09-01 | C131: 80 | D131: 96
A132: 鉄鋼 | B132: 1984-10-01 | C132: 80 | D132: 96
A133: 鉄鋼 | B133: 1984-11-01 | C133: 80 | D133: 96
A134: 鉄鋼 | B134: 1984-12-01 | C134: 80 | D134: 95
A135: 鉄鋼 | B135: 1985-01-01 | C135: 80 | D135: 95
A136: 鉄鋼 | B136: 1985-02-01 | C136: 80 | D136: 95
A137: 鉄鋼 | B137: 1985-03-01 | C137: 80 | D137: 94
A138: 鉄鋼 | B138: 1985-04-01 | C138: 80 | D138: 94
A139: 鉄鋼 | B139: 1985-05-01 | C139: 80 | D139: 94
A140: 鉄鋼 | B140: 1985-06-01 | C140: 80 | D140: 94
A141: 鉄鋼 | B141: 1985-07-01 | C141: 78 | D141: 95
A142: 鉄鋼 | B142: 1985-08-01 | C142: 78 | D142: 95
A143: 鉄鋼 | B143: 1985-09-01 | C143: 78 | D143: 95
A144: 鉄鋼 | B144: 1985-10-01 | C144: 75 | D144: 95
A145: 鉄鋼 | B145: 1985-11-01 | C145: 74 | D145: 94.5
A146: 鉄鋼 | B146: 1985-12-01 | C146: 74 | D146: 94
A147: 鉄鋼 | B147: 1986-01-01 | C147: 72 | D147: 93
A148: 鉄鋼 | B148: 1986-02-01 | C148: 70 | D148: 93
A149: 鉄鋼 | B149: 1986-03-01 | C149: 70 | D149: 92
A150: 鉄鋼 | B150: 1986-04-01 | C150: 68 | D150: 90
A151: 鉄鋼 | B151: 1986-05-01 | C151: 68 | D151: 89
A152: 鉄鋼 | B152: 1986-06-01 | C152: 65 | D152: 87
A153: 鉄鋼 | B153: 1986-07-01 | C153: 65 | D153: 86
A154: 鉄鋼 | B154: 1986-08-01 | C154: 64 | D154: 86
A155: 鉄鋼 | B155: 1986-09-01 | C155: 64 | D155: 85
A156: 鉄鋼 | B156: 1986-10-01 | C156: 60 | D156: 84
A157: 鉄鋼 | B157: 1986-11-01 | C157: 60 | D157: 82
A158: 鉄鋼 | B158: 1986-12-01 | C158: 60 | D158: 82
A159: 鉄鋼 | B159: 1987-01-01 | C159: 60 | D159: 82
A160: 鉄鋼 | B160: 1987-02-01 | C160: 60 | D160: 82
A161: 鉄鋼 | B161: 1987-03-01 | C161: 60 | D161: 82
A162: 鉄鋼 | B162: 1987-04-01 | C162: 60 | D162: 82
A163: 鉄鋼 | B163: 1987-05-01 | C163: 60 | D163: 82
A164: 鉄鋼 | B164: 1987-06-01 | C164: 60 | D164: 82
A165: 鉄鋼 | B165: 1987-07-01 | C165: 62 | D165: 81
A166: 鉄鋼 | B166: 1987-08-01 | C166: 63 | D166: 84
A167: 鉄鋼 | B167: 1987-09-01 | C167: 65 | D167: 89
A168: 鉄鋼 | B168: 1987-10-01 | C168: 68 | D168: 93
A169: 鉄鋼 | B169: 1987-11-01 | C169: 76 | D169: 98
A170: 鉄鋼 | B170: 1987-12-01 | C170: 76 | D170: 99
A171: 鉄鋼 | B171: 1988-01-01 | C171: 78 | D171: 100
A172: 鉄鋼 | B172: 1988-02-01 | C172: 78 | D172: 100
A173: 鉄鋼 | B173: 1988-03-01 | C173: 78 | D173: 97
A174: 鉄鋼 | B174: 1988-04-01 | C174: 77 | D174: 94
A175: 鉄鋼 | B175: 1988-05-01 | C175: 75 | D175: 91
A176: 鉄鋼 | B176: 1988-06-01 | C176: 73 | D176: 91
A177: 鉄鋼 | B177: 1988-07-01 | C177: 73 | D177: 91
A178: 鉄鋼 | B178: 1988-08-01 | C178: 73 | D178: 88
A179: 鉄鋼 | B179: 1988-09-01 | C179: 73 | D179: 88
A180: 鉄鋼 | B180: 1988-10-01 | C180: 73 | D180: 88
A181: 鉄鋼 | B181: 1988-11-01 | C181: 73 | D181: 87
A182: 鉄鋼 | B182: 1988-12-01 | C182: 73 | D182: 87
A183: 鉄鋼 | B183: 1989-01-01 | C183: 73 | D183: 87
A184: 鉄鋼 | B184: 1989-02-01 | C184: 72 | D184: 87
A185: 鉄鋼 | B185: 1989-03-01 | C185: 72 | D185: 89
A186: 鉄鋼 | B186: 1989-04-01 | C186: 72 | D186: 91
A187: 鉄鋼 | B187: 1989-05-01 | C187: 77 | D187: 92
A188: 鉄鋼 | B188: 1989-06-01 | C188: 78 | D188: 92
A189: 鉄鋼 | B189: 1989-07-01 | C189: 78 | D189: 92
A190: 鉄鋼 | B190: 1989-08-01 | C190: 80 | D190: 92
A191: 鉄鋼 | B191: 1989-09-01 | C191: 80 | D191: 91
A192: 鉄鋼 | B192: 1989-10-01 | C192: 80 | D192: 90
A193: 鉄鋼 | B193: 1989-11-01 | C193: 80 | D193: 90
A194: 鉄鋼 | B194: 1989-12-01 | C194: 80 | D194: 90
A195: 鉄鋼 | B195: 1990-01-01 | C195: 78 | D195: 89
A196: 鉄鋼 | B196: 1990-02-01 | C196: 78 | D196: 89
A197: 鉄鋼 | B197: 1990-03-01 | C197: 78 | D197: 89
A198: 鉄鋼 | B198: 1990-04-01 | C198: 78 | D198: 88
A199: 鉄鋼 | B199: 1990-05-01 | C199: 78 | D199: 88
A200: 鉄鋼 | B200: 1990-06-01 | C200: 78 | D200: 87
... 407 more rows

Sheet 2銅黄銅
A1: 銅・黄銅価格推移 | B1: グラフへ戻る | C1: 出典：銅はJX金属、亜鉛は三井金属工業
A2: 指標 | B2: 期間 | C2: 銅建値（円/kg） | D2: 亜鉛建値（円/kg） | E2: 黄銅１種（銅70％・亜鉛30％）（円/kg） | F2: 黄銅2種（銅65％・亜鉛35％）（円/kg） | G2: 黄銅3種（銅60％・亜鉛40％）（円/kg）
A3: 銅・黄銅 | B3: 2002-01-01 | C3: 238.4 | D3: 149.9 | E3: =ROUND(C3*0.7+D3*0.3,2) -> 211.85 | F3: =ROUND(C3*0.65+D3*0.35,2) -> 207.43 | G3: =ROUND(C3*0.6+D3*0.4,2) -> 203
A4: 銅・黄銅 | B4: 2002-02-01 | C4: 250 | D4: 146.2 | E4: =ROUND(C4*0.7+D4*0.3,2) -> 218.86 | F4: =ROUND(C4*0.65+D4*0.35,2) -> 213.67 | G4: =ROUND(C4*0.6+D4*0.4,2) -> 208.48
A5: 銅・黄銅 | B5: 2002-03-01 | C5: 250 | D5: 151.3 | E5: 220.39 | F5: 215.46 | G5: 210.52
A6: 銅・黄銅 | B6: 2002-04-01 | C6: 252.3 | D6: 149.9 | E6: 221.58 | F6: 216.46 | G6: 211.34
A7: 銅・黄銅 | B7: 2002-05-01 | C7: 240 | D7: 141.4 | E7: 210.42 | F7: 205.49 | G7: 200.56
A8: 銅・黄銅 | B8: 2002-06-01 | C8: 245.5 | D8: 138.1 | E8: 213.28 | F8: 207.91 | G8: 202.54
A9: 銅・黄銅 | B9: 2002-07-01 | C9: 230.4 | D9: 137 | E9: 202.38 | F9: 197.71 | G9: 193.04
A10: 銅・黄銅 | B10: 2002-08-01 | C10: 220 | D10: 132 | E10: 193.6 | F10: 189.2 | G10: 184.8
A11: 銅・黄銅 | B11: 2002-09-01 | C11: 220 | D11: 135 | E11: 194.5 | F11: 190.25 | G11: 186
A12: 銅・黄銅 | B12: 2002-10-01 | C12: 224 | D12: 136.6 | E12: 197.78 | F12: 193.41 | G12: 189.04
A13: 銅・黄銅 | B13: 2002-11-01 | C13: 230 | D13: 135.8 | E13: 201.74 | F13: 197.03 | G13: 192.32
A14: 銅・黄銅 | B14: 2002-12-01 | C14: 235 | D14: 141.5 | E14: 206.95 | F14: 202.28 | G14: 197.6
A15: 銅・黄銅 | B15: 2003-01-01 | C15: 233.6 | D15: 136.2 | E15: 204.38 | F15: 199.51 | G15: 194.64
A16: 銅・黄銅 | B16: 2003-02-01 | C16: 242.1 | D16: 137.3 | E16: 210.66 | F16: 205.42 | G16: 200.18
A17: 銅・黄銅 | B17: 2003-03-01 | C17: 240 | D17: 137.6 | E17: 209.28 | F17: 204.16 | G17: 199.04
A18: 銅・黄銅 | B18: 2003-04-01 | C18: 230 | D18: 133.6 | E18: 201.08 | F18: 196.26 | G18: 191.44
A19: 銅・黄銅 | B19: 2003-05-01 | C19: 230 | D19: 133.9 | E19: 201.17 | F19: 196.37 | G19: 191.56
A20: 銅・黄銅 | B20: 2003-06-01 | C20: 240 | D20: 136.6 | E20: 208.98 | F20: 203.81 | G20: 198.64
A21: 銅・黄銅 | B21: 2003-07-01 | C21: 241.8 | D21: 140.9 | E21: 211.53 | F21: 206.49 | G21: 201.44
A22: 銅・黄銅 | B22: 2003-08-01 | C22: 252.8 | D22: 140.6 | E22: 219.14 | F22: 213.53 | G22: 207.92
A23: 銅・黄銅 | B23: 2003-09-01 | C23: 247.5 | D23: 137.1 | E23: 214.38 | F23: 208.86 | G23: 203.34
A24: 銅・黄銅 | B24: 2003-10-01 | C24: 250.4 | D24: 140.3 | E24: 217.37 | F24: 211.87 | G24: 206.36
A25: 銅・黄銅 | B25: 2003-11-01 | C25: 266.6 | D25: 142.2 | E25: 229.28 | F25: 223.06 | G25: 216.84
A26: 銅・黄銅 | B26: 2003-12-01 | C26: 274.7 | D26: 147.3 | E26: 236.48 | F26: 230.11 | G26: 223.74
A27: 銅・黄銅 | B27: 2004-01-01 | C27: 302.6 | D27: 151.4 | E27: 257.24 | F27: 249.68 | G27: 242.12
A28: 銅・黄銅 | B28: 2004-02-01 | C28: 333.6 | D28: 158.7 | E28: 281.13 | F28: 272.39 | G28: 263.64
A29: 銅・黄銅 | B29: 2004-03-01 | C29: 373.4 | D29: 164.4 | E29: 310.7 | F29: 300.25 | G29: 289.8
A30: 銅・黄銅 | B30: 2004-04-01 | C30: 363.3 | D30: 154.3 | E30: 300.6 | F30: 290.15 | G30: 279.7
A31: 銅・黄銅 | B31: 2004-05-01 | C31: 356.1 | D31: 158.7 | E31: 296.88 | F31: 287.01 | G31: 277.14
A32: 銅・黄銅 | B32: 2004-06-01 | C32: 346.8 | D32: 155.6 | E32: 289.44 | F32: 279.88 | G32: 270.32
A33: 銅・黄銅 | B33: 2004-07-01 | C33: 353.8 | D33: 151 | E33: 292.96 | F33: 282.82 | G33: 272.68
A34: 銅・黄銅 | B34: 2004-08-01 | C34: 365.9 | D34: 151.7 | E34: 301.64 | F34: 290.93 | G34: 280.22
A35: 銅・黄銅 | B35: 2004-09-01 | C35: 361.5 | D35: 148.9 | E35: 297.72 | F35: 287.09 | G35: 276.46
A36: 銅・黄銅 | B36: 2004-10-01 | C36: 376 | D36: 160.2 | E36: 311.26 | F36: 300.47 | G36: 289.68
A37: 銅・黄銅 | B37: 2004-11-01 | C37: 376 | D37: 158.7 | E37: 310.81 | F37: 299.95 | G37: 289.08
A38: 銅・黄銅 | B38: 2004-12-01 | C38: 372.6 | D38: 165.5 | E38: 310.47 | F38: 300.12 | G38: 289.76
A39: 銅・黄銅 | B39: 2005-01-01 | C39: 382.1 | D39: 172.1 | E39: 319.1 | F39: 308.6 | G39: 298.1
A40: 銅・黄銅 | B40: 2005-02-01 | C40: 394.5 | D40: 182.7 | E40: 330.96 | F40: 320.37 | G40: 309.78
A41: 銅・黄銅 | B41: 2005-03-01 | C41: 408.1 | D41: 189.5 | E41: 342.52 | F41: 331.59 | G41: 320.66
A42: 銅・黄銅 | B42: 2005-04-01 | C42: 422.5 | D42: 184.6 | E42: 351.13 | F42: 339.24 | G42: 327.34
A43: 銅・黄銅 | B43: 2005-05-01 | C43: 401.6 | D43: 176.9 | E43: 334.19 | F43: 322.96 | G43: 311.72
A44: 銅・黄銅 | B44: 2005-06-01 | C44: 435.4 | D44: 184.3 | E44: 360.07 | F44: 347.52 | G44: 334.96
A45: 銅・黄銅 | B45: 2005-07-01 | C45: 461 | D45: 179 | E45: 376.4 | F45: 362.3 | G45: 348.2
A46: 銅・黄銅 | B46: 2005-08-01 | C46: 477.8 | D46: 188.4 | E46: 390.98 | F46: 376.51 | G46: 362.04
A47: 銅・黄銅 | B47: 2005-09-01 | C47: 482.5 | D47: 200.2 | E47: 397.81 | F47: 383.7 | G47: 369.58
A48: 銅・黄銅 | B48: 2005-10-01 | C48: 517 | D48: 216 | E48: 426.7 | F48: 411.65 | G48: 396.6
A49: 銅・黄銅 | B49: 2005-11-01 | C49: 551.5 | D49: 234.7 | E49: 456.46 | F49: 440.62 | G49: 424.78
A50: 銅・黄銅 | B50: 2005-12-01 | C50: 586.8 | D50: 259.6 | E50: 488.64 | F50: 472.28 | G50: 455.92
A51: 銅・黄銅 | B51: 2006-01-01 | C51: 588.4 | D51: 283.5 | E51: 496.93 | F51: 481.69 | G51: 466.44
A52: 銅・黄銅 | B52: 2006-02-01 | C52: 640.5 | D52: 307.3 | E52: 540.54 | F52: 523.88 | G52: 507.22
A53: 銅・黄銅 | B53: 2006-03-01 | C53: 642.7 | D53: 323.8 | E53: 547.03 | F53: 531.09 | G53: 515.14
A54: 銅・黄銅 | B54: 2006-04-01 | C54: 783.5 | D54: 402.6 | E54: 669.23 | F54: 650.19 | G54: 631.14
A55: 銅・黄銅 | B55: 2006-05-01 | C55: 968.8 | D55: 435.9 | E55: 808.93 | F55: 782.29 | G55: 755.64
A56: 銅・黄銅 | B56: 2006-06-01 | C56: 885 | D56: 412.8 | E56: 743.34 | F56: 719.73 | G56: 696.12
A57: 銅・黄銅 | B57: 2006-07-01 | C57: 948.5 | D57: 426.8 | E57: 791.99 | F57: 765.91 | G57: 739.82
A58: 銅・黄銅 | B58: 2006-08-01 | C58: 943 | D58: 431.8 | E58: 789.64 | F58: 764.08 | G58: 738.52
A59: 銅・黄銅 | B59: 2006-09-01 | C59: 943 | D59: 444.5 | E59: 793.45 | F59: 768.53 | G59: 743.6
A60: 銅・黄銅 | B60: 2006-10-01 | C60: 949 | D60: 494 | E60: 812.5 | F60: 789.75 | G60: 767
A61: 銅・黄銅 | B61: 2006-11-01 | C61: 880 | D61: 557.9 | E61: 783.37 | F61: 767.27 | G61: 751.16
A62: 銅・黄銅 | B62: 2006-12-01 | C62: 836.5 | D62: 559.8 | E62: 753.49 | F62: 739.66 | G62: 725.82
A63: 銅・黄銅 | B63: 2007-01-01 | C63: 738.4 | D63: 505.5 | E63: 668.53 | F63: 656.89 | G63: 645.24
A64: 銅・黄銅 | B64: 2007-02-01 | C64: 733.1 | D64: 439.6 | E64: 645.05 | F64: 630.38 | G64: 615.7
A65: 銅・黄銅 | B65: 2007-03-01 | C65: 800 | D65: 428.4 | E65: 688.52 | F65: 669.94 | G65: 651.36
A66: 銅・黄銅 | B66: 2007-04-01 | C66: 961 | D66: 465.2 | E66: 812.26 | F66: 787.47 | G66: 762.68
A67: 銅・黄銅 | B67: 2007-05-01 | C67: 979.4 | D67: 507.8 | E67: 837.92 | F67: 814.34 | G67: 790.76
A68: 銅・黄銅 | B68: 2007-06-01 | C68: 969 | D68: 494.2 | E68: =ROUND(C68*0.7+D68*0.3,2) -> 826.56 | F68: =ROUND(C68*0.65+D68*0.35,2) -> 802.82 | G68: =ROUND(C68*0.6+D68*0.4,2) -> 779.08
A69: 銅・黄銅 | B69: 2007-07-01 | C69: 1019.5 | D69: 475.8 | E69: 856.39 | F69: 829.21 | G69: 802.02
A70: 銅・黄銅 | B70: 2007-08-01 | C70: 930.4 | D70: 427.1 | E70: 779.41 | F70: 754.25 | G70: 729.08
A71: 銅・黄銅 | B71: 2007-09-01 | C71: 927.2 | D71: 373.7 | E71: 761.15 | F71: 733.48 | G71: 705.8
A72: 銅・黄銅 | B72: 2007-10-01 | C72: 976.8 | D72: 390.5 | E72: 800.91 | F72: 771.6 | G72: 742.28
A73: 銅・黄銅 | B73: 2007-11-01 | C73: 832.8 | D73: 329 | E73: 681.66 | F73: 656.47 | G73: 631.28
A74: 銅・黄銅 | B74: 2007-12-01 | C74: 794.7 | D74: 304.4 | E74: 647.61 | F74: 623.1 | G74: 598.58
A75: 銅・黄銅 | B75: 2008-01-01 | C75: 813.6 | D75: 294.5 | E75: 657.87 | F75: 631.92 | G75: 605.96
A76: 銅・黄銅 | B76: 2008-02-01 | C76: 889 | D76: 300 | E76: 712.3 | F76: 682.85 | G76: 653.4
A77: 銅・黄銅 | B77: 2008-03-01 | C77: 898 | D77: 296 | E77: 717.4 | F77: 687.3 | G77: 657.2
A78: 銅・黄銅 | B78: 2008-04-01 | C78: 934.2 | D78: 275.5 | E78: 736.59 | F78: 703.66 | G78: 670.72
A79: 銅・黄銅 | B79: 2008-05-01 | C79: 923.8 | D79: 271.7 | E79: 728.17 | F79: 695.57 | G79: 662.96
A80: 銅・黄銅 | B80: 2008-06-01 | C80: 930.4 | D80: 249 | E80: 725.98 | F80: 691.91 | G80: 657.84
A81: 銅・黄銅 | B81: 2008-07-01 | C81: 954 | D81: 242 | E81: 740.4 | F81: 704.8 | G81: 669.2
A82: 銅・黄銅 | B82: 2008-08-01 | C82: 893.3 | D82: 233.6 | E82: 695.39 | F82: 662.41 | G82: 629.42
A83: 銅・黄銅 | B83: 2008-09-01 | C83: 808 | D83: 230.5 | E83: 634.75 | F83: 605.88 | G83: 577
A84: 銅・黄銅 | B84: 2008-10-01 | C84: 567.7 | D84: 177.5 | E84: 450.64 | F84: 431.13 | G84: 411.62
A85: 銅・黄銅 | B85: 2008-11-01 | C85: 424.4 | D85: 153.3 | E85: 343.07 | F85: 329.52 | G85: 315.96
A86: 銅・黄銅 | B86: 2008-12-01 | C86: 347.8 | D86: 142.9 | E86: 286.33 | F86: 276.09 | G86: 265.84
A87: 銅・黄銅 | B87: 2009-01-01 | C87: 338.9 | D87: 151.6 | E87: 282.71 | F87: 273.35 | G87: 263.98
A88: 銅・黄銅 | B88: 2009-02-01 | C88: 352.6 | D88: 143.7 | E88: 289.93 | F88: 279.49 | G88: 269.04
A89: 銅・黄銅 | B89: 2009-03-01 | C89: 413.8 | D89: 161.4 | E89: 338.08 | F89: 325.46 | G89: 312.84
A90: 銅・黄銅 | B90: 2009-04-01 | C90: 496.6 | D90: 182 | E90: 402.22 | F90: 386.49 | G90: 370.76
A91: 銅・黄銅 | B91: 2009-05-01 | C91: 497.6 | D91: 187.6 | E91: 404.6 | F91: 389.1 | G91: 373.6
A92: 銅・黄銅 | B92: 2009-06-01 | C92: 526.3 | D92: 192.7 | E92: 426.22 | F92: 409.54 | G92: 392.86
A93: 銅・黄銅 | B93: 2009-07-01 | C93: 535.9 | D93: 192.5 | E93: 432.88 | F93: 415.71 | G93: 398.54
A94: 銅・黄銅 | B94: 2009-08-01 | C94: 621.9 | D94: 217.1 | E94: 500.46 | F94: 480.22 | G94: 459.98
A95: 銅・黄銅 | B95: 2009-09-01 | C95: 617.8 | D95: 214.2 | E95: 496.72 | F95: 476.54 | G95: 456.36
A96: 銅・黄銅 | B96: 2009-10-01 | C96: 610.9 | D96: 231.2 | E96: 496.99 | F96: 478.01 | G96: 459.02
A97: 銅・黄銅 | B97: 2009-11-01 | C97: 636.8 | D97: 242.1 | E97: 518.39 | F97: 498.66 | G97: 478.92
A98: 銅・黄銅 | B98: 2009-12-01 | C98: 655.2 | D98: 253.2 | E98: 534.6 | F98: 514.5 | G98: 494.4
A99: 銅・黄銅 | B99: 2010-01-01 | C99: 730 | D99: 269.2 | E99: 591.76 | F99: 568.72 | G99: 545.68
A100: 銅・黄銅 | B100: 2010-02-01 | C100: 672.6 | D100: 240 | E100: 542.82 | F100: 521.19 | G100: 499.56
A101: 銅・黄銅 | B101: 2010-03-01 | C101: 712.2 | D101: 249.1 | E101: 573.27 | F101: 550.12 | G101: 526.96
A102: 銅・黄銅 | B102: 2010-04-01 | C102: 779 | D102: 267.5 | E102: 625.55 | F102: 599.98 | G102: 574.4
A103: 銅・黄銅 | B103: 2010-05-01 | C103: 670.5 | D103: 223.9 | E103: 536.52 | F103: 514.19 | G103: 491.86
A104: 銅・黄銅 | B104: 2010-06-01 | C104: 638.11 | D104: 204.8 | E104: 508.12 | F104: 486.45 | G104: 464.79
A105: 銅・黄銅 | B105: 2010-07-01 | C105: 630 | D105: 204.8 | E105: 502.44 | F105: 481.18 | G105: 459.92
A106: 銅・黄銅 | B106: 2010-08-01 | C106: 662.7 | D106: 220.2 | E106: 529.95 | F106: 507.83 | G106: 485.7
A107: 銅・黄銅 | B107: 2010-09-01 | C107: 687.5 | D107: 226.3 | E107: 549.14 | F107: 526.08 | G107: 503.02
A108: 銅・黄銅 | B108: 2010-10-01 | C108: 723.5 | D108: 237.3 | E108: 577.64 | F108: 553.33 | G108: 529.02
A109: 銅・黄銅 | B109: 2010-11-01 | C109: 741.5 | D109: 234.5 | E109: 589.4 | F109: 564.05 | G109: 538.7
A110: 銅・黄銅 | B110: 2010-12-01 | C110: 802.6 | D110: 233.7 | E110: 631.93 | F110: 603.49 | G110: 575.04
A111: 銅・黄銅 | B111: 2011-01-01 | C111: 833.6 | D111: 241.8 | E111: 656.06 | F111: 626.47 | G111: 596.88
A112: 銅・黄銅 | B112: 2011-02-01 | C112: 863.1 | D112: 249.5 | E112: 679.02 | F112: 648.34 | G112: 617.66
A113: 銅・黄銅 | B113: 2011-03-01 | C113: 826.3 | D113: 238 | E113: 649.81 | F113: 620.4 | G113: 590.98
A114: 銅・黄銅 | B114: 2011-04-01 | C114: 838.5 | D114: 246 | E114: 660.75 | F114: 631.13 | G114: 601.5
A115: 銅・黄銅 | B115: 2011-05-01 | C115: 768.3 | D115: 218.8 | E115: 603.45 | F115: 575.98 | G115: 548.5
A116: 銅・黄銅 | B116: 2011-06-01 | C116: 772.7 | D116: 225.5 | E116: 608.54 | F116: 581.18 | G116: 553.82
A117: 銅・黄銅 | B117: 2011-07-01 | C117: 811 | D117: 234.3 | E117: 637.99 | F117: 609.16 | G117: 580.32
A118: 銅・黄銅 | B118: 2011-08-01 | C118: 744.3 | D118: 215.4 | E118: 585.63 | F118: 559.19 | G118: 532.74
A119: 銅・黄銅 | B119: 2011-09-01 | C119: 695.5 | D119: 206.8 | E119: 548.89 | F119: 524.46 | G119: 500.02
A120: 銅・黄銅 | B120: 2011-10-01 | C120: 603.5 | D120: 186.8 | E120: 478.49 | F120: 457.66 | G120: 436.82
A121: 銅・黄銅 | B121: 2011-11-01 | C121: 633.1 | D121: 194 | E121: 501.37 | F121: 479.42 | G121: 457.46
A122: 銅・黄銅 | B122: 2011-12-01 | C122: 636.8 | D122: 197.1 | E122: 504.89 | F122: 482.91 | G122: 460.92
A123: 銅・黄銅 | B123: 2012-01-01 | C123: 662.1 | D123: 195.5 | E123: 522.12 | F123: 498.79 | G123: 475.46
A124: 銅・黄銅 | B124: 2012-02-01 | C124: 707.1 | D124: 205.7 | E124: 556.68 | F124: 531.61 | G124: 506.54
A125: 銅・黄銅 | B125: 2012-03-01 | C125: 740.9 | D125: 214.3 | E125: 582.92 | F125: 556.59 | G125: 530.26
A126: 銅・黄銅 | B126: 2012-04-01 | C126: 715 | D126: 208 | E126: 562.9 | F126: 537.55 | G126: 512.2
A127: 銅・黄銅 | B127: 2012-05-01 | C127: 674.2 | D127: 198.7 | E127: 531.55 | F127: 507.78 | G127: 484
A128: 銅・黄銅 | B128: 2012-06-01 | C128: 631.4 | D128: 193.6 | E128: 500.06 | F128: 478.17 | G128: 456.28
A129: 銅・黄銅 | B129: 2012-07-01 | C129: 644.7 | D129: 193.3 | E129: 509.28 | F129: 486.71 | G129: 464.14
A130: 銅・黄銅 | B130: 2012-08-01 | C130: 631.3 | D130: 188.9 | E130: 498.58 | F130: 476.46 | G130: 454.34
A131: 銅・黄銅 | B131: 2012-09-01 | C131: 674.2 | D131: 200.8 | E131: 532.18 | F131: 508.51 | G131: 484.84
A132: 銅・黄銅 | B132: 2012-10-01 | C132: 681.9 | D132: 198.9 | E132: =ROUND(C132*0.7+D132*0.3,2) -> 537 | F132: =ROUND(C132*0.65+D132*0.35,2) -> 512.85 | G132: =ROUND(C132*0.6+D132*0.4,2) -> 488.7
A133: 銅・黄銅 | B133: 2012-11-01 | C133: 663.5 | D133: 198.8 | E133: 524.09 | F133: 500.86 | G133: 477.62
A134: 銅・黄銅 | B134: 2012-12-01 | C134: 706.8 | D134: 217.4 | E134: 559.98 | F134: 535.51 | G134: 511.04
A135: 銅・黄銅 | B135: 2013-01-01 | C135: 761 | D135: 228.4 | E135: 601.22 | F135: 574.59 | G135: 547.96
A136: 銅・黄銅 | B136: 2013-02-01 | C136: 801.5 | D136: 246.8 | E136: 635.09 | F136: 607.36 | G136: 579.62
A137: 銅・黄銅 | B137: 2013-03-01 | C137: 771 | D137: 230.5 | E137: 608.85 | F137: 581.83 | G137: 554.8
A138: 銅・黄銅 | B138: 2013-04-01 | C138: 750.9 | D138: 228 | E138: 594.03 | F138: 567.89 | G138: 541.74
A139: 銅・黄銅 | B139: 2013-05-01 | C139: 782.6 | D139: 233.2 | E139: 617.78 | F139: 590.31 | G139: 562.84
A140: 銅・黄銅 | B140: 2013-06-01 | C140: 729 | D140: 228 | E140: 578.7 | F140: 553.65 | G140: 528.6
A141: 銅・黄銅 | B141: 2013-07-01 | C141: 728.1 | D141: 233.6 | E141: 579.75 | F141: 555.03 | G141: 530.3
A142: 銅・黄銅 | B142: 2013-08-01 | C142: 745 | D142: 234.7 | E142: 591.91 | F142: 566.4 | G142: 540.88
A143: 銅・黄銅 | B143: 2013-09-01 | C143: 751.5 | D143: 232.9 | E143: 595.92 | F143: 569.99 | G143: 544.06
A144: 銅・黄銅 | B144: 2013-10-01 | C144: 750 | D144: 232.7 | E144: 594.81 | F144: 568.95 | G144: 543.08
A145: 銅・黄銅 | B145: 2013-11-01 | C145: 750.5 | D145: 234.8 | E145: 595.79 | F145: 570.01 | G145: 544.22
A146: 銅・黄銅 | B146: 2013-12-01 | C146: 783.6 | D146: 251.8 | E146: 624.06 | F146: 597.47 | G146: 570.88
A147: 銅・黄銅 | B147: 2014-01-01 | C147: 808.4 | D147: 262.6 | E147: 644.66 | F147: 617.37 | G147: 590.08
A148: 銅・黄銅 | B148: 2014-02-01 | C148: 781 | D148: 256.6 | E148: 623.68 | F148: 597.46 | G148: 571.24
A149: 銅・黄銅 | B149: 2014-03-01 | C149: 731 | D149: 255 | E149: 588.2 | F149: 564.4 | G149: 540.6
A150: 銅・黄銅 | B150: 2014-04-01 | C150: 731.4 | D150: 256.5 | E150: 588.93 | F150: 565.19 | G150: 541.44
A151: 銅・黄銅 | B151: 2014-05-01 | C151: 748.8 | D151: 259.2 | E151: 601.92 | F151: 577.44 | G151: 552.96
A152: 銅・黄銅 | B152: 2014-06-01 | C152: 740.4 | D152: 265.4 | E152: 597.9 | F152: 574.15 | G152: 550.4
A153: 銅・黄銅 | B153: 2014-07-01 | C153: 770 | D153: 282 | E153: 623.6 | F153: 599.2 | G153: 574.8
A154: 銅・黄銅 | B154: 2014-08-01 | C154: 768.5 | D154: 286.5 | E154: 623.9 | F154: 599.8 | G154: 575.7
A155: 銅・黄銅 | B155: 2014-09-01 | C155: 782 | D155: 291.1 | E155: 634.73 | F155: 610.19 | G155: 585.64
A156: 銅・黄銅 | B156: 2014-10-01 | C156: 772.3 | D156: 291 | E156: 627.91 | F156: 603.85 | G156: 579.78
A157: 銅・黄銅 | B157: 2014-11-01 | C157: 827.6 | D157: 308.7 | E157: 671.93 | F157: 645.99 | G157: 620.04
A158: 銅・黄銅 | B158: 2014-12-01 | C158: 815.7 | D158: 307.2 | E158: 663.15 | F158: 637.73 | G158: 612.3
A159: 銅・黄銅 | B159: 2015-01-01 | C159: 745.7 | D159: 297.2 | E159: 611.15 | F159: 588.73 | G159: 566.3
A160: 銅・黄銅 | B160: 2015-02-01 | C160: 724.2 | D160: 295.5 | E160: 595.59 | F160: 574.16 | G160: 552.72
A161: 銅・黄銅 | B161: 2015-03-01 | C161: 762.7 | D161: 291.5 | E161: 621.34 | F161: 597.78 | G161: 574.22
A162: 銅・黄銅 | B162: 2015-04-01 | C162: 765.5 | D162: 310 | E162: 628.85 | F162: 606.08 | G162: 583.3
A163: 銅・黄銅 | B163: 2015-05-01 | C163: 810.5 | D163: 322.9 | E163: 664.22 | F163: 639.84 | G163: 615.46
A164: 銅・黄銅 | B164: 2015-06-01 | C164: 769.5 | D164: 307.4 | E164: 630.87 | F164: 607.77 | G164: 584.66
A165: 銅・黄銅 | B165: 2015-07-01 | C165: 724 | D165: 294.9 | E165: 595.27 | F165: 573.82 | G165: 552.36
A166: 銅・黄銅 | B166: 2015-08-01 | C166: 678.5 | D166: 271 | E166: 556.25 | F166: 535.88 | G166: 515.5
A167: 銅・黄銅 | B167: 2015-09-01 | C167: 680 | D167: 260.4 | E167: 554.12 | F167: 533.14 | G167: 512.16
A168: 銅・黄銅 | B168: 2015-10-01 | C168: 676.5 | D168: 258.1 | E168: 550.98 | F168: 530.06 | G168: 509.14
A169: 銅・黄銅 | B169: 2015-11-01 | C169: 638.3 | D169: 243.8 | E169: 519.95 | F169: 500.23 | G169: 480.5
A170: 銅・黄銅 | B170: 2015-12-01 | C170: 610 | D170: 234.8 | E170: 497.44 | F170: 478.68 | G170: 459.92
A171: 銅・黄銅 | B171: 2016-01-01 | C171: 575.2 | D171: 226 | E171: 470.44 | F171: 452.98 | G171: 435.52
A172: 銅・黄銅 | B172: 2016-02-01 | C172: 576 | D172: 247.8 | E172: 477.54 | F172: 461.13 | G172: 444.72
A173: 銅・黄銅 | B173: 2016-03-01 | C173: 601.8 | D173: 255.5 | E173: 497.91 | F173: 480.6 | G173: 463.28
A174: 銅・黄銅 | B174: 2016-04-01 | C174: 581 | D174: 254.1 | E174: 482.93 | F174: 466.59 | G174: 450.24
A175: 銅・黄銅 | B175: 2016-05-01 | C175: 552.2 | D175: 253.5 | E175: 462.59 | F175: 447.66 | G175: 432.72
A176: 銅・黄銅 | B176: 2016-06-01 | C176: 534 | D176: 262.4 | E176: 452.52 | F176: 438.94 | G176: 425.36
A177: 銅・黄銅 | B177: 2016-07-01 | C177: 547.5 | D177: 277.9 | E177: 466.62 | F177: 453.14 | G177: 439.66
A178: 銅・黄銅 | B178: 2016-08-01 | C178: 525.9 | D178: 281.3 | E178: 452.52 | F178: 440.29 | G178: 428.06
A179: 銅・黄銅 | B179: 2016-09-01 | C179: 525 | D179: 282.9 | E179: 452.37 | F179: 440.27 | G179: 428.16
A180: 銅・黄銅 | B180: 2016-10-01 | C180: 532.6 | D180: 286.8 | E180: 458.86 | F180: 446.57 | G180: 434.28
A181: 銅・黄銅 | B181: 2016-11-01 | C181: 629 | D181: 320.5 | E181: 536.45 | F181: 521.03 | G181: 505.6
A182: 銅・黄銅 | B182: 2016-12-01 | C182: 704.7 | D182: 358.8 | E182: 600.93 | F182: 583.64 | G182: 566.34
A183: 銅・黄銅 | B183: 2017-01-01 | C183: 699.4 | D183: 357.4 | E183: 596.8 | F183: 579.7 | G183: 562.6
A184: 銅・黄銅 | B184: 2017-02-01 | C184: 712.1 | D184: 370.5 | E184: 609.62 | F184: 592.54 | G184: 575.46
A185: 銅・黄銅 | B185: 2017-03-01 | C185: 703.6 | D185: 361.5 | E185: 600.97 | F185: 583.87 | G185: 566.76
A186: 銅・黄銅 | B186: 2017-04-01 | C186: 669.5 | D186: 336.9 | E186: 569.72 | F186: 553.09 | G186: 536.46
A187: 銅・黄銅 | B187: 2017-05-01 | C187: 671.6 | D187: 340.2 | E187: 572.18 | F187: 555.61 | G187: 539.04
A188: 銅・黄銅 | B188: 2017-06-01 | C188: 673.8 | D188: 332.6 | E188: 571.44 | F188: 554.38 | G188: 537.32
A189: 銅・黄銅 | B189: 2017-07-01 | C189: 713 | D189: 363.1 | E189: 608.03 | F189: 590.54 | G189: 573.04
A190: 銅・黄銅 | B190: 2017-08-01 | C190: 750.4 | D190: 374.6 | E190: 637.66 | F190: 618.87 | G190: 600.08
A191: 銅・黄銅 | B191: 2017-09-01 | C191: 773.6 | D191: 394.3 | E191: 659.81 | F191: 640.85 | G191: 621.88
A192: 銅・黄銅 | B192: 2017-10-01 | C192: 812.3 | D192: 418.3 | E192: 694.1 | F192: 674.4 | G192: 654.7
A193: 銅・黄銅 | B193: 2017-11-01 | C193: 813.1 | D193: 415.9 | E193: 693.94 | F193: 674.08 | G193: 654.22
A194: 銅・黄銅 | B194: 2017-12-01 | C194: 810 | D194: 408.9 | E194: 689.67 | F194: 669.62 | G194: 649.56
A195: 銅・黄銅 | B195: 2018-01-01 | C195: 825.7 | D195: 430 | E195: 706.99 | F195: 687.21 | G195: 667.42
A196: 銅・黄銅 | B196: 2018-02-01 | C196: 801.5 | D196: 431.6 | E196: =ROUND(C196*0.7+D196*0.3,2) -> 690.53 | F196: =ROUND(C196*0.65+D196*0.35,2) -> 672.04 | G196: =ROUND(C196*0.6+D196*0.4,2) -> 653.54
A197: 銅・黄銅 | B197: 2018-03-01 | C197: 765.7 | D197: 394.4 | E197: 654.31 | F197: 635.75 | G197: 617.18
A198: 銅・黄銅 | B198: 2018-04-01 | C198: 778.5 | D198: 393 | E198: 662.85 | F198: 643.58 | G198: 624.3
A199: 銅・黄銅 | B199: 2018-05-01 | C199: 797.8 | D199: 384.5 | E199: 673.81 | F199: 653.15 | G199: 632.48
A200: 銅・黄銅 | B200: 2018-06-01 | C200: 810 | D200: 389 | E200: 683.7 | F200: 662.65 | G200: 641.6
... 69 more rows

Sheet 3アルミ
A1: アルミ価格推移 | B1: グラフへ戻る | C1: 出典：新地金は日本経済新聞の記事及び日経NEEDS、再生塊は日刊産業新聞
A2: 指標 | B2: 期間 | C2: 新地金（円/kg） | D2: 再生塊（円/kg）
A3: アルミ | B3: 2011-01-01 | C3: 243.53
A4: アルミ | B4: 2011-02-01 | C4: 249.42
A5: アルミ | B5: 2011-03-01 | C5: 250.2727273
A6: アルミ | B6: 2011-04-01 | C6: 264.56
A7: アルミ | B7: 2011-05-01 | C7: 250.76
A8: アルミ | B8: 2011-06-01 | C8: 248.2727273
A9: アルミ | B9: 2011-07-01 | C9: 242.05
A10: アルミ | B10: 2011-08-01 | C10: 225.27
A11: アルミ | B11: 2011-09-01 | C11: 217.85
A12: アルミ | B12: 2011-10-01 | C12: 207.2
A13: アルミ | B13: 2011-11-01 | C13: 203.85
A14: アルミ | B14: 2011-12-01 | C14: 200.47
A15: アルミ | B15: 2012-01-01 | C15: 205.42 | D15: 274
A16: アルミ | B16: 2012-02-01 | C16: 213.14 | D16: 272
A17: アルミ | B17: 2012-03-01 | C17: 222.38 | D17: 274
A18: アルミ | B18: 2012-04-01 | C18: 208.68 | D18: 277
A19: アルミ | B19: 2012-05-01 | C19: 204.6 | D19: 278
A20: アルミ | B20: 2012-06-01 | C20: 196.95 | D20: 276
A21: アルミ | B21: 2012-07-01 | C21: 195.29 | D21: 273
A22: アルミ | B22: 2012-08-01 | C22: 181.18 | D22: 269
A23: アルミ | B23: 2012-09-01 | C23: 207.79 | D23: 265
A24: アルミ | B24: 2012-10-01 | C24: 207.27 | D24: 265
A25: アルミ | B25: 2012-11-01 | C25: 209.33 | D25: 268
A26: アルミ | B26: 2012-12-01 | C26: 229.35 | D26: 268
A27: アルミ | B27: 2013-01-01 | C27: 236.7894737 | D27: 271
A28: アルミ | B28: 2013-02-01 | C28: 249.1578947 | D28: 277.2631579
A29: アルミ | B29: 2013-03-01 | C29: 240.05 | D29: 286.1
A30: アルミ | B30: 2013-04-01 | C30: 242.95 | D30: 295.1428571
A31: アルミ | B31: 2013-05-01 | C31: 247.1 | D31: 300.5238095
A32: アルミ | B32: 2013-06-01 | C32: 237.6 | D32: 302.8
A33: アルミ | B33: 2013-07-01 | C33: 236.82 | D33: 304.8181818
A34: アルミ | B34: 2013-08-01 | C34: 237.19 | D34: 305
A35: アルミ | B35: 2013-09-01 | C35: 235.21 | D35: 304.1052632
A36: アルミ | B36: 2013-10-01 | C36: 236.82 | D36: 304.9090909
A37: アルミ | B37: 2013-11-01 | C37: 235.8 | D37: 305.9
A38: アルミ | B38: 2013-12-01 | C38: 240.76 | D38: 307.7894737
A39: アルミ | B39: 2014-01-01 | C39: 244.9473684 | D39: 309.8888889
A40: アルミ | B40: 2014-02-01 | C40: 242.3157895 | D40: 311.7894737
A41: アルミ | B41: 2014-03-01 | C41: 245.35 | D41: 312.9
A42: アルミ | B42: 2014-04-01 | C42: 260.58 | D42: 313
A43: アルミ | B43: 2014-05-01 | C43: 251.8421053 | D43: 313
A44: アルミ | B44: 2014-06-01 | C44: 265.05 | D44: 313
A45: アルミ | B45: 2014-07-01 | C45: 276.7727273 | D45: 313
A46: アルミ | B46: 2014-08-01 | C46: 289.85 | D46: 315.7142857
A47: アルミ | B47: 2014-09-01 | C47: 298.2 | D47: 319.6
A48: アルミ | B48: 2014-10-01 | C48: 295.4545455 | D48: 324.5454545
A49: アルミ | B49: 2014-11-01 | C49: 332.78 | D49: 329.4444444
A50: アルミ | B50: 2014-12-01 | C50: 324 | D50: 335.3684211
A51: アルミ | B51: 2015-01-01 | C51: 307.8421053 | D51: 340.7222222
A52: アルミ | B52: 2015-02-01 | C52: 309.2631579 | D52: 343.6842105
A53: アルミ | B53: 2015-03-01 | C53: 306.05 | D53: 344
A54: アルミ | B54: 2015-04-01 | C54: 306.74 | D54: 341.2857143
A55: アルミ | B55: 2015-05-01 | C55: 305.47 | D55: 338.3333333
A56: アルミ | B56: 2015-06-01 | C56: 284.8636364 | D56: 335.2727273
A57: アルミ | B57: 2015-07-01 | C57: 257.7272727 | D57: 332.2727273
A58: アルミ | B58: 2015-08-01 | C58: 246.55 | D58: 329.2857143
A59: アルミ | B59: 2015-09-01 | C59: 246.7894737 | D59: 326.3157895
A60: アルミ | B60: 2015-10-01 | C60: 236.52 | D60: 323.2857143
A61: アルミ | B61: 2015-11-01 | C61: 235.95 | D61: 319.4210526
A62: アルミ | B62: 2015-12-01 | C62: 238.06 | D62: 314.5263158
A63: アルミ | B63: 2016-01-01 | C63: 232.3157895 | D63: 310.2352941
A64: アルミ | B64: 2016-02-01 | C64: 233.25 | D64: 306.4
A65: アルミ | B65: 2016-03-01 | C65: 228.5 | D65: 300.5454545
A66: アルミ | B66: 2016-04-01 | C66: 225.8 | D66: 296.4
A67: アルミ | B67: 2016-05-01 | C67: 222.82 | D67: 293.3157895
A68: アルミ | B68: 2016-06-01 | C68: 221.2272727 | D68: 291.1818182
A69: アルミ | B69: 2016-07-01 | C69: 219.7 | D69: 288.3
A70: アルミ | B70: 2016-08-01 | C70: 214.952381 | D70: 285.2727273
A71: アルミ | B71: 2016-09-01 | C71: 210.9 | D71: 282.3
A72: アルミ | B72: 2016-10-01 | C72: 221.3 | D72: 279.3
A73: アルミ | B73: 2016-11-01 | C73: 239.15 | D73: 277.2
A74: アルミ | B74: 2016-12-01 | C74: 254.35 | D74: 281.4736842
A75: アルミ | B75: 2017-01-01 | C75: 260.8421053 | D75: 291.4117647
A76: アルミ | B76: 2017-02-01 | C76: 264 | D76: 301
A77: アルミ | B77: 2017-03-01 | C77: 270.86 | D77: 307.4545455
A78: アルミ | B78: 2017-04-01 | C78: 269.06 | D78: 310.7
A79: アルミ | B79: 2017-05-01 | C79: 272.44 | D79: 311
A80: アルミ | B80: 2017-06-01 | C80: 265.95 | D80: 310.0909091
A81: アルミ | B81: 2017-07-01 | C81: 270.1 | D81: 307.3
A82: アルミ | B82: 2017-08-01 | C82: 277.86 | D82: 304.2727273
A83: アルミ | B83: 2017-09-01 | C83: 287.85 | D83: 304
A84: アルミ | B84: 2017-10-01 | C84: 295.43 | D84: 307.6190476
A85: アルミ | B85: 2017-11-01 | C85: 290.95 | D85: 314.3
A86: アルミ | B86: 2017-12-01 | C86: 286.39 | D86: 318.6
A87: アルミ | B87: 2018-01-01 | C87: 299.7368421 | D87: 319.9411765
A88: アルミ | B88: 2018-02-01 | C88: 291.6315789 | D88: 320
A89: アルミ | B89: 2018-03-01 | C89: 275.55 | D89: 320
A90: アルミ | B90: 2018-04-01 | C90: 301.2105263 | D90: 318.2
A91: アルミ | B91: 2018-05-01 | C91: 316.3684211 | D91: 316.1904762
A92: アルミ | B92: 2018-06-01 | C92: 311.43 | D92: 318.7142857
A93: アルミ | B93: 2018-07-01 | C93: 295.33 | D93: 319
A94: アルミ | B94: 2018-08-01 | C94: 285.9545455 | D94: 317.173913
A95: アルミ | B95: 2018-09-01 | C95: 285.0555556 | D95: 313.4444444
A96: アルミ | B96: 2018-10-01 | C96: 286.5909091 | D96: 311.1818182
A97: アルミ | B97: 2018-11-01 | C97: 277.1 | D97: 311
A98: アルミ | B98: 2018-12-01 | C98: 275.29 | D98: 311
A99: アルミ | B99: 2019-01-01 | C99: 254.21 | D99: 310.0588235
A100: アルミ | B100: 2019-02-01 | C100: 258.32 | D100: 305.5263158
A101: アルミ | B101: 2019-03-01 | C101: 261.35 | D101: 300.5
A102: アルミ | B102: 2019-04-01 | C102: 263.33 | D102: 295.5
A103: アルミ | B103: 2019-05-01 | C103: 249.89 | D103: 293.2105263
A104: アルミ | B104: 2019-06-01 | C104: 243.6 | D104: 292.1
A105: アルミ | B105: 2019-07-01 | C105: 248.95 | D105: 288.3636364
A106: アルミ | B106: 2019-08-01 | C106: 239.15 | D106: 285.2857143
A107: アルミ | B107: 2019-09-01 | C107: 242.4210526 | D107: 280.5263158
A108: アルミ | B108: 2019-10-01 | C108: 240.48 | D108: 276.3809524
A109: アルミ | B109: 2019-11-01 | C109: 248.95 | D109: 274.2
A110: アルミ | B110: 2019-12-01 | C110: 247.3888889 | D110: 274
A111: アルミ | B111: 2020-01-01 | C111: 246.37 | D111: 274
A112: アルミ | B112: 2020-02-01 | C112: 238.06 | D112: 275
A113: アルミ | B113: 2020-03-01 | C113: 224.7619048 | D113: 275
A114: アルミ | B114: 2020-04-01 | C114: 207.5789474 | D114: 271
A115: アルミ | B115: 2020-05-01 | C115: 207.375 | D115: 265
A116: アルミ | B116: 2020-06-01 | C116: 218.7727273 | D116: 257
A117: アルミ | B117: 2020-07-01 | C117: 223.9047619 | D117: 252
A118: アルミ | B118: 2020-08-01 | C118: 232.3684211 | D118: 257
A119: アルミ | B119: 2020-09-01 | C119: 233.8 | D119: 263
A120: アルミ | B120: 2020-10-01 | C120: 240.5454545 | D120: 270
A121: アルミ | B121: 2020-11-01 | C121: 252.2105263 | D121: 280
A122: アルミ | B122: 2020-12-01 | C122: 262.2222222 | D122: 290
A123: アルミ | B123: 2021-01-01 | C123: 263.37 | D123: 309.8235294
A124: アルミ | B124: 2021-02-01 | C124: 274.0555556 | D124: 327
A125: アルミ | B125: 2021-03-01 | C125: 294.17 | D125: 336.3043478
A126: アルミ | B126: 2021-04-01 | C126: 311.4210526 | D126: 344.2380952
A127: アルミ | B127: 2021-05-01 | C127: 326.5882353 | D127: 352.1111111
A128: アルミ | B128: 2021-06-01 | C128: 333.95 | D128: 360.2727273
A129: アルミ | B129: 2021-07-01 | C129: 340.45 | D129: 368.2
A130: アルミ | B130: 2021-08-01 | C130: 352.6 | D130: 374.4285714
A131: アルミ | B131: 2021-09-01 | C131: 376.95 | D131: 377.7
A132: アルミ | B132: 2021-10-01 | C132: 404.4761905 | D132: 385.2380952
A133: アルミ | B133: 2021-11-01 | C133: 373.2 | D133: 413
A134: アルミ | B134: 2021-12-01 | C134: 375.2777778 | D134: 447.6666667
A135: アルミ | B135: 2022-01-01 | C135: 412.4210526 | D135: 465.1176471
A136: アルミ | B136: 2022-02-01 | C136: 443.7777778 | D136: 461.5555556
A137: アルミ | B137: 2022-03-01 | C137: 488.0454545 | D137: 451.9090909
A138: アルミ | B138: 2022-04-01 | C138: 486.3888889 | D138: 453.7
A139: アルミ | B139: 2022-05-01 | C139: 436.8333333 | D139: 461.1578947
A140: アルミ | B140: 2022-06-01 | C140: 422.245 | D140: 457.4545455
A141: アルミ | B141: 2022-07-01 | C141: 404.6 | D141: 443.5
A142: アルミ | B142: 2022-08-01 | C142: 403.67 | D142: 428.3636364
A143: アルミ | B143: 2022-09-01 | C143: 397.1 | D143: 418
A144: アルミ | B144: 2022-10-01 | C144: 405.6 | D144: 417
A145: アルミ | B145: 2022-11-01 | C145: 401.9 | D145: 426
A146: アルミ | B146: 2022-12-01 | C146: 393.28 | D146: 433.3333333
A147: アルミ | B147: 2023-01-01 | C147: 389.684211 | D147: 441.5294118
A148: アルミ | B148: 2023-02-01 | C148: 386.210526 | D148: 439.3157895
A149: アルミ | B149: 2023-03-01 | C149: 370.7391304 | D149: 429.9090909
A150: アルミ | B150: 2023-04-01 | C150: 376.67 | D150: 429.25
A151: アルミ | B151: 2023-05-01 | C151: 384 | D151: 425.2
A152: アルミ | B152: 2023-06-01 | C152: 381.2380952 | D152: 423.0909091
A153: アルミ | B153: 2023-07-01 | C153: 373.9722222 | D153: 420.15
A154: アルミ | B154: 2023-08-01 | C154: 381.4736842 | D154: 417.1363636
A155: アルミ | B155: 2023-09-01 | C155: 395.45 | D155: 417
A156: アルミ | B156: 2023-10-01 | C156: 400.5 | D156: 424.6190476
A157: アルミ | B157: 2023-11-01 | C157: 402.1052632 | D157: 432.6
A158: アルミ | B158: 2023-12-01 | C158: 381.1578947 | D158: 440.6
A159: アルミ | B159: 2024-01-01 | C159: 387.2777778 | D159: 447.6111111
A160: アルミ | B160: 2024-02-01 | C160: 396.5789474 | D160: 448
A161: アルミ | B161: 2024-03-01 | C161: 363.5909091 | D161: 445.15

Sheet 4ウレタン
A1: ウレタン価格推移 | B1: グラフへ戻る | C1: 出典：プロピレン・エチレン・トルエン・ベンゼンは日本経済新聞の記事及び日経NEEDS、石炭は財務省貿易統計
A3: 配合比率（%） | B3: プロピレン | C3: エチレン | D3: トルエン | E3: ベンゼン | F3: 石炭 | G3: ポリオール | H3: イソシアネート
A4: ウレタンA | B4: =指標合算!J3 -> 0 | C4: =指標合算!K3 -> 100 | D4: =指標合算!L3 -> 0 | E4: =指標合算!M3 -> 100 | F4: =指標合算!N3 -> 0 | G4: =指標合算!O3 -> 0 | H4: =指標合算!P3 -> 100
A5: ウレタンB | B5: =指標合算!J4 -> 20 | C5: =指標合算!K4 -> 80 | D5: =指標合算!L4 -> 20 | E5: =指標合算!M4 -> 80 | F5: =指標合算!N4 -> 2 | G5: =指標合算!O4 -> 20 | H5: =指標合算!P4 -> 80
A6: ウレタンC | B6: =指標合算!J5 -> 60 | C6: =指標合算!K5 -> 40 | D6: =指標合算!L5 -> 60 | E6: =指標合算!M5 -> 40 | F6: =指標合算!N5 -> 3 | G6: =指標合算!O5 -> 60 | H6: =指標合算!P5 -> 40
A7: ウレタンD | B7: =指標合算!J6 -> 100 | C7: =指標合算!K6 -> 0 | D7: =指標合算!L6 -> 100 | E7: =指標合算!M6 -> 0 | F7: =指標合算!N6 -> 3 | G7: =指標合算!O6 -> 100 | H7: =指標合算!P6 -> 0
A9: 指標 | B9: 期間 | C9: プロピレン（円/kg） | D9: エチレン（円/kg） | E9: トルエン（円/kg） | F9: ベンゼン（円/kg） | G9: 石炭（円/kg） | H9: ウレタンA（円/kg） | I9: ウレタンB（円/kg） | J9: ウレタンC（円/kg） | K9: ウレタンD（円/kg）
A10: ウレタン | B10: 2010-01-01 | C10: 107.6 | D10: 120.6 | E10: 133.5 | F10: 95.7 | G10: 8.774492398 | H10: =ROUND(($B$4/100*C10+$C$4/100*D10)*$G$4/100+($D$4/100*E10+$E$4/100*F10+$F$4*G10)*$H$4/100,2) -> 95.7 | I10: =ROUND(($B$5/100*C10+$C$5/100*D10)*$G$5/100+($D$5/100*E10+$E$5/100*F10+$F$5*G10)*$H$5/100,2) -> 120.25 | J10: =ROUND(($B$6/100*C10+$C$6/100*D10)*$G$6/100+($D$6/100*E10+$E$6/100*F10+$F$6*G10)*$H$6/100,2) -> 125.56 | K10: =ROUND(($B$7/100*C10+$C$7/100*D10)*$G$7/100+($D$7/100*E10+$E$7/100*F10+$F$7*G10)*$H$7/100,2) -> 107.6
A11: ウレタン | B11: 2010-02-01 | C11: 107.6 | D11: 120.6 | E11: 133.5 | F11: 90.15 | G11: 8.725680911 | H11: =ROUND(($B$4/100*C11+$C$4/100*D11)*$G$4/100+($D$4/100*E11+$E$4/100*F11+$F$4*G11)*$H$4/100,2) -> 90.15 | I11: =ROUND(($B$5/100*C11+$C$5/100*D11)*$G$5/100+($D$5/100*E11+$E$5/100*F11+$F$5*G11)*$H$5/100,2) -> 116.62 | J11: =ROUND(($B$6/100*C11+$C$6/100*D11)*$G$6/100+($D$6/100*E11+$E$6/100*F11+$F$6*G11)*$H$6/100,2) -> 124.61 | K11: =ROUND(($B$7/100*C11+$C$7/100*D11)*$G$7/100+($D$7/100*E11+$E$7/100*F11+$F$7*G11)*$H$7/100,2) -> 107.6
A12: ウレタン | B12: 2010-03-01 | C12: 107.6 | D12: 120.6 | E12: 133.5 | F12: 91.1 | G12: 8.794043176 | H12: 91.1 | I12: 117.33 | J12: 124.85 | K12: =ROUND(($B$7/100*C12+$C$7/100*D12)*$G$7/100+($D$7/100*E12+$E$7/100*F12+$F$7*G12)*$H$7/100,2) -> 107.6
A13: ウレタン | B13: 2010-04-01 | C13: 111.6 | D13: 124.6 | E13: 133.5 | F13: 97.1 | G13: 9.541464323 | H13: 97.1 | I13: =ROUND(($B$5/100*C13+$C$5/100*D13)*$G$5/100+($D$5/100*E13+$E$5/100*F13+$F$5*G13)*$H$5/100,2) -> 123.17 | J13: 129.11 | K13: 111.6
A14: ウレタン | B14: 2010-05-01 | C14: 111.6 | D14: 124.6 | E14: 133.5 | F14: 96.14 | G14: 9.928224733 | H14: =ROUND(($B$4/100*C14+$C$4/100*D14)*$G$4/100+($D$4/100*E14+$E$4/100*F14+$F$4*G14)*$H$4/100,2) -> 96.14 | I14: 123.17 | J14: 129.42 | K14: 111.6
A15: ウレタン | B15: 2010-06-01 | C15: 111.6 | D15: 124.6 | E15: 133.5 | F15: 80.85 | G15: 10.59060905 | H15: 80.85 | I15: 114.45 | J15: 127.76 | K15: 111.6
A16: ウレタン | B16: 2010-07-01 | C16: 97.6 | D16: 110.6 | E16: 133.5 | F16: 75.3 | G16: 10.46941083 | H16: 75.3 | I16: 107.9 | J16: =ROUND(($B$6/100*C16+$C$6/100*D16)*$G$6/100+($D$6/100*E16+$E$6/100*F16+$F$6*G16)*$H$6/100,2) -> 118.33 | K16: 97.6
A17: ウレタン | B17: 2010-08-01 | C17: 97.6 | D17: 110.6 | E17: 133.5 | F17: 77.12 | G17: 10.02928839 | H17: 77.12 | I17: 108.36 | J17: 118.09 | K17: 97.6
A18: ウレタン | B18: 2010-09-01 | C18: 97.6 | D18: 110.6 | E18: 133.5 | F18: 77.4 | G18: 9.923379451 | H18: 77.4 | I18: 108.37 | J18: 118.01 | K18: 97.6
A19: ウレタン | B19: 2010-10-01 | C19: 102.4 | D19: 115.4 | E19: 133.5 | F19: 78.78 | G19: 9.945582716 | H19: 78.78 | I19: 110.25 | J19: 121.14 | K19: 102.4
A20: ウレタン | B20: 2010-11-01 | C20: 102.4 | D20: 115.4 | E20: 133.5 | F20: 82.425 | G20: 9.6571405 | H20: 82.43 | I20: 112.12 | J20: 121.38 | K20: 102.4
A21: ウレタン | B21: 2010-12-01 | C21: 102.4 | D21: 115.4 | E21: 133.5 | F21: 84 | G21: 9.828865872 | H21: 84 | I21: 113.41 | J21: 121.83 | K21: 102.4
A22: ウレタン | B22: 2011-01-01 | C22: 117 | D22: 130 | E22: 133.5 | F22: 92.06 | G22: 10.18826811 | H22: 92.06 | I22: 122.06 | J22: 132.32 | K22: 117
A23: ウレタン | B23: 2011-02-01 | C23: 117 | D23: 130 | E23: 133.5 | F23: 99.65 | G23: 10.560332 | H23: 99.65 | I23: 127.51 | J23: 133.98 | K23: 117
A24: ウレタン | B24: 2011-03-01 | C24: 117 | D24: 130 | E24: 133.5 | F24: 102.5 | G24: 10.85302246 | H24: 102.5 | I24: 129.8 | J24: 134.78 | K24: 117
A25: ウレタン | B25: 2011-04-01 | C25: 130.2 | D25: 143.2 | E25: 133.5 | F25: 101.5 | G25: 11.16842074 | H25: 101.5 | I25: 132.31 | J25: 142.92 | K25: 130.2
A26: ウレタン | B26: 2011-05-01 | C26: 130.2 | D26: 143.2 | E26: 133.5 | F26: 102.98 | G26: 11.46756655 | H26: 102.98 | I26: 133.74 | J26: 143.52 | K26: 130.2
A27: ウレタン | B27: 2011-06-01 | C27: 130.2 | D27: 143.2 | E27: 133.5 | F27: 94.7 | G27: 11.48966579 | H27: 94.7 | I27: 128.47 | J27: 142.22 | K27: 130.2
A28: ウレタン | B28: 2011-07-01 | C28: 122 | D28: 135 | E28: 133.5 | F28: 92.18 | G28: 11.89735666 | H28: 92.18 | I28: 125.87 | J28: 137.39 | K28: 122
A29: ウレタン | B29: 2011-08-01 | C29: 122 | D29: 135 | E29: 133.5 | F29: 96.35 | G29: 11.49881563 | H29: 96.35 | I29: 127.9 | J29: 137.57 | K29: 122
A30: ウレタン | B30: 2011-09-01 | C30: 122 | D30: 135 | E30: 133.5 | F30: 92.3 | G30: 11.51993553 | H30: 92.3 | I30: 125.34 | J30: 136.95 | K30: 122
A31: ウレタン | B31: 2011-10-01 | C31: 116 | D31: 129 | E31: 133.5 | F31: 83.86 | G31: 11.47386838 | H31: 83.86 | I31: 118.67 | J31: 131.95 | K31: 116
A32: ウレタン | B32: 2011-11-01 | C32: 116 | D32: 129 | E32: 133.5 | F32: 81.925 | G32: 11.8453728 | H32: 81.93 | I32: 118.02 | J32: 132.08 | K32: 116
A33: ウレタン | B33: 2011-12-01 | C33: 116 | D33: 129 | E33: 133.5 | F33: 80.2 | G33: 11.50822533 | H33: 80.2 | I33: 116.38 | J33: 131.4 | K33: 116
A34: ウレタン | B34: 2012-01-01 | C34: 120.8 | D34: 133.8 | E34: 133.5 | F34: 87.74 | G34: 11.79618648 | H34: 87.74 | I34: 122.63 | J34: 135.83 | K34: 120.8
A35: ウレタン | B35: 2012-02-01 | C35: 120.8 | D35: 133.8 | E35: 137.5 | F35: 97.5 | G35: 11.39163233 | H35: 97.5 | I35: 128.87 | J35: 137.87 | K35: 120.8
A36: ウレタン | B36: 2012-03-01 | C36: 120.8 | D36: 133.8 | E36: 137.5 | F36: 102.9 | G36: 12.01066058 | H36: 102.9 | I36: 133.31 | J36: 139.48 | K36: 120.8
A37: ウレタン | B37: 2012-04-01 | C37: 133.8 | D37: 146.3 | E37: 137.5 | F37: 103.7 | G37: 12.02846075 | H37: 103.7 | I37: 136.37 | J37: 147.31 | K37: 133.8
A38: ウレタン | B38: 2012-05-01 | C38: 133.8 | D38: 146.3 | E38: 137.5 | F38: 99.1 | G38: 11.48026914 | H38: 99.1 | I38: 132.55 | J38: 145.91 | K38: 133.8
A39: ウレタン | B39: 2012-06-01 | C39: 133.8 | D39: 146.3 | E39: 137.5 | F39: 91.3 | G39: 10.79188608 | H39: 91.3 | I39: 126.46 | J39: 143.84 | K39: 133.8
A40: ウレタン | B40: 2012-07-01 | C40: 112.2 | D40: 124.7 | E40: 137.5 | F40: 89.08 | G40: 10.51150235 | H40: 89.08 | I40: 120.27 | J40: 130.19 | K40: 112.2
A41: ウレタン | B41: 2012-08-01 | C41: 112.2 | D41: 124.7 | E41: 137.5 | F41: 94.6 | G41: 10.13635802 | H41: 94.6 | I41: 123.2 | J41: 130.62 | K41: 112.2
A42: ウレタン | B42: 2012-09-01 | C42: 112.2 | D42: 124.7 | E42: 137.5 | F42: 98.1 | G42: 10.20599366 | H42: 98.1 | I42: 125.55 | J42: 131.26 | K42: 112.2
A43: ウレタン | B43: 2012-10-01 | C43: 124.2 | D43: 136.7 | E43: 137.5 | F43: 102.25 | G43: 10.07597358 | H43: 102.25 | I43: 130.4 | J43: 138.97 | K43: 124.2
A44: ウレタン | B44: 2012-11-01 | C44: 124.2 | D44: 136.7 | E44: 137.5 | F44: 107.7 | G44: 9.957516634 | H44: 107.7 | I44: 133.7 | J44: 139.7 | K44: 124.2
A45: ウレタン | B45: 2012-12-01 | C45: 124.2 | D45: 136.7 | E45: 137.5 | F45: 125.44 | G45: 10.1729367 | H45: 125.44 | I45: 145.4 | J45: 142.8 | K45: 124.2
A46: ウレタン | B46: 2013-01-01 | C46: 149.4 | D46: 162.4 | E46: 142.5 | F46: 133.375 | G46: 10.74342433 | H46: 133.38 | I46: 157.31 | J46: 161.19 | K46: 149.4
A47: ウレタン | B47: 2013-02-01 | C47: 149.4 | D47: 162.4 | E47: 142.5 | F47: 135.475 | G47: 11.10335461 | H47: 135.48 | I47: 159.23 | J47: 161.96 | K47: 149.4
A48: ウレタン | B48: 2013-03-01 | C48: 149.4 | D48: 162.4 | E48: 142.5 | F48: 135.02 | G48: 11.39335442 | H48: 135.02 | I48: 159.4 | J48: 162.24 | K48: 149.4
A49: ウレタン | B49: 2013-04-01 | C49: 152.8 | D49: 165.8 | E49: 142.5 | F49: 128.7 | G49: 11.30334372 | H49: 128.7 | I49: 155.89 | J49: 163.16 | K49: 152.8
A50: ウレタン | B50: 2013-05-01 | C50: 152.8 | D50: 165.8 | E50: 145 | F50: 134.4 | G50: 11.54723824 | H50: 134.4 | I50: 160.33 | J50: 164.96 | K50: 152.8
A51: ウレタン | B51: 2013-06-01 | C51: 152.8 | D51: 165.8 | E51: 145 | F51: 135.54 | G51: 11.22550916 | H51: 135.54 | I51: 160.55 | J51: 164.76 | K51: 152.8
A52: ウレタン | B52: 2013-07-01 | C52: 149.6 | D52: 162.6 | E52: 145 | F52: 125.3 | G52: 11.01123123 | H52: 125.3 | I52: 153.01 | J52: 160.94 | K52: 149.6
A53: ウレタン | B53: 2013-08-01 | C53: 149.6 | D53: 162.6 | E53: 142 | F53: 128.7 | G53: 10.7435121 | H53: 128.7 | I53: 154.28 | J53: 160.44 | K53: 149.6
A54: ウレタン | B54: 2013-09-01 | C54: 149.6 | D54: 162.6 | E54: 142 | F54: 132.64 | G54: 10.8799447 | H54: 132.64 | I54: 157.02 | J54: 161.24 | K54: 149.6
A55: ウレタン | B55: 2013-10-01 | C55: 157.2 | D55: 170.2 | E55: 144.5 | F55: 131.675 | G55: 10.51875531 | H55: 131.68 | I55: 157.74 | J55: 165.81 | K55: 157.2
A56: ウレタン | B56: 2013-11-01 | C56: 157.2 | D56: 170.2 | E56: 150 | F56: 129.5 | G56: 10.55669167 | H56: 129.5 | I56: 157.29 | J56: 166.83 | K56: 157.2
A57: ウレタン | B57: 2013-12-01 | C57: 157.2 | D57: 170.2 | E57: 150 | F57: 141 | G57: 11.03819385 | H57: 141 | I57: 165.42 | J57: 169.25 | K57: 157.2
A58: ウレタン | B58: 2014-01-01 | C58: 165.6 | D58: 178.6 | E58: 150 | F58: 144.7 | G58: 11.18954414 | H58: 144.7 | I58: 169.71 | J58: 175.06 | K58: 165.6
A59: ウレタン | B59: 2014-02-01 | C59: 165.6 | D59: 178.6 | E59: 155 | F59: 146.15 | G59: 11.18191646 | H59: 146.15 | I59: 171.43 | J59: 176.48 | K59: 165.6
A60: ウレタン | B60: 2014-03-01 | C60: 165.6 | D60: 178.6 | E60: 155 | F60: 136.34 | G60: 11.04069432 | H60: 136.34 | I60: 164.92 | J60: 174.74 | K60: 165.6
A61: ウレタン | B61: 2014-04-01 | C61: 161.4 | D61: 174.4 | E61: 155 | F61: 135.3 | G61: 10.62382267 | H61: 135.3 | I61: 162.75 | J61: 171.56 | K61: 161.4
A62: ウレタン | B62: 2014-05-01 | C62: 161.4 | D62: 174.4 | E62: 157 | F62: 135.6 | G62: 10.32652998 | H62: 135.6 | I62: 162.79 | J62: 171.73 | K62: 161.4
A63: ウレタン | B63: 2014-06-01 | C63: 161.4 | D63: 174.4 | E63: 157 | F63: 139.16 | G63: 10.18528572 | H63: 139.16 | I63: 164.84 | J63: 172.13 | K63: 161.4
A64: ウレタン | B64: 2014-07-01 | C64: 163.4 | D64: 176.4 | E64: 160 | F64: 149.1 | G64: 10.11533679 | H64: 149.1 | I64: 171.97 | J64: 175.55 | K64: 163.4
A65: ウレタン | B65: 2014-08-01 | C65: 163.4 | D65: 176.4 | E65: 160 | F65: 146.82 | G65: 9.96705641 | H65: 146.82 | I65: 170.27 | J65: 175.01 | K65: 163.4
A66: ウレタン | B66: 2014-09-01 | C66: 163.4 | D66: 176.4 | E66: 147.5 | F66: 139.925 | G66: 10.13427069 | H66: 139.93 | I66: 164.13 | J66: 171.11 | K66: 163.4
A67: ウレタン | B67: 2014-10-01 | C67: 153.4 | D67: 166.4 | E67: 132.5 | F67: 135.8 | G67: 10.28265577 | H67: 135.8 | I67: 157.32 | J67: 161.03 | K67: 153.4
A68: ウレタン | B68: 2014-11-01 | C68: 153.4 | D68: 166.4 | E68: 132.5 | F68: 126.18 | G68: 10.38971824 | H68: 126.18 | I68: 151.34 | J68: 159.62 | K68: 153.4
A69: ウレタン | B69: 2014-12-01 | C69: 153.4 | D69: 166.4 | E69: 112.5 | F69: 111.3 | G69: 10.71414298 | H69: 111.3 | I69: 139.13 | J69: 152.82 | K69: 153.4
A70: ウレタン | B70: 2015-01-01 | C70: 115.4 | D70: 128.4 | E70: 81 | F70: 83.7 | G70: 10.67441867 | H70: 83.7 | I70: 108.77 | J70: 118 | K70: 115.4
A71: ウレタン | B71: 2015-02-01 | C71: 115.4 | D71: 128.4 | E71: 81 | F71: 80.8 | G71: 10.05156827 | H71: 80.8 | I71: 105.91 | J71: 116.79 | K71: 115.4
A72: ウレタン | B72: 2015-03-01 | C72: 115.4 | D72: 128.4 | E72: 82.5 | F72: 87.58 | G72: 10.38564577 | H72: 87.58 | I72: 111.03 | J72: 118.64 | K72: 115.4
A73: ウレタン | B73: 2015-04-01 | C73: 119 | D73: 132 | E73: 82.5 | F73: 98.3 | G73: 10.34990182 | H73: 98.3 | I73: 118.55 | J73: 122.47 | K73: 119
A74: ウレタン | B74: 2015-05-01 | C74: 119 | D74: 132 | E74: 82.5 | F74: 105.84 | G74: 9.913598825 | H74: 105.84 | I74: 122.68 | J74: 123.15 | K74: 119
A75: ウレタン | B75: 2015-06-01 | C75: 119 | D75: 132 | E75: 92.5 | F75: 99.15 | G75: 10.07218386 | H75: =ROUND(($B$4/100*C75+$C$4/100*D75)*$G$4/100+($D$4/100*E75+$E$4/100*F75+$F$4*G75)*$H$4/100,2) -> 99.15 | I75: =ROUND(($B$5/100*C75+$C$5/100*D75)*$G$5/100+($D$5/100*E75+$E$5/100*F75+$F$5*G75)*$H$5/100,2) -> 120.25 | J75: =ROUND(($B$6/100*C75+$C$6/100*D75)*$G$6/100+($D$6/100*E75+$E$6/100*F75+$F$6*G75)*$H$6/100,2) -> 124.67 | K75: =ROUND(($B$7/100*C75+$C$7/100*D75)*$G$7/100+($D$7/100*E75+$E$7/100*F75+$F$7*G75)*$H$7/100,2) -> 119
A76: ウレタン | B76: 2015-07-01 | C76: 115.8 | D76: 128.8 | E76: 92.5 | F76: 106.2 | G76: 9.866384798 | H76: 106.2 | I76: 123.79 | J76: 123.63 | K76: 115.8
A77: ウレタン | B77: 2015-08-01 | C77: 115.8 | D77: 128.8 | E77: 92.5 | F77: 95.04 | G77: 9.81154524 | H77: 95.04 | I77: 116.56 | J77: 121.78 | K77: 115.8
A78: ウレタン | B78: 2015-09-01 | C78: 115.8 | D78: 128.8 | E78: 92.5 | F78: 73.275 | G78: 9.297220978 | H78: 73.28 | I78: 101.81 | J78: 117.68 | K78: 115.8
A79: ウレタン | B79: 2015-10-01 | C79: 103.2 | D79: 116.2 | E79: 92.5 | F79: 75.9 | G79: 9.116389716 | H79: 75.9 | I79: 100.68 | J79: 110.32 | K79: 103.2
A80: ウレタン | B80: 2015-11-01 | C80: 103.2 | D80: 116.2 | E80: 87.5 | F80: 79 | G80: 9.034938753 | H80: 79 | I80: 101.74 | J80: 109.52 | K80: 103.2
A81: ウレタン | B81: 2015-12-01 | C81: 103.2 | D81: 116.2 | E81: 87.5 | F81: 81.4 | G81: 8.93381767 | H81: 81.4 | I81: 103.11 | J81: 109.78 | K81: 103.2
A82: ウレタン | B82: 2016-01-01 | C82: 90 | D82: 103 | E82: - | F82: 73.4 | G82: 8.650358592
A83: ウレタン | B83: 2016-02-01 | C83: 90 | D83: 103 | E83: 87.5 | F83: 70.2 | G83: 8.344311079 | H83: 70.2 | I83: 92.36 | J83: 99.37 | K83: 90
A84: ウレタン | B84: 2016-03-01 | C84: 90 | D84: 103 | E84: 87.5 | F84: 71 | G84: 7.784866391 | H84: 71 | I84: 91.98 | J84: 98.82 | K84: 90
A85: ウレタン | B85: 2016-04-01 | C85: 84.6 | D85: 97.6 | E85: 87.5 | F85: 77 | G85: 7.872086163 | H85: 77 | I85: 94.88 | J85: 96.65 | K85: 84.6
A86: ウレタン | B86: 2016-05-01 | C86: 84.6 | D86: 97.6 | E86: 87.5 | F86: 75.96 | G86: 7.59368888 | H86: 75.96 | I86: 93.76 | J86: 96.15 | K86: 84.6
A87: ウレタン | B87: 2016-06-01 | C87: 84.6 | D87: 97.6 | E87: 77.5 | F87: 72.275 | G87: 7.583640261 | H87: 72.28 | I87: 89.79 | J87: 93.14 | K87: 84.6
A88: ウレタン | B88: 2016-07-01 | C88: 84 | D88: 97 | E88: 77.5 | F88: 69.46 | G88: 7.333903468 | H88: 69.46 | I88: 87.47 | J88: 92.03 | K88: 84
A89: ウレタン | B89: 2016-08-01 | C89: 84 | D89: 97 | E89: 77.5 | F89: 72.325 | G89: 7.36689051 | H89: 72.33 | I89: 89.36 | J89: 92.53 | K89: 84
A90: ウレタン | B90: 2016-09-01 | C90: 84 | D90: 97 | E90: 77.5 | F90: 74.2 | G90: 7.567430918 | H90: 74.2 | I90: 90.88 | J90: 93.07 | K90: 84
A91: ウレタン | B91: 2016-10-01 | C91: 89.4 | D91: 102.4 | E91: 77.5 | F91: 70.1 | G91: 7.96615247 | H91: 70.1 | I91: 89.97 | J91: 96.14 | K91: 89.4
A92: ウレタン | B92: 2016-11-01 | C92: 89.4 | D92: 102.4 | E92: 77.5 | F92: 77.025 | G92: 9.174903918 | H92: 77.03 | I92: 96.34 | J92: 98.69 | K92: 89.4
A93: ウレタン | B93: 2016-12-01 | C93: 89.4 | D93: 102.4 | E93: 77.5 | F93: 88.2 | G93: 10.60166193 | H93: 88.2 | I93: 105.77 | J93: 102.19 | K93: 89.4
A94: ウレタン | B94: 2017-01-01 | C94: 105.4 | D94: 118.4 | E94: 77.5 | F94: 107.9 | G94: 11.44953694 | H94: 107.9 | I94: 122.94 | J94: 115.96 | K94: 105.4
A95: ウレタン | B95: 2017-02-01 | C95: 105.4 | D95: 118.4 | E95: 77.5 | F95: 119.2 | G95: 11.36852199 | H95: 119.2 | I95: 130.04 | J95: 117.67 | K95: 105.4
A96: ウレタン | B96: 2017-03-01 | C96: 105.4 | D96: 118.4 | E96: 77.5 | F96: 115.9 | G96: 11.51121467 | H96: 115.9 | I96: 128.15 | J96: 117.32 | K96: 105.4
A97: ウレタン | B97: 2017-04-01 | C97: 99.4 | D97: 112.4 | E97: 77.5 | F97: 94.9 | G97: 10.61369407 | H97: 94.9 | I97: 112.08 | J97: 109.28 | K97: 99.4
A98: ウレタン | B98: 2017-05-01 | C98: 99.4 | D98: 112.4 | E98: 77.5 | F98: 105.4 | G98: 11.43691444 | H98: 105.4 | I98: 120.12 | J98: 111.95 | K98: 99.4
A99: ウレタン | B99: 2017-06-01 | C99: 99.4 | D99: 112.4 | E99: 77.5 | F99: 115.9 | G99: 11.28944501 | H99: 115.9 | I99: 126.6 | J99: 113.45 | K99: 99.4
A100: ウレタン | B100: 2017-07-01 | C100: 93.4 | D100: 106.4 | E100: 77.5 | F100: 101.68 | G100: 10.97745255 | H100: 101.68 | I100: 115.8 | J100: 107.2 | K100: 93.4
A101: ウレタン | B101: 2017-08-01 | C101: 93.4 | D101: 106.4 | E101: 77.5 | F101: 93 | G101: 11.10382959 | H101: 93 | I101: 110.45 | J101: 105.96 | K101: 93.4
A102: ウレタン | B102: 2017-09-01 | C102: 93.4 | D102: 106.4 | E102: 77.5 | F102: 93 | G102: 11.25046771 | H102: 93 | I102: 110.68 | J102: 106.14 | K102: 93.4
A103: ウレタン | B103: 2017-10-01 | C103: 109.4 | D103: 122.4 | E103: 77.5 | F103: 93 | G103: 11.77866061 | H103: 93 | I103: 114.73 | J103: 116.37 | K103: 109.4
A104: ウレタン | B104: 2017-11-01 | C104: 109.4 | D104: 122.4 | E104: 77.5 | F104: 96 | G104: 11.94923401 | H104: 96 | I104: 116.92 | J104: 117.06 | K104: 109.4
A105: ウレタン | B105: 2017-12-01 | C105: 109.4 | D105: 122.4 | E105: 77.5 | F105: 103 | G105: 12.0977676 | H105: 103 | I105: 121.64 | J105: 118.36 | K105: 109.4
A106: ウレタン | B106: 2018-01-01 | C106: 115.4 | D106: 128.4 | E106: 77.5 | F106: 105 | G106: 12.3497746 | H106: 105 | I106: 124.52 | J106: 122.58 | K106: 115.4
A107: ウレタン | B107: 2018-02-01 | C107: 115.4 | D107: 128.4 | E107: 77.5 | F107: 109 | G107: 12.57341408 | H107: 109 | I107: 127.44 | J107: 123.49 | K107: 115.4
A108: ウレタン | B108: 2018-03-01 | C108: 115.4 | D108: 128.4 | E108: 77.5 | F108: 104 | G108: 12.16153302 | H108: 104 | I108: 123.58 | J108: 122.19 | K108: 115.4
A109: ウレタン | B109: 2018-04-01 | C109: 117 | D109: 130 | E109: 77.5 | F109: 98.6 | G109: 12.38115983 | H109: 98.6 | I109: 120.79 | J109: 122.55 | K109: 117
A110: ウレタン | B110: 2018-05-01 | C110: 117 | D110: 130 | E110: 77.5 | F110: 99 | G110: 13.03214037 | H110: 99 | I110: 122.09 | J110: 123.4 | K110: 117
A111: ウレタン | B111: 2018-06-01 | C111: 117 | D111: 130 | E111: 77.5 | F111: 99 | G111: 13.06264144 | H111: 99 | I111: 122.14 | J111: 123.44 | K111: 117
A112: ウレタン | B112: 2018-07-01 | C112: 126.6 | D112: 139.6 | E112: 77.5 | F112: 97.6 | G112: 13.4467774 | H112: 97.6 | I112: 123.78 | J112: 129.43 | K112: 126.6
A113: ウレタン | B113: 2018-08-01 | C113: 126.6 | D113: 139.6 | E113: 77.5 | F113: 101 | G113: 13.94146194 | H113: 101 | I113: 126.75 | J113: 130.57 | K113: 126.6
A114: ウレタン | B114: 2018-09-01 | C114: 126.6 | D114: 139.6 | E114: 77.5 | F114: 104.6 | G114: 14.09981698 | H114: 104.6 | I114: 129.3 | J114: 131.34 | K114: 126.6
A115: ウレタン | B115: 2018-10-01 | C115: 128 | D115: 141 | E115: 77.5 | F115: 101 | G115: 14.52669975 | H115: 101 | I115: 127.96 | J115: 132.11 | K115: 128
A116: ウレタン | B116: 2018-11-01 | C116: 128 | D116: 141 | E116: 77.5 | F116: 94.6 | G116: 14.24569204 | H116: 94.6 | I116: 123.42 | J116: 130.75 | K116: 128
A117: ウレタン | B117: 2018-12-01 | C117: 128 | D117: 141 | E117: 77.5 | F117: 86.08 | G117: 14.17471114 | H117: 86.08 | I117: 117.85 | J117: 129.3 | K117: 128
A118: ウレタン | B118: 2019-01-01 | C118: 102 | D118: 115 | E118: 77.5 | F118: 65 | G118: 13.5741932 | H118: 65 | I118: 98.2 | J118: 109.61 | K118: 102
A119: ウレタン | B119: 2019-02-01 | C119: 102 | D119: 115 | E119: 77.5 | F119: 67.2 | G119: 13.1890908 | H119: 67.2 | I119: 98.99 | J119: 109.5 | K119: 102
A120: ウレタン | B120: 2019-03-01 | C120: 102 | D120: 115 | E120: 77.5 | F120: 74.5 | G120: 13.29730034 | H120: 74.5 | I120: 103.84 | J120: 110.8 | K120: 102
A121: ウレタン | B121: 2019-04-01 | C121: 110.4 | D121: 123.4 | E121: 77.5 | F121: 70.6 | G121: 13.3461339 | H121: 70.6 | I121: 103.1 | J121: 115.27 | K121: 110.4
A122: ウレタン | B122: 2019-05-01 | C122: 110.4 | D122: 123.4 | E122: 77.5 | F122: 76.2 | G122: 12.633654 | H122: 76.2 | I122: 105.54 | J122: 115.31 | K122: 110.4
A123: ウレタン | B123: 2019-06-01 | C123: 110.4 | D123: 123.4 | E123: 77.5 | F123: 74.26 | G123: 12.3920947 | H123: 74.26 | I123: 103.91 | J123: 114.71 | K123: 110.4
A124: ウレタン | B124: 2019-07-01 | C124: 100 | D124: 113 | E124: 77.5 | F124: 73.7 | G124: 11.64970675 | H124: 73.7 | I124: 100.29 | J124: 107.49 | K124: 100
A125: ウレタン | B125: 2019-08-01 | C125: 100 | D125: 113 | E125: 77.5 | F125: 78.1 | G125: 11.5176776 | H125: 78.1 | I125: 102.89 | J125: 108.04 | K125: 100
A126: ウレタン | B126: 2019-09-01 | C126: 100 | D126: 113 | E126: 77.5 | F126: 79.02 | G126: 10.97257056 | H126: 79.02 | I126: 102.61 | J126: 107.53 | K126: 100
A127: ウレタン | B127: 2019-10-01 | C127: 102.2 | D127: 115.2 | E127: 77.5 | F127: 83.9 | G127: 11.02139293 | H127: 83.9 | I127: 106.25 | J127: 109.69 | K127: 102.2
A128: ウレタン | B128: 2019-11-01 | C128: 102.2 | D128: 115.2 | E128: 77.5 | F128: 75.4 | G128: 10.79174572 | H128: 75.4 | I128: 100.44 | J128: 108.05 | K128: 102.2
A129: ウレタン | B129: 2019-12-01 | C129: 102.2 | D129: 115.2 | E129: 77.5 | F129: 78.2 | G129: 10.36656995 | H129: 78.2 | I129: 101.55 | J129: 107.99 | K129: 102.2
A130: ウレタン | B130: 2020-01-01 | C130: 109.2 | D130: 122.2 | E130: 77.5 | F130: 85.9 | G130: 10.45575085 | H130: 85.9 | I130: 108.03 | J130: 113.53 | K130: 109.2
A131: ウレタン | B131: 2020-02-01 | C131: 109.2 | D131: 122.2 | E131: 77.5 | F131: 82.5 | G131: 10.25260485 | H131: 82.5 | I131: 105.52 | J131: 112.74 | K131: 109.2
A132: ウレタン | B132: 2020-03-01 | C132: 109.2 | D132: 122.2 | E132: 77.5 | F132: 78.9 | G132: 9.693337018 | H132: 78.9 | I132: 102.33 | J132: 111.5 | K132: 109.2
A133: ウレタン | B133: 2020-04-01 | C133: 69.6 | D133: 82.6 | E133: 77.5 | F133: 41.6 | G133: 9.644699002 | H133: 41.6 | I133: 70.46 | J133: 81.71 | K133: 69.6
A134: ウレタン | B134: 2020-05-01 | C134: 69.6 | D134: 82.6 | E134: 75 | F134: 42.24 | G134: 8.69978482 | H134: 42.24 | I134: 68.95 | J134: 80.08 | K134: 69.6
A135: ウレタン | B135: 2020-06-01 | C135: 69.6 | D135: 82.6 | E135: 70 | F135: 50.175 | G135: 8.542306143 | H135: 50.18 | I135: 72.98 | J135: 79.96 | K135: 69.6
A136: ウレタン | B136: 2020-07-01 | C136: 80 | D136: 93 | E136: 70 | F136: 51 | G136: 8.264347542 | H136: 51 | I136: 75.14 | J136: 86 | K136: 80
A137: ウレタン | B137: 2020-08-01 | C137: 80 | D137: 93 | E137: 70 | F137: 51.8 | G137: 7.919635847 | H137: 51.8 | I137: 75.1 | J137: 85.71 | K137: 80
A138: ウレタン | B138: 2020-09-01 | C138: 80 | D138: 93 | E138: 70 | F138: 52.2 | G138: 7.727244773 | H138: 52.2 | I138: 75.05 | J138: 85.54 | K138: 80
A139: ウレタン | B139: 2020-10-01 | C139: 82.2 | D139: 95.2 | E139: 73 | F139: 50.1 | G139: 7.705269514 | H139: =ROUND(($B$4/100*C139+$C$4/100*D139)*$G$4/100+($D$4/100*E139+$E$4/100*F139+$F$4*G139)*$H$4/100,2) -> 50.1 | I139: =ROUND(($B$5/100*C139+$C$5/100*D139)*$G$5/100+($D$5/100*E139+$E$5/100*F139+$F$5*G139)*$H$5/100,2) -> 74.59 | J139: =ROUND(($B$6/100*C139+$C$6/100*D139)*$G$6/100+($D$6/100*E139+$E$6/100*F139+$F$6*G139)*$H$6/100,2) -> 87.22 | K139: =ROUND(($B$7/100*C139+$C$7/100*D139)*$G$7/100+($D$7/100*E139+$E$7/100*F139+$F$7*G139)*$H$7/100,2) -> 82.2
A140: ウレタン | B140: 2020-11-01 | C140: 82.2 | D140: 95.2 | E140: 73 | F140: 55.7 | G140: 7.727599388 | H140: 55.7 | I140: 78.21 | J140: 88.15 | K140: 82.2
A141: ウレタン | B141: 2020-12-01 | C141: 82.2 | D141: 95.2 | E141: 73 | F141: 64.9 | G141: 7.947360882 | H141: 64.9 | I141: 84.45 | J141: 89.88 | K141: 82.2
A142: ウレタン | B142: 2021-01-01 | C142: 97.2 | D142: 110.2 | E142: 78 | F142: 71.76 | G142: 8.663712893 | H142: 71.76 | I142: 93.79 | J142: 102.04 | K142: 97.2
A143: ウレタン | B143: 2021-02-01 | C143: 97.2 | D143: 110.2 | E143: 78 | F143: 79.95 | G143: 9.471060653 | H143: 79.95 | I143: 100.32 | J143: 104.32 | K143: 97.2
A144: ウレタン | B144: 2021-03-01 | C144: 97.2 | D144: 110.2 | E144: 78 | F144: 96.6 | G144: 10.19156411 | H144: 96.6 | I144: 112.13 | J144: 107.85 | K144: 97.2
A145: ウレタン | B145: 2021-04-01 | C145: 115 | D145: 128 | E145: 93 | F145: 97.8 | G145: 11.18413286 | H145: 97.8 | I145: 120.45 | J145: 123.51 | K145: 115
A146: ウレタン | B146: 2021-05-01 | C146: 115 | D146: 128 | E146: 93 | F146: 113.5 | G146: 11.85497781 | H146: 113.5 | I146: 131.57 | J146: 126.83 | K146: 115
A147: ウレタン | B147: 2021-06-01 | C147: 115 | D147: 128 | E147: 93 | F147: 113.075 | G147: 12.92873081 | H147: 113.08 | I147: 133.01 | J147: 128.05 | K147: 115
A148: ウレタン | B148: 2021-07-01 | C148: 126.6 | D148: 139.6 | E148: 93 | F148: 113.975 | G148: 13.93042385 | H148: 113.98 | I148: 137.51 | J148: 136.35 | K148: 126.6
A149: ウレタン | B149: 2021-08-01 | C149: 126.6 | D149: 139.6 | E149: 93 | F149: 121.18 | G149: 16.20876009 | H149: 121.18 | I149: 145.77 | J149: 140.24 | K149: 126.6
A150: ウレタン | B150: 2021-09-01 | C150: 126.6 | D150: 139.6 | E150: 93 | F150: 117.55 | G150: 17.4710112 | H150: 117.55 | I150: 145.47 | J150: 141.17 | K150: 126.6
A151: ウレタン | B151: 2021-10-01 | C151: 141 | D151: 154 | E151: 93 | F151: 116.26 | G151: 19.03380028 | H151: 116.26 | I151: 150.02 | J151: 151.48 | K151: 141
A152: ウレタン | B152: 2021-11-01 | C152: 141 | D152: 154 | E152: 112 | F152: 117.125 | G152: 21.81026657 | H152: 117.13 | I152: 158.06 | J152: 159.51 | K152: 141
A153: ウレタン | B153: 2021-12-01 | C153: 141 | D153: 154 | E153: 112 | F153: 109.4 | G153: 22.45873523 | H153: 109.4 | I153: 154.15 | J153: 159.05 | K153: 141
A154: ウレタン | B154: 2022-01-01 | C154: 148.8 | D154: 161.8 | E154: 112 | F154: 116.96 | G154: 22.05370354 | H154: 116.96 | I154: 159.9 | J154: 164.46 | K154: 148.8
A155: ウレタン | B155: 2022-02-01 | C155: 148.8 | D155: 161.8 | E155: 122 | F155: 127.075 | G155: 24.08436439 | H155: 127.08 | I155: 171.22 | J155: 170.91 | K155: 148.8
A156: ウレタン | B156: 2022-03-01 | C156: 148.8 | D156: 161.8 | E156: 122 | F156: 132.7 | G156: 25.4870735 | H156: 132.7 | I156: 177.07 | J156: 173.5 | K156: 148.8
A157: ウレタン | B157: 2022-04-01 | C157: 191.8 | D157: 204.8 | E157: 122 | F157: 152.1 | G157: 32.84319915 | H157: 152.1 | I157: 209.85 | J157: 211.23 | K157: 191.8
A158: ウレタン | B158: 2022-05-01 | C158: 191.8 | D158: 204.8 | E158: 128 | F158: 159.56 | G158: 40.04115663 | H158: 159.56 | I158: 227.1 | J158: 222.5 | K158: 191.8
A159: ウレタン | B159: 2022-06-01 | C159: 191.8 | D159: 204.8 | E159: 128 | F159: 173.5 | G159: 46.99384479 | H159: 173.5 | I159: 247.15 | J159: 233.07 | K159: 191.8
A160: ウレタン | B160: 2022-07-01 | C160: 182.4 | D160: 195.4 | E160: 128 | F160: 176.62 | G160: 53.24874425 | H160: 176.62 | I160: 257.27 | J160: 235.44 | K160: 182.4
A161: ウレタン | B161: 2022-08-01 | C161: 182.4 | D161: 195.4 | E161: 160 | F161: 150.475 | G161: 52.53210085 | H161: 150.48 | I161: 244.52 | J161: 238.07 | K161: 182.4
A162: ウレタン | B162: 2022-09-01 | C162: 182.4 | D162: 195.4 | E162: 160 | F162: 136.6 | G162: 54.92039028 | H162: 136.6 | I162: 239.46 | J162: 238.72 | K162: 182.4
A163: ウレタン | B163: 2022-10-01 | C163: 164.6 | D163: 177.6 | E163: 160 | F163: 139.8 | G163: 58.82022919 | H163: 139.8 | I163: 244.18 | J163: 233.23 | K163: 164.6
A164: ウレタン | B164: 2022-11-01 | C164: 164.6 | D164: 177.6 | E164: 160 | F164: 133.4 | G164: 59.95859326 | H164: 133.4 | I164: 241.91 | J164: 233.57 | K164: 164.6
A165: ウレタン | B165: 2022-12-01 | C165: 164.6 | D165: 177.6 | E165: 160 | F165: 117.8 | G165: 54.2385749 | H165: 117.8 | I165: 222.77 | J165: 224.21 | K165: 164.6
A166: ウレタン | B166: 2023-01-01 | C166: 152.6 | D166: 165.6 | E166: 160 | F166: 123.6 | G166: 50.43603878 | H166: 123.6 | I166: 218 | J166: 213.38 | K166: 152.6
A167: ウレタン | B167: 2023-02-01 | C167: 152.6 | D167: 165.6 | E167: 150 | F167: 134.05 | G167: 48.26633957 | H167: 134.05 | I167: 219.62 | J167: 210.05 | K167: 152.6
A168: ウレタン | B168: 2023-03-01 | C168: 152.6 | D168: 165.6 | E168: 150 | F168: 135.4 | G168: 43.78337169 | H168: 135.4 | I168: 213.31 | J168: 204.88 | K168: 152.6
A169: ウレタン | B169: 2023-04-01 | C169: 154.6 | D169: 167.6 | E169: 150 | F169: 135.9 | G169: 39.52257606 | H169: 135.9 | I169: 207.21 | J169: 201.05 | K169: 154.6
A170: ウレタン | B170: 2023-05-01 | C170: 154.6 | D170: 167.6 | E170: 130 | F170: 134.175 | G170: 34.24981845 | H170: 134.18 | I170: 194.47 | J170: 189.65 | K170: 154.6
A171: ウレタン | B171: 2023-06-01 | C171: 154.6 | D171: 167.6 | E171: 130 | F171: 126.3 | G171: 31.82534309 | H171: 126.3 | I171: 185.55 | J171: 185.48 | K171: 154.6
A172: ウレタン | B172: 2023-07-01 | C172: 146.8 | D172: 159.8 | E172: 130 | F172: 120.36 | G172: 30.2013476 | H172: 120.36 | I172: 177.59 | J172: 177.9 | K172: 146.8
A173: ウレタン | B173: 2023-08-01 | C173: 146.8 | D173: 159.8 | E173: 130 | F173: 131.4 | G173: 27.97412228 | H173: 131.4 | I173: 181.09 | J173: 176.99 | K173: 146.8
A174: ウレタン | B174: 2023-09-01 | C174: 146.8 | D174: 159.8 | E174: 130 | F174: 144.9 | G174: 26.83926009 | H174: 144.9 | I174: 187.92 | J174: 177.79 | K174: 146.8
A175: ウレタン | B175: 2023-10-01 | C175: 165.2 | D175: 178.2 | E175: 130 | F175: 154.84 | G175: 28.62715773 | H175: 154.84 | I175: 200.82 | J175: 192.57 | K175: 165.2
A176: ウレタン | B176: 2023-11-01 | C176: 165.2 | D176: 178.2 | E176: 130 | F176: 147 | G176: 27.47939726 | H176: 147 | I176: 193.97 | J176: 189.94 | K176: 165.2
A177: ウレタン | B177: 2023-12-01 | C177: 165.2 | D177: 178.2 | E177: 140 | F177: 136.375 | G177: 25.43696742 | H177: 136.38 | I177: 185.5 | J177: 188.18 | K177: 165.2
A178: ウレタン | B178: 2024-01-01 | C178: 165.2 | D178: 178.2 | E178: 140 | F178: 139.575 | G178: 24.9764261 | H178: 139.58 | I178: 186.81 | J178: 188.14 | K178: 165.2
A179: ウレタン | B179: 2024-02-01 | C179: 165.2 | D179: 178.2 | E179: 140 | F179: 154.8 | G179: 25.82641919 | H179: =ROUND(($B$4/100*C179+$C$4/100*D179)*$G$4/100+($D$4/100*E179+$E$4/100*F179+$F$4*G179)*$H$4/100,2) -> 154.8 | I179: =ROUND(($B$5/100*C179+$C$5/100*D179)*$G$5/100+($D$5/100*E179+$E$5/100*F179+$F$5*G179)*$H$5/100,2) -> 197.91 | J179: =ROUND(($B$6/100*C179+$C$6/100*D179)*$G$6/100+($D$6/100*E179+$E$6/100*F179+$F$6*G179)*$H$6/100,2) -> 191.6 | K179: =ROUND(($B$7/100*C179+$C$7/100*D179)*$G$7/100+($D$7/100*E179+$E$7/100*F179+$F$7*G179)*$H$7/100,2) -> 165.2

Sheet 5ポリアミド6
A1: ポリアミド6価格推移 | B1: グラフへ戻る | C1: 出典：ポリアミドは日本経済新聞の記事及び日経NEEDS、ガラスは財務省貿易統計
A3: 配合比率（%） | B3: ポリアミド | C3: ガラス
A4: ポリアミド6A | B4: =指標合算!R3 -> 100 | C4: =指標合算!S3 -> 0
A5: ポリアミド6B | B5: =指標合算!R4 -> 20 | C5: =指標合算!S4 -> 80
A6: ポリアミド6C | B6: =指標合算!R5 -> 50 | C6: =指標合算!S5 -> 50
A7: ポリアミド6D | B7: =指標合算!R6 -> 10 | C7: =指標合算!S6 -> 90
A9: 指標 | B9: 期間 | C9: ポリアミド（円/kg） | D9: ガラス（円/kg） | E9: ポリアミド6A（円/kg） | F9: ポリアミド6B（円/kg） | G9: ポリアミド6C（円/kg） | H9: ポリアミド6D（円/kg）
A10: ポリアミド6 | B10: 2010-01-01 | C10: 335 | D10: 127.8130706 | E10: =ROUND($B$4/100*C10+$C$4/100*D10,2) -> 335 | F10: =ROUND($B$5/100*C10+$C$5/100*D10,2) -> 169.25 | G10: =ROUND($B$6/100*C10+$C$6/100*D10,2) -> 231.41 | H10: =ROUND($B$7/100*C10+$C$7/100*D10,2) -> 148.53
A11: ポリアミド6 | B11: 2010-02-01 | C11: 335 | D11: 119.1227917 | E11: =ROUND($B$4/100*C11+$C$4/100*D11,2) -> 335 | F11: =ROUND($B$5/100*C11+$C$5/100*D11,2) -> 162.3 | G11: =ROUND($B$6/100*C11+$C$6/100*D11,2) -> 227.06 | H11: =ROUND($B$7/100*C11+$C$7/100*D11,2) -> 140.71
A12: ポリアミド6 | B12: 2010-03-01 | C12: 335 | D12: 116.4633393 | E12: 335 | F12: 160.17 | G12: 225.73 | H12: 138.32
A13: ポリアミド6 | B13: 2010-04-01 | C13: 335 | D13: 123.0562948 | E13: 335 | F13: 165.45 | G13: 229.03 | H13: 144.25
A14: ポリアミド6 | B14: 2010-05-01 | C14: 335 | D14: 123.4738856 | E14: 335 | F14: 165.78 | G14: 229.24 | H14: 144.63
A15: ポリアミド6 | B15: 2010-06-01 | C15: 335 | D15: 120.8145727 | E15: 335 | F15: 163.65 | G15: 227.91 | H15: 142.23
A16: ポリアミド6 | B16: 2010-07-01 | C16: 365 | D16: 123.5534837 | E16: 365 | F16: 171.84 | G16: 244.28 | H16: 147.7
A17: ポリアミド6 | B17: 2010-08-01 | C17: 365 | D17: 123.63951 | E17: 365 | F17: =ROUND($B$5/100*C17+$C$5/100*D17,2) -> 171.91 | G17: 244.32 | H17: 147.78
A18: ポリアミド6 | B18: 2010-09-01 | C18: 365 | D18: 122.8144819 | E18: 365 | F18: 171.25 | G18: 243.91 | H18: 147.03
A19: ポリアミド6 | B19: 2010-10-01 | C19: 365 | D19: 117.3095312 | E19: 365 | F19: 166.85 | G19: 241.15 | H19: 142.08
A20: ポリアミド6 | B20: 2010-11-01 | C20: 365 | D20: 110.7460067 | E20: 365 | F20: 161.6 | G20: 237.87 | H20: 136.17
A21: ポリアミド6 | B21: 2010-12-01 | C21: 365 | D21: 117.8061918 | E21: 365 | F21: 167.24 | G21: 241.4 | H21: 142.53
A22: ポリアミド6 | B22: 2011-01-01 | C22: 365 | D22: 120.8178474 | E22: 365 | F22: 169.65 | G22: 242.91 | H22: 145.24
A23: ポリアミド6 | B23: 2011-02-01 | C23: 365 | D23: 115.8927731 | E23: 365 | F23: 165.71 | G23: 240.45 | H23: 140.8
A24: ポリアミド6 | B24: 2011-03-01 | C24: 365 | D24: 121.8103579 | E24: 365 | F24: 170.45 | G24: 243.41 | H24: 146.13
A25: ポリアミド6 | B25: 2011-04-01 | C25: 430 | D25: 115.7696987 | E25: 430 | F25: 178.62 | G25: 272.88 | H25: 147.19
A26: ポリアミド6 | B26: 2011-05-01 | C26: 430 | D26: 119.2218842 | E26: 430 | F26: 181.38 | G26: 274.61 | H26: 150.3
A27: ポリアミド6 | B27: 2011-06-01 | C27: 430 | D27: 116.8674022 | E27: 430 | F27: 179.49 | G27: 273.43 | H27: 148.18
A28: ポリアミド6 | B28: 2011-07-01 | C28: 430 | D28: 120.7448093 | E28: 430 | F28: 182.6 | G28: 275.37 | H28: 151.67
A29: ポリアミド6 | B29: 2011-08-01 | C29: 430 | D29: 113.1912282 | E29: 430 | F29: 176.55 | G29: 271.6 | H29: 144.87
A30: ポリアミド6 | B30: 2011-09-01 | C30: 430 | D30: 116.5829075 | E30: 430 | F30: 179.27 | G30: 273.29 | H30: 147.92
A31: ポリアミド6 | B31: 2011-10-01 | C31: 430 | D31: 107.3995009 | E31: 430 | F31: 171.92 | G31: 268.7 | H31: 139.66
A32: ポリアミド6 | B32: 2011-11-01 | C32: 455 | D32: 106.9406292 | E32: 455 | F32: 176.55 | G32: 280.97 | H32: 141.75
A33: ポリアミド6 | B33: 2011-12-01 | C33: 455 | D33: 108.5573188 | E33: 455 | F33: 177.85 | G33: 281.78 | H33: 143.2
A34: ポリアミド6 | B34: 2012-01-01 | C34: 455 | D34: 115.7705074 | E34: 455 | F34: 183.62 | G34: 285.39 | H34: 149.69
A35: ポリアミド6 | B35: 2012-02-01 | C35: 455 | D35: 114.5285811 | E35: 455 | F35: 182.62 | G35: 284.76 | H35: 148.58
A36: ポリアミド6 | B36: 2012-03-01 | C36: 455 | D36: 113.0115685 | E36: 455 | F36: 181.41 | G36: 284.01 | H36: 147.21
A37: ポリアミド6 | B37: 2012-04-01 | C37: 455 | D37: 112.2048563 | E37: 455 | F37: 180.76 | G37: 283.6 | H37: 146.48
A38: ポリアミド6 | B38: 2012-05-01 | C38: 455 | D38: 109.8652645 | E38: 455 | F38: 178.89 | G38: 282.43 | H38: 144.38
A39: ポリアミド6 | B39: 2012-06-01 | C39: 455 | D39: 112.3900601 | E39: 455 | F39: 180.91 | G39: 283.7 | H39: 146.65
A40: ポリアミド6 | B40: 2012-07-01 | C40: 455 | D40: 108.7632056 | E40: 455 | F40: 178.01 | G40: 281.88 | H40: 143.39
A41: ポリアミド6 | B41: 2012-08-01 | C41: 455 | D41: 111.9792449 | E41: 455 | F41: 180.58 | G41: 283.49 | H41: 146.28
A42: ポリアミド6 | B42: 2012-09-01 | C42: 455 | D42: 110.8674326 | E42: 455 | F42: 179.69 | G42: 282.93 | H42: 145.28
A43: ポリアミド6 | B43: 2012-10-01 | C43: 455 | D43: 111.931953 | E43: 455 | F43: 180.55 | G43: 283.47 | H43: 146.24
A44: ポリアミド6 | B44: 2012-11-01 | C44: 400 | D44: 109.1571933 | E44: 400 | F44: 167.33 | G44: 254.58 | H44: 138.24
A45: ポリアミド6 | B45: 2012-12-01 | C45: 400 | D45: 113.5034097 | E45: 400 | F45: 170.8 | G45: 256.75 | H45: 142.15
A46: ポリアミド6 | B46: 2013-01-01 | C46: 400 | D46: 112.4522999 | E46: 400 | F46: 169.96 | G46: 256.23 | H46: 141.21
A47: ポリアミド6 | B47: 2013-02-01 | C47: 400 | D47: 110.5958369 | E47: 400 | F47: 168.48 | G47: 255.3 | H47: 139.54
A48: ポリアミド6 | B48: 2013-03-01 | C48: 400 | D48: 109.4478891 | E48: 400 | F48: 167.56 | G48: 254.72 | H48: 138.5
A49: ポリアミド6 | B49: 2013-04-01 | C49: 400 | D49: 116.0605433 | E49: 400 | F49: 172.85 | G49: 258.03 | H49: 144.45
A50: ポリアミド6 | B50: 2013-05-01 | C50: 400 | D50: 120.5011629 | E50: 400 | F50: 176.4 | G50: 260.25 | H50: 148.45
A51: ポリアミド6 | B51: 2013-06-01 | C51: 400 | D51: 119.4003936 | E51: 400 | F51: 175.52 | G51: 259.7 | H51: 147.46
A52: ポリアミド6 | B52: 2013-07-01 | C52: 400 | D52: 117.7528517 | E52: 400 | F52: 174.2 | G52: 258.88 | H52: 145.98
A53: ポリアミド6 | B53: 2013-08-01 | C53: 400 | D53: 113.3344138 | E53: 400 | F53: 170.67 | G53: 256.67 | H53: 142
A54: ポリアミド6 | B54: 2013-09-01 | C54: 400 | D54: 118.8244186 | E54: 400 | F54: 175.06 | G54: 259.41 | H54: 146.94
A55: ポリアミド6 | B55: 2013-10-01 | C55: 400 | D55: 116.6710634 | E55: 400 | F55: 173.34 | G55: 258.34 | H55: 145
A56: ポリアミド6 | B56: 2013-11-01 | C56: 395 | D56: 115.0381745 | E56: 395 | F56: 171.03 | G56: 255.02 | H56: 143.03
A57: ポリアミド6 | B57: 2013-12-01 | C57: 395 | D57: 116.3217034 | E57: 395 | F57: 172.06 | G57: 255.66 | H57: 144.19
A58: ポリアミド6 | B58: 2014-01-01 | C58: 395 | D58: 122.8625524 | E58: 395 | F58: 177.29 | G58: 258.93 | H58: 150.08
A59: ポリアミド6 | B59: 2014-02-01 | C59: 395 | D59: 130.6544677 | E59: 395 | F59: 183.52 | G59: 262.83 | H59: 157.09
A60: ポリアミド6 | B60: 2014-03-01 | C60: 395 | D60: 118.4583276 | E60: 395 | F60: 173.77 | G60: 256.73 | H60: 146.11
A61: ポリアミド6 | B61: 2014-04-01 | C61: 395 | D61: 117.3113483 | E61: 395 | F61: 172.85 | G61: 256.16 | H61: 145.08
A62: ポリアミド6 | B62: 2014-05-01 | C62: 395 | D62: 126.8196124 | E62: 395 | F62: 180.46 | G62: 260.91 | H62: 153.64
A63: ポリアミド6 | B63: 2014-06-01 | C63: 395 | D63: 122.0857776 | E63: 395 | F63: 176.67 | G63: 258.54 | H63: 149.38
A64: ポリアミド6 | B64: 2014-07-01 | C64: 395 | D64: 125.4845468 | E64: 395 | F64: 179.39 | G64: 260.24 | H64: 152.44
A65: ポリアミド6 | B65: 2014-08-01 | C65: 395 | D65: 122.2191977 | E65: 395 | F65: 176.78 | G65: 258.61 | H65: 149.5
A66: ポリアミド6 | B66: 2014-09-01 | C66: 395 | D66: 124.9964502 | E66: 395 | F66: 179 | G66: 260 | H66: 152
A67: ポリアミド6 | B67: 2014-10-01 | C67: 395 | D67: 129.7276654 | E67: 395 | F67: 182.78 | G67: 262.36 | H67: 156.25
A68: ポリアミド6 | B68: 2014-11-01 | C68: 395 | D68: 125.0281027 | E68: 395 | F68: 179.02 | G68: 260.01 | H68: 152.03
A69: ポリアミド6 | B69: 2014-12-01 | C69: 395 | D69: 131.0480093 | E69: 395 | F69: 183.84 | G69: 263.02 | H69: 157.44
A70: ポリアミド6 | B70: 2015-01-01 | C70: 395 | D70: 137.8559178 | E70: 395 | F70: 189.28 | G70: 266.43 | H70: 163.57
A71: ポリアミド6 | B71: 2015-02-01 | C71: 395 | D71: 133.0120079 | E71: 395 | F71: 185.41 | G71: 264.01 | H71: 159.21
A72: ポリアミド6 | B72: 2015-03-01 | C72: 395 | D72: 136.5319876 | E72: 395 | F72: 188.23 | G72: 265.77 | H72: 162.38
A73: ポリアミド6 | B73: 2015-04-01 | C73: 395 | D73: 133.6713526 | E73: 395 | F73: 185.94 | G73: 264.34 | H73: 159.8
A74: ポリアミド6 | B74: 2015-05-01 | C74: 395 | D74: 143.7755822 | E74: 395 | F74: 194.02 | G74: 269.39 | H74: 168.9
A75: ポリアミド6 | B75: 2015-06-01 | C75: 395 | D75: 141.8037198 | E75: =ROUND($B$4/100*C75+$C$4/100*D75,2) -> 395 | F75: =ROUND($B$5/100*C75+$C$5/100*D75,2) -> 192.44 | G75: =ROUND($B$6/100*C75+$C$6/100*D75,2) -> 268.4 | H75: =ROUND($B$7/100*C75+$C$7/100*D75,2) -> 167.12
A76: ポリアミド6 | B76: 2015-07-01 | C76: 395 | D76: 148.872833 | E76: 395 | F76: 198.1 | G76: 271.94 | H76: 173.49
A77: ポリアミド6 | B77: 2015-08-01 | C77: 395 | D77: 145.4316487 | E77: 395 | F77: 195.35 | G77: 270.22 | H77: 170.39
A78: ポリアミド6 | B78: 2015-09-01 | C78: 395 | D78: 146.1893953 | E78: 395 | F78: 195.95 | G78: 270.59 | H78: 171.07
A79: ポリアミド6 | B79: 2015-10-01 | C79: 395 | D79: 143.5543641 | E79: 395 | F79: 193.84 | G79: 269.28 | H79: 168.7
A80: ポリアミド6 | B80: 2015-11-01 | C80: 395 | D80: 141.3479198 | E80: 395 | F80: 192.08 | G80: 268.17 | H80: 166.71
A81: ポリアミド6 | B81: 2015-12-01 | C81: 400 | D81: 139.6322884 | E81: 400 | F81: 191.71 | G81: 269.82 | H81: 165.67
A82: ポリアミド6 | B82: 2016-01-01 | C82: 400 | D82: 138.1553064 | E82: 400 | F82: 190.52 | G82: 269.08 | H82: 164.34
A83: ポリアミド6 | B83: 2016-02-01 | C83: 400 | D83: 138.5845179 | E83: 400 | F83: 190.87 | G83: 269.29 | H83: 164.73
A84: ポリアミド6 | B84: 2016-03-01 | C84: 400 | D84: 135.6482055 | E84: 400 | F84: 188.52 | G84: 267.82 | H84: 162.08
A85: ポリアミド6 | B85: 2016-04-01 | C85: 400 | D85: 131.0014039 | E85: 400 | F85: 184.8 | G85: 265.5 | H85: 157.9
A86: ポリアミド6 | B86: 2016-05-01 | C86: 400 | D86: 134.4327935 | E86: 400 | F86: 187.55 | G86: 267.22 | H86: 160.99
A87: ポリアミド6 | B87: 2016-06-01 | C87: 400 | D87: 130.0682368 | E87: 400 | F87: 184.05 | G87: 265.03 | H87: 157.06
A88: ポリアミド6 | B88: 2016-07-01 | C88: 400 | D88: 126.4813021 | E88: 400 | F88: 181.19 | G88: 263.24 | H88: 153.83
A89: ポリアミド6 | B89: 2016-08-01 | C89: 400 | D89: 127.3310729 | E89: 400 | F89: 181.86 | G89: 263.67 | H89: 154.6
A90: ポリアミド6 | B90: 2016-09-01 | C90: 400 | D90: 128.914284 | E90: 400 | F90: 183.13 | G90: 264.46 | H90: 156.02
A91: ポリアミド6 | B91: 2016-10-01 | C91: 400 | D91: 130.1784273 | E91: 400 | F91: 184.14 | G91: 265.09 | H91: 157.16
A92: ポリアミド6 | B92: 2016-11-01 | C92: 400 | D92: 127.7836184 | E92: 400 | F92: 182.23 | G92: 263.89 | H92: 155.01
A93: ポリアミド6 | B93: 2016-12-01 | C93: 400 | D93: 131.372737 | E93: 400 | F93: 185.1 | G93: 265.69 | H93: 158.24
A94: ポリアミド6 | B94: 2017-01-01 | C94: 400 | D94: 132.6034953 | E94: 400 | F94: 186.08 | G94: 266.3 | H94: 159.34
A95: ポリアミド6 | B95: 2017-02-01 | C95: 400 | D95: 136.3662921 | E95: 400 | F95: 189.09 | G95: 268.18 | H95: 162.73
A96: ポリアミド6 | B96: 2017-03-01 | C96: 400 | D96: 131.6380397 | E96: 400 | F96: 185.31 | G96: 265.82 | H96: 158.47
A97: ポリアミド6 | B97: 2017-04-01 | C97: 400 | D97: 129.6123021 | E97: 400 | F97: 183.69 | G97: 264.81 | H97: 156.65
A98: ポリアミド6 | B98: 2017-05-01 | C98: 400 | D98: 122.4164607 | E98: 400 | F98: 177.93 | G98: 261.21 | H98: 150.17
A99: ポリアミド6 | B99: 2017-06-01 | C99: 400 | D99: 112.6072826 | E99: 400 | F99: 170.09 | G99: 256.3 | H99: 141.35
A100: ポリアミド6 | B100: 2017-07-01 | C100: 400 | D100: 115.004992 | E100: 400 | F100: 172 | G100: 257.5 | H100: 143.5
A101: ポリアミド6 | B101: 2017-08-01 | C101: 400 | D101: 120.7591576 | E101: 400 | F101: 176.61 | G101: 260.38 | H101: 148.68
A102: ポリアミド6 | B102: 2017-09-01 | C102: 400 | D102: 122.425932 | E102: 400 | F102: 177.94 | G102: 261.21 | H102: 150.18
A103: ポリアミド6 | B103: 2017-10-01 | C103: 400 | D103: 123.4705839 | E103: 400 | F103: 178.78 | G103: 261.74 | H103: 151.12
A104: ポリアミド6 | B104: 2017-11-01 | C104: 400 | D104: 127.2696639 | E104: 400 | F104: 181.82 | G104: 263.63 | H104: 154.54
A105: ポリアミド6 | B105: 2017-12-01 | C105: 400 | D105: 125.118185 | E105: 400 | F105: 180.09 | G105: 262.56 | H105: 152.61
A106: ポリアミド6 | B106: 2018-01-01 | C106: 400 | D106: 125.165477 | E106: 400 | F106: 180.13 | G106: 262.58 | H106: 152.65
A107: ポリアミド6 | B107: 2018-02-01 | C107: 400 | D107: 123.7130322 | E107: 400 | F107: 178.97 | G107: 261.86 | H107: 151.34
A108: ポリアミド6 | B108: 2018-03-01 | C108: 400 | D108: 123.4948935 | E108: 400 | F108: 178.8 | G108: 261.75 | H108: 151.15
A109: ポリアミド6 | B109: 2018-04-01 | C109: 400 | D109: 124.3474094 | E109: 400 | F109: 179.48 | G109: 262.17 | H109: 151.91
A110: ポリアミド6 | B110: 2018-05-01 | C110: 400 | D110: 123.2488119 | E110: 400 | F110: 178.6 | G110: 261.62 | H110: 150.92
A111: ポリアミド6 | B111: 2018-06-01 | C111: 400 | D111: 124.5634682 | E111: 400 | F111: 179.65 | G111: 262.28 | H111: 152.11
A112: ポリアミド6 | B112: 2018-07-01 | C112: 400 | D112: 125.6939785 | E112: 400 | F112: 180.56 | G112: 262.85 | H112: 153.12
A113: ポリアミド6 | B113: 2018-08-01 | C113: 400 | D113: 124.2322692 | E113: 400 | F113: 179.39 | G113: 262.12 | H113: 151.81
A114: ポリアミド6 | B114: 2018-09-01 | C114: 400 | D114: 126.6110831 | E114: 400 | F114: 181.29 | G114: 263.31 | H114: 153.95
A115: ポリアミド6 | B115: 2018-10-01 | C115: 400 | D115: 123.0147815 | E115: 400 | F115: 178.41 | G115: 261.51 | H115: 150.71
A116: ポリアミド6 | B116: 2018-11-01 | C116: 400 | D116: 127.6404116 | E116: 400 | F116: 182.11 | G116: 263.82 | H116: 154.88
A117: ポリアミド6 | B117: 2018-12-01 | C117: 400 | D117: 130.2251977 | E117: 400 | F117: 184.18 | G117: 265.11 | H117: 157.2
A118: ポリアミド6 | B118: 2019-01-01 | C118: 400 | D118: 122.5764037 | E118: 400 | F118: 178.06 | G118: 261.29 | H118: 150.32
A119: ポリアミド6 | B119: 2019-02-01 | C119: 400 | D119: 124.4703302 | E119: 400 | F119: 179.58 | G119: 262.24 | H119: 152.02
A120: ポリアミド6 | B120: 2019-03-01 | C120: 400 | D120: 132.8630412 | E120: 400 | F120: 186.29 | G120: 266.43 | H120: 159.58
A121: ポリアミド6 | B121: 2019-04-01 | C121: 400 | D121: 127.4042757 | E121: 400 | F121: 181.92 | G121: 263.7 | H121: 154.66
A122: ポリアミド6 | B122: 2019-05-01 | C122: 400 | D122: 125.2940186 | E122: 400 | F122: 180.24 | G122: 262.65 | H122: 152.76
A123: ポリアミド6 | B123: 2019-06-01 | C123: 375 | D123: 126.525057 | E123: 375 | F123: 176.22 | G123: 250.76 | H123: 151.37
A124: ポリアミド6 | B124: 2019-07-01 | C124: 375 | D124: 129.7158741 | E124: 375 | F124: 178.77 | G124: 252.36 | H124: 154.24
A125: ポリアミド6 | B125: 2019-08-01 | C125: 375 | D125: 127.2605848 | E125: 375 | F125: 176.81 | G125: 251.13 | H125: 152.03
A126: ポリアミド6 | B126: 2019-09-01 | C126: 375 | D126: 126.4529095 | E126: 375 | F126: 176.16 | G126: 250.73 | H126: 151.31
A127: ポリアミド6 | B127: 2019-10-01 | C127: 375 | D127: 125.2003269 | E127: 375 | F127: 175.16 | G127: 250.1 | H127: 150.18
A128: ポリアミド6 | B128: 2019-11-01 | C128: 375 | D128: 128.4624094 | E128: 375 | F128: 177.77 | G128: 251.73 | H128: 153.12
A129: ポリアミド6 | B129: 2019-12-01 | C129: 375 | D129: 123.3299704 | E129: 375 | F129: 173.66 | G129: 249.16 | H129: 148.5
A130: ポリアミド6 | B130: 2020-01-01 | C130: 355 | D130: 119.2696801 | E130: 355 | F130: 166.42 | G130: 237.13 | H130: 142.84
A131: ポリアミド6 | B131: 2020-02-01 | C131: 335 | D131: 118.1395886 | E131: 335 | F131: 161.51 | G131: 226.57 | H131: 139.83
A132: ポリアミド6 | B132: 2020-03-01 | C132: 335 | D132: 116.4296625 | E132: 335 | F132: 160.14 | G132: 225.71 | H132: 138.29
A133: ポリアミド6 | B133: 2020-04-01 | C133: 315 | D133: 119.4093806 | E133: 315 | F133: 158.53 | G133: 217.2 | H133: 138.97
A134: ポリアミド6 | B134: 2020-05-01 | C134: 315 | D134: 112.6906405 | E134: 315 | F134: 153.15 | G134: 213.85 | H134: 132.92
A135: ポリアミド6 | B135: 2020-06-01 | C135: 315 | D135: 117.8240322 | E135: 315 | F135: 157.26 | G135: 216.41 | H135: 137.54
A136: ポリアミド6 | B136: 2020-07-01 | C136: 315 | D136: 122.9602745 | E136: 315 | F136: 161.37 | G136: 218.98 | H136: 142.16
A137: ポリアミド6 | B137: 2020-08-01 | C137: 315 | D137: 116.3828138 | E137: 315 | F137: 156.11 | G137: 215.69 | H137: 136.24
A138: ポリアミド6 | B138: 2020-09-01 | C138: 315 | D138: 118.7805914 | E138: 315 | F138: 158.02 | G138: 216.89 | H138: 138.4
A139: ポリアミド6 | B139: 2020-10-01 | C139: 315 | D139: 117.548064 | E139: =ROUND($B$4/100*C139+$C$4/100*D139,2) -> 315 | F139: =ROUND($B$5/100*C139+$C$5/100*D139,2) -> 157.04 | G139: =ROUND($B$6/100*C139+$C$6/100*D139,2) -> 216.27 | H139: =ROUND($B$7/100*C139+$C$7/100*D139,2) -> 137.29
A140: ポリアミド6 | B140: 2020-11-01 | C140: 315 | D140: 113.2942163 | E140: 315 | F140: 153.64 | G140: 214.15 | H140: 133.46
A141: ポリアミド6 | B141: 2020-12-01 | C141: 315 | D141: 111.5848295 | E141: 315 | F141: 152.27 | G141: 213.29 | H141: 131.93
A142: ポリアミド6 | B142: 2021-01-01 | C142: 325 | D142: 115.1601715 | E142: 325 | F142: 157.13 | G142: 220.08 | H142: 136.14
A143: ポリアミド6 | B143: 2021-02-01 | C143: 375 | D143: 116.3340754 | E143: 375 | F143: 168.07 | G143: 245.67 | H143: 142.2
A144: ポリアミド6 | B144: 2021-03-01 | C144: 395 | D144: 114.1660085 | E144: 395 | F144: 170.33 | G144: 254.58 | H144: 142.25
A145: ポリアミド6 | B145: 2021-04-01 | C145: 395 | D145: 120.2099684 | E145: 395 | F145: 175.17 | G145: 257.6 | H145: 147.69
A146: ポリアミド6 | B146: 2021-05-01 | C146: 395 | D146: 118.3915217 | E146: 395 | F146: 173.71 | G146: 256.7 | H146: 146.05
A147: ポリアミド6 | B147: 2021-06-01 | C147: 395 | D147: 117.8665289 | E147: 395 | F147: 173.29 | G147: 256.43 | H147: 145.58
A148: ポリアミド6 | B148: 2021-07-01 | C148: 395 | D148: 125.4475499 | E148: 395 | F148: 179.36 | G148: 260.22 | H148: 152.4
A149: ポリアミド6 | B149: 2021-08-01 | C149: 395 | D149: 119.7276683 | E149: 395 | F149: 174.78 | G149: 257.36 | H149: 147.25
A150: ポリアミド6 | B150: 2021-09-01 | C150: 395 | D150: 112.9170167 | E150: 395 | F150: 169.33 | G150: 253.96 | H150: 141.13
A151: ポリアミド6 | B151: 2021-10-01 | C151: 395 | D151: 109.922945 | E151: 395 | F151: 166.94 | G151: 252.46 | H151: 138.43
A152: ポリアミド6 | B152: 2021-11-01 | C152: 395 | D152: 105.2170774 | E152: 395 | F152: 163.17 | G152: 250.11 | H152: 134.2
A153: ポリアミド6 | B153: 2021-12-01 | C153: 395 | D153: 110.799806 | E153: 395 | F153: 167.64 | G153: 252.9 | H153: 139.22
A154: ポリアミド6 | B154: 2022-01-01 | C154: 395 | D154: 126.7229298 | E154: 395 | F154: 180.38 | G154: 260.86 | H154: 153.55
A155: ポリアミド6 | B155: 2022-02-01 | C155: 395 | D155: 126.702856 | E155: 395 | F155: 180.36 | G155: 260.85 | H155: 153.53
A156: ポリアミド6 | B156: 2022-03-01 | C156: 395 | D156: 128.7670551 | E156: 395 | F156: 182.01 | G156: 261.88 | H156: 155.39
A157: ポリアミド6 | B157: 2022-04-01 | C157: 395 | D157: 129.3132754 | E157: 395 | F157: 182.45 | G157: 262.16 | H157: 155.88
A158: ポリアミド6 | B158: 2022-05-01 | C158: 395 | D158: 137.2928104 | E158: 395 | F158: 188.83 | G158: 266.15 | H158: 163.06
A159: ポリアミド6 | B159: 2022-06-01 | C159: 395 | D159: 140.350019 | E159: 395 | F159: 191.28 | G159: 267.68 | H159: 165.82
A160: ポリアミド6 | B160: 2022-07-01 | C160: 395 | D160: 152.6004242 | E160: 395 | F160: 201.08 | G160: 273.8 | H160: 176.84
A161: ポリアミド6 | B161: 2022-08-01 | C161: 395 | D161: 159.671413 | E161: 395 | F161: 206.74 | G161: 277.34 | H161: 183.2
A162: ポリアミド6 | B162: 2022-09-01 | C162: 395 | D162: 161.5852453 | E162: 395 | F162: 208.27 | G162: 278.29 | H162: 184.93
A163: ポリアミド6 | B163: 2022-10-01 | C163: 395 | D163: 166.744265 | E163: 395 | F163: 212.4 | G163: 280.87 | H163: 189.57
A164: ポリアミド6 | B164: 2022-11-01 | C164: 395 | D164: 176.579793 | E164: 395 | F164: 220.26 | G164: 285.79 | H164: 198.42
A165: ポリアミド6 | B165: 2022-12-01 | C165: 395 | D165: 171.0969524 | E165: 395 | F165: 215.88 | G165: 283.05 | H165: 193.49
A166: ポリアミド6 | B166: 2023-01-01 | C166: 395 | D166: 169.7698404 | E166: 395 | F166: 214.82 | G166: 282.38 | H166: 192.29
A167: ポリアミド6 | B167: 2023-02-01 | C167: 395 | D167: 160.3637179 | E167: 395 | F167: 207.29 | G167: 277.68 | H167: 183.83
A168: ポリアミド6 | B168: 2023-03-01 | C168: 395 | D168: 158.5140041 | E168: 395 | F168: 205.81 | G168: 276.76 | H168: 182.16
A169: ポリアミド6 | B169: 2023-04-01 | C169: 395 | D169: 167.3987697 | E169: 395 | F169: 212.92 | G169: 281.2 | H169: 190.16
A170: ポリアミド6 | B170: 2023-05-01 | C170: 395 | D170: 162.9698052 | E170: 395 | F170: 209.38 | G170: 278.98 | H170: 186.17
A171: ポリアミド6 | B171: 2023-06-01 | C171: 395 | D171: 167.8684516 | E171: 395 | F171: 213.29 | G171: 281.43 | H171: 190.58
A172: ポリアミド6 | B172: 2023-07-01 | C172: 395 | D172: 164.7516517 | E172: 395 | F172: 210.8 | G172: 279.88 | H172: 187.78
A173: ポリアミド6 | B173: 2023-08-01 | C173: 395 | D173: 164.5989456 | E173: 395 | F173: 210.68 | G173: =ROUND($B$6/100*C173+$C$6/100*D173,2) -> 279.8 | H173: 187.64
A174: ポリアミド6 | B174: 2023-09-01 | C174: 395 | D174: 161.7345679 | E174: 395 | F174: 208.39 | G174: =ROUND($B$6/100*C174+$C$6/100*D174,2) -> 278.37 | H174: =ROUND($B$7/100*C174+$C$7/100*D174,2) -> 185.06
A175: ポリアミド6 | B175: 2023-10-01 | C175: 395 | D175: 166.7888658 | E175: 395 | F175: 212.43 | G175: 280.89 | H175: 189.61
A176: ポリアミド6 | B176: 2023-11-01 | C176: 395 | D176: 167.4006359 | E176: 395 | F176: =ROUND($B$5/100*C176+$C$5/100*D176,2) -> 212.92 | G176: 281.2 | H176: 190.16
A177: ポリアミド6 | B177: 2023-12-01 | C177: 395 | D177: 163.8339509 | E177: 395 | F177: 210.07 | G177: 279.42 | H177: 186.95
A178: ポリアミド6 | B178: 2024-01-01 | C178: 395 | D178: 164.7009043 | E178: 395 | F178: 210.76 | G178: 279.85 | H178: 187.73
A179: ポリアミド6 | B179: 2024-02-01 | C179: 395 | D179: 162.713072 | E179: 395 | F179: =ROUND($B$5/100*C179+$C$5/100*D179,2) -> 209.17 | G179: =ROUND($B$6/100*C179+$C$6/100*D179,2) -> 278.86 | H179: =ROUND($B$7/100*C179+$C$7/100*D179,2) -> 185.94

Sheet 6ポリプロピレン
A1: ポリプロピレン価格推移 | B1: グラフへ戻る | C1: 出典：日本経済新聞の記事及び日経NEEDS
A2: 指標 | B2: 期間 | C2: ポリプロピレン（円/kg）
A3: ポリプロピレン | B3: 2008-01-01 | C3: 200.5
A4: ポリプロピレン | B4: 2008-02-01 | C4: 204.25
A5: ポリプロピレン | B5: 2008-03-01 | C5: 215.5
A6: ポリプロピレン | B6: 2008-04-01 | C6: 215.5
A7: ポリプロピレン | B7: 2008-05-01 | C7: 215.5
A8: ポリプロピレン | B8: 2008-06-01 | C8: 215.5
A9: ポリプロピレン | B9: 2008-07-01 | C9: 240.25
A10: ポリプロピレン | B10: 2008-08-01 | C10: 248.5
A11: ポリプロピレン | B11: 2008-09-01 | C11: 248.5
A12: ポリプロピレン | B12: 2008-10-01 | C12: 248.5
A13: ポリプロピレン | B13: 2008-11-01 | C13: 248.5
A14: ポリプロピレン | B14: 2008-12-01 | C14: 248.5
A15: ポリプロピレン | B15: 2009-01-01 | C15: 248.5
A16: ポリプロピレン | B16: 2009-02-01 | C16: 217.5
A17: ポリプロピレン | B17: 2009-03-01 | C17: 186.5
A18: ポリプロピレン | B18: 2009-04-01 | C18: 186.5
A19: ポリプロピレン | B19: 2009-05-01 | C19: 162.5
A20: ポリプロピレン | B20: 2009-06-01 | C20: 146.5
A21: ポリプロピレン | B21: 2009-07-01 | C21: 146.5
A22: ポリプロピレン | B22: 2009-08-01 | C22: 154.5
A23: ポリプロピレン | B23: 2009-09-01 | C23: 166.5
A24: ポリプロピレン | B24: 2009-10-01 | C24: 166.5
A25: ポリプロピレン | B25: 2009-11-01 | C25: 166.5
A26: ポリプロピレン | B26: 2009-12-01 | C26: 166.5
A27: ポリプロピレン | B27: 2010-01-01 | C27: 168.5
A28: ポリプロピレン | B28: 2010-02-01 | C28: 176.5
A29: ポリプロピレン | B29: 2010-03-01 | C29: 176.5
A30: ポリプロピレン | B30: 2010-04-01 | C30: 176.5
A31: ポリプロピレン | B31: 2010-05-01 | C31: 179.5
A32: ポリプロピレン | B32: 2010-06-01 | C32: 181.5
A33: ポリプロピレン | B33: 2010-07-01 | C33: 181.5
A34: ポリプロピレン | B34: 2010-08-01 | C34: 181.5
A35: ポリプロピレン | B35: 2010-09-01 | C35: 181.5
A36: ポリプロピレン | B36: 2010-10-01 | C36: 181.5
A37: ポリプロピレン | B37: 2010-11-01 | C37: 181.5
A38: ポリプロピレン | B38: 2010-12-01 | C38: 181.5
A39: ポリプロピレン | B39: 2011-01-01 | C39: 181.5
A40: ポリプロピレン | B40: 2011-02-01 | C40: 189
A41: ポリプロピレン | B41: 2011-03-01 | C41: 196.5
A42: ポリプロピレン | B42: 2011-04-01 | C42: 196.5
A43: ポリプロピレン | B43: 2011-05-01 | C43: 212.5
A44: ポリプロピレン | B44: 2011-06-01 | C44: 216.5
A45: ポリプロピレン | B45: 2011-07-01 | C45: 216.5
A46: ポリプロピレン | B46: 2011-08-01 | C46: 216.5
A47: ポリプロピレン | B47: 2011-09-01 | C47: 216.5
A48: ポリプロピレン | B48: 2011-10-01 | C48: 212.5
A49: ポリプロピレン | B49: 2011-11-01 | C49: 211.5
A50: ポリプロピレン | B50: 2011-12-01 | C50: 210.5
A51: ポリプロピレン | B51: 2012-01-01 | C51: 210.5
A52: ポリプロピレン | B52: 2012-02-01 | C52: 210.5
A53: ポリプロピレン | B53: 2012-03-01 | C53: 210.5
A54: ポリプロピレン | B54: 2012-04-01 | C54: 235.5
A55: ポリプロピレン | B55: 2012-05-01 | C55: 235.5
A56: ポリプロピレン | B56: 2012-06-01 | C56: 235.5
A57: ポリプロピレン | B57: 2012-07-01 | C57: 235.5
A58: ポリプロピレン | B58: 2012-08-01 | C58: 230.375
A59: ポリプロピレン | B59: 2012-09-01 | C59: 215
A60: ポリプロピレン | B60: 2012-10-01 | C60: 215
A61: ポリプロピレン | B61: 2012-11-01 | C61: 215
A62: ポリプロピレン | B62: 2012-12-01 | C62: 215
A63: ポリプロピレン | B63: 2013-01-01 | C63: 221.75
A64: ポリプロピレン | B64: 2013-02-01 | C64: 227.75
A65: ポリプロピレン | B65: 2013-03-01 | C65: 239
A66: ポリプロピレン | B66: 2013-04-01 | C66: 239
A67: ポリプロピレン | B67: 2013-05-01 | C67: 239
A68: ポリプロピレン | B68: 2013-06-01 | C68: 239
A69: ポリプロピレン | B69: 2013-07-01 | C69: 239
A70: ポリプロピレン | B70: 2013-08-01 | C70: 239
A71: ポリプロピレン | B71: 2013-09-01 | C71: 239
A72: ポリプロピレン | B72: 2013-10-01 | C72: 239
A73: ポリプロピレン | B73: 2013-11-01 | C73: 239
A74: ポリプロピレン | B74: 2013-12-01 | C74: 249
A75: ポリプロピレン | B75: 2014-01-01 | C75: 252.25
A76: ポリプロピレン | B76: 2014-02-01 | C76: 262
A77: ポリプロピレン | B77: 2014-03-01 | C77: 262
A78: ポリプロピレン | B78: 2014-04-01 | C78: 262
A79: ポリプロピレン | B79: 2014-05-01 | C79: 262
A80: ポリプロピレン | B80: 2014-06-01 | C80: 262
A81: ポリプロピレン | B81: 2014-07-01 | C81: 262
A82: ポリプロピレン | B82: 2014-08-01 | C82: 258
A83: ポリプロピレン | B83: 2014-09-01 | C83: 256.5
A84: ポリプロピレン | B84: 2014-10-01 | C84: 255
A85: ポリプロピレン | B85: 2014-11-01 | C85: 255
A86: ポリプロピレン | B86: 2014-12-01 | C86: 247
A87: ポリプロピレン | B87: 2015-01-01 | C87: 240
A88: ポリプロピレン | B88: 2015-02-01 | C88: 230
A89: ポリプロピレン | B89: 2015-03-01 | C89: 222
A90: ポリプロピレン | B90: 2015-04-01 | C90: 220
A91: ポリプロピレン | B91: 2015-05-01 | C91: 220
A92: ポリプロピレン | B92: 2015-06-01 | C92: 220
A93: ポリプロピレン | B93: 2015-07-01 | C93: 220
A94: ポリプロピレン | B94: 2015-08-01 | C94: 220
A95: ポリプロピレン | B95: 2015-09-01 | C95: 220
A96: ポリプロピレン | B96: 2015-10-01 | C96: 218
A97: ポリプロピレン | B97: 2015-11-01 | C97: 212
A98: ポリプロピレン | B98: 2015-12-01 | C98: 212
A99: ポリプロピレン | B99: 2016-01-01 | C99: 212
A100: ポリプロピレン | B100: 2016-02-01 | C100: 208.25
A101: ポリプロピレン | B101: 2016-03-01 | C101: 207
A102: ポリプロピレン | B102: 2016-04-01 | C102: 204.5
A103: ポリプロピレン | B103: 2016-05-01 | C103: 202
A104: ポリプロピレン | B104: 2016-06-01 | C104: 202
A105: ポリプロピレン | B105: 2016-07-01 | C105: 202
A106: ポリプロピレン | B106: 2016-08-01 | C106: 202
A107: ポリプロピレン | B107: 2016-09-01 | C107: 202
A108: ポリプロピレン | B108: 2016-10-01 | C108: 202
A109: ポリプロピレン | B109: 2016-11-01 | C109: 202
A110: ポリプロピレン | B110: 2016-12-01 | C110: 202
A111: ポリプロピレン | B111: 2017-01-01 | C111: 202
A112: ポリプロピレン | B112: 2017-02-01 | C112: 202
A113: ポリプロピレン | B113: 2017-03-01 | C113: 217
A114: ポリプロピレン | B114: 2017-04-01 | C114: 222
A115: ポリプロピレン | B115: 2017-05-01 | C115: 222
A116: ポリプロピレン | B116: 2017-06-01 | C116: 222
A117: ポリプロピレン | B117: 2017-07-01 | C117: 222
A118: ポリプロピレン | B118: 2017-08-01 | C118: 222
A119: ポリプロピレン | B119: 2017-09-01 | C119: 222
A120: ポリプロピレン | B120: 2017-10-01 | C120: 222
A121: ポリプロピレン | B121: 2017-11-01 | C121: 229.5
A122: ポリプロピレン | B122: 2017-12-01 | C122: 232
A123: ポリプロピレン | B123: 2018-01-01 | C123: 232
A124: ポリプロピレン | B124: 2018-02-01 | C124: 232
A125: ポリプロピレン | B125: 2018-03-01 | C125: 232
A126: ポリプロピレン | B126: 2018-04-01 | C126: 232
A127: ポリプロピレン | B127: 2018-05-01 | C127: 232
A128: ポリプロピレン | B128: 2018-06-01 | C128: 232
A129: ポリプロピレン | B129: 2018-07-01 | C129: 236
A130: ポリプロピレン | B130: 2018-08-01 | C130: 242
A131: ポリプロピレン | B131: 2018-09-01 | C131: 242
A132: ポリプロピレン | B132: 2018-10-01 | C132: 242
A133: ポリプロピレン | B133: 2018-11-01 | C133: 242
A134: ポリプロピレン | B134: 2018-12-01 | C134: 242
A135: ポリプロピレン | B135: 2019-01-01 | C135: 242
A136: ポリプロピレン | B136: 2019-02-01 | C136: 242
A137: ポリプロピレン | B137: 2019-03-01 | C137: 242
A138: ポリプロピレン | B138: 2019-04-01 | C138: 242
A139: ポリプロピレン | B139: 2019-05-01 | C139: 242
A140: ポリプロピレン | B140: 2019-06-01 | C140: 242
A141: ポリプロピレン | B141: 2019-07-01 | C141: 242
A142: ポリプロピレン | B142: 2019-08-01 | C142: 242
A143: ポリプロピレン | B143: 2019-09-01 | C143: 242
A144: ポリプロピレン | B144: 2019-10-01 | C144: 242
A145: ポリプロピレン | B145: 2019-11-01 | C145: 242
A146: ポリプロピレン | B146: 2019-12-01 | C146: 242
A147: ポリプロピレン | B147: 2020-01-01 | C147: 242
A148: ポリプロピレン | B148: 2020-02-01 | C148: 242
A149: ポリプロピレン | B149: 2020-03-01 | C149: 242
A150: ポリプロピレン | B150: 2020-04-01 | C150: 242
A151: ポリプロピレン | B151: 2020-05-01 | C151: 242
A152: ポリプロピレン | B152: 2020-06-01 | C152: 242
A153: ポリプロピレン | B153: 2020-07-01 | C153: 221
A154: ポリプロピレン | B154: 2020-08-01 | C154: 220
A155: ポリプロピレン | B155: 2020-09-01 | C155: 220
A156: ポリプロピレン | B156: 2020-10-01 | C156: 220
A157: ポリプロピレン | B157: 2020-11-01 | C157: 220
A158: ポリプロピレン | B158: 2020-12-01 | C158: 220
A159: ポリプロピレン | B159: 2021-01-01 | C159: 220
A160: ポリプロピレン | B160: 2021-02-01 | C160: 230
A161: ポリプロピレン | B161: 2021-03-01 | C161: 240
A162: ポリプロピレン | B162: 2021-04-01 | C162: 250
A163: ポリプロピレン | B163: 2021-05-01 | C163: 250
A164: ポリプロピレン | B164: 2021-06-01 | C164: 250
A165: ポリプロピレン | B165: 2021-07-01 | C165: 250
A166: ポリプロピレン | B166: 2021-08-01 | C166: 254
A167: ポリプロピレン | B167: 2021-09-01 | C167: 260
A168: ポリプロピレン | B168: 2021-10-01 | C168: 260
A169: ポリプロピレン | B169: 2021-11-01 | C169: 260
A170: ポリプロピレン | B170: 2021-12-01 | C170: 270
A171: ポリプロピレン | B171: 2022-01-01 | C171: 278
A172: ポリプロピレン | B172: 2022-02-01 | C172: 280
A173: ポリプロピレン | B173: 2022-03-01 | C173: 280
A174: ポリプロピレン | B174: 2022-04-01 | C174: 280
A175: ポリプロピレン | B175: 2022-05-01 | C175: 316
A176: ポリプロピレン | B176: 2022-06-01 | C176: 325
A177: ポリプロピレン | B177: 2022-07-01 | C177: 325
A178: ポリプロピレン | B178: 2022-08-01 | C178: 325
A179: ポリプロピレン | B179: 2022-09-01 | C179: 325
A180: ポリプロピレン | B180: 2022-10-01 | C180: 325
A181: ポリプロピレン | B181: 2022-11-01 | C181: 325
A182: ポリプロピレン | B182: 2022-12-01 | C182: 325
A183: ポリプロピレン | B183: 2023-01-01 | C183: 317
A184: ポリプロピレン | B184: 2023-02-01 | C184: 305
A185: ポリプロピレン | B185: 2023-03-01 | C185: 305
A186: ポリプロピレン | B186: 2023-04-01 | C186: 305
A187: ポリプロピレン | B187: 2023-05-01 | C187: 300
A188: ポリプロピレン | B188: 2023-06-01 | C188: 300
A189: ポリプロピレン | B189: 2023-07-01 | C189: 304.8
A190: ポリプロピレン | B190: 2023-08-01 | C190: 306
A191: ポリプロピレン | B191: 2023-09-01 | C191: 306
A192: ポリプロピレン | B192: 2023-10-01 | C192: 309
A193: ポリプロピレン | B193: 2023-11-01 | C193: 321
A194: ポリプロピレン | B194: 2023-12-01 | C194: 321
A195: ポリプロピレン | B195: 2024-01-01 | C195: 321
A196: ポリプロピレン | B196: 2024-02-01 | C196: 321

Sheet 7ABS樹脂
A1: ABS樹脂価格推移 | B1: グラフへ戻る | C1: 出典：日本経済新聞の記事及び日経NEEDS
A2: 指標 | B2: 期間 | C2: ABS樹脂（円/kg）
A3: ABS樹脂 | B3: 2010-01-01 | C3: 220
A4: ABS樹脂 | B4: 2010-02-01 | C4: 220
A5: ABS樹脂 | B5: 2010-03-01 | C5: 220
A6: ABS樹脂 | B6: 2010-04-01 | C6: 220
A7: ABS樹脂 | B7: 2010-05-01 | C7: 220
A8: ABS樹脂 | B8: 2010-06-01 | C8: 220
A9: ABS樹脂 | B9: 2010-07-01 | C9: 220
A10: ABS樹脂 | B10: 2010-08-01 | C10: 220
A11: ABS樹脂 | B11: 2010-09-01 | C11: 220
A12: ABS樹脂 | B12: 2010-10-01 | C12: 220
A13: ABS樹脂 | B13: 2010-11-01 | C13: 220
A14: ABS樹脂 | B14: 2010-12-01 | C14: 220
A15: ABS樹脂 | B15: 2011-01-01 | C15: 220
A16: ABS樹脂 | B16: 2011-02-01 | C16: 220
A17: ABS樹脂 | B17: 2011-03-01 | C17: 220
A18: ABS樹脂 | B18: 2011-04-01 | C18: 240
A19: ABS樹脂 | B19: 2011-05-01 | C19: 260
A20: ABS樹脂 | B20: 2011-06-01 | C20: 260
A21: ABS樹脂 | B21: 2011-07-01 | C21: 260
A22: ABS樹脂 | B22: 2011-08-01 | C22: 260
A23: ABS樹脂 | B23: 2011-09-01 | C23: 260
A24: ABS樹脂 | B24: 2011-10-01 | C24: 280
A25: ABS樹脂 | B25: 2011-11-01 | C25: 270
A26: ABS樹脂 | B26: 2011-12-01 | C26: 280
A27: ABS樹脂 | B27: 2012-01-01 | C27: 280
A28: ABS樹脂 | B28: 2012-02-01 | C28: 280
A29: ABS樹脂 | B29: 2012-03-01 | C29: 280
A30: ABS樹脂 | B30: 2012-04-01 | C30: 280
A31: ABS樹脂 | B31: 2012-05-01 | C31: 280
A32: ABS樹脂 | B32: 2012-06-01 | C32: 290
A33: ABS樹脂 | B33: 2012-07-01 | C33: 290
A34: ABS樹脂 | B34: 2012-08-01 | C34: 290
A35: ABS樹脂 | B35: 2012-09-01 | C35: 290
A36: ABS樹脂 | B36: 2012-10-01 | C36: 290
A37: ABS樹脂 | B37: 2012-11-01 | C37: 290
A38: ABS樹脂 | B38: 2012-12-01 | C38: 290
A39: ABS樹脂 | B39: 2013-01-01 | C39: 290
A40: ABS樹脂 | B40: 2013-02-01 | C40: 290
A41: ABS樹脂 | B41: 2013-03-01 | C41: 290
A42: ABS樹脂 | B42: 2013-04-01 | C42: 290
A43: ABS樹脂 | B43: 2013-05-01 | C43: 290
A44: ABS樹脂 | B44: 2013-06-01 | C44: 290
A45: ABS樹脂 | B45: 2013-07-01 | C45: 290
A46: ABS樹脂 | B46: 2013-08-01 | C46: 290
A47: ABS樹脂 | B47: 2013-09-01 | C47: 290
A48: ABS樹脂 | B48: 2013-10-01 | C48: 290
A49: ABS樹脂 | B49: 2013-11-01 | C49: 290
A50: ABS樹脂 | B50: 2013-12-01 | C50: 290
A51: ABS樹脂 | B51: 2014-01-01 | C51: 290
A52: ABS樹脂 | B52: 2014-02-01 | C52: 290
A53: ABS樹脂 | B53: 2014-03-01 | C53: 290
A54: ABS樹脂 | B54: 2014-04-01 | C54: 290
A55: ABS樹脂 | B55: 2014-05-01 | C55: 290
A56: ABS樹脂 | B56: 2014-06-01 | C56: 290
A57: ABS樹脂 | B57: 2014-07-01 | C57: 290
A58: ABS樹脂 | B58: 2014-08-01 | C58: 290
A59: ABS樹脂 | B59: 2014-09-01 | C59: 290
A60: ABS樹脂 | B60: 2014-10-01 | C60: 290
A61: ABS樹脂 | B61: 2014-11-01 | C61: 290
A62: ABS樹脂 | B62: 2014-12-01 | C62: 290
A63: ABS樹脂 | B63: 2015-01-01 | C63: 290
A64: ABS樹脂 | B64: 2015-02-01 | C64: 290
A65: ABS樹脂 | B65: 2015-03-01 | C65: 290
A66: ABS樹脂 | B66: 2015-04-01 | C66: 290
A67: ABS樹脂 | B67: 2015-05-01 | C67: 290
A68: ABS樹脂 | B68: 2015-06-01 | C68: 290
A69: ABS樹脂 | B69: 2015-07-01 | C69: 290
A70: ABS樹脂 | B70: 2015-08-01 | C70: 290
A71: ABS樹脂 | B71: 2015-09-01 | C71: 290
A72: ABS樹脂 | B72: 2015-10-01 | C72: 290
A73: ABS樹脂 | B73: 2015-11-01 | C73: 290
A74: ABS樹脂 | B74: 2015-12-01 | C74: 290
A75: ABS樹脂 | B75: 2016-01-01 | C75: 290
A76: ABS樹脂 | B76: 2016-02-01 | C76: 290
A77: ABS樹脂 | B77: 2016-03-01 | C77: 290
A78: ABS樹脂 | B78: 2016-04-01 | C78: 290
A79: ABS樹脂 | B79: 2016-05-01 | C79: 290
A80: ABS樹脂 | B80: 2016-06-01 | C80: 290
A81: ABS樹脂 | B81: 2016-07-01 | C81: 290
A82: ABS樹脂 | B82: 2016-08-01 | C82: 290
A83: ABS樹脂 | B83: 2016-09-01 | C83: 290
A84: ABS樹脂 | B84: 2016-10-01 | C84: 290
A85: ABS樹脂 | B85: 2016-11-01 | C85: 290
A86: ABS樹脂 | B86: 2016-12-01 | C86: 290
A87: ABS樹脂 | B87: 2017-01-01 | C87: 290
A88: ABS樹脂 | B88: 2017-02-01 | C88: 290
A89: ABS樹脂 | B89: 2017-03-01 | C89: 290
A90: ABS樹脂 | B90: 2017-04-01 | C90: 290
A91: ABS樹脂 | B91: 2017-05-01 | C91: 290
A92: ABS樹脂 | B92: 2017-06-01 | C92: 290
A93: ABS樹脂 | B93: 2017-07-01 | C93: 290
A94: ABS樹脂 | B94: 2017-08-01 | C94: 290
A95: ABS樹脂 | B95: 2017-09-01 | C95: 290
A96: ABS樹脂 | B96: 2017-10-01 | C96: 290
A97: ABS樹脂 | B97: 2017-11-01 | C97: 290
A98: ABS樹脂 | B98: 2017-12-01 | C98: 290
A99: ABS樹脂 | B99: 2018-01-01 | C99: 290
A100: ABS樹脂 | B100: 2018-02-01 | C100: 330
A101: ABS樹脂 | B101: 2018-03-01 | C101: 330
A102: ABS樹脂 | B102: 2018-04-01 | C102: 330
A103: ABS樹脂 | B103: 2018-05-01 | C103: 330
A104: ABS樹脂 | B104: 2018-06-01 | C104: 330
A105: ABS樹脂 | B105: 2018-07-01 | C105: 330
A106: ABS樹脂 | B106: 2018-08-01 | C106: 330
A107: ABS樹脂 | B107: 2018-09-01 | C107: 330
A108: ABS樹脂 | B108: 2018-10-01 | C108: 330
A109: ABS樹脂 | B109: 2018-11-01 | C109: 330
A110: ABS樹脂 | B110: 2018-12-01 | C110: 330
A111: ABS樹脂 | B111: 2019-01-01 | C111: 330
A112: ABS樹脂 | B112: 2019-02-01 | C112: 330
A113: ABS樹脂 | B113: 2019-03-01 | C113: 330
A114: ABS樹脂 | B114: 2019-04-01 | C114: 330
A115: ABS樹脂 | B115: 2019-05-01 | C115: 330
A116: ABS樹脂 | B116: 2019-06-01 | C116: 330
A117: ABS樹脂 | B117: 2019-07-01 | C117: 330
A118: ABS樹脂 | B118: 2019-08-01 | C118: 330
A119: ABS樹脂 | B119: 2019-09-01 | C119: 330
A120: ABS樹脂 | B120: 2019-10-01 | C120: 330
A121: ABS樹脂 | B121: 2019-11-01 | C121: 330
A122: ABS樹脂 | B122: 2019-12-01 | C122: 330
A123: ABS樹脂 | B123: 2020-01-01 | C123: 320
A124: ABS樹脂 | B124: 2020-02-01 | C124: 300
A125: ABS樹脂 | B125: 2020-03-01 | C125: 300
A126: ABS樹脂 | B126: 2020-04-01 | C126: 265
A127: ABS樹脂 | B127: 2020-05-01 | C127: 265
A128: ABS樹脂 | B128: 2020-06-01 | C128: 255
A129: ABS樹脂 | B129: 2020-07-01 | C129: 255
A130: ABS樹脂 | B130: 2020-08-01 | C130: 255
A131: ABS樹脂 | B131: 2020-09-01 | C131: 255
A132: ABS樹脂 | B132: 2020-10-01 | C132: 255
A133: ABS樹脂 | B133: 2020-11-01 | C133: 255
A134: ABS樹脂 | B134: 2020-12-01 | C134: 255
A135: ABS樹脂 | B135: 2021-01-01 | C135: 255
A136: ABS樹脂 | B136: 2021-02-01 | C136: 275
A137: ABS樹脂 | B137: 2021-03-01 | C137: 285
A138: ABS樹脂 | B138: 2021-04-01 | C138: 285
A139: ABS樹脂 | B139: 2021-05-01 | C139: 285
A140: ABS樹脂 | B140: 2021-06-01 | C140: 285
A141: ABS樹脂 | B141: 2021-07-01 | C141: 285
A142: ABS樹脂 | B142: 2021-08-01 | C142: 285
A143: ABS樹脂 | B143: 2021-09-01 | C143: 285
A144: ABS樹脂 | B144: 2021-10-01 | C144: 285
A145: ABS樹脂 | B145: 2021-11-01 | C145: 285
A146: ABS樹脂 | B146: 2021-12-01 | C146: 285
A147: ABS樹脂 | B147: 2022-01-01 | C147: 285
A148: ABS樹脂 | B148: 2022-02-01 | C148: 285
A149: ABS樹脂 | B149: 2022-03-01 | C149: 285
A150: ABS樹脂 | B150: 2022-04-01 | C150: 285
A151: ABS樹脂 | B151: 2022-05-01 | C151: 285
A152: ABS樹脂 | B152: 2022-06-01 | C152: 285
A153: ABS樹脂 | B153: 2022-07-01 | C153: 325
A154: ABS樹脂 | B154: 2022-08-01 | C154: 325
A155: ABS樹脂 | B155: 2022-09-01 | C155: 325
A156: ABS樹脂 | B156: 2022-10-01 | C156: 325
A157: ABS樹脂 | B157: 2022-11-01 | C157: 325
A158: ABS樹脂 | B158: 2022-12-01 | C158: 325
A159: ABS樹脂 | B159: 2023-01-01 | C159: 325
A160: ABS樹脂 | B160: 2023-02-01 | C160: 325
A161: ABS樹脂 | B161: 2023-03-01 | C161: 325
A162: ABS樹脂 | B162: 2023-04-01 | C162: 325
A163: ABS樹脂 | B163: 2023-05-01 | C163: 325
A164: ABS樹脂 | B164: 2023-06-01 | C164: 325
A165: ABS樹脂 | B165: 2023-07-01 | C165: 325
A166: ABS樹脂 | B166: 2023-08-01 | C166: 325
A167: ABS樹脂 | B167: 2023-09-01 | C167: 325
A168: ABS樹脂 | B168: 2023-10-01 | C168: 325
A169: ABS樹脂 | B169: 2023-11-01 | C169: 325
A170: ABS樹脂 | B170: 2023-12-01 | C170: 325
A171: ABS樹脂 | B171: 2024-01-01 | C171: 325
A172: ABS樹脂 | B172: 2024-02-01 | C172: 325

Sheet 8合成ゴム
A1: 合成ゴム価格推移 | B1: グラフへ戻る | C1: 出典：EPDMは日本経済新聞の記事及び日経NEEDS、カーボンブラック・プロセスオイルは財務省貿易統計
A2: 指標 | B2: 期間 | C2: EPDM（円/kg） | D2: カーボンブラック（円/kg） | E2: プロセスオイル（円/kg） | F2: プロセスオイル（円/l）
A3: 合成ゴム | B3: 2010-01-01 | C3: 325 | D3: 133.8673147 | E3: 52.92266429 | F3: 44.75127102
A4: 合成ゴム | B4: 2010-02-01 | C4: 325 | D4: 128.9856132 | E4: 52.82089636 | F4: 44.79099163
A5: 合成ゴム | B5: 2010-03-01 | C5: 325 | D5: 127.7223355 | E5: 51.39902576 | F5: 43.36168461
A6: 合成ゴム | B6: 2010-04-01 | C6: 325 | D6: 127.3719157 | E6: 55.018709 | F6: 46.50141736
A7: 合成ゴム | B7: 2010-05-01 | C7: 325 | D7: 189.7243944 | E7: 58.7109477 | F7: 49.72171418
A8: 合成ゴム | B8: 2010-06-01 | C8: 325 | D8: 131.9392292 | E8: 54.03711325 | F8: 45.74938121
A9: 合成ゴム | B9: 2010-07-01 | C9: 345 | D9: 137.3965981 | E9: 50.59665477 | F9: 42.80453413
A10: 合成ゴム | B10: 2010-08-01 | C10: 345 | D10: 130.1397648 | E10: 47.8191934 | F10: 40.56605674
A11: 合成ゴム | B11: 2010-09-01 | C11: 345 | D11: 127.7667515 | E11: 47.86827087 | F11: 40.5108767
A12: 合成ゴム | B12: 2010-10-01 | C12: 345 | D12: 128.2030837 | E12: 47.99059284 | F12: 40.53998669
A13: 合成ゴム | B13: 2010-11-01 | C13: 345 | D13: 138.1901613 | E13: 49.75295204 | F13: 42.08328163
A14: 合成ゴム | B14: 2010-12-01 | C14: 345 | D14: 130.2940824 | E14: 53.69557665 | F14: 45.33569941
A15: 合成ゴム | B15: 2011-01-01 | C15: 345 | D15: 134.8980237 | E15: 56.61263978 | F15: 47.85926795
A16: 合成ゴム | B16: 2011-02-01 | C16: 345 | D16: 126.1369919 | E16: 58.91604659 | F16: 49.71110041
A17: 合成ゴム | B17: 2011-03-01 | C17: 360 | D17: 126.5912266 | E17: 63.25888126 | F17: 53.41417403
A18: 合成ゴム | B18: 2011-04-01 | C18: 360 | D18: 131.1699723 | E18: 69.23485987 | F18: 58.40328213
A19: 合成ゴム | B19: 2011-05-01 | C19: 405 | D19: 130.3464228 | E19: 72.10480129 | F19: 60.86274037
A20: 合成ゴム | B20: 2011-06-01 | C20: 405 | D20: 127.762577 | E20: 68.93190462 | F20: 58.42148142
A21: 合成ゴム | B21: 2011-07-01 | C21: 405 | D21: 125.1633249 | E21: 67.73296666 | F21: 57.4319891
A22: 合成ゴム | B22: 2011-08-01 | C22: 425 | D22: 122.1875527 | E22: 66.44135616 | F22: 56.18302917
A23: 合成ゴム | B23: 2011-09-01 | C23: 425 | D23: 132.1445673 | E23: 63.23455269 | F23: 53.5538215
A24: 合成ゴム | B24: 2011-10-01 | C24: 425 | D24: 123.6103822 | E24: 63.19663183 | F24: 53.50347115
A25: 合成ゴム | B25: 2011-11-01 | C25: 425 | D25: 124.7439833 | E25: 62.65733112 | F25: 53.15731115
A26: 合成ゴム | B26: 2011-12-01 | C26: 425 | D26: 129.0030707 | E26: 65.88312006 | F26: 55.7018518
A27: 合成ゴム | B27: 2012-01-01 | C27: 425 | D27: 125.3107672 | E27: 65.18977162 | F27: 55.12854912
A28: 合成ゴム | B28: 2012-02-01 | C28: 425 | D28: 123.4305638 | E28: 66.85089601 | F28: 56.44175731
A29: 合成ゴム | B29: 2012-03-01 | C29: 425 | D29: 129.5961886 | E29: 73.05094145 | F29: 61.87787181
A30: 合成ゴム | B30: 2012-04-01 | C30: 425 | D30: 145.1677089 | E30: 77.80551809 | F30: 65.78848499
A31: 合成ゴム | B31: 2012-05-01 | C31: 425 | D31: 139.6230823 | E31: 74.55285725 | F31: 62.99286328
A32: 合成ゴム | B32: 2012-06-01 | C32: 425 | D32: 143.2860876 | E32: 68.16405391 | F32: 57.52599376
A33: 合成ゴム | B33: 2012-07-01 | C33: 425 | D33: 143.5258002 | E33: 60.47199058 | F33: 51.1378976
A34: 合成ゴム | B34: 2012-08-01 | C34: 425 | D34: 132.3780581 | E34: 60.00135872 | F34: 50.90918094
A35: 合成ゴム | B35: 2012-09-01 | C35: 425 | D35: 127.6147841 | E35: 64.99736699 | F35: 55.07762189
A36: 合成ゴム | B36: 2012-10-01 | C36: 425 | D36: 130.880929 | E36: 67.28210647 | F36: 56.91833227
A37: 合成ゴム | B37: 2012-11-01 | C37: 395 | D37: 140.8854056 | E37: 67.64593303 | F37: 57.2138892
A38: 合成ゴム | B38: 2012-12-01 | C38: 395 | D38: 135.9771348 | E38: 69.26587028 | F38: 58.53795344
A39: 合成ゴム | B39: 2013-01-01 | C39: 395 | D39: 153.8430718 | E39: 72.58507245 | F39: 61.33592768
A40: 合成ゴム | B40: 2013-02-01 | C40: 405 | D40: 142.0090401 | E40: 76.88034074 | F40: 65.15101084
A41: 合成ゴム | B41: 2013-03-01 | C41: 405 | D41: 142.4055951 | E41: 81.10664936 | F41: 68.43172058
A42: 合成ゴム | B42: 2013-04-01 | C42: 405 | D42: 148.9385699 | E42: 79.43241586 | F42: 67.14769224
A43: 合成ゴム | B43: 2013-05-01 | C43: 405 | D43: 156.028568 | E43: 78.93952065 | F43: 66.57636768
A44: 合成ゴム | B44: 2013-06-01 | C44: 390 | D44: 153.8879247 | E44: 78.07478516 | F44: 65.7584641
A45: 合成ゴム | B45: 2013-07-01 | C45: 390 | D45: 147.5680647 | E45: 77.09351595 | F45: 65.03342225
A46: 合成ゴム | B46: 2013-08-01 | C46: 395 | D46: 138.0954145 | E46: 78.61958961 | F46: 66.36408146
A47: 合成ゴム | B47: 2013-09-01 | C47: 395 | D47: 157.0845915 | E47: 81.44369918 | F47: 68.99274411
A48: 合成ゴム | B48: 2013-10-01 | C48: 395 | D48: 160.1370085 | E48: 83.14963976 | F48: 70.1635738
A49: 合成ゴム | B49: 2013-11-01 | C49: 385 | D49: 153.3711366 | E49: 82.6432165 | F49: 69.83621666
A50: 合成ゴム | B50: 2013-12-01 | C50: 385 | D50: 149.978897 | E50: 85.12471241 | F50: 71.94913768
A51: 合成ゴム | B51: 2014-01-01 | C51: 385 | D51: 144.0182435 | E51: 88.62835577 | F51: 74.64166
A52: 合成ゴム | B52: 2014-02-01 | C52: 385 | D52: 155.4307521 | E52: 85.1806707 | F52: 71.73452852
A53: 合成ゴム | B53: 2014-03-01 | C53: 395 | D53: 137.0930216 | E53: 84.05076643 | F53: 70.90337968
A54: 合成ゴム | B54: 2014-04-01 | C54: 395 | D54: 150.4045067 | E54: 83.5451019 | F54: 70.52096633
A55: 合成ゴム | B55: 2014-05-01 | C55: 405 | D55: 146.3977406 | E55: 83.0138727 | F55: 70.11267428
A56: 合成ゴム | B56: 2014-06-01 | C56: 405 | D56: 141.3734354 | E56: 83.52858548 | F56: 70.57603054
A57: 合成ゴム | B57: 2014-07-01 | C57: 405 | D57: 147.2390052 | E57: 84.15532562 | F57: 71.40589114
A58: 合成ゴム | B58: 2014-08-01 | C58: 405 | D58: 140.8656826 | E58: 84.26159962 | F58: 71.03886767
A59: 合成ゴム | B59: 2014-09-01 | C59: 395 | D59: 143.6540853 | E59: 82.82464884 | F59: 70.0202614
A60: 合成ゴム | B60: 2014-10-01 | C60: 395 | D60: 158.7431176 | E60: 81.0119523 | F60: 68.57489425
A61: 合成ゴム | B61: 2014-11-01 | C61: 395 | D61: 146.9764517 | E61: 75.17250275 | F61: 63.59001163
A62: 合成ゴム | B62: 2014-12-01 | C62: 395 | D62: 155.279192 | E62: 69.39467801 | F62: 58.77105872
A63: 合成ゴム | B63: 2015-01-01 | C63: 396 | D63: 145.9558539 | E63: 56.0817155 | F63: 47.47984608
A64: 合成ゴム | B64: 2015-02-01 | C64: 396 | D64: 149.0741139 | E64: 43.50775896 | F64: 36.78143056
A65: 合成ゴム | B65: 2015-03-01 | C65: 383 | D65: 150.0889438 | E65: 48.88829986 | F65: 41.29109042
A66: 合成ゴム | B66: 2015-04-01 | C66: 383 | D66: 145.8791498 | E66: 50.04794417 | F66: 42.40015012
A67: 合成ゴム | B67: 2015-05-01 | C67: 383 | D67: 127.021186 | E67: 52.56184858 | F67: 44.61673565
A68: 合成ゴム | B68: 2015-06-01 | C68: 333 | D68: 127.7025565 | E68: 58.73741421 | F68: 49.57792668
A69: 合成ゴム | B69: 2015-07-01 | C69: 333 | D69: 121.5980343 | E69: 58.53045549 | F69: 49.35584595
A70: 合成ゴム | B70: 2015-08-01 | C70: 338 | D70: 126.6479081 | E70: 54.42987422 | F70: 46.05721611
A71: 合成ゴム | B71: 2015-09-01 | C71: 338 | D71: 132.8796028 | E71: 46.14242899 | F71: 38.99146939
A72: 合成ゴム | B72: 2015-10-01 | C72: 338 | D72: 129.3204458 | E72: 42.82054815 | F72: 36.15350981
A73: 合成ゴム | B73: 2015-11-01 | C73: 338 | D73: 140.8280394 | E73: 42.62436422 | F73: 36.19797777
A74: 合成ゴム | B74: 2015-12-01 | C74: 338 | D74: 131.5411873 | E74: 39.68259681 | F74: 33.57734304
A75: 合成ゴム | B75: 2016-01-01 | C75: 338 | D75: 122.1634816 | E75: 32.75188581 | F75: 27.77968387
A76: 合成ゴム | B76: 2016-02-01 | C76: 326 | D76: 117.0504796 | E76: 26.54619954 | F76: 22.45298615
A77: 合成ゴム | B77: 2016-03-01 | C77: 326 | D77: 115.9885893 | E77: 27.07632195 | F77: 22.89601019
A78: 合成ゴム | B78: 2016-04-01 | C78: 326 | D78: 109.6728093 | E78: 30.48466147 | F78: 25.87896872
A79: 合成ゴム | B79: 2016-05-01 | C79: 326 | D79: 108.0126508 | E79: 33.02322907 | F79: 27.89953605
A80: 合成ゴム | B80: 2016-06-01 | C80: 326 | D80: 106.749302 | E80: 36.50178286 | F80: 30.88350525
A81: 合成ゴム | B81: 2016-07-01 | C81: 326 | D81: 108.6303081 | E81: 36.47269284 | F81: 30.93071775
A82: 合成ゴム | B82: 2016-08-01 | C82: 326 | D82: 109.6854396 | E82: 34.89830641 | F82: 29.51896513
A83: 合成ゴム | B83: 2016-09-01 | C83: 326 | D83: 107.6753642 | E83: 34.46376798 | F83: 29.19498056
A84: 合成ゴム | B84: 2016-10-01 | C84: 326 | D84: 100.7997898 | E84: 34.53923338 | F84: 29.17886537
A85: 合成ゴム | B85: 2016-11-01 | C85: 325 | D85: 118.4149566 | E85: 38.38787627 | F85: 32.41661212
A86: 合成ゴム | B86: 2016-12-01 | C86: 325 | D86: 110.5456577 | E86: 39.22978153 | F86: 33.23978603
A87: 合成ゴム | B87: 2017-01-01 | C87: 325 | D87: 133.0136809 | E87: 46.41415759 | F87: 39.17628354
A88: 合成ゴム | B88: 2017-02-01 | C88: 332 | D88: 127.2701749 | E88: 46.67435327 | F88: 39.4706519
A89: 合成ゴム | B89: 2017-03-01 | C89: 332 | D89: 132.7897552 | E89: 47.52200777 | F89: 40.15331325
A90: 合成ゴム | B90: 2017-04-01 | C90: 332 | D90: 142.2549447 | E90: 44.35684718 | F90: 37.57244052
A91: 合成ゴム | B91: 2017-05-01 | C91: 332 | D91: 139.4626395 | E91: 44.74388058 | F91: 37.81919039
A92: 合成ゴム | B92: 2017-06-01 | C92: 332 | D92: 138.8548597 | E92: 43.03525042 | F92: 36.35778555
A93: 合成ゴム | B93: 2017-07-01 | C93: 332 | D93: 142.8827117 | E93: 40.32916669 | F93: 34.18551079
A94: 合成ゴム | B94: 2017-08-01 | C94: 325 | D94: 145.9851068 | E94: 40.21995577 | F94: 34.13174242
A95: 合成ゴム | B95: 2017-09-01 | C95: 325 | D95: 132.706999 | E95: 41.86862908 | F95: 35.49825715
A96: 合成ゴム | B96: 2017-10-01 | C96: 325 | D96: 143.8135183 | E96: 45.95697241 | F96: 38.81340807
A97: 合成ゴム | B97: 2017-11-01 | C97: 325 | D97: 152.8242012 | E97: 48.63166913 | F97: 41.25441303
A98: 合成ゴム | B98: 2017-12-01 | C98: 325 | D98: 158.2817105 | E98: 52.14352821 | F98: 44.20442186
A99: 合成ゴム | B99: 2018-01-01 | C99: 325 | D99: 163.6689817 | E99: 53.86576097 | F99: 45.69898833
A100: 合成ゴム | B100: 2018-02-01 | C100: 325 | D100: 159.4069953 | E100: 55.37548969 | F100: 46.92194106
A101: 合成ゴム | B101: 2018-03-01 | C101: 325 | D101: 166.8452424 | E101: 52.87059412 | F101: 44.76924615
A102: 合成ゴム | B102: 2018-04-01 | C102: 325 | D102: 162.5698366 | E102: 52.20122767 | F102: 44.27616994
A103: 合成ゴム | B103: 2018-05-01 | C103: 325 | D103: 170.2436295 | E103: 57.28642268 | F103: 48.62454775
A104: 合成ゴム | B104: 2018-06-01 | C104: 325 | D104: 171.6109774 | E104: 62.20242209 | F104: 52.769612
A105: 合成ゴム | B105: 2018-07-01 | C105: 325 | D105: 175.4566719 | E105: 62.86898969 | F105: 53.4059887
A106: 合成ゴム | B106: 2018-08-01 | C106: 325 | D106: 173.3109961 | E106: 63.73272085 | F106: 53.89048566
A107: 合成ゴム | B107: 2018-09-01 | C107: 325 | D107: 162.0920444 | E107: 62.76650967 | F107: 53.1505226
A108: 合成ゴム | B108: 2018-10-01 | C108: 325 | D108: 168.4795351 | E108: 66.32768489 | F108: 56.25090886
A109: 合成ゴム | B109: 2018-11-01 | C109: 325 | D109: 171.8882743 | E109: 68.64954145 | F109: 57.99224141
A110: 合成ゴム | B110: 2018-12-01 | C110: 338 | D110: 171.7451019 | E110: 60.11136405 | F110: 50.80246076
A111: 合成ゴム | B111: 2019-01-01 | C111: 338 | D111: 187.911938 | E111: 51.10910675 | F111: 43.1101466
A112: 合成ゴム | B112: 2019-02-01 | C112: 338 | D112: 173.6371151 | E112: 50.93745442 | F112: 42.96118175
A113: 合成ゴム | B113: 2019-03-01 | C113: 340 | D113: 176.1621406 | E113: 54.23872496 | F113: 45.96981547
A114: 合成ゴム | B114: 2019-04-01 | C114: 340 | D114: 189.8044736 | E114: 56.97189305 | F114: 48.14967402
A115: 合成ゴム | B115: 2019-05-01 | C115: 340 | D115: 177.174805 | E115: 60.69936256 | F115: 51.05624849
A116: 合成ゴム | B116: 2019-06-01 | C116: 305 | D116: 162.6420889 | E116: 59.48667123 | F116: 50.01444021
A117: 合成ゴム | B117: 2019-07-01 | C117: 305 | D117: 167.6509766 | E117: 54.27091934 | F117: 45.74110209
A118: 合成ゴム | B118: 2019-08-01 | C118: 315 | D118: 179.2387969 | E118: 53.74554587 | F118: 45.38271714
A119: 合成ゴム | B119: 2019-09-01 | C119: 315 | D119: 155.4409094 | E119: 51.1105174 | F119: 43.12525083
A120: 合成ゴム | B120: 2019-10-01 | C120: 315 | D120: 179.3942407 | E120: 52.30293072 | F120: 44.12571814
A121: 合成ゴム | B121: 2019-11-01 | C121: 300 | D121: 159.6807686 | E121: 52.92546319 | F121: 44.43330813
A122: 合成ゴム | B122: 2019-12-01 | C122: 300 | D122: 180.6681106 | E122: 54.5857859 | F122: 46.07288988
A123: 合成ゴム | B123: 2020-01-01 | C123: 300 | D123: 172.3129155 | E123: 57.36376618 | F123: 48.37089939
A124: 合成ゴム | B124: 2020-02-01 | C124: 300 | D124: 161.1534315 | E124: 57.53201237 | F124: 48.62482923
A125: 合成ゴム | B125: 2020-03-01 | C125: 300 | D125: 162.4876126 | E125: 50.2637198 | F125: 42.2304477
A126: 合成ゴム | B126: 2020-04-01 | C126: 300 | D126: 163.4591489 | E126: 34.09168479 | F126: 28.73425501
A127: 合成ゴム | B127: 2020-05-01 | C127: 310 | D127: 148.450507 | E127: 19.93053278 | F127: 16.81010257
A128: 合成ゴム | B128: 2020-06-01 | C128: 310 | D128: 173.6822945 | E128: 19.67966135 | F128: 16.64535945
A129: 合成ゴム | B129: 2020-07-01 | C129: 310 | D129: 201.1282509 | E129: 26.30915897 | F129: 22.16668342
A130: 合成ゴム | B130: 2020-08-01 | C130: 260 | D130: 176.1298615 | E130: 34.17302726 | F130: 29.00313549
A131: 合成ゴム | B131: 2020-09-01 | C131: 260 | D131: 147.0453535 | E131: 36.46441369 | F131: 30.8029223
A132: 合成ゴム | B132: 2020-10-01 | C132: 260 | D132: 135.0336567 | E132: 34.98536049 | F132: 29.54658893
A133: 合成ゴム | B133: 2020-11-01 | C133: 275 | D133: 129.9614207 | E133: 33.08373211 | F133: 27.85778891
A134: 合成ゴム | B134: 2020-12-01 | C134: 275 | D134: 127.5692555 | E134: 34.56137239 | F134: 29.17412295
A135: 合成ゴム | B135: 2021-01-01 | C135: 275 | D135: 142.0429659 | E135: 38.71744734 | F135: 32.67587846
A136: 合成ゴム | B136: 2021-02-01 | C136: 280 | D136: 154.4904987 | E136: 43.39996133 | F136: 36.68337918
A137: 合成ゴム | B137: 2021-03-01 | C137: 280 | D137: 153.6290288 | E137: 49.04949214 | F137: 41.54688618
A138: 合成ゴム | B138: 2021-04-01 | C138: 280 | D138: 170.3164876 | E138: 54.06084903 | F138: 45.70186181
A139: 合成ゴム | B139: 2021-05-01 | C139: 280 | D139: 168.1681795 | E139: 53.06541345 | F139: 44.87974738
A140: 合成ゴム | B140: 2021-06-01 | C140: 300 | D140: 169.9194639 | E140: 56.24672412 | F140: 47.61394176
A141: 合成ゴム | B141: 2021-07-01 | C141: 300 | D141: 188.2002307 | E141: 58.89055659 | F141: 49.89825757
A142: 合成ゴム | B142: 2021-08-01 | C142: 325 | D142: 191.0592352 | E142: 60.29789127 | F142: 50.99618877
A143: 合成ゴム | B143: 2021-09-01 | C143: 325 | D143: 187.6575133 | E143: 60.25162655 | F143: 51.03477031
A144: 合成ゴム | B144: 2021-10-01 | C144: 325 | D144: 192.3717463 | E144: 63.65155044 | F144: 53.91217354
A145: 合成ゴム | B145: 2021-11-01 | C145: 325 | D145: 208.8100038 | E145: 69.70092096 | F145: 58.81481312
A146: 合成ゴム | B146: 2021-12-01 | C146: 340 | D146: 192.6350077 | E146: 69.54527524 | F146: 59.01116939
A147: 合成ゴム | B147: 2022-01-01 | C147: 340 | D147: 233.1933056 | E147: 67.96451152 | F147: 57.65566364
A148: 合成ゴム | B148: 2022-02-01 | C148: 340 | D148: 233.4346678 | E148: 74.14479093 | F148: 62.71485587
A149: 合成ゴム | B149: 2022-03-01 | C149: 360 | D149: 211.6038028 | E149: 79.12416494 | F149: 66.97323511
A150: 合成ゴム | B150: 2022-04-01 | C150: 360 | D150: 244.2621978 | E150: 98.17304338 | F150: 83.23701077
A151: 合成ゴム | B151: 2022-05-01 | C151: 360 | D151: 269.9114188 | E151: 103.4884124 | F151: 87.70815433
A152: 合成ゴム | B152: 2022-06-01 | C152: 360 | D152: 288.3117694 | E152: 113.354673 | F152: 95.74488548
A153: 合成ゴム | B153: 2022-07-01 | C153: 360 | D153: 303.3418169 | E153: 117.6709818 | F153: 99.59961343
A154: 合成ゴム | B154: 2022-08-01 | C154: 465 | D154: 322.7153748 | E154: 112.7107171 | F154: 95.66086454
A155: 合成ゴム | B155: 2022-09-01 | C155: 465 | D155: 295.9186282 | E155: 115.1456664 | F155: 97.46332254
A156: 合成ゴム | B156: 2022-10-01 | C156: 465 | D156: 332.0971269 | E156: 114.4792529 | F156: 96.75160738
A157: 合成ゴム | B157: 2022-11-01 | C157: 453 | D157: 302.1813994 | E157: 109.5450782 | F157: 92.41921411
A158: 合成ゴム | B158: 2022-12-01 | C158: 453 | D158: 341.2771331 | E158: 97.88435997 | F158: 82.54030168
A159: 合成ゴム | B159: 2023-01-01 | C159: 453 | D159: 292.9442575 | E159: 86.95723548 | F159: 73.33918788
A160: 合成ゴム | B160: 2023-02-01 | C160: 429 | D160: 293.4167731 | E160: 85.62846764 | F160: 72.06655597
A161: 合成ゴム | B161: 2023-03-01 | C161: 429 | D161: 288.65929 | E161: 85.89543643 | F161: 72.48788442
A162: 合成ゴム | B162: 2023-04-01 | C162: 429 | D162: 263.3487262 | E162: 82.46440786 | F162: 69.43121261
A163: 合成ゴム | B163: 2023-05-01 | C163: 429 | D163: 271.6120615 | E163: 87.4893912 | F163: 73.62313143
A164: 合成ゴム | B164: 2023-06-01 | C164: 429 | D164: 290.0089323 | E164: 85.74280193 | F164: 72.08553687
A165: 合成ゴム | B165: 2023-07-01 | C165: 429 | D165: 302.6164082 | E165: 85.5950993 | F165: 72.11190535
A166: 合成ゴム | B166: 2023-08-01 | C166: 432 | D166: 254.2784211 | E166: 87.0831372 | F166: 73.56885802
A167: 合成ゴム | B167: 2023-09-01 | C167: 432 | D167: 271.9249824 | E167: 94.85684847 | F167: 79.75351132
A168: 合成ゴム | B168: 2023-10-01 | C168: 432 | D168: 298.4232912 | E168: 103.1709718 | F168: 86.85928584
A169: 合成ゴム | B169: 2023-11-01 | C169: 432 | D169: 318.251533 | E169: 105.4638453 | F169: 88.79017985
A170: 合成ゴム | B170: 2023-12-01 | C170: 425 | D170: 342.085329 | E170: 99.42404053 | F170: 83.55446943
A171: 合成ゴム | B171: 2024-01-01 | C171: 425 | D171: 316.1657352 | E171: 92.36562791 | F171: 77.70993718
A172: 合成ゴム | B172: 2024-02-01 | C172: 425 | D172: 346.6783638 | E172: 92.81960135 | F172: 77.879019

Sheet 9電気
B1: 電気価格推移 | C1: グラフへ戻る | D1: 出典：燃料費調単価・再エネ賦課金は電力会社HP・新電力ネット、平均販売単価は新電力ネット
A2: =C2&D2&E2 -> 会社地域期間 | B2: 指標 | C2: 会社 | D2: 地域 | E2: 期間 | F2: 燃料費調整単価(円/kWh)特別高圧（税込） | G2: 再エネ賦課金(円/kWh)（税込） | H2: 燃料費調整単価＋再エネ賦課金(円/kWh)（税込） | I2: 平均販売単価・特別高圧(円/kWh)（税抜）
A3: =C3&D3&E3 -> 北海道電力41791 | B3: 電気 | C3: 北海道電力 | E3: 2014-06-01 | F3: 0.58 | G3: 0.75 | H3: 1.33
A4: =C4&D4&E4 -> 北海道電力41821 | B4: 電気 | C4: 北海道電力 | E4: 2014-07-01 | F4: 0.5 | G4: 0.75 | H4: 1.25
A5: 北海道電力41852 | B5: 電気 | C5: 北海道電力 | E5: 2014-08-01 | F5: 0.45 | G5: 0.75 | H5: 1.2
A6: 北海道電力41883 | B6: 電気 | C6: 北海道電力 | E6: 2014-09-01 | F6: 0.39 | G6: 0.75 | H6: 1.14
A7: 北海道電力41913 | B7: 電気 | C7: 北海道電力 | E7: 2014-10-01 | F7: 0.39 | G7: 0.75 | H7: 1.14
A8: 北海道電力41944 | B8: 電気 | C8: 北海道電力 | E8: 2014-11-01 | F8: 0.7 | G8: 0.75 | H8: 1.45
A9: 北海道電力41974 | B9: 電気 | C9: 北海道電力 | E9: 2014-12-01 | F9: 0.68 | G9: 0.75 | H9: 1.43
A10: 北海道電力42005 | B10: 電気 | C10: 北海道電力 | E10: 2015-01-01 | F10: 0.61 | G10: 0.75 | H10: 1.36
A11: 北海道電力42036 | B11: 電気 | C11: 北海道電力 | E11: 2015-02-01 | F11: 0.43 | G11: 0.75 | H11: 1.18
A12: 北海道電力42064 | B12: 電気 | C12: 北海道電力 | E12: 2015-03-01 | F12: 0.13 | G12: 0.75 | H12: 0.88
A13: 北海道電力42095 | B13: 電気 | C13: 北海道電力 | E13: 2015-04-01 | F13: -0.43 | G13: 0.75 | H13: 0.32
A14: 北海道電力42125 | B14: 電気 | C14: 北海道電力 | E14: 2015-05-01 | F14: -1.15 | G14: 1.58 | H14: 0.43
A15: 北海道電力42156 | B15: 電気 | C15: 北海道電力 | E15: 2015-06-01 | F15: -1.69 | G15: 1.58 | H15: -0.11
A16: 北海道電力42186 | B16: 電気 | C16: 北海道電力 | E16: 2015-07-01 | F16: -1.85 | G16: 1.58 | H16: -0.27
A17: 北海道電力42217 | B17: 電気 | C17: 北海道電力 | E17: 2015-08-01 | F17: -1.66 | G17: 1.58 | H17: -0.08
A18: 北海道電力42248 | B18: 電気 | C18: 北海道電力 | E18: 2015-09-01 | F18: -1.46 | G18: 1.58 | H18: 0.12
A19: 北海道電力42278 | B19: 電気 | C19: 北海道電力 | E19: 2015-10-01 | F19: -1.26 | G19: 1.58 | H19: 0.32
A20: 北海道電力42309 | B20: 電気 | C20: 北海道電力 | E20: 2015-11-01 | F20: -1.24 | G20: 1.58 | H20: 0.34
A21: 北海道電力42339 | B21: 電気 | C21: 北海道電力 | E21: 2015-12-01 | F21: -1.55 | G21: 1.58 | H21: 0.03
A22: 北海道電力42370 | B22: 電気 | C22: 北海道電力 | E22: 2016-01-01 | F22: -1.96 | G22: 1.58 | H22: -0.38
A23: 北海道電力42401 | B23: 電気 | C23: 北海道電力 | E23: 2016-02-01 | F23: -2.29 | G23: 1.58 | H23: -0.71
A24: 北海道電力42430 | B24: 電気 | C24: 北海道電力 | E24: 2016-03-01 | F24: -2.47 | G24: 1.58 | H24: -0.89
A25: 北海道電力42461 | B25: 電気 | C25: 北海道電力 | E25: 2016-04-01 | F25: -2.7 | G25: 1.58 | H25: -1.12
A26: 北海道電力42491 | B26: 電気 | C26: 北海道電力 | E26: 2016-05-01 | F26: -3.11 | G26: 2.25 | H26: -0.86
A27: 北海道電力42522 | B27: 電気 | C27: 北海道電力 | E27: 2016-06-01 | F27: -3.49 | G27: 2.25 | H27: -1.24
A28: 北海道電力42552 | B28: 電気 | C28: 北海道電力 | E28: 2016-07-01 | F28: -3.58 | G28: 2.25 | H28: -1.33
A29: 北海道電力42583 | B29: 電気 | C29: 北海道電力 | E29: 2016-08-01 | F29: -3.47 | G29: 2.25 | H29: -1.22
A30: 北海道電力42614 | B30: 電気 | C30: 北海道電力 | E30: 2016-09-01 | F30: -3.24 | G30: 2.25 | H30: -0.99
A31: 北海道電力42644 | B31: 電気 | C31: 北海道電力 | E31: 2016-10-01 | F31: -3.13 | G31: 2.25 | H31: -0.88
A32: 北海道電力42675 | B32: 電気 | C32: 北海道電力 | E32: 2016-11-01 | F32: -3.1 | G32: 2.25 | H32: -0.85
A33: 北海道電力42705 | B33: 電気 | C33: 北海道電力 | E33: 2016-12-01 | F33: -3.15 | G33: 2.25 | H33: -0.9
A34: 北海道電力42736 | B34: 電気 | C34: 北海道電力 | E34: 2017-01-01 | F34: -3.17 | G34: 2.25 | H34: -0.92
A35: 北海道電力42767 | B35: 電気 | C35: 北海道電力 | E35: 2017-02-01 | F35: -3.01 | G35: 2.25 | H35: -0.76
A36: 北海道電力42795 | B36: 電気 | C36: 北海道電力 | E36: 2017-03-01 | F36: -2.74 | G36: 2.25 | H36: -0.49
A37: 北海道電力42826 | B37: 電気 | C37: 北海道電力 | E37: 2017-04-01 | F37: -2.32 | G37: 2.25 | H37: -0.07
A38: 北海道電力42856 | B38: 電気 | C38: 北海道電力 | E38: 2017-05-01 | F38: -2.02 | G38: 2.64 | H38: 0.62
A39: 北海道電力42887 | B39: 電気 | C39: 北海道電力 | E39: 2017-06-01 | F39: -1.78 | G39: 2.64 | H39: 0.86
A40: 北海道電力42917 | B40: 電気 | C40: 北海道電力 | E40: 2017-07-01 | F40: -1.85 | G40: 2.64 | H40: 0.79
A41: 北海道電力42948 | B41: 電気 | C41: 北海道電力 | E41: 2017-08-01 | F41: -1.87 | G41: 2.64 | H41: 0.77
A42: 北海道電力42979 | B42: 電気 | C42: 北海道電力 | E42: 2017-09-01 | F42: -1.96 | G42: 2.64 | H42: 0.68
A43: 北海道電力43009 | B43: 電気 | C43: 北海道電力 | E43: 2017-10-01 | F43: -2.09 | G43: 2.64 | H43: 0.55
A44: 北海道電力43040 | B44: 電気 | C44: 北海道電力 | E44: 2017-11-01 | F44: -2.21 | G44: 2.64 | H44: 0.43
A45: 北海道電力43070 | B45: 電気 | C45: 北海道電力 | E45: 2017-12-01 | F45: -2.25 | G45: 2.64 | H45: 0.39
A46: 北海道電力43101 | B46: 電気 | C46: 北海道電力 | E46: 2018-01-01 | F46: -2.07 | G46: 2.64 | H46: 0.57
A47: 北海道電力43132 | B47: 電気 | C47: 北海道電力 | E47: 2018-02-01 | F47: -1.82 | G47: 2.64 | H47: 0.82
A48: 北海道電力43160 | B48: 電気 | C48: 北海道電力 | E48: 2018-03-01 | F48: -1.51 | G48: 2.64 | H48: 1.13
A49: 北海道電力43191 | B49: 電気 | C49: 北海道電力 | E49: 2018-04-01 | F49: -1.33 | G49: 2.64 | H49: 1.31
A50: 北海道電力43221 | B50: 電気 | C50: 北海道電力 | E50: 2018-05-01 | F50: -1.15 | G50: 2.9 | H50: 1.75
A51: 北海道電力43252 | B51: 電気 | C51: 北海道電力 | E51: 2018-06-01 | F51: -1.13 | G51: 2.9 | H51: 1.77
A52: 北海道電力43282 | B52: 電気 | C52: 北海道電力 | E52: 2018-07-01 | F52: -1.17 | G52: 2.9 | H52: 1.73
A53: 北海道電力43313 | B53: 電気 | C53: 北海道電力 | E53: 2018-08-01 | F53: -1.1 | G53: 2.9 | H53: 1.8
A54: 北海道電力43344 | B54: 電気 | C54: 北海道電力 | E54: 2018-09-01 | F54: -0.86 | G54: 2.9 | H54: 2.04
A55: 北海道電力43374 | B55: 電気 | C55: 北海道電力 | E55: 2018-10-01 | F55: -0.52 | G55: 2.9 | H55: 2.38
A56: 北海道電力43405 | B56: 電気 | C56: 北海道電力 | E56: 2018-11-01 | F56: -0.31 | G56: 2.9 | H56: 2.59
A57: 北海道電力43435 | B57: 電気 | C57: 北海道電力 | E57: 2018-12-01 | F57: -0.27 | G57: 2.9 | H57: 2.63
A58: 北海道電力43466 | B58: 電気 | C58: 北海道電力 | E58: 2019-01-01 | F58: -0.14 | G58: 2.9 | H58: 2.76
A59: 北海道電力43497 | B59: 電気 | C59: 北海道電力 | E59: 2019-02-01 | F59: 0.02 | G59: 2.9 | H59: 2.92
A60: 北海道電力43525 | B60: 電気 | C60: 北海道電力 | E60: 2019-03-01 | F60: -0.05 | G60: 2.9 | H60: 2.85
A61: 北海道電力43556 | B61: 電気 | C61: 北海道電力 | E61: 2019-04-01 | F61: -0.45 | G61: 2.9 | H61: 2.45
A62: 北海道電力43586 | B62: 電気 | C62: 北海道電力 | E62: 2019-05-01 | F62: -0.94 | G62: 2.95 | H62: 2.01
A63: 北海道電力43617 | B63: 電気 | C63: 北海道電力 | E63: 2019-06-01 | F63: -1.12 | G63: 2.95 | H63: 1.83
A64: 北海道電力43647 | B64: 電気 | C64: 北海道電力 | E64: 2019-07-01 | F64: -0.97 | G64: 2.95 | H64: 1.98
A65: 北海道電力43678 | B65: 電気 | C65: 北海道電力 | E65: 2019-08-01 | F65: -0.77 | G65: 2.95 | H65: 2.18
A66: 北海道電力43709 | B66: 電気 | C66: 北海道電力 | E66: 2019-09-01 | F66: -0.7 | G66: 2.95 | H66: 2.25
A67: 北海道電力43739 | B67: 電気 | C67: 北海道電力 | E67: 2019-10-01 | F67: -0.88 | G67: 2.95 | H67: 2.07
A68: =C68&D68&E68 -> 北海道電力43770 | B68: 電気 | C68: 北海道電力 | E68: 2019-11-01 | F68: -1.1 | G68: 2.95 | H68: 1.85
A69: 北海道電力43800 | B69: 電気 | C69: 北海道電力 | E69: 2019-12-01 | F69: -1.34 | G69: 2.95 | H69: 1.61
A70: 北海道電力43831 | B70: 電気 | C70: 北海道電力 | E70: 2020-01-01 | F70: -1.44 | G70: 2.95 | H70: 1.51
A71: 北海道電力43862 | B71: 電気 | C71: 北海道電力 | E71: 2020-02-01 | F71: -1.49 | G71: 2.95 | H71: 1.46
A72: 北海道電力43891 | B72: 電気 | C72: 北海道電力 | E72: 2020-03-01 | F72: -1.44 | G72: 2.95 | H72: 1.51
A73: 北海道電力43922 | B73: 電気 | C73: 北海道電力 | E73: 2020-04-01 | F73: -1.36 | G73: 2.95 | H73: 1.59
A74: 北海道電力43952 | B74: 電気 | C74: 北海道電力 | E74: 2020-05-01 | F74: -1.27 | G74: 2.98 | H74: 1.71
A75: 北海道電力43983 | B75: 電気 | C75: 北海道電力 | E75: 2020-06-01 | F75: -1.4 | G75: 2.98 | H75: 1.58
A76: 北海道電力44013 | B76: 電気 | C76: 北海道電力 | E76: 2020-07-01 | F76: -2.02 | G76: 2.98 | H76: 0.96
A77: 北海道電力44044 | B77: 電気 | C77: 北海道電力 | E77: 2020-08-01 | F77: -2.82 | G77: 2.98 | H77: 0.16
A78: 北海道電力44075 | B78: 電気 | C78: 北海道電力 | E78: 2020-09-01 | F78: -3.66 | G78: 2.98 | H78: -0.68
A79: 北海道電力44105 | B79: 電気 | C79: 北海道電力 | E79: 2020-10-01 | F79: -4.01 | G79: 2.98 | H79: -1.03
A80: 北海道電力44136 | B80: 電気 | C80: 北海道電力 | E80: 2020-11-01 | F80: -3.7 | G80: 2.98 | H80: -0.72
A81: 北海道電力44166 | B81: 電気 | C81: 北海道電力 | E81: 2020-12-01 | F81: -3.35 | G81: 2.98 | H81: -0.37
A82: 北海道電力44197 | B82: 電気 | C82: 北海道電力 | E82: 2021-01-01 | F82: -3.16 | G82: 2.98 | H82: -0.18
A83: 北海道電力44228 | B83: 電気 | C83: 北海道電力 | E83: 2021-02-01 | F83: -3.22 | G83: 2.98 | H83: -0.24
A84: 北海道電力44256 | B84: 電気 | C84: 北海道電力 | E84: 2021-03-01 | F84: -3.26 | G84: 2.98 | H84: -0.28
A85: 北海道電力44287 | B85: 電気 | C85: 北海道電力 | E85: 2021-04-01 | F85: -3.11 | G85: 2.98 | H85: -0.13
A86: 北海道電力44317 | B86: 電気 | C86: 北海道電力 | E86: 2021-05-01 | F86: -2.8 | G86: 3.36 | H86: 0.56
A87: 北海道電力44348 | B87: 電気 | C87: 北海道電力 | E87: 2021-06-01 | F87: -2.32 | G87: 3.36 | H87: 1.04
A88: 北海道電力44378 | B88: 電気 | C88: 北海道電力 | E88: 2021-07-01 | F88: -1.82 | G88: 3.36 | H88: 1.54
A89: 北海道電力44409 | B89: 電気 | C89: 北海道電力 | E89: 2021-08-01 | F89: -1.49 | G89: 3.36 | H89: 1.87
A90: 北海道電力44440 | B90: 電気 | C90: 北海道電力 | E90: 2021-09-01 | F90: -1.2 | G90: 3.36 | H90: 2.16
A91: 北海道電力44470 | B91: 電気 | C91: 北海道電力 | E91: 2021-10-01 | F91: -0.92 | G91: 3.36 | H91: 2.44
A92: 北海道電力44501 | B92: 電気 | C92: 北海道電力 | E92: 2021-11-01 | F92: -0.55 | G92: 3.36 | H92: 2.81
A93: 北海道電力44531 | B93: 電気 | C93: 北海道電力 | E93: 2021-12-01 | F93: -0.26 | G93: 3.36 | H93: 3.1
A94: 北海道電力44562 | B94: 電気 | C94: 北海道電力 | E94: 2022-01-01 | F94: 0.06 | G94: 3.36 | H94: 3.42
A95: 北海道電力44593 | B95: 電気 | C95: 北海道電力 | E95: 2022-02-01 | F95: 0.59 | G95: 3.36 | H95: 3.95
A96: 北海道電力44621 | B96: 電気 | C96: 北海道電力 | E96: 2022-03-01 | F96: 1.09 | G96: 3.36 | H96: 4.45
A97: 北海道電力44652 | B97: 電気 | C97: 北海道電力 | E97: 2022-04-01 | F97: 1.31 | G97: 3.36 | H97: 4.67
A98: 北海道電力44682 | B98: 電気 | C98: 北海道電力 | E98: 2022-05-01 | F98: 1.45 | G98: 3.45 | H98: 4.9
A99: 北海道電力44713 | B99: 電気 | C99: 北海道電力 | E99: 2022-06-01 | F99: 1.8 | G99: 3.45 | H99: 5.25
A100: 北海道電力44743 | B100: 電気 | C100: 北海道電力 | E100: 2022-07-01 | F100: 3.02 | G100: 3.45 | H100: 6.47
A101: 北海道電力44774 | B101: 電気 | C101: 北海道電力 | E101: 2022-08-01 | F101: 4.43 | G101: 3.45 | H101: 7.88
A102: 北海道電力44805 | B102: 電気 | C102: 北海道電力 | E102: 2022-09-01 | F102: 6.37 | G102: 3.45 | H102: 9.82
A103: 北海道電力44835 | B103: 電気 | C103: 北海道電力 | E103: 2022-10-01 | F103: 7.84 | G103: 3.45 | H103: 11.29
A104: 北海道電力44866 | B104: 電気 | C104: 北海道電力 | E104: 2022-11-01 | F104: 8.7 | G104: 3.45 | H104: 12.15
A105: 北海道電力44896 | B105: 電気 | C105: 北海道電力 | E105: 2022-12-01 | F105: 9.11 | G105: 3.45 | H105: 12.56
A106: 北海道電力44927 | B106: 電気 | C106: 北海道電力 | E106: 2023-01-01 | F106: 9.26 | G106: 3.45 | H106: 12.71
A107: 北海道電力44958 | B107: 電気 | C107: 北海道電力 | E107: 2023-02-01 | F107: 9.59 | G107: 3.45 | H107: 13.04
A108: 北海道電力44986 | B108: 電気 | C108: 北海道電力 | E108: 2023-03-01 | F108: 9.05 | G108: 3.45 | H108: 12.5
A109: 北海道電力45017 | B109: 電気 | C109: 北海道電力 | E109: 2023-04-01 | F109: 8 | G109: 3.45 | H109: 11.45
A110: 北海道電力45047 | B110: 電気 | C110: 北海道電力 | E110: 2023-05-01 | F110: 6.94 | G110: 1.4 | H110: 8.34
A111: 北海道電力45078 | B111: 電気 | C111: 北海道電力 | E111: 2023-06-01 | F111: 6.26 | G111: 1.4 | H111: 7.66
A112: 北海道電力45108 | B112: 電気 | C112: 北海道電力 | E112: 2023-07-01 | F112: 5.67 | G112: 1.4 | H112: 7.07
A113: 北海道電力45139 | B113: 電気 | C113: 北海道電力 | E113: 2023-08-01 | F113: 5.06 | G113: 1.4 | H113: 6.46
A114: 北海道電力45170 | B114: 電気 | C114: 北海道電力 | E114: 2023-09-01 | F114: 4.36 | G114: 1.4 | H114: 5.76
A115: 北海道電力45200 | B115: 電気 | C115: 北海道電力 | E115: 2023-10-01 | F115: 3.97 | G115: 1.4 | H115: 5.37
A116: 北海道電力45231 | B116: 電気 | C116: 北海道電力 | E116: 2023-11-01 | F116: 3.7 | G116: 1.4 | H116: 5.1
A117: 北海道電力45261 | B117: 電気 | C117: 北海道電力 | E117: 2023-12-01 | F117: 3.66 | G117: 1.4 | H117: 5.06
A118: 北海道電力45292 | B118: 電気 | C118: 北海道電力 | E118: 2024-01-01 | F118: 4.01 | G118: 1.4 | H118: 5.41
A119: 北海道電力45323 | B119: 電気 | C119: 北海道電力 | E119: 2024-02-01 | F119: 4.45 | G119: 1.4 | H119: 5.85
A120: 北海道電力45352 | B120: 電気 | C120: 北海道電力 | E120: 2024-03-01 | F120: 4.47 | G120: 1.4 | H120: 5.87
A121: 北海道電力45383 | B121: 電気 | C121: 北海道電力 | E121: 2024-04-01 | F121: 4.03 | G121: 1.4 | H121: 5.43
A122: 北海道電力45413 | B122: 電気 | C122: 北海道電力 | E122: 2024-05-01 | F122: 3.66 | G122: 3.49 | H122: 7.15
A123: 東北電力41791 | B123: 電気 | C123: 東北電力 | E123: 2014-06-01 | F123: 1.84 | G123: 0.75 | H123: 2.59
A124: 東北電力41821 | B124: 電気 | C124: 東北電力 | E124: 2014-07-01 | F124: 1.78 | G124: 0.75 | H124: 2.53
A125: 東北電力41852 | B125: 電気 | C125: 東北電力 | E125: 2014-08-01 | F125: 1.7 | G125: 0.75 | H125: 2.45
A126: 東北電力41883 | B126: 電気 | C126: 東北電力 | E126: 2014-09-01 | F126: 1.6 | G126: 0.75 | H126: 2.35
A127: 東北電力41913 | B127: 電気 | C127: 東北電力 | E127: 2014-10-01 | F127: 1.49 | G127: 0.75 | H127: 2.24
A128: 東北電力41944 | B128: 電気 | C128: 東北電力 | E128: 2014-11-01 | F128: 1.43 | G128: 0.75 | H128: 2.18
A129: 東北電力41974 | B129: 電気 | C129: 東北電力 | E129: 2014-12-01 | F129: 1.41 | G129: 0.75 | H129: 2.16
A130: 東北電力42005 | B130: 電気 | C130: 東北電力 | E130: 2015-01-01 | F130: 1.47 | G130: 0.75 | H130: 2.22
A131: 東北電力42036 | B131: 電気 | C131: 東北電力 | E131: 2015-02-01 | F131: 1.62 | G131: 0.75 | H131: 2.37
A132: =C132&D132&E132 -> 東北電力42064 | B132: 電気 | C132: 東北電力 | E132: 2015-03-01 | F132: 1.8 | G132: 0.75 | H132: 2.55
A133: 東北電力42095 | B133: 電気 | C133: 東北電力 | E133: 2015-04-01 | F133: 1.72 | G133: 0.75 | H133: 2.47
A134: 東北電力42125 | B134: 電気 | C134: 東北電力 | E134: 2015-05-01 | F134: 1.29 | G134: 1.58 | H134: 2.87
A135: 東北電力42156 | B135: 電気 | C135: 東北電力 | E135: 2015-06-01 | F135: 0.75 | G135: 1.58 | H135: 2.33
A136: 東北電力42186 | B136: 電気 | C136: 東北電力 | E136: 2015-07-01 | F136: 0.18 | G136: 1.58 | H136: 1.76
A137: 東北電力42217 | B137: 電気 | C137: 東北電力 | E137: 2015-08-01 | F137: -0.22 | G137: 1.58 | H137: 1.36
A138: 東北電力42248 | B138: 電気 | C138: 東北電力 | E138: 2015-09-01 | F138: -0.63 | G138: 1.58 | H138: 0.95
A139: 東北電力42278 | B139: 電気 | C139: 東北電力 | E139: 2015-10-01 | F139: -0.73 | G139: 1.58 | H139: 0.85
A140: 東北電力42309 | B140: 電気 | C140: 東北電力 | E140: 2015-11-01 | F140: -0.65 | G140: 1.58 | H140: 0.93
A141: 東北電力42339 | B141: 電気 | C141: 東北電力 | E141: 2015-12-01 | F141: -0.67 | G141: 1.58 | H141: 0.91
A142: 東北電力42370 | B142: 電気 | C142: 東北電力 | E142: 2016-01-01 | F142: -0.77 | G142: 1.58 | H142: 0.81
A143: 東北電力42401 | B143: 電気 | C143: 東北電力 | E143: 2016-02-01 | F143: -0.93 | G143: 1.58 | H143: 0.65
A144: 東北電力42430 | B144: 電気 | C144: 東北電力 | E144: 2016-03-01 | F144: -1.11 | G144: 1.58 | H144: 0.47
A145: 東北電力42461 | B145: 電気 | C145: 東北電力 | E145: 2016-04-01 | F145: -1.39 | G145: 1.58 | H145: 0.19
A146: 東北電力42491 | B146: 電気 | C146: 東北電力 | E146: 2016-05-01 | F146: -1.68 | G146: 2.25 | H146: 0.57
A147: 東北電力42522 | B147: 電気 | C147: 東北電力 | E147: 2016-06-01 | F147: -2.04 | G147: 2.25 | H147: 0.21
A148: 東北電力42552 | B148: 電気 | C148: 東北電力 | E148: 2016-07-01 | F148: -2.28 | G148: 2.25 | H148: -0.03
A149: 東北電力42583 | B149: 電気 | C149: 東北電力 | E149: 2016-08-01 | F149: -2.55 | G149: 2.25 | H149: -0.3
A150: 東北電力42614 | B150: 電気 | C150: 東北電力 | E150: 2016-09-01 | F150: -2.69 | G150: 2.25 | H150: -0.44
A151: 東北電力42644 | B151: 電気 | C151: 東北電力 | E151: 2016-10-01 | F151: -2.73 | G151: 2.25 | H151: -0.48
A152: 東北電力42675 | B152: 電気 | C152: 東北電力 | E152: 2016-11-01 | F152: -2.69 | G152: 2.25 | H152: -0.44
A153: 東北電力42705 | B153: 電気 | C153: 東北電力 | E153: 2016-12-01 | F153: -2.63 | G153: 2.25 | H153: -0.38
A154: 東北電力42736 | B154: 電気 | C154: 東北電力 | E154: 2017-01-01 | F154: -2.55 | G154: 2.25 | H154: -0.3
A155: 東北電力42767 | B155: 電気 | C155: 東北電力 | E155: 2017-02-01 | F155: -2.32 | G155: 2.25 | H155: -0.07
A156: 東北電力42795 | B156: 電気 | C156: 東北電力 | E156: 2017-03-01 | F156: -2.04 | G156: 2.25 | H156: 0.21
A157: 東北電力42826 | B157: 電気 | C157: 東北電力 | E157: 2017-04-01 | F157: -1.7 | G157: 2.25 | H157: 0.55
A158: 東北電力42856 | B158: 電気 | C158: 東北電力 | E158: 2017-05-01 | F158: -1.41 | G158: 2.64 | H158: 1.23
A159: 東北電力42887 | B159: 電気 | C159: 東北電力 | E159: 2017-06-01 | F159: -1.29 | G159: 2.64 | H159: 1.35
A160: 東北電力42917 | B160: 電気 | C160: 東北電力 | E160: 2017-07-01 | F160: -1.29 | G160: 2.64 | H160: 1.35
A161: 東北電力42948 | B161: 電気 | C161: 東北電力 | E161: 2017-08-01 | F161: -1.23 | G161: 2.64 | H161: 1.41
A162: 東北電力42979 | B162: 電気 | C162: 東北電力 | E162: 2017-09-01 | F162: -1.19 | G162: 2.64 | H162: 1.45
A163: 東北電力43009 | B163: 電気 | C163: 東北電力 | E163: 2017-10-01 | F163: -1.19 | G163: 2.64 | H163: 1.45
A164: 東北電力43040 | B164: 電気 | C164: 東北電力 | E164: 2017-11-01 | F164: -1.27 | G164: 2.64 | H164: 1.37
A165: 東北電力43070 | B165: 電気 | C165: 東北電力 | E165: 2017-12-01 | F165: -1.33 | G165: 2.64 | H165: 1.31
A166: 東北電力43101 | B166: 電気 | C166: 東北電力 | E166: 2018-01-01 | F166: -1.29 | G166: 2.64 | H166: 1.35
A167: 東北電力43132 | B167: 電気 | C167: 東北電力 | E167: 2018-02-01 | F167: -1.21 | G167: 2.64 | H167: 1.43
A168: 東北電力43160 | B168: 電気 | C168: 東北電力 | E168: 2018-03-01 | F168: -1.07 | G168: 2.64 | H168: 1.57
A169: 東北電力43191 | B169: 電気 | C169: 東北電力 | E169: 2018-04-01 | F169: -0.93 | G169: 2.64 | H169: 1.71
A170: 東北電力43221 | B170: 電気 | C170: 東北電力 | E170: 2018-05-01 | F170: -0.77 | G170: 2.9 | H170: 2.13
